{"text_format":"1","workbook":"xlsx","n_sheets":7,"sheets":["Sheet1","Sprints1","Sprints2","DistanceRaces","Field","Instructions","Competitors&Timetable"],"not_rendered":{"charts":0,"images":0,"macros":1,"external_links":1,"defined_names":53,"comments":0,"pivot_tables":0},"unopened":[],"bounds":{"document_bytes":16777216,"sheet_cells":100000,"rows_first":2000,"rows_last":500,"rows_between":2000,"halvings":0,"cell_chars":16384,"cell_head_chars":4096},"cells_cut":0,"cells_raw":0,"read":"whole","date_system":"1900"}

{"sheet":"Sheet1","index":0,"n_rows":0,"n_cols":0,"rows_kept":0,"cut":false,"hidden":false,"merged":[]}

{"sheet":"Sprints1","index":1,"n_rows":175,"n_cols":12,"rows_kept":175,"cut":false,"hidden":false,"merged":[[0,2,0,3],[0,8,0,9],[11,2,11,3],[11,8,11,9],[22,8,22,9],[22,2,22,3],[33,2,33,3],[45,2,45,3],[55,2,55,3],[55,8,55,9],[66,2,66,3],[66,8,66,9],[33,8,33,9],[45,8,45,9],[77,2,77,3],[88,2,88,3],[99,2,99,3],[99,8,99,9],[110,2,110,3],[110,8,110,9],[77,8,77,9],[154,2,154,3],[154,8,154,9],[165,2,165,3],[165,8,165,9],[121,2,121,3],[121,8,121,9],[132,2,132,3],[132,8,132,9],[143,2,143,3],[143,8,143,9]]}
[null,"T01",{"$f":"INDEX('Competitors&Timetable'!$F$1:$H$144,MATCH(B1,'Competitors&Timetable'!$F$1:$F$144,0),2)","v":"70m Hurdles Under 13 Girls"},null,"Heat 1",null,null,"T01",{"$f":"INDEX('Competitors&Timetable'!F1:H144,MATCH(H1,'Competitors&Timetable'!F1:F144,0),2)","v":"70m Hurdles Under 13 Girls"},null,"Heat 2"]
[1,35,{"$f":"INDEX(EntryList,MATCH(B2,'Competitors&Timetable'!$A$1:$A$401,0),2)","v":"Shona Gristwood"},{"$f":"INDEX(EntryList,MATCH(B2,'Competitors&Timetable'!$A$1:$A$401,0),3)","v":"U13 Girl"},15.06,17,1,37,{"$f":"INDEX(EntryList,MATCH(H2,'Competitors&Timetable'!A1:A401,0),2)","v":"Sarah Robertson"},{"$f":"INDEX(EntryList,MATCH(H2,'Competitors&Timetable'!A1:A401,0),3)","v":"U13 Girl"},12.35,38]
[2,30,{"$f":"INDEX(EntryList,MATCH(B3,'Competitors&Timetable'!A1:A401,0),2)","v":"Rachel  Cartledge"},{"$f":"INDEX(EntryList,MATCH(B3,'Competitors&Timetable'!A1:A401,0),3)","v":"U13 Girl"},15.38,16,2,25,{"$f":"INDEX(EntryList,MATCH(H3,'Competitors&Timetable'!A1:A401,0),2)","v":"Katy Martin"},{"$f":"INDEX(EntryList,MATCH(H3,'Competitors&Timetable'!A1:A401,0),3)","v":"U13 Girl"},12.57,34]
[3,33,{"$f":"INDEX(EntryList,MATCH(B4,'Competitors&Timetable'!A1:A401,0),2)","v":"Laura Yapp"},{"$f":"INDEX(EntryList,MATCH(B4,'Competitors&Timetable'!A1:A401,0),3)","v":"U13 Girl"},15.41,16,3,87,{"$f":"INDEX(EntryList,MATCH(H4,'Competitors&Timetable'!A1:A401,0),2)","v":"Olivia Harris"},{"$f":"INDEX(EntryList,MATCH(H4,'Competitors&Timetable'!A1:A401,0),3)","v":"U13 Girl"},12.86,28]
[4,26,{"$f":"INDEX(EntryList,MATCH(B5,'Competitors&Timetable'!A1:A401,0),2)","v":"Amy Hewitt"},{"$f":"INDEX(EntryList,MATCH(B5,'Competitors&Timetable'!A1:A401,0),3)","v":"U13 Girl"},16.649999999999999,11,4,24,{"$f":"INDEX(EntryList,MATCH(H5,'Competitors&Timetable'!A1:A401,0),2)","v":"Rachel  Elder"},{"$f":"INDEX(EntryList,MATCH(H5,'Competitors&Timetable'!A1:A401,0),3)","v":"U13 Girl"},13.13,25]
[null,".",{"$f":"INDEX(EntryList,MATCH(B6,'Competitors&Timetable'!A1:A401,0),2)","v":" "},{"$f":"INDEX(EntryList,MATCH(B6,'Competitors&Timetable'!A1:A401,0),3)","v":" "},null,null,5,27,{"$f":"INDEX(EntryList,MATCH(H6,'Competitors&Timetable'!A1:A401,0),2)","v":"Lucy Tod"},{"$f":"INDEX(EntryList,MATCH(H6,'Competitors&Timetable'!A1:A401,0),3)","v":"U13 Girl"},13.48,24]
[null,".",{"$f":"INDEX(EntryList,MATCH(B7,'Competitors&Timetable'!A1:A401,0),2)","v":" "},{"$f":"INDEX(EntryList,MATCH(B7,'Competitors&Timetable'!A1:A401,0),3)","v":" "},null,null,null,".",{"$f":"INDEX(EntryList,MATCH(H7,'Competitors&Timetable'!A1:A401,0),2)","v":" "},{"$f":"INDEX(EntryList,MATCH(H7,'Competitors&Timetable'!A1:A401,0),3)","v":" "}]
[null,".",{"$f":"INDEX(EntryList,MATCH(B8,'Competitors&Timetable'!A1:A401,0),2)","v":" "},{"$f":"INDEX(EntryList,MATCH(B8,'Competitors&Timetable'!A1:A401,0),3)","v":" "},null,null,null,".",{"$f":"INDEX(EntryList,MATCH(H8,'Competitors&Timetable'!A1:A401,0),2)","v":" "},{"$f":"INDEX(EntryList,MATCH(H8,'Competitors&Timetable'!A1:A401,0),3)","v":" "}]
[null,".",{"$f":"INDEX(EntryList,MATCH(B9,'Competitors&Timetable'!A1:A401,0),2)","v":" "},{"$f":"INDEX(EntryList,MATCH(B9,'Competitors&Timetable'!A1:A401,0),3)","v":" "},null,null,null,".",{"$f":"INDEX(EntryList,MATCH(H9,'Competitors&Timetable'!A1:A401,0),2)","v":" "},{"$f":"INDEX(EntryList,MATCH(H9,'Competitors&Timetable'!A1:A401,0),3)","v":" "}]
[null,null,{"$f":"IF(B10=\"\",\"\",LOOKUP(B10,#REF!,#REF!))","v":""},{"$f":"IF(B10=\"\",\"\",LOOKUP(B10,'Competitors&Timetable'!#REF!))","v":""},null,null,null,null,{"$f":"IF(H10=\"\",\"\",LOOKUP(H10,#REF!,#REF!))","v":""},{"$f":"IF(H10=\"\",\"\",LOOKUP(H10,'Competitors&Timetable'!#REF!))","v":""}]
[]
[null,"T02",{"$f":"INDEX('Competitors&Timetable'!F1:H144,MATCH(B12,'Competitors&Timetable'!F1:F144,0),2)","v":"75m Hurdles U15 Girls/13 Boys and 80m Hurdles U17 Women"},null,"Final",null,null,"T03",{"$f":"INDEX('Competitors&Timetable'!F1:H144,MATCH(H12,'Competitors&Timetable'!F1:F144,0),2)","v":"100m Under 11 Girls"},null,"Final"]
[1,66,{"$f":"INDEX(EntryList,MATCH(B13,'Competitors&Timetable'!A1:A401,0),2)","v":"Jenna Richards"},{"$f":"INDEX(EntryList,MATCH(B13,'Competitors&Timetable'!A1:A401,0),3)","v":"U17 Woman"},12.56,39,1,12,{"$f":"INDEX(EntryList,MATCH(H13,'Competitors&Timetable'!A1:A401,0),2)","v":"Abbie Malinowski"},{"$f":"INDEX(EntryList,MATCH(H13,'Competitors&Timetable'!A1:A401,0),3)","v":"U11 Girl"},14.78,23]
[1,51,{"$f":"INDEX(EntryList,MATCH(B14,'Competitors&Timetable'!A1:A401,0),2)","v":"Bethany Murray"},{"$f":"INDEX(EntryList,MATCH(B14,'Competitors&Timetable'!A1:A401,0),3)","v":"U15 Girl"},12.59,39,2,11,{"$f":"INDEX(EntryList,MATCH(H14,'Competitors&Timetable'!A1:A401,0),2)","v":"Holli Boyd"},{"$f":"INDEX(EntryList,MATCH(H14,'Competitors&Timetable'!A1:A401,0),3)","v":"U11 Girl"},15.97,19]
[2,53,{"$f":"INDEX(EntryList,MATCH(B15,'Competitors&Timetable'!A1:A401,0),2)","v":"Megan Wilson"},{"$f":"INDEX(EntryList,MATCH(B15,'Competitors&Timetable'!A1:A401,0),3)","v":"U15 Girl"},13.19,30,3,13,{"$f":"INDEX(EntryList,MATCH(H15,'Competitors&Timetable'!A1:A401,0),2)","v":"Rachel Mair"},{"$f":"INDEX(EntryList,MATCH(H15,'Competitors&Timetable'!A1:A401,0),3)","v":"U11 Girl"},16.57,16]
[1,39,{"$f":"INDEX(EntryList,MATCH(B16,'Competitors&Timetable'!A1:A401,0),2)","v":"Murray Blair"},{"$f":"INDEX(EntryList,MATCH(B16,'Competitors&Timetable'!A1:A401,0),3)","v":"U13 Boy"},15.13,22,4,14,{"$f":"INDEX(EntryList,MATCH(H16,'Competitors&Timetable'!A1:A401,0),2)","v":"Ellie Baxter"},{"$f":"INDEX(EntryList,MATCH(H16,'Competitors&Timetable'!A1:A401,0),3)","v":"U11 Girl"},16.670000000000002,16]
[null,".",{"$f":"INDEX(EntryList,MATCH(B17,'Competitors&Timetable'!A1:A401,0),2)","v":" "},{"$f":"INDEX(EntryList,MATCH(B17,'Competitors&Timetable'!A1:A401,0),3)","v":" "},null,null,null,".",{"$f":"INDEX(EntryList,MATCH(H17,'Competitors&Timetable'!A1:A401,0),2)","v":" "},{"$f":"INDEX(EntryList,MATCH(H17,'Competitors&Timetable'!A1:A401,0),3)","v":" "}]
[null,".",{"$f":"INDEX(EntryList,MATCH(B18,'Competitors&Timetable'!A1:A401,0),2)","v":" "},{"$f":"INDEX(EntryList,MATCH(B18,'Competitors&Timetable'!A1:A401,0),3)","v":" "},null,null,null,".",{"$f":"INDEX(EntryList,MATCH(H18,'Competitors&Timetable'!A1:A401,0),2)","v":" "},{"$f":"INDEX(EntryList,MATCH(H18,'Competitors&Timetable'!A1:A401,0),3)","v":" "}]
[null,".",{"$f":"INDEX(EntryList,MATCH(B19,'Competitors&Timetable'!A1:A401,0),2)","v":" "},{"$f":"INDEX(EntryList,MATCH(B19,'Competitors&Timetable'!A1:A401,0),3)","v":" "},null,null,null,".",{"$f":"INDEX(EntryList,MATCH(H19,'Competitors&Timetable'!A1:A401,0),2)","v":" "},{"$f":"INDEX(EntryList,MATCH(H19,'Competitors&Timetable'!A1:A401,0),3)","v":" "}]
[null,".",{"$f":"INDEX(EntryList,MATCH(B20,'Competitors&Timetable'!A1:A401,0),2)","v":" "},{"$f":"INDEX(EntryList,MATCH(B20,'Competitors&Timetable'!A1:A401,0),3)","v":" "},null,null,null,".",{"$f":"INDEX(EntryList,MATCH(H20,'Competitors&Timetable'!A1:A401,0),2)","v":" "},{"$f":"INDEX(EntryList,MATCH(H20,'Competitors&Timetable'!A1:A401,0),3)","v":" "}]
[null,null,{"$f":"IF(B21=\"\",\"\",LOOKUP(B21,#REF!,#REF!))","v":""},{"$f":"IF(B21=\"\",\"\",LOOKUP(B21,'Competitors&Timetable'!#REF!))","v":""},null,null,null,null,{"$f":"IF(H21=\"\",\"\",LOOKUP(H21,#REF!,#REF!))","v":""},{"$f":"IF(H21=\"\",\"\",LOOKUP(H21,'Competitors&Timetable'!#REF!))","v":""}]
[]
[null,"T04",{"$f":"INDEX('Competitors&Timetable'!F1:H144,MATCH(B23,'Competitors&Timetable'!F1:F144,0),2)","v":"100m Under 11 Boys"},null,"Heat 1",null,null,"T04",{"$f":"INDEX('Competitors&Timetable'!F1:H144,MATCH(H23,'Competitors&Timetable'!F1:F144,0),2)","v":"100m Under 11 Boys"},{"$f":"INDEX(#REF!,MATCH(H23,#REF!,0),3)","v":{"$error":"#REF!"}},"Heat 2"]
[1,18,{"$f":"INDEX(EntryList,MATCH(B24,'Competitors&Timetable'!A1:A401,0),2)","v":"Charlie Griffiths"},{"$f":"INDEX(EntryList,MATCH(B24,'Competitors&Timetable'!A1:A401,0),3)","v":"U11 Boy"},15.38,22,1,22,{"$f":"INDEX(EntryList,MATCH(H24,'Competitors&Timetable'!A1:A401,0),2)","v":"Dominic McLagan"},{"$f":"INDEX(EntryList,MATCH(H24,'Competitors&Timetable'!A1:A401,0),3)","v":"U11 Boy"},15.7,21]
[2,16,{"$f":"INDEX(EntryList,MATCH(B25,'Competitors&Timetable'!A1:A401,0),2)","v":"Callum Alexander"},{"$f":"INDEX(EntryList,MATCH(B25,'Competitors&Timetable'!A1:A401,0),3)","v":"U11 Boy"},15.51,21,2,23,{"$f":"INDEX(EntryList,MATCH(H25,'Competitors&Timetable'!A1:A401,0),2)","v":"Ryan Wilson"},{"$f":"INDEX(EntryList,MATCH(H25,'Competitors&Timetable'!A1:A401,0),3)","v":"U11 Boy"},17.43,17]
[3,19,{"$f":"INDEX(EntryList,MATCH(B26,'Competitors&Timetable'!A1:A401,0),2)","v":"Euan Donaldson"},{"$f":"INDEX(EntryList,MATCH(B26,'Competitors&Timetable'!A1:A401,0),3)","v":"U11 Boy"},17.03,17,3,20,{"$f":"INDEX(EntryList,MATCH(H26,'Competitors&Timetable'!A1:A401,0),2)","v":"Jack Armitage"},{"$f":"INDEX(EntryList,MATCH(H26,'Competitors&Timetable'!A1:A401,0),3)","v":"U11 Boy"},17.68,16]
[4,17,{"$f":"INDEX(EntryList,MATCH(B27,'Competitors&Timetable'!A1:A401,0),2)","v":"Cameron Dickson"},{"$f":"INDEX(EntryList,MATCH(B27,'Competitors&Timetable'!A1:A401,0),3)","v":"U11 Boy"},17.37,17,null,21,{"$f":"INDEX(EntryList,MATCH(H27,'Competitors&Timetable'!A1:A401,0),2)","v":"Alex Biavati-Smith"},{"$f":"INDEX(EntryList,MATCH(H27,'Competitors&Timetable'!A1:A401,0),3)","v":"U11 Boy"},"DNS",0]
[null,".",{"$f":"INDEX(EntryList,MATCH(B28,'Competitors&Timetable'!A1:A401,0),2)","v":" "},{"$f":"INDEX(EntryList,MATCH(B28,'Competitors&Timetable'!A1:A401,0),3)","v":" "},null,null,null,".",{"$f":"INDEX(EntryList,MATCH(H28,'Competitors&Timetable'!A1:A401,0),2)","v":" "},{"$f":"INDEX(EntryList,MATCH(H28,'Competitors&Timetable'!A1:A401,0),3)","v":" "}]
[null,".",{"$f":"INDEX(EntryList,MATCH(B29,'Competitors&Timetable'!A1:A401,0),2)","v":" "},{"$f":"INDEX(EntryList,MATCH(B29,'Competitors&Timetable'!A1:A401,0),3)","v":" "},null,null,null,".",{"$f":"INDEX(EntryList,MATCH(H29,'Competitors&Timetable'!A1:A401,0),2)","v":" "},{"$f":"INDEX(EntryList,MATCH(H29,'Competitors&Timetable'!A1:A401,0),3)","v":" "}]
[null,".",{"$f":"INDEX(EntryList,MATCH(B30,'Competitors&Timetable'!A1:A401,0),2)","v":" "},{"$f":"INDEX(EntryList,MATCH(B30,'Competitors&Timetable'!A1:A401,0),3)","v":" "},null,null,null,".",null,{"$f":"INDEX(EntryList,MATCH(H30,'Competitors&Timetable'!A1:A401,0),3)","v":" "}]
[null,".",{"$f":"INDEX(EntryList,MATCH(B31,'Competitors&Timetable'!A1:A401,0),2)","v":" "},{"$f":"INDEX(EntryList,MATCH(B31,'Competitors&Timetable'!A1:A401,0),3)","v":" "},null,null,null,".",null,{"$f":"INDEX(EntryList,MATCH(H31,'Competitors&Timetable'!A1:A401,0),3)","v":" "}]
[null,null,{"$f":"IF(B32=\"\",\"\",LOOKUP(B32,#REF!,#REF!))","v":""},{"$f":"IF(B32=\"\",\"\",LOOKUP(B32,'Competitors&Timetable'!#REF!))","v":""},null,null,null,null,null,{"$f":"IF(H32=\"\",\"\",LOOKUP(H32,'Competitors&Timetable'!#REF!))","v":""}]
[]
[null,"T05",{"$f":"INDEX('Competitors&Timetable'!F1:H144,MATCH(B34,'Competitors&Timetable'!F1:F144,0),2)","v":"100m U13 Girls"},null,"Heat 1",null,null,"T05","100m U13 Girls",null,"Heat 2"]
[1,35,{"$f":"INDEX(EntryList,MATCH(B35,'Competitors&Timetable'!A1:A401,0),2)","v":"Shona Gristwood"},{"$f":"INDEX(EntryList,MATCH(B35,'Competitors&Timetable'!A1:A401,0),3)","v":"U13 Girl"},14.82,24,1,25,{"$f":"INDEX(EntryList,MATCH(H35,'Competitors&Timetable'!A1:A401,0),2)","v":"Katy Martin"},{"$f":"INDEX(EntryList,MATCH(H35,'Competitors&Timetable'!A1:A401,0),3)","v":"U13 Girl"},14.67,25]
[2,38,{"$f":"INDEX(EntryList,MATCH(B36,'Competitors&Timetable'!A1:A401,0),2)","v":"Kate Lawrence"},{"$f":"INDEX(EntryList,MATCH(B36,'Competitors&Timetable'!A1:A401,0),3)","v":"U13 Girl"},14.87,24,2,87,{"$f":"INDEX(EntryList,MATCH(H36,'Competitors&Timetable'!A1:A401,0),2)","v":"Olivia Harris"},{"$f":"INDEX(EntryList,MATCH(H36,'Competitors&Timetable'!A1:A401,0),3)","v":"U13 Girl"},14.85,24]
[3,100,{"$f":"INDEX(EntryList,MATCH(B37,'Competitors&Timetable'!A1:A401,0),2)","v":"Georgia Jones"},{"$f":"INDEX(EntryList,MATCH(B37,'Competitors&Timetable'!A1:A401,0),3)","v":"U13 Girl"},14.9,24,3,37,{"$f":"INDEX(EntryList,MATCH(H37,'Competitors&Timetable'!A1:A401,0),2)","v":"Sarah Robertson"},{"$f":"INDEX(EntryList,MATCH(H37,'Competitors&Timetable'!A1:A401,0),3)","v":"U13 Girl"},15.35,22]
[4,28,{"$f":"INDEX(EntryList,MATCH(B38,'Competitors&Timetable'!A1:A401,0),2)","v":"Samantha Laing"},{"$f":"INDEX(EntryList,MATCH(B38,'Competitors&Timetable'!A1:A401,0),3)","v":"U13 Girl"},15.44,22,4,24,{"$f":"INDEX(EntryList,MATCH(H38,'Competitors&Timetable'!A1:A401,0),2)","v":"Rachel  Elder"},{"$f":"INDEX(EntryList,MATCH(H38,'Competitors&Timetable'!A1:A401,0),3)","v":"U13 Girl"},15.39,22]
[5,36,{"$f":"INDEX(EntryList,MATCH(B39,'Competitors&Timetable'!A1:A401,0),2)","v":"Abbi Diamond"},{"$f":"INDEX(EntryList,MATCH(B39,'Competitors&Timetable'!A1:A401,0),3)","v":"U13 Girl"},16.07,19,5,27,{"$f":"INDEX(EntryList,MATCH(H39,'Competitors&Timetable'!A1:A401,0),2)","v":"Lucy Tod"},{"$f":"INDEX(EntryList,MATCH(H39,'Competitors&Timetable'!A1:A401,0),3)","v":"U13 Girl"},15.96,20]
[6,30,{"$f":"INDEX(EntryList,MATCH(B40,'Competitors&Timetable'!A1:A401,0),2)","v":"Rachel  Cartledge"},{"$f":"INDEX(EntryList,MATCH(B40,'Competitors&Timetable'!A1:A401,0),3)","v":"U13 Girl"},16.28,19,6,26,{"$f":"INDEX(EntryList,MATCH(H40,'Competitors&Timetable'!A1:A401,0),2)","v":"Amy Hewitt"},{"$f":"INDEX(EntryList,MATCH(H40,'Competitors&Timetable'!A1:A401,0),3)","v":"U13 Girl"},16.7,18]
[7,34,{"$f":"INDEX(EntryList,MATCH(B41,'Competitors&Timetable'!A1:A401,0),2)","v":"Courtney Simpson"},{"$f":"INDEX(EntryList,MATCH(B41,'Competitors&Timetable'!A1:A401,0),3)","v":"U13 Girl"},"DNS",0,null,".",{"$f":"INDEX(EntryList,MATCH(H41,'Competitors&Timetable'!A1:A401,0),2)","v":" "},{"$f":"INDEX(EntryList,MATCH(H41,'Competitors&Timetable'!A1:A401,0),3)","v":" "}]
[null,".",{"$f":"INDEX(EntryList,MATCH(B42,'Competitors&Timetable'!A1:A401,0),2)","v":" "},{"$f":"INDEX(EntryList,MATCH(B42,'Competitors&Timetable'!A1:A401,0),3)","v":" "},null,null,null,".",{"$f":"INDEX(EntryList,MATCH(H42,'Competitors&Timetable'!A1:A401,0),2)","v":" "},{"$f":"INDEX(EntryList,MATCH(H42,'Competitors&Timetable'!A1:A401,0),3)","v":" "}]
[null,null,{"$f":"IF(B43=\"\",\"\",LOOKUP(B43,#REF!,#REF!))","v":""},{"$f":"IF(B43=\"\",\"\",LOOKUP(B43,'Competitors&Timetable'!#REF!))","v":""},null,null,null,null,{"$f":"IF(H43=\"\",\"\",LOOKUP(H43,#REF!,#REF!))","v":""},{"$f":"IF(H43=\"\",\"\",LOOKUP(H43,'Competitors&Timetable'!#REF!))","v":""}]
[]
[]
[null,"T06",{"$f":"INDEX('Competitors&Timetable'!F1:H144,MATCH(B46,'Competitors&Timetable'!F1:F144,0),2)","v":"100m Under 13 Boys"},{"$f":"INDEX(#REF!,MATCH(B46,#REF!,0),3)","v":{"$error":"#REF!"}},"Final",null,null,"T01",{"$f":"INDEX('Competitors&Timetable'!$F$1:$H$144,MATCH(H46,'Competitors&Timetable'!$F$1:$F$144,0),2)","v":"70m Hurdles Under 13 Girls"},null,"Final"]
[1,42,{"$f":"INDEX(EntryList,MATCH(B47,'Competitors&Timetable'!A1:A401,0),2)","v":"Lawrie Wilson"},{"$f":"INDEX(EntryList,MATCH(B47,'Competitors&Timetable'!A1:A401,0),3)","v":"U13 Boy"},14.35,26,1]
[2,39,{"$f":"INDEX(EntryList,MATCH(B48,'Competitors&Timetable'!A1:A401,0),2)","v":"Murray Blair"},{"$f":"INDEX(EntryList,MATCH(B48,'Competitors&Timetable'!A1:A401,0),3)","v":"U13 Boy"},15.04,23]
[3,47,{"$f":"INDEX(EntryList,MATCH(B49,'Competitors&Timetable'!A1:A401,0),2)","v":"Euan Maxwell"},{"$f":"INDEX(EntryList,MATCH(B49,'Competitors&Timetable'!A1:A401,0),3)","v":"U13 Boy"},15.39,22]
[4,44,{"$f":"INDEX(EntryList,MATCH(B50,'Competitors&Timetable'!A1:A401,0),2)","v":"Gregor Hutchison"},{"$f":"INDEX(EntryList,MATCH(B50,'Competitors&Timetable'!A1:A401,0),3)","v":"U13 Boy"},15.45,22]
[5,46,{"$f":"INDEX(EntryList,MATCH(B51,'Competitors&Timetable'!A1:A401,0),2)","v":"Euan McAlister"},{"$f":"INDEX(EntryList,MATCH(B51,'Competitors&Timetable'!A1:A401,0),3)","v":"U13 Boy"},15.69,21]
[6,45,{"$f":"INDEX(EntryList,MATCH(B52,'Competitors&Timetable'!A1:A401,0),2)","v":"Angus Cousin"},{"$f":"INDEX(EntryList,MATCH(B52,'Competitors&Timetable'!A1:A401,0),3)","v":"U13 Boy"},16.260000000000002,19]
[null,".",{"$f":"INDEX(EntryList,MATCH(B53,'Competitors&Timetable'!A1:A401,0),2)","v":" "},{"$f":"INDEX(EntryList,MATCH(B53,'Competitors&Timetable'!A1:A401,0),3)","v":" "}]
[null,".",{"$f":"INDEX(EntryList,MATCH(B54,'Competitors&Timetable'!A1:A401,0),2)","v":" "},{"$f":"INDEX(EntryList,MATCH(B54,'Competitors&Timetable'!A1:A401,0),3)","v":" "},null,null,null,null,{"$f":"IF(H54=\"\",\"\",LOOKUP(H54,#REF!,#REF!))","v":""},{"$f":"IF(H54=\"\",\"\",LOOKUP(H54,'Competitors&Timetable'!#REF!))","v":""}]
[null,null,{"$f":"IF(B55=\"\",\"\",LOOKUP(B55,#REF!,#REF!))","v":""},{"$f":"IF(B55=\"\",\"\",LOOKUP(B55,'Competitors&Timetable'!#REF!))","v":""}]
[null,"T07",{"$f":"INDEX('Competitors&Timetable'!F1:H144,MATCH(B56,'Competitors&Timetable'!F1:F144,0),2)","v":"100m Under 15 Girls"},null,"Heat 1",null,null,"T07",{"$f":"INDEX('Competitors&Timetable'!F1:H144,MATCH(H56,'Competitors&Timetable'!F1:F144,0),2)","v":"100m Under 15 Girls"},{"$f":"INDEX(#REF!,MATCH(H56,#REF!,0),3)","v":{"$error":"#REF!"}},"Heat 2"]
[1,53,{"$f":"INDEX(EntryList,MATCH(B57,'Competitors&Timetable'!A1:A401,0),2)","v":"Megan Wilson"},{"$f":"INDEX(EntryList,MATCH(B57,'Competitors&Timetable'!A1:A401,0),3)","v":"U15 Girl"},13.93,28,1,50,{"$f":"INDEX(EntryList,MATCH(H57,'Competitors&Timetable'!A1:A401,0),2)","v":"Imogen Wilson"},{"$f":"INDEX(EntryList,MATCH(H57,'Competitors&Timetable'!A1:A401,0),3)","v":"U15 Girl"},13.36,31]
[2,57,{"$f":"INDEX(EntryList,MATCH(B58,'Competitors&Timetable'!A1:A401,0),2)","v":"Ruth McAlister"},{"$f":"INDEX(EntryList,MATCH(B58,'Competitors&Timetable'!A1:A401,0),3)","v":"U15 Girl"},15.12,23,2,51,{"$f":"INDEX(EntryList,MATCH(H58,'Competitors&Timetable'!A1:A401,0),2)","v":"Bethany Murray"},{"$f":"INDEX(EntryList,MATCH(H58,'Competitors&Timetable'!A1:A401,0),3)","v":"U15 Girl"},13.64,29]
[3,88,{"$f":"INDEX(EntryList,MATCH(B59,'Competitors&Timetable'!A1:A401,0),2)","v":"Hannah McVicar"},{"$f":"INDEX(EntryList,MATCH(B59,'Competitors&Timetable'!A1:A401,0),3)","v":"U15 Girl"},15.15,23,3,52,{"$f":"INDEX(EntryList,MATCH(H59,'Competitors&Timetable'!A1:A401,0),2)","v":"Rachel Louden"},{"$f":"INDEX(EntryList,MATCH(H59,'Competitors&Timetable'!A1:A401,0),3)","v":"U15 Girl"},13.68,29]
[4,55,{"$f":"INDEX(EntryList,MATCH(B60,'Competitors&Timetable'!A1:A401,0),2)","v":"Anita Musenga"},{"$f":"INDEX(EntryList,MATCH(B60,'Competitors&Timetable'!A1:A401,0),3)","v":"U15 Girl"},15.33,22,4,56,{"$f":"INDEX(EntryList,MATCH(H60,'Competitors&Timetable'!A1:A401,0),2)","v":"Rachel Hutchison"},{"$f":"INDEX(EntryList,MATCH(H60,'Competitors&Timetable'!A1:A401,0),3)","v":"U15 Girl"},13.84,28]
[null,".",{"$f":"INDEX(EntryList,MATCH(B61,'Competitors&Timetable'!A1:A401,0),2)","v":" "},{"$f":"INDEX(EntryList,MATCH(B61,'Competitors&Timetable'!A1:A401,0),3)","v":" "},null,null,5,89,{"$f":"INDEX(EntryList,MATCH(H61,'Competitors&Timetable'!A1:A401,0),2)","v":"Lisa Robertson"},{"$f":"INDEX(EntryList,MATCH(H61,'Competitors&Timetable'!A1:A401,0),3)","v":"U15 Girl"},14.07,27]
[null,".",{"$f":"INDEX(EntryList,MATCH(B62,'Competitors&Timetable'!A1:A401,0),2)","v":" "},{"$f":"INDEX(EntryList,MATCH(B62,'Competitors&Timetable'!A1:A401,0),3)","v":" "},null,null,null,".",{"$f":"INDEX(EntryList,MATCH(H62,'Competitors&Timetable'!A1:A401,0),2)","v":" "},{"$f":"INDEX(EntryList,MATCH(H62,'Competitors&Timetable'!A1:A401,0),3)","v":" "}]
[null,".",{"$f":"INDEX(EntryList,MATCH(B63,'Competitors&Timetable'!A1:A401,0),2)","v":" "},{"$f":"INDEX(EntryList,MATCH(B63,'Competitors&Timetable'!A1:A401,0),3)","v":" "},null,null,null,".",{"$f":"INDEX(EntryList,MATCH(H63,'Competitors&Timetable'!A1:A401,0),2)","v":" "},{"$f":"INDEX(EntryList,MATCH(H63,'Competitors&Timetable'!A1:A401,0),3)","v":" "}]
[null,".",{"$f":"INDEX(EntryList,MATCH(B64,'Competitors&Timetable'!A1:A401,0),2)","v":" "},{"$f":"INDEX(EntryList,MATCH(B64,'Competitors&Timetable'!A1:A401,0),3)","v":" "},null,null,null,".",{"$f":"INDEX(EntryList,MATCH(H64,'Competitors&Timetable'!A1:A401,0),2)","v":" "},{"$f":"INDEX(EntryList,MATCH(H64,'Competitors&Timetable'!A1:A401,0),3)","v":" "}]
[null,null,{"$f":"IF(B65=\"\",\"\",LOOKUP(B65,#REF!,#REF!))","v":""},{"$f":"IF(B65=\"\",\"\",LOOKUP(B65,'Competitors&Timetable'!#REF!))","v":""},null,null,null,null,{"$f":"IF(H65=\"\",\"\",LOOKUP(H65,#REF!,#REF!))","v":""},{"$f":"IF(H65=\"\",\"\",LOOKUP(H65,'Competitors&Timetable'!#REF!))","v":""}]
[]
[null,"T08",{"$f":"INDEX('Competitors&Timetable'!F1:H144,MATCH(B67,'Competitors&Timetable'!F1:F144,0),2)","v":"100m Under 15 Boys"},{"$f":"INDEX(#REF!,MATCH(B67,#REF!,0),3)","v":{"$error":"#REF!"}},"Final",null,null,"T09",{"$f":"INDEX('Competitors&Timetable'!F1:H144,MATCH(H67,'Competitors&Timetable'!F1:F144,0),2)","v":"100m Under 17/20 Women"},{"$f":"INDEX(#REF!,MATCH(H67,#REF!,0),3)","v":{"$error":"#REF!"}},"Final"]
[1,62,{"$f":"INDEX(EntryList,MATCH(B68,'Competitors&Timetable'!A1:A401,0),2)","v":"Jamie English"},{"$f":"INDEX(EntryList,MATCH(B68,'Competitors&Timetable'!A1:A401,0),3)","v":"U15 Boy"},13.59,29,1,66,{"$f":"INDEX(EntryList,MATCH(H68,'Competitors&Timetable'!A1:A401,0),2)","v":"Jenna Richards"},{"$f":"INDEX(EntryList,MATCH(H68,'Competitors&Timetable'!A1:A401,0),3)","v":"U17 Woman"},"13,79",28]
[2,61,{"$f":"INDEX(EntryList,MATCH(B69,'Competitors&Timetable'!A1:A401,0),2)","v":"Matthew Sinclair"},{"$f":"INDEX(EntryList,MATCH(B69,'Competitors&Timetable'!A1:A401,0),3)","v":"U15 Boy"},14.77,24,1,82,{"$f":"INDEX(EntryList,MATCH(H69,'Competitors&Timetable'!A1:A401,0),2)","v":"Ellen Kristoffersen"},{"$f":"INDEX(EntryList,MATCH(H69,'Competitors&Timetable'!A1:A401,0),3)","v":"U20 Women"},"13,99",28]
[3,63,{"$f":"INDEX(EntryList,MATCH(B70,'Competitors&Timetable'!A1:A401,0),2)","v":"Ross Mackenzie"},{"$f":"INDEX(EntryList,MATCH(B70,'Competitors&Timetable'!A1:A401,0),3)","v":"U15 Boy"},15.27,22,2,67,{"$f":"INDEX(EntryList,MATCH(H70,'Competitors&Timetable'!A1:A401,0),2)","v":"Rachel Stoakes"},{"$f":"INDEX(EntryList,MATCH(H70,'Competitors&Timetable'!A1:A401,0),3)","v":"U17 Woman"},"14,18",27]
[null,".",{"$f":"INDEX(EntryList,MATCH(B71,'Competitors&Timetable'!A1:A401,0),2)","v":" "},{"$f":"INDEX(EntryList,MATCH(B71,'Competitors&Timetable'!A1:A401,0),3)","v":" "},null,null,null,".",{"$f":"INDEX(EntryList,MATCH(H71,'Competitors&Timetable'!A1:A401,0),2)","v":" "},{"$f":"INDEX(EntryList,MATCH(H71,'Competitors&Timetable'!A1:A401,0),3)","v":" "}]
[null,".",{"$f":"INDEX(EntryList,MATCH(B72,'Competitors&Timetable'!A1:A401,0),2)","v":" "},{"$f":"INDEX(EntryList,MATCH(B72,'Competitors&Timetable'!A1:A401,0),3)","v":" "},null,null,null,".",{"$f":"INDEX(EntryList,MATCH(H72,'Competitors&Timetable'!A1:A401,0),2)","v":" "},{"$f":"INDEX(EntryList,MATCH(H72,'Competitors&Timetable'!A1:A401,0),3)","v":" "}]
[null,".",{"$f":"INDEX(EntryList,MATCH(B73,'Competitors&Timetable'!A1:A401,0),2)","v":" "},{"$f":"INDEX(EntryList,MATCH(B73,'Competitors&Timetable'!A1:A401,0),3)","v":" "},null,null,null,".",{"$f":"INDEX(EntryList,MATCH(H73,'Competitors&Timetable'!A1:A401,0),2)","v":" "},{"$f":"INDEX(EntryList,MATCH(H73,'Competitors&Timetable'!A1:A401,0),3)","v":" "}]
[null,".",{"$f":"INDEX(EntryList,MATCH(B74,'Competitors&Timetable'!A1:A401,0),2)","v":" "},{"$f":"INDEX(EntryList,MATCH(B74,'Competitors&Timetable'!A1:A401,0),3)","v":" "},null,null,null,".",{"$f":"INDEX(EntryList,MATCH(H74,'Competitors&Timetable'!A1:A401,0),2)","v":" "},{"$f":"INDEX(EntryList,MATCH(H74,'Competitors&Timetable'!A1:A401,0),3)","v":" "}]
[null,".",{"$f":"INDEX(EntryList,MATCH(B75,'Competitors&Timetable'!A1:A401,0),2)","v":" "},{"$f":"INDEX(EntryList,MATCH(B75,'Competitors&Timetable'!A1:A401,0),3)","v":" "},null,null,null,".",{"$f":"INDEX(EntryList,MATCH(H75,'Competitors&Timetable'!A1:A401,0),2)","v":" "},{"$f":"INDEX(EntryList,MATCH(H75,'Competitors&Timetable'!A1:A401,0),3)","v":" "}]
[null,null,{"$f":"IF(B76=\"\",\"\",LOOKUP(B76,#REF!,#REF!))","v":""},{"$f":"IF(B76=\"\",\"\",LOOKUP(B76,'Competitors&Timetable'!#REF!))","v":""},null,null,null,null,{"$f":"IF(H76=\"\",\"\",LOOKUP(H76,#REF!,#REF!))","v":""},{"$f":"IF(H76=\"\",\"\",LOOKUP(H76,'Competitors&Timetable'!#REF!))","v":""}]
[]
[null,"T10",{"$f":"INDEX('Competitors&Timetable'!F1:H144,MATCH(B78,'Competitors&Timetable'!F1:F144,0),2)","v":"100m Under 17/20/Senior Men"},{"$f":"INDEX(#REF!,MATCH(B78,#REF!,0),3)","v":{"$error":"#REF!"}},"Heat 1",null,null,"T10",{"$f":"INDEX('Competitors&Timetable'!$F$1:$H$144,MATCH(H78,'Competitors&Timetable'!$F$1:$F$144,0),2)","v":"100m Under 17/20/Senior Men"},null,"Heat 2"]
[1,99,{"$f":"INDEX(EntryList,MATCH(B79,'Competitors&Timetable'!A1:A401,0),2)","v":"Kyle Hutton"},{"$f":"INDEX(EntryList,MATCH(B79,'Competitors&Timetable'!A1:A401,0),3)","v":"U17 Men"},11.95,48,"G",98,{"$f":"INDEX(EntryList,MATCH(H79,'Competitors&Timetable'!$A$1:$A$401,0),2)","v":"Toby Oladipo"},{"$f":"INDEX(EntryList,MATCH(H79,'Competitors&Timetable'!$A$1:$A$401,0),3)","v":"Sen Men"},11.51,"G"]
[2,70,{"$f":"INDEX(EntryList,MATCH(B80,'Competitors&Timetable'!A1:A401,0),2)","v":"Mathew Timms"},{"$f":"INDEX(EntryList,MATCH(B80,'Competitors&Timetable'!A1:A401,0),3)","v":"U17 Men"},12.07,46,1,77,{"$f":"INDEX(EntryList,MATCH(H80,'Competitors&Timetable'!$A$1:$A$401,0),2)","v":"Robert Ferguson"},{"$f":"INDEX(EntryList,MATCH(H80,'Competitors&Timetable'!$A$1:$A$401,0),3)","v":"U20 Men"},11.59,56]
[3,71,{"$f":"INDEX(EntryList,MATCH(B81,'Competitors&Timetable'!A1:A401,0),2)","v":"Andrew Mahady"},{"$f":"INDEX(EntryList,MATCH(B81,'Competitors&Timetable'!A1:A401,0),3)","v":"U17 Men"},12.21,43,1,74,{"$f":"INDEX(EntryList,MATCH(H81,'Competitors&Timetable'!$A$1:$A$401,0),2)","v":"William Hutchison"},{"$f":"INDEX(EntryList,MATCH(H81,'Competitors&Timetable'!$A$1:$A$401,0),3)","v":"U17 Men"},12,47]
[4,72,{"$f":"INDEX(EntryList,MATCH(B82,'Competitors&Timetable'!A1:A401,0),2)","v":"Robert Williams"},{"$f":"INDEX(EntryList,MATCH(B82,'Competitors&Timetable'!A1:A401,0),3)","v":"U17 Men"},12.32,41,2,91,{"$f":"INDEX(EntryList,MATCH(H82,'Competitors&Timetable'!$A$1:$A$401,0),2)","v":"Jamie Laird"},{"$f":"INDEX(EntryList,MATCH(H82,'Competitors&Timetable'!$A$1:$A$401,0),3)","v":"U17 Men"},12.05,46]
[5,76,{"$f":"INDEX(EntryList,MATCH(B83,'Competitors&Timetable'!A1:A401,0),2)","v":"Robert Ferguson"},{"$f":"INDEX(EntryList,MATCH(B83,'Competitors&Timetable'!A1:A401,0),3)","v":"U17 Men"},13.29,32,"G",90,{"$f":"INDEX(EntryList,MATCH(H83,'Competitors&Timetable'!$A$1:$A$401,0),2)","v":"Grant Kirkwood (Guest)"},{"$f":"INDEX(EntryList,MATCH(H83,'Competitors&Timetable'!$A$1:$A$401,0),3)","v":"U17 Men"},12.41,"G"]
[null,".",{"$f":"INDEX(EntryList,MATCH(B84,'Competitors&Timetable'!A1:A401,0),2)","v":" "},{"$f":"INDEX(EntryList,MATCH(B84,'Competitors&Timetable'!A1:A401,0),3)","v":" "},null,null,null,85,{"$f":"INDEX(EntryList,MATCH(H84,'Competitors&Timetable'!$A$1:$A$401,0),2)","v":"Greg Louden"},{"$f":"INDEX(EntryList,MATCH(H84,'Competitors&Timetable'!$A$1:$A$401,0),3)","v":"Sen Men"},"DNS",0]
[null,".",{"$f":"INDEX(EntryList,MATCH(B85,'Competitors&Timetable'!A1:A401,0),2)","v":" "},{"$f":"INDEX(EntryList,MATCH(B85,'Competitors&Timetable'!A1:A401,0),3)","v":" "}]
[null,".",{"$f":"INDEX(EntryList,MATCH(B86,'Competitors&Timetable'!A1:A401,0),2)","v":" "},{"$f":"INDEX(EntryList,MATCH(B86,'Competitors&Timetable'!A1:A401,0),3)","v":" "}]
[null,null,{"$f":"IF(B87=\"\",\"\",LOOKUP(B87,#REF!,#REF!))","v":""},{"$f":"IF(B87=\"\",\"\",LOOKUP(B87,'Competitors&Timetable'!#REF!))","v":""}]
[]
[null,"T11",{"$f":"INDEX('Competitors&Timetable'!F1:H144,MATCH(B89,'Competitors&Timetable'!F1:F144,0),2)","v":"70m Run Jump Throw"},{"$f":"INDEX(#REF!,MATCH(B89,#REF!,0),3)","v":{"$error":"#REF!"}},"Final",null,null,"T29",{"$f":"INDEX('Competitors&Timetable'!$F$1:$H$144,MATCH(H89,'Competitors&Timetable'!$F$1:$F$144,0),2)","v":"110m Handicap"},null,"Final"]
[null,".",{"$f":"INDEX(EntryList,MATCH(B90,'Competitors&Timetable'!A1:A401,0),2)","v":" "},{"$f":"INDEX(EntryList,MATCH(B90,'Competitors&Timetable'!A1:A401,0),3)","v":" "},null,null,1,99,{"$f":"INDEX(EntryList,MATCH(H90,'Competitors&Timetable'!$A$1:$A$401,0),2)","v":"Kyle Hutton"},{"$f":"INDEX(EntryList,MATCH(H90,'Competitors&Timetable'!$A$1:$A$401,0),3)","v":"U17 Men"},12.66,0]
[null,".",{"$f":"INDEX(EntryList,MATCH(B91,'Competitors&Timetable'!A1:A401,0),2)","v":" "},{"$f":"INDEX(EntryList,MATCH(B91,'Competitors&Timetable'!A1:A401,0),3)","v":" "},null,null,1,101,{"$f":"INDEX(EntryList,MATCH(H91,'Competitors&Timetable'!$A$1:$A$401,0),2)","v":"Charlie Carstairs"},{"$f":"INDEX(EntryList,MATCH(H91,'Competitors&Timetable'!$A$1:$A$401,0),3)","v":"U20 Men"},12.79,0]
[null,".",{"$f":"INDEX(EntryList,MATCH(B92,'Competitors&Timetable'!A1:A401,0),2)","v":" "},{"$f":"INDEX(EntryList,MATCH(B92,'Competitors&Timetable'!A1:A401,0),3)","v":" "},null,null,1,98,{"$f":"INDEX(EntryList,MATCH(H92,'Competitors&Timetable'!$A$1:$A$401,0),2)","v":"Toby Oladipo"},{"$f":"INDEX(EntryList,MATCH(H92,'Competitors&Timetable'!$A$1:$A$401,0),3)","v":"Sen Men"},12.8,0]
[null,".",{"$f":"INDEX(EntryList,MATCH(B93,'Competitors&Timetable'!A1:A401,0),2)","v":" "},{"$f":"INDEX(EntryList,MATCH(B93,'Competitors&Timetable'!A1:A401,0),3)","v":" "},null,null,2,91,{"$f":"INDEX(EntryList,MATCH(H93,'Competitors&Timetable'!$A$1:$A$401,0),2)","v":"Jamie Laird"},{"$f":"INDEX(EntryList,MATCH(H93,'Competitors&Timetable'!$A$1:$A$401,0),3)","v":"U17 Men"},12.9,0]
[null,".",{"$f":"INDEX(EntryList,MATCH(B94,'Competitors&Timetable'!A1:A401,0),2)","v":" "},{"$f":"INDEX(EntryList,MATCH(B94,'Competitors&Timetable'!A1:A401,0),3)","v":" "},null,null,2,78,{"$f":"INDEX(EntryList,MATCH(H94,'Competitors&Timetable'!$A$1:$A$401,0),2)","v":"Elson Musenga"},{"$f":"INDEX(EntryList,MATCH(H94,'Competitors&Timetable'!$A$1:$A$401,0),3)","v":"U20 Men"},13.19,0]
[null,".",{"$f":"INDEX(EntryList,MATCH(B95,'Competitors&Timetable'!A1:A401,0),2)","v":" "},{"$f":"INDEX(EntryList,MATCH(B95,'Competitors&Timetable'!A1:A401,0),3)","v":" "},null,null,2,92,{"$f":"INDEX(EntryList,MATCH(H95,'Competitors&Timetable'!$A$1:$A$401,0),2)","v":"Brian Wilson"},{"$f":"INDEX(EntryList,MATCH(H95,'Competitors&Timetable'!$A$1:$A$401,0),3)","v":"Sen Men"},14.58,0]
[null,".",{"$f":"INDEX(EntryList,MATCH(B96,'Competitors&Timetable'!A1:A401,0),2)","v":" "},{"$f":"INDEX(EntryList,MATCH(B96,'Competitors&Timetable'!A1:A401,0),3)","v":" "},null,null,3,80,{"$f":"INDEX(EntryList,MATCH(H96,'Competitors&Timetable'!$A$1:$A$401,0),2)","v":"Rowan Marr"},{"$f":"INDEX(EntryList,MATCH(H96,'Competitors&Timetable'!$A$1:$A$401,0),3)","v":"U20 Men"},"DNS",0]
[null,".",{"$f":"INDEX(EntryList,MATCH(B97,'Competitors&Timetable'!A1:A401,0),2)","v":" "},{"$f":"INDEX(EntryList,MATCH(B97,'Competitors&Timetable'!A1:A401,0),3)","v":" "}]
[null,null,{"$f":"IF(B98=\"\",\"\",LOOKUP(B98,#REF!,#REF!))","v":""},{"$f":"IF(B98=\"\",\"\",LOOKUP(B98,'Competitors&Timetable'!#REF!))","v":""}]
[]
[null,"T11",{"$f":"INDEX('Competitors&Timetable'!F1:H144,MATCH(B100,'Competitors&Timetable'!F1:F144,0),2)","v":"70m Run Jump Throw"},{"$f":"INDEX(#REF!,MATCH(B100,#REF!,0),3)","v":{"$error":"#REF!"}},"Final",null,null,"T11",{"$f":"INDEX('Competitors&Timetable'!F1:H144,MATCH(H100,'Competitors&Timetable'!F1:F144,0),2)","v":"70m Run Jump Throw"},{"$f":"INDEX(#REF!,MATCH(H100,#REF!,0),3)","v":{"$error":"#REF!"}},"Final"]
[null,1,{"$f":"INDEX(EntryList,MATCH(B101,'Competitors&Timetable'!A1:A401,0),2)","v":"Jeremy Saville"},"RJT Group",10.95,7,null,2,{"$f":"INDEX(EntryList,MATCH(H101,'Competitors&Timetable'!A1:A401,0),2)","v":"Catrine Scothorne"},{"$f":"INDEX(EntryList,MATCH(H101,'Competitors&Timetable'!A1:A401,0),3)","v":"RJT Group"},10.82,7]
[null,9,{"$f":"INDEX(EntryList,MATCH(B102,'Competitors&Timetable'!A1:A401,0),2)","v":"Jack Martin"},{"$f":"INDEX(EntryList,MATCH(B102,'Competitors&Timetable'!A1:A401,0),3)","v":"RJT Group"},11.2,5,null,10,{"$f":"INDEX(EntryList,MATCH(H102,'Competitors&Timetable'!A1:A401,0),2)","v":"Lauren Fallon"},{"$f":"INDEX(EntryList,MATCH(H102,'Competitors&Timetable'!A1:A401,0),3)","v":"RJT Group"},12.21,1]
[null,6,{"$f":"INDEX(EntryList,MATCH(B103,'Competitors&Timetable'!A1:A401,0),2)","v":"Matthew Cartledge"},{"$f":"INDEX(EntryList,MATCH(B103,'Competitors&Timetable'!A1:A401,0),3)","v":"RJT Group"},13.2,1,null,3,{"$f":"INDEX(EntryList,MATCH(H103,'Competitors&Timetable'!A1:A401,0),2)","v":"Erin Darling"},{"$f":"INDEX(EntryList,MATCH(H103,'Competitors&Timetable'!A1:A401,0),3)","v":"RJT Group"},12.23,1]
[null,4,{"$f":"INDEX(EntryList,MATCH(B104,'Competitors&Timetable'!A1:A401,0),2)","v":"Adam Shepherd"},{"$f":"INDEX(EntryList,MATCH(B104,'Competitors&Timetable'!A1:A401,0),3)","v":"RJT Group"},"DNS",0,null,5,{"$f":"INDEX(EntryList,MATCH(H104,'Competitors&Timetable'!A1:A401,0),2)","v":"Amy Kristoffersen"},{"$f":"INDEX(EntryList,MATCH(H104,'Competitors&Timetable'!A1:A401,0),3)","v":"RJT Group"},12.53,1]
[null,".",{"$f":"INDEX(EntryList,MATCH(B105,'Competitors&Timetable'!A1:A401,0),2)","v":" "},{"$f":"INDEX(EntryList,MATCH(B105,'Competitors&Timetable'!A1:A401,0),3)","v":" "},null,null,null,8,{"$f":"INDEX(EntryList,MATCH(H105,'Competitors&Timetable'!A1:A401,0),2)","v":"Amy McLaughlin"},{"$f":"INDEX(EntryList,MATCH(H105,'Competitors&Timetable'!A1:A401,0),3)","v":"RJT Group"},13.1,1]
[null,".",{"$f":"INDEX(EntryList,MATCH(B106,'Competitors&Timetable'!A1:A401,0),2)","v":" "},{"$f":"INDEX(EntryList,MATCH(B106,'Competitors&Timetable'!A1:A401,0),3)","v":" "},null,null,null,7,{"$f":"INDEX(EntryList,MATCH(H106,'Competitors&Timetable'!A1:A401,0),2)","v":"Mary Henderson"},{"$f":"INDEX(EntryList,MATCH(H106,'Competitors&Timetable'!A1:A401,0),3)","v":"RJT Group"},"DNS",0]
[null,".",{"$f":"INDEX(EntryList,MATCH(B107,'Competitors&Timetable'!A1:A401,0),2)","v":" "},{"$f":"INDEX(EntryList,MATCH(B107,'Competitors&Timetable'!A1:A401,0),3)","v":" "},null,null,null,".",{"$f":"INDEX(EntryList,MATCH(H107,'Competitors&Timetable'!A1:A401,0),2)","v":" "},{"$f":"INDEX(EntryList,MATCH(H107,'Competitors&Timetable'!A1:A401,0),3)","v":" "}]
[null,".",{"$f":"INDEX(EntryList,MATCH(B108,'Competitors&Timetable'!A1:A401,0),2)","v":" "},{"$f":"INDEX(EntryList,MATCH(B108,'Competitors&Timetable'!A1:A401,0),3)","v":" "},null,null,null,".",{"$f":"INDEX(EntryList,MATCH(H108,'Competitors&Timetable'!A1:A401,0),2)","v":" "},{"$f":"INDEX(EntryList,MATCH(H108,'Competitors&Timetable'!A1:A401,0),3)","v":" "}]
[null,null,{"$f":"IF(B109=\"\",\"\",LOOKUP(B109,#REF!,#REF!))","v":""},{"$f":"IF(B109=\"\",\"\",LOOKUP(B109,'Competitors&Timetable'!#REF!))","v":""},null,null,null,null,{"$f":"IF(H109=\"\",\"\",LOOKUP(H109,#REF!,#REF!))","v":""},{"$f":"IF(H109=\"\",\"\",LOOKUP(H109,'Competitors&Timetable'!#REF!))","v":""}]
[]
[null,"T09",{"$f":"INDEX('Competitors&Timetable'!F1:H144,MATCH(B111,'Competitors&Timetable'!F1:F144,0),2)","v":"100m Under 17/20 Women"},{"$f":"INDEX(#REF!,MATCH(B111,#REF!,0),3)","v":{"$error":"#REF!"}},"Final",null,null,"T10",{"$f":"INDEX('Competitors&Timetable'!F1:H144,MATCH(H111,'Competitors&Timetable'!F1:F144,0),2)","v":"100m Under 17/20/Senior Men"},{"$f":"INDEX(#REF!,MATCH(H111,#REF!,0),3)","v":{"$error":"#REF!"}},"Heat 1"]
[null,".",{"$f":"INDEX(EntryList,MATCH(B112,'Competitors&Timetable'!A1:A401,0),2)","v":" "},{"$f":"INDEX(EntryList,MATCH(B112,'Competitors&Timetable'!A1:A401,0),3)","v":" "},null,null,null,".",{"$f":"INDEX(EntryList,MATCH(H112,'Competitors&Timetable'!A1:A401,0),2)","v":" "},{"$f":"INDEX(EntryList,MATCH(H112,'Competitors&Timetable'!A1:A401,0),3)","v":" "}]
[null,".",{"$f":"INDEX(EntryList,MATCH(B113,'Competitors&Timetable'!A1:A401,0),2)","v":" "},{"$f":"INDEX(EntryList,MATCH(B113,'Competitors&Timetable'!A1:A401,0),3)","v":" "},null,null,null,".",{"$f":"INDEX(EntryList,MATCH(H113,'Competitors&Timetable'!A1:A401,0),2)","v":" "},{"$f":"INDEX(EntryList,MATCH(H113,'Competitors&Timetable'!A1:A401,0),3)","v":" "}]
[null,".",{"$f":"INDEX(EntryList,MATCH(B114,'Competitors&Timetable'!A1:A401,0),2)","v":" "},{"$f":"INDEX(EntryList,MATCH(B114,'Competitors&Timetable'!A1:A401,0),3)","v":" "},null,null,null,".",{"$f":"INDEX(EntryList,MATCH(H114,'Competitors&Timetable'!A1:A401,0),2)","v":" "},{"$f":"INDEX(EntryList,MATCH(H114,'Competitors&Timetable'!A1:A401,0),3)","v":" "}]
[null,".",{"$f":"INDEX(EntryList,MATCH(B115,'Competitors&Timetable'!A1:A401,0),2)","v":" "},{"$f":"INDEX(EntryList,MATCH(B115,'Competitors&Timetable'!A1:A401,0),3)","v":" "},null,null,null,".",{"$f":"INDEX(EntryList,MATCH(H115,'Competitors&Timetable'!A1:A401,0),2)","v":" "},{"$f":"INDEX(EntryList,MATCH(H115,'Competitors&Timetable'!A1:A401,0),3)","v":" "}]
[null,".",{"$f":"INDEX(EntryList,MATCH(B116,'Competitors&Timetable'!A1:A401,0),2)","v":" "},{"$f":"INDEX(EntryList,MATCH(B116,'Competitors&Timetable'!A1:A401,0),3)","v":" "},null,null,null,".",{"$f":"INDEX(EntryList,MATCH(H116,'Competitors&Timetable'!A1:A401,0),2)","v":" "},{"$f":"INDEX(EntryList,MATCH(H116,'Competitors&Timetable'!A1:A401,0),3)","v":" "}]
[null,".",{"$f":"INDEX(EntryList,MATCH(B117,'Competitors&Timetable'!A1:A401,0),2)","v":" "},{"$f":"INDEX(EntryList,MATCH(B117,'Competitors&Timetable'!A1:A401,0),3)","v":" "},null,null,null,".",{"$f":"INDEX(EntryList,MATCH(H117,'Competitors&Timetable'!A1:A401,0),2)","v":" "},{"$f":"INDEX(EntryList,MATCH(H117,'Competitors&Timetable'!A1:A401,0),3)","v":" "}]
[null,".",{"$f":"INDEX(EntryList,MATCH(B118,'Competitors&Timetable'!A1:A401,0),2)","v":" "},{"$f":"INDEX(EntryList,MATCH(B118,'Competitors&Timetable'!A1:A401,0),3)","v":" "},null,null,null,".",{"$f":"INDEX(EntryList,MATCH(H118,'Competitors&Timetable'!A1:A401,0),2)","v":" "},{"$f":"INDEX(EntryList,MATCH(H118,'Competitors&Timetable'!A1:A401,0),3)","v":" "}]
[null,".",{"$f":"INDEX(EntryList,MATCH(B119,'Competitors&Timetable'!A1:A401,0),2)","v":" "},{"$f":"INDEX(EntryList,MATCH(B119,'Competitors&Timetable'!A1:A401,0),3)","v":" "},null,null,null,".",{"$f":"INDEX(EntryList,MATCH(H119,'Competitors&Timetable'!A1:A401,0),2)","v":" "},{"$f":"INDEX(EntryList,MATCH(H119,'Competitors&Timetable'!A1:A401,0),3)","v":" "}]
[null,null,{"$f":"IF(B120=\"\",\"\",LOOKUP(B120,#REF!,#REF!))","v":""},{"$f":"IF(B120=\"\",\"\",LOOKUP(B120,'Competitors&Timetable'!#REF!))","v":""},null,null,null,null,{"$f":"IF(H120=\"\",\"\",LOOKUP(H120,#REF!,#REF!))","v":""},{"$f":"IF(H120=\"\",\"\",LOOKUP(H120,'Competitors&Timetable'!#REF!))","v":""}]
[]
[null,"T10",{"$f":"INDEX('Competitors&Timetable'!F1:H144,MATCH(B122,'Competitors&Timetable'!F1:F144,0),2)","v":"100m Under 17/20/Senior Men"},{"$f":"INDEX(#REF!,MATCH(B122,#REF!,0),3)","v":{"$error":"#REF!"}},"Heat 2",null,null,"T11",{"$f":"INDEX('Competitors&Timetable'!F1:H144,MATCH(H122,'Competitors&Timetable'!F1:F144,0),2)","v":"70m Run Jump Throw"},{"$f":"INDEX(#REF!,MATCH(H122,#REF!,0),3)","v":{"$error":"#REF!"}},"Heat 1"]
[null,".",{"$f":"INDEX(EntryList,MATCH(B123,'Competitors&Timetable'!A1:A401,0),2)","v":" "},{"$f":"INDEX(EntryList,MATCH(B123,'Competitors&Timetable'!A1:A401,0),3)","v":" "},null,null,null,".",{"$f":"INDEX(EntryList,MATCH(H123,'Competitors&Timetable'!A1:A401,0),2)","v":" "},{"$f":"INDEX(EntryList,MATCH(H123,'Competitors&Timetable'!A1:A401,0),3)","v":" "}]
[null,".",{"$f":"INDEX(EntryList,MATCH(B124,'Competitors&Timetable'!A1:A401,0),2)","v":" "},{"$f":"INDEX(EntryList,MATCH(B124,'Competitors&Timetable'!A1:A401,0),3)","v":" "},null,null,null,".",{"$f":"INDEX(EntryList,MATCH(H124,'Competitors&Timetable'!A1:A401,0),2)","v":" "},{"$f":"INDEX(EntryList,MATCH(H124,'Competitors&Timetable'!A1:A401,0),3)","v":" "}]
[null,".",{"$f":"INDEX(EntryList,MATCH(B125,'Competitors&Timetable'!A1:A401,0),2)","v":" "},{"$f":"INDEX(EntryList,MATCH(B125,'Competitors&Timetable'!A1:A401,0),3)","v":" "},null,null,null,".",{"$f":"INDEX(EntryList,MATCH(H125,'Competitors&Timetable'!A1:A401,0),2)","v":" "},{"$f":"INDEX(EntryList,MATCH(H125,'Competitors&Timetable'!A1:A401,0),3)","v":" "}]
[null,".",{"$f":"INDEX(EntryList,MATCH(B126,'Competitors&Timetable'!A1:A401,0),2)","v":" "},{"$f":"INDEX(EntryList,MATCH(B126,'Competitors&Timetable'!A1:A401,0),3)","v":" "},null,null,null,".",{"$f":"INDEX(EntryList,MATCH(H126,'Competitors&Timetable'!A1:A401,0),2)","v":" "},{"$f":"INDEX(EntryList,MATCH(H126,'Competitors&Timetable'!A1:A401,0),3)","v":" "}]
[null,".",{"$f":"INDEX(EntryList,MATCH(B127,'Competitors&Timetable'!A1:A401,0),2)","v":" "},{"$f":"INDEX(EntryList,MATCH(B127,'Competitors&Timetable'!A1:A401,0),3)","v":" "},null,null,null,".",{"$f":"INDEX(EntryList,MATCH(H127,'Competitors&Timetable'!A1:A401,0),2)","v":" "},{"$f":"INDEX(EntryList,MATCH(H127,'Competitors&Timetable'!A1:A401,0),3)","v":" "}]
[null,".",{"$f":"INDEX(EntryList,MATCH(B128,'Competitors&Timetable'!A1:A401,0),2)","v":" "},{"$f":"INDEX(EntryList,MATCH(B128,'Competitors&Timetable'!A1:A401,0),3)","v":" "},null,null,null,".",{"$f":"INDEX(EntryList,MATCH(H128,'Competitors&Timetable'!A1:A401,0),2)","v":" "},{"$f":"INDEX(EntryList,MATCH(H128,'Competitors&Timetable'!A1:A401,0),3)","v":" "}]
[null,".",{"$f":"INDEX(EntryList,MATCH(B129,'Competitors&Timetable'!A1:A401,0),2)","v":" "},{"$f":"INDEX(EntryList,MATCH(B129,'Competitors&Timetable'!A1:A401,0),3)","v":" "},null,null,null,".",{"$f":"INDEX(EntryList,MATCH(H129,'Competitors&Timetable'!A1:A401,0),2)","v":" "},{"$f":"INDEX(EntryList,MATCH(H129,'Competitors&Timetable'!A1:A401,0),3)","v":" "}]
[null,".",{"$f":"INDEX(EntryList,MATCH(B130,'Competitors&Timetable'!A1:A401,0),2)","v":" "},{"$f":"INDEX(EntryList,MATCH(B130,'Competitors&Timetable'!A1:A401,0),3)","v":" "},null,null,null,".",{"$f":"INDEX(EntryList,MATCH(H130,'Competitors&Timetable'!A1:A401,0),2)","v":" "},{"$f":"INDEX(EntryList,MATCH(H130,'Competitors&Timetable'!A1:A401,0),3)","v":" "}]
[null,null,{"$f":"IF(B131=\"\",\"\",LOOKUP(B131,#REF!,#REF!))","v":""},{"$f":"IF(B131=\"\",\"\",LOOKUP(B131,'Competitors&Timetable'!#REF!))","v":""},null,null,null,null,{"$f":"IF(H131=\"\",\"\",LOOKUP(H131,#REF!,#REF!))","v":""},{"$f":"IF(H131=\"\",\"\",LOOKUP(H131,'Competitors&Timetable'!#REF!))","v":""}]
[]
[null,"T11",{"$f":"INDEX('Competitors&Timetable'!F1:H144,MATCH(B133,'Competitors&Timetable'!F1:F144,0),2)","v":"70m Run Jump Throw"},{"$f":"INDEX(#REF!,MATCH(B133,#REF!,0),3)","v":{"$error":"#REF!"}},"Heat 2",null,null,".",{"$f":"INDEX('Competitors&Timetable'!F1:H144,MATCH(H133,'Competitors&Timetable'!F1:F144,0),2)","v":" "},{"$f":"INDEX(#REF!,MATCH(H133,#REF!,0),3)","v":{"$error":"#REF!"}},"Heat 1"]
[null,".",{"$f":"INDEX(EntryList,MATCH(B134,'Competitors&Timetable'!A1:A401,0),2)","v":" "},{"$f":"INDEX(EntryList,MATCH(B134,'Competitors&Timetable'!A1:A401,0),3)","v":" "},null,null,null,".",{"$f":"INDEX(EntryList,MATCH(H134,'Competitors&Timetable'!A1:A401,0),2)","v":" "},{"$f":"INDEX(EntryList,MATCH(H134,'Competitors&Timetable'!A1:A401,0),3)","v":" "}]
[null,".",{"$f":"INDEX(EntryList,MATCH(B135,'Competitors&Timetable'!A1:A401,0),2)","v":" "},{"$f":"INDEX(EntryList,MATCH(B135,'Competitors&Timetable'!A1:A401,0),3)","v":" "},null,null,null,".",{"$f":"INDEX(EntryList,MATCH(H135,'Competitors&Timetable'!A1:A401,0),2)","v":" "},{"$f":"INDEX(EntryList,MATCH(H135,'Competitors&Timetable'!A1:A401,0),3)","v":" "}]
[null,".",{"$f":"INDEX(EntryList,MATCH(B136,'Competitors&Timetable'!A1:A401,0),2)","v":" "},{"$f":"INDEX(EntryList,MATCH(B136,'Competitors&Timetable'!A1:A401,0),3)","v":" "},null,null,null,".",{"$f":"INDEX(EntryList,MATCH(H136,'Competitors&Timetable'!A1:A401,0),2)","v":" "},{"$f":"INDEX(EntryList,MATCH(H136,'Competitors&Timetable'!A1:A401,0),3)","v":" "}]
[null,".",{"$f":"INDEX(EntryList,MATCH(B137,'Competitors&Timetable'!A1:A401,0),2)","v":" "},{"$f":"INDEX(EntryList,MATCH(B137,'Competitors&Timetable'!A1:A401,0),3)","v":" "},null,null,null,".",{"$f":"INDEX(EntryList,MATCH(H137,'Competitors&Timetable'!A1:A401,0),2)","v":" "},{"$f":"INDEX(EntryList,MATCH(H137,'Competitors&Timetable'!A1:A401,0),3)","v":" "}]
[null,".",{"$f":"INDEX(EntryList,MATCH(B138,'Competitors&Timetable'!A1:A401,0),2)","v":" "},{"$f":"INDEX(EntryList,MATCH(B138,'Competitors&Timetable'!A1:A401,0),3)","v":" "},null,null,null,".",{"$f":"INDEX(EntryList,MATCH(H138,'Competitors&Timetable'!A1:A401,0),2)","v":" "},{"$f":"INDEX(EntryList,MATCH(H138,'Competitors&Timetable'!A1:A401,0),3)","v":" "}]
[null,".",{"$f":"INDEX(EntryList,MATCH(B139,'Competitors&Timetable'!A1:A401,0),2)","v":" "},{"$f":"INDEX(EntryList,MATCH(B139,'Competitors&Timetable'!A1:A401,0),3)","v":" "},null,null,null,".",{"$f":"INDEX(EntryList,MATCH(H139,'Competitors&Timetable'!A1:A401,0),2)","v":" "},{"$f":"INDEX(EntryList,MATCH(H139,'Competitors&Timetable'!A1:A401,0),3)","v":" "}]
[null,".",{"$f":"INDEX(EntryList,MATCH(B140,'Competitors&Timetable'!A1:A401,0),2)","v":" "},{"$f":"INDEX(EntryList,MATCH(B140,'Competitors&Timetable'!A1:A401,0),3)","v":" "},null,null,null,".",{"$f":"INDEX(EntryList,MATCH(H140,'Competitors&Timetable'!A1:A401,0),2)","v":" "},{"$f":"INDEX(EntryList,MATCH(H140,'Competitors&Timetable'!A1:A401,0),3)","v":" "}]
[null,".",{"$f":"INDEX(EntryList,MATCH(B141,'Competitors&Timetable'!A1:A401,0),2)","v":" "},{"$f":"INDEX(EntryList,MATCH(B141,'Competitors&Timetable'!A1:A401,0),3)","v":" "},null,null,null,".",{"$f":"INDEX(EntryList,MATCH(H141,'Competitors&Timetable'!A1:A401,0),2)","v":" "},{"$f":"INDEX(EntryList,MATCH(H141,'Competitors&Timetable'!A1:A401,0),3)","v":" "}]
[null,null,{"$f":"IF(B142=\"\",\"\",LOOKUP(B142,#REF!,#REF!))","v":""},{"$f":"IF(B142=\"\",\"\",LOOKUP(B142,'Competitors&Timetable'!#REF!))","v":""},null,null,null,null,{"$f":"IF(H142=\"\",\"\",LOOKUP(H142,#REF!,#REF!))","v":""},{"$f":"IF(H142=\"\",\"\",LOOKUP(H142,'Competitors&Timetable'!#REF!))","v":""}]
[]
[null,".",{"$f":"INDEX('Competitors&Timetable'!F1:H144,MATCH(B144,'Competitors&Timetable'!F1:F144,0),2)","v":" "},{"$f":"INDEX(#REF!,MATCH(B144,#REF!,0),3)","v":{"$error":"#REF!"}},"Heat 2",null,null,".",{"$f":"INDEX('Competitors&Timetable'!F1:H144,MATCH(H144,'Competitors&Timetable'!F1:F144,0),2)","v":" "},{"$f":"INDEX(#REF!,MATCH(H144,#REF!,0),3)","v":{"$error":"#REF!"}},"Heat 3"]
[null,".",{"$f":"INDEX(EntryList,MATCH(B145,'Competitors&Timetable'!A1:A401,0),2)","v":" "},{"$f":"INDEX(EntryList,MATCH(B145,'Competitors&Timetable'!A1:A401,0),3)","v":" "},null,null,null,".",{"$f":"INDEX(EntryList,MATCH(H145,'Competitors&Timetable'!A1:A401,0),2)","v":" "},{"$f":"INDEX(EntryList,MATCH(H145,'Competitors&Timetable'!A1:A401,0),3)","v":" "}]
[null,".",{"$f":"INDEX(EntryList,MATCH(B146,'Competitors&Timetable'!A1:A401,0),2)","v":" "},{"$f":"INDEX(EntryList,MATCH(B146,'Competitors&Timetable'!A1:A401,0),3)","v":" "},null,null,null,".",{"$f":"INDEX(EntryList,MATCH(H146,'Competitors&Timetable'!A1:A401,0),2)","v":" "},{"$f":"INDEX(EntryList,MATCH(H146,'Competitors&Timetable'!A1:A401,0),3)","v":" "}]
[null,".",{"$f":"INDEX(EntryList,MATCH(B147,'Competitors&Timetable'!A1:A401,0),2)","v":" "},{"$f":"INDEX(EntryList,MATCH(B147,'Competitors&Timetable'!A1:A401,0),3)","v":" "},null,null,null,".",{"$f":"INDEX(EntryList,MATCH(H147,'Competitors&Timetable'!A1:A401,0),2)","v":" "},{"$f":"INDEX(EntryList,MATCH(H147,'Competitors&Timetable'!A1:A401,0),3)","v":" "}]
[null,".",{"$f":"INDEX(EntryList,MATCH(B148,'Competitors&Timetable'!A1:A401,0),2)","v":" "},{"$f":"INDEX(EntryList,MATCH(B148,'Competitors&Timetable'!A1:A401,0),3)","v":" "},null,null,null,".",{"$f":"INDEX(EntryList,MATCH(H148,'Competitors&Timetable'!A1:A401,0),2)","v":" "},{"$f":"INDEX(EntryList,MATCH(H148,'Competitors&Timetable'!A1:A401,0),3)","v":" "}]
[null,".",{"$f":"INDEX(EntryList,MATCH(B149,'Competitors&Timetable'!A1:A401,0),2)","v":" "},{"$f":"INDEX(EntryList,MATCH(B149,'Competitors&Timetable'!A1:A401,0),3)","v":" "},null,null,null,".",{"$f":"INDEX(EntryList,MATCH(H149,'Competitors&Timetable'!A1:A401,0),2)","v":" "},{"$f":"INDEX(EntryList,MATCH(H149,'Competitors&Timetable'!A1:A401,0),3)","v":" "}]
[null,".",{"$f":"INDEX(EntryList,MATCH(B150,'Competitors&Timetable'!A1:A401,0),2)","v":" "},{"$f":"INDEX(EntryList,MATCH(B150,'Competitors&Timetable'!A1:A401,0),3)","v":" "},null,null,null,".",{"$f":"INDEX(EntryList,MATCH(H150,'Competitors&Timetable'!A1:A401,0),2)","v":" "},{"$f":"INDEX(EntryList,MATCH(H150,'Competitors&Timetable'!A1:A401,0),3)","v":" "}]
[null,".",{"$f":"INDEX(EntryList,MATCH(B151,'Competitors&Timetable'!A1:A401,0),2)","v":" "},{"$f":"INDEX(EntryList,MATCH(B151,'Competitors&Timetable'!A1:A401,0),3)","v":" "},null,null,null,".",{"$f":"INDEX(EntryList,MATCH(H151,'Competitors&Timetable'!A1:A401,0),2)","v":" "},{"$f":"INDEX(EntryList,MATCH(H151,'Competitors&Timetable'!A1:A401,0),3)","v":" "}]
[null,".",{"$f":"INDEX(EntryList,MATCH(B152,'Competitors&Timetable'!A1:A401,0),2)","v":" "},{"$f":"INDEX(EntryList,MATCH(B152,'Competitors&Timetable'!A1:A401,0),3)","v":" "},null,null,null,".",{"$f":"INDEX(EntryList,MATCH(H152,'Competitors&Timetable'!A1:A401,0),2)","v":" "},{"$f":"INDEX(EntryList,MATCH(H152,'Competitors&Timetable'!A1:A401,0),3)","v":" "}]
[null,null,{"$f":"IF(B153=\"\",\"\",LOOKUP(B153,#REF!,#REF!))","v":""},{"$f":"IF(B153=\"\",\"\",LOOKUP(B153,'Competitors&Timetable'!#REF!))","v":""},null,null,null,null,{"$f":"IF(H153=\"\",\"\",LOOKUP(H153,#REF!,#REF!))","v":""},{"$f":"IF(H153=\"\",\"\",LOOKUP(H153,'Competitors&Timetable'!#REF!))","v":""}]
[]
[null,".",{"$f":"INDEX('Competitors&Timetable'!F1:H144,MATCH(B155,'Competitors&Timetable'!F1:F144,0),2)","v":" "},{"$f":"INDEX(#REF!,MATCH(B155,#REF!,0),3)","v":{"$error":"#REF!"}},"Heat 4",null,null,".",{"$f":"INDEX('Competitors&Timetable'!F1:H144,MATCH(H155,'Competitors&Timetable'!F1:F144,0),2)","v":" "},{"$f":"INDEX(#REF!,MATCH(H155,#REF!,0),3)","v":{"$error":"#REF!"}},"Final"]
[null,".",{"$f":"INDEX(EntryList,MATCH(B156,'Competitors&Timetable'!A1:A401,0),2)","v":" "},{"$f":"INDEX(EntryList,MATCH(B156,'Competitors&Timetable'!A1:A401,0),3)","v":" "},null,null,null,".",{"$f":"INDEX(EntryList,MATCH(H156,'Competitors&Timetable'!A1:A401,0),2)","v":" "},{"$f":"INDEX(EntryList,MATCH(H156,'Competitors&Timetable'!A1:A401,0),3)","v":" "}]
[null,".",{"$f":"INDEX(EntryList,MATCH(B157,'Competitors&Timetable'!A1:A401,0),2)","v":" "},{"$f":"INDEX(EntryList,MATCH(B157,'Competitors&Timetable'!A1:A401,0),3)","v":" "},null,null,null,".",{"$f":"INDEX(EntryList,MATCH(H157,'Competitors&Timetable'!A1:A401,0),2)","v":" "},{"$f":"INDEX(EntryList,MATCH(H157,'Competitors&Timetable'!A1:A401,0),3)","v":" "}]
[null,".",{"$f":"INDEX(EntryList,MATCH(B158,'Competitors&Timetable'!A1:A401,0),2)","v":" "},{"$f":"INDEX(EntryList,MATCH(B158,'Competitors&Timetable'!A1:A401,0),3)","v":" "},null,null,null,".",{"$f":"INDEX(EntryList,MATCH(H158,'Competitors&Timetable'!A1:A401,0),2)","v":" "},{"$f":"INDEX(EntryList,MATCH(H158,'Competitors&Timetable'!A1:A401,0),3)","v":" "}]
[null,".",{"$f":"INDEX(EntryList,MATCH(B159,'Competitors&Timetable'!A1:A401,0),2)","v":" "},{"$f":"INDEX(EntryList,MATCH(B159,'Competitors&Timetable'!A1:A401,0),3)","v":" "},null,null,null,".",{"$f":"INDEX(EntryList,MATCH(H159,'Competitors&Timetable'!A1:A401,0),2)","v":" "},{"$f":"INDEX(EntryList,MATCH(H159,'Competitors&Timetable'!A1:A401,0),3)","v":" "}]
[null,".",{"$f":"INDEX(EntryList,MATCH(B160,'Competitors&Timetable'!A1:A401,0),2)","v":" "},{"$f":"INDEX(EntryList,MATCH(B160,'Competitors&Timetable'!A1:A401,0),3)","v":" "},null,null,null,".",{"$f":"INDEX(EntryList,MATCH(H160,'Competitors&Timetable'!A1:A401,0),2)","v":" "},{"$f":"INDEX(EntryList,MATCH(H160,'Competitors&Timetable'!A1:A401,0),3)","v":" "}]
[null,".",{"$f":"INDEX(EntryList,MATCH(B161,'Competitors&Timetable'!A1:A401,0),2)","v":" "},{"$f":"INDEX(EntryList,MATCH(B161,'Competitors&Timetable'!A1:A401,0),3)","v":" "},null,null,null,".",{"$f":"INDEX(EntryList,MATCH(H161,'Competitors&Timetable'!A1:A401,0),2)","v":" "},{"$f":"INDEX(EntryList,MATCH(H161,'Competitors&Timetable'!A1:A401,0),3)","v":" "}]
[null,".",{"$f":"INDEX(EntryList,MATCH(B162,'Competitors&Timetable'!A1:A401,0),2)","v":" "},{"$f":"INDEX(EntryList,MATCH(B162,'Competitors&Timetable'!A1:A401,0),3)","v":" "},null,null,null,".",{"$f":"INDEX(EntryList,MATCH(H162,'Competitors&Timetable'!A1:A401,0),2)","v":" "},{"$f":"INDEX(EntryList,MATCH(H162,'Competitors&Timetable'!A1:A401,0),3)","v":" "}]
[null,".",{"$f":"INDEX(EntryList,MATCH(B163,'Competitors&Timetable'!A1:A401,0),2)","v":" "},{"$f":"INDEX(EntryList,MATCH(B163,'Competitors&Timetable'!A1:A401,0),3)","v":" "},null,null,null,".",{"$f":"INDEX(EntryList,MATCH(H163,'Competitors&Timetable'!A1:A401,0),2)","v":" "},{"$f":"INDEX(EntryList,MATCH(H163,'Competitors&Timetable'!A1:A401,0),3)","v":" "}]
[null,null,{"$f":"IF(B164=\"\",\"\",LOOKUP(B164,#REF!,#REF!))","v":""},{"$f":"IF(B164=\"\",\"\",LOOKUP(B164,'Competitors&Timetable'!#REF!))","v":""},null,null,null,null,{"$f":"IF(H164=\"\",\"\",LOOKUP(H164,#REF!,#REF!))","v":""},{"$f":"IF(H164=\"\",\"\",LOOKUP(H164,'Competitors&Timetable'!#REF!))","v":""}]
[]
[null,".",{"$f":"INDEX('Competitors&Timetable'!F1:H144,MATCH(B166,'Competitors&Timetable'!F1:F144,0),2)","v":" "},{"$f":"INDEX(#REF!,MATCH(B166,#REF!,0),3)","v":{"$error":"#REF!"}},"Final",null,null,".",{"$f":"INDEX('Competitors&Timetable'!F1:H144,MATCH(H166,'Competitors&Timetable'!F1:F144,0),2)","v":" "},{"$f":"INDEX(#REF!,MATCH(H166,#REF!,0),3)","v":{"$error":"#REF!"}},"Final"]
[null,".",{"$f":"INDEX(EntryList,MATCH(B167,'Competitors&Timetable'!A1:A401,0),2)","v":" "},{"$f":"INDEX(EntryList,MATCH(B167,'Competitors&Timetable'!A1:A401,0),3)","v":" "},null,null,null,".",{"$f":"INDEX(EntryList,MATCH(H167,'Competitors&Timetable'!A1:A401,0),2)","v":" "},{"$f":"INDEX(EntryList,MATCH(H167,'Competitors&Timetable'!A1:A401,0),3)","v":" "}]
[null,".",{"$f":"INDEX(EntryList,MATCH(B168,'Competitors&Timetable'!A1:A401,0),2)","v":" "},{"$f":"INDEX(EntryList,MATCH(B168,'Competitors&Timetable'!A1:A401,0),3)","v":" "},null,null,null,".",{"$f":"INDEX(EntryList,MATCH(H168,'Competitors&Timetable'!A1:A401,0),2)","v":" "},{"$f":"INDEX(EntryList,MATCH(H168,'Competitors&Timetable'!A1:A401,0),3)","v":" "}]
[null,".",{"$f":"INDEX(EntryList,MATCH(B169,'Competitors&Timetable'!A1:A401,0),2)","v":" "},{"$f":"INDEX(EntryList,MATCH(B169,'Competitors&Timetable'!A1:A401,0),3)","v":" "},null,null,null,".",{"$f":"INDEX(EntryList,MATCH(H169,'Competitors&Timetable'!A1:A401,0),2)","v":" "},{"$f":"INDEX(EntryList,MATCH(H169,'Competitors&Timetable'!A1:A401,0),3)","v":" "}]
[null,".",{"$f":"INDEX(EntryList,MATCH(B170,'Competitors&Timetable'!A1:A401,0),2)","v":" "},{"$f":"INDEX(EntryList,MATCH(B170,'Competitors&Timetable'!A1:A401,0),3)","v":" "},null,null,null,".",{"$f":"INDEX(EntryList,MATCH(H170,'Competitors&Timetable'!A1:A401,0),2)","v":" "},{"$f":"INDEX(EntryList,MATCH(H170,'Competitors&Timetable'!A1:A401,0),3)","v":" "}]
[null,".",{"$f":"INDEX(EntryList,MATCH(B171,'Competitors&Timetable'!A1:A401,0),2)","v":" "},{"$f":"INDEX(EntryList,MATCH(B171,'Competitors&Timetable'!A1:A401,0),3)","v":" "},null,null,null,".",{"$f":"INDEX(EntryList,MATCH(H171,'Competitors&Timetable'!A1:A401,0),2)","v":" "},{"$f":"INDEX(EntryList,MATCH(H171,'Competitors&Timetable'!A1:A401,0),3)","v":" "}]
[null,".",{"$f":"INDEX(EntryList,MATCH(B172,'Competitors&Timetable'!A1:A401,0),2)","v":" "},{"$f":"INDEX(EntryList,MATCH(B172,'Competitors&Timetable'!A1:A401,0),3)","v":" "},null,null,null,".",{"$f":"INDEX(EntryList,MATCH(H172,'Competitors&Timetable'!A1:A401,0),2)","v":" "},{"$f":"INDEX(EntryList,MATCH(H172,'Competitors&Timetable'!A1:A401,0),3)","v":" "}]
[null,".",{"$f":"INDEX(EntryList,MATCH(B173,'Competitors&Timetable'!A1:A401,0),2)","v":" "},{"$f":"INDEX(EntryList,MATCH(B173,'Competitors&Timetable'!A1:A401,0),3)","v":" "},null,null,null,".",{"$f":"INDEX(EntryList,MATCH(H173,'Competitors&Timetable'!A1:A401,0),2)","v":" "},{"$f":"INDEX(EntryList,MATCH(H173,'Competitors&Timetable'!A1:A401,0),3)","v":" "}]
[null,".",{"$f":"INDEX(EntryList,MATCH(B174,'Competitors&Timetable'!A1:A401,0),2)","v":" "},{"$f":"INDEX(EntryList,MATCH(B174,'Competitors&Timetable'!A1:A401,0),3)","v":" "},null,null,null,".",{"$f":"INDEX(EntryList,MATCH(H174,'Competitors&Timetable'!A1:A401,0),2)","v":" "},{"$f":"INDEX(EntryList,MATCH(H174,'Competitors&Timetable'!A1:A401,0),3)","v":" "}]
[null,null,{"$f":"IF(B175=\"\",\"\",LOOKUP(B175,#REF!,#REF!))","v":""},{"$f":"IF(B175=\"\",\"\",LOOKUP(B175,'Competitors&Timetable'!#REF!))","v":""},null,null,null,null,{"$f":"IF(H175=\"\",\"\",LOOKUP(H175,#REF!,#REF!))","v":""},{"$f":"IF(H175=\"\",\"\",LOOKUP(H175,'Competitors&Timetable'!#REF!))","v":""}]

{"sheet":"Sprints2","index":2,"n_rows":153,"n_cols":15,"rows_kept":153,"cut":false,"hidden":false,"merged":[[0,5,0,6],[0,11,0,12],[11,5,11,6],[11,11,11,12],[22,5,22,6],[22,11,22,12],[33,5,33,6],[33,11,33,12],[44,5,44,6],[44,11,44,12],[55,5,55,6],[55,11,55,12],[66,5,66,6],[66,11,66,12],[77,5,77,6],[77,11,77,12],[88,5,88,6],[88,11,88,12],[132,5,132,6],[132,11,132,12],[143,5,143,6],[143,11,143,12],[99,5,99,6],[99,11,99,12],[110,5,110,6],[110,11,110,12],[121,5,121,6],[121,11,121,12]]}
[{"$f":"#REF!","v":{"$error":"#REF!"}},{"$f":"#REF!","v":{"$error":"#REF!"}},{"$f":"#REF!","v":{"$error":"#REF!"}},null,"T14",{"$f":"INDEX('Competitors&Timetable'!F1:H144,MATCH(E1,'Competitors&Timetable'!F1:F144,0),2)","v":"300m Under 15 Girls/Under 17 Women"},null,"Final",null,null,"T15",{"$f":"INDEX('Competitors&Timetable'!F1:H144,MATCH(K1,'Competitors&Timetable'!F1:F144,0),2)","v":"400m Under 15 Boys & Senior Women"},null,"Final"]
[{"$f":"#REF!","v":{"$error":"#REF!"}},{"$f":"#REF!","v":{"$error":"#REF!"}},{"$f":"#REF!","v":{"$error":"#REF!"}},1,52,{"$f":"INDEX(EntryList,MATCH(E2,'Competitors&Timetable'!A1:A401,0),2)","v":"Rachel Louden"},{"$f":"INDEX(EntryList,MATCH(E2,'Competitors&Timetable'!A1:A401,0),3)","v":"U15 Girl"},45.92,32,1,65,{"$f":"INDEX(EntryList,MATCH(K2,'Competitors&Timetable'!A1:A401,0),2)","v":"Cameron Steven"},{"$f":"INDEX(EntryList,MATCH(K2,'Competitors&Timetable'!A1:A401,0),3)","v":"U15 Boy"},59.16,36]
[{"$f":"#REF!","v":{"$error":"#REF!"}},{"$f":"#REF!","v":{"$error":"#REF!"}},{"$f":"#REF!","v":{"$error":"#REF!"}},2,56,{"$f":"INDEX(EntryList,MATCH(E3,'Competitors&Timetable'!A1:A401,0),2)","v":"Rachel Hutchison"},{"$f":"INDEX(EntryList,MATCH(E3,'Competitors&Timetable'!A1:A401,0),3)","v":"U15 Girl"},46.61,30,2,60,{"$f":"INDEX(EntryList,MATCH(K3,'Competitors&Timetable'!A1:A401,0),2)","v":"Jamie Darling"},{"$f":"INDEX(EntryList,MATCH(K3,'Competitors&Timetable'!A1:A401,0),3)","v":"U15 Boy"},"1:01.42",32]
[{"$f":"#REF!","v":{"$error":"#REF!"}},{"$f":"#REF!","v":{"$error":"#REF!"}},{"$f":"#REF!","v":{"$error":"#REF!"}},1,68,{"$f":"INDEX(EntryList,MATCH(E4,'Competitors&Timetable'!A1:A401,0),2)","v":"Sophie Miller"},{"$f":"INDEX(EntryList,MATCH(E4,'Competitors&Timetable'!A1:A401,0),3)","v":"U17 Woman"},46.68,30,3,64,{"$f":"INDEX(EntryList,MATCH(K4,'Competitors&Timetable'!A1:A401,0),2)","v":"Lewis Donaldson"},{"$f":"INDEX(EntryList,MATCH(K4,'Competitors&Timetable'!A1:A401,0),3)","v":"U15 Boy"},"1:09.19",23]
[{"$f":"#REF!","v":{"$error":"#REF!"}},{"$f":"#REF!","v":{"$error":"#REF!"}},{"$f":"#REF!","v":{"$error":"#REF!"}},3,49,{"$f":"INDEX(EntryList,MATCH(E5,'Competitors&Timetable'!A1:A401,0),2)","v":"Lauren Dickson"},{"$f":"INDEX(EntryList,MATCH(E5,'Competitors&Timetable'!A1:A401,0),3)","v":"U15 Girl"},48,27,4,63,{"$f":"INDEX(EntryList,MATCH(K5,'Competitors&Timetable'!A1:A401,0),2)","v":"Ross Mackenzie"},{"$f":"INDEX(EntryList,MATCH(K5,'Competitors&Timetable'!A1:A401,0),3)","v":"U15 Boy"},"1:18.84",16]
[{"$f":"#REF!","v":{"$error":"#REF!"}},{"$f":"#REF!","v":{"$error":"#REF!"}},{"$f":"#REF!","v":{"$error":"#REF!"}},4,58,{"$f":"INDEX(EntryList,MATCH(E6,'Competitors&Timetable'!A1:A401,0),2)","v":"Lauren Wilkie"},{"$f":"INDEX(EntryList,MATCH(E6,'Competitors&Timetable'!A1:A401,0),3)","v":"U15 Girl"},56.27,18,1,83,{"$f":"INDEX(EntryList,MATCH(K6,'Competitors&Timetable'!A1:A401,0),2)","v":"Karen McKinlay"},{"$f":"INDEX(EntryList,MATCH(K6,'Competitors&Timetable'!A1:A401,0),3)","v":"Sen Women"},"1:20.63",10]
[{"$f":"#REF!","v":{"$error":"#REF!"}},{"$f":"#REF!","v":{"$error":"#REF!"}},{"$f":"#REF!","v":{"$error":"#REF!"}},null,".",{"$f":"INDEX(EntryList,MATCH(E7,'Competitors&Timetable'!A1:A401,0),2)","v":" "},{"$f":"INDEX(EntryList,MATCH(E7,'Competitors&Timetable'!A1:A401,0),3)","v":" "},null,null,null,".",{"$f":"INDEX(EntryList,MATCH(K7,'Competitors&Timetable'!A1:A401,0),2)","v":" "},{"$f":"INDEX(EntryList,MATCH(K7,'Competitors&Timetable'!A1:A401,0),3)","v":" "}]
[{"$f":"#REF!","v":{"$error":"#REF!"}},{"$f":"#REF!","v":{"$error":"#REF!"}},{"$f":"#REF!","v":{"$error":"#REF!"}},null,".",{"$f":"INDEX(EntryList,MATCH(E8,'Competitors&Timetable'!A1:A401,0),2)","v":" "},{"$f":"INDEX(EntryList,MATCH(E8,'Competitors&Timetable'!A1:A401,0),3)","v":" "},null,null,null,".",{"$f":"INDEX(EntryList,MATCH(K8,'Competitors&Timetable'!A1:A401,0),2)","v":" "},{"$f":"INDEX(EntryList,MATCH(K8,'Competitors&Timetable'!A1:A401,0),3)","v":" "}]
[{"$f":"#REF!","v":{"$error":"#REF!"}},{"$f":"#REF!","v":{"$error":"#REF!"}},{"$f":"#REF!","v":{"$error":"#REF!"}},null,".",{"$f":"INDEX(EntryList,MATCH(E9,'Competitors&Timetable'!A1:A401,0),2)","v":" "},{"$f":"INDEX(EntryList,MATCH(E9,'Competitors&Timetable'!A1:A401,0),3)","v":" "},null,null,null,".",{"$f":"INDEX(EntryList,MATCH(K9,'Competitors&Timetable'!A1:A401,0),2)","v":" "},{"$f":"INDEX(EntryList,MATCH(K9,'Competitors&Timetable'!A1:A401,0),3)","v":" "}]
[{"$f":"#REF!","v":{"$error":"#REF!"}},{"$f":"#REF!","v":{"$error":"#REF!"}},{"$f":"#REF!","v":{"$error":"#REF!"}},null,null,{"$f":"IF(E10=\"\",\"\",LOOKUP(E10,#REF!,#REF!))","v":""},{"$f":"IF(E10=\"\",\"\",LOOKUP(E10,'Competitors&Timetable'!#REF!))","v":""},null,null,null,null,{"$f":"IF(K10=\"\",\"\",LOOKUP(K10,#REF!,#REF!))","v":""},{"$f":"IF(K10=\"\",\"\",LOOKUP(K10,'Competitors&Timetable'!#REF!))","v":""}]
[{"$f":"#REF!","v":{"$error":"#REF!"}},{"$f":"#REF!","v":{"$error":"#REF!"}},{"$f":"#REF!","v":{"$error":"#REF!"}}]
[{"$f":"#REF!","v":{"$error":"#REF!"}},{"$f":"#REF!","v":{"$error":"#REF!"}},{"$f":"#REF!","v":{"$error":"#REF!"}},null,"T16",{"$f":"INDEX('Competitors&Timetable'!F1:H144,MATCH(E12,'Competitors&Timetable'!F1:F144,0),2)","v":"400m Under 17/20/Senior Men"},null,"Final",null,null,"T17",{"$f":"INDEX('Competitors&Timetable'!F1:H144,MATCH(K12,'Competitors&Timetable'!F1:F144,0),2)","v":"200m Under 11 Girls"},null,"Final"]
[{"$f":"#REF!","v":{"$error":"#REF!"}},{"$f":"#REF!","v":{"$error":"#REF!"}},{"$f":"#REF!","v":{"$error":"#REF!"}},1,80,{"$f":"INDEX(EntryList,MATCH(E13,'Competitors&Timetable'!A1:A401,0),2)","v":"Rowan Marr"},{"$f":"INDEX(EntryList,MATCH(E13,'Competitors&Timetable'!A1:A401,0),3)","v":"U20 Men"},"56.77",41,1,12,{"$f":"INDEX(EntryList,MATCH(K13,'Competitors&Timetable'!A1:A401,0),2)","v":"Abbie Malinowski"},{"$f":"INDEX(EntryList,MATCH(K13,'Competitors&Timetable'!A1:A401,0),3)","v":"U11 Girl"},32.06,19]
[{"$f":"#REF!","v":{"$error":"#REF!"}},{"$f":"#REF!","v":{"$error":"#REF!"}},{"$f":"#REF!","v":{"$error":"#REF!"}},2,73,{"$f":"INDEX(EntryList,MATCH(E14,'Competitors&Timetable'!A1:A401,0),2)","v":"Kyle Mackenzie"},{"$f":"INDEX(EntryList,MATCH(E14,'Competitors&Timetable'!A1:A401,0),3)","v":"U17 Men"},"57.28",40,2,13,{"$f":"INDEX(EntryList,MATCH(K14,'Competitors&Timetable'!A1:A401,0),2)","v":"Rachel Mair"},{"$f":"INDEX(EntryList,MATCH(K14,'Competitors&Timetable'!A1:A401,0),3)","v":"U11 Girl"},33.97,18]
[{"$f":"#REF!","v":{"$error":"#REF!"}},{"$f":"#REF!","v":{"$error":"#REF!"}},{"$f":"#REF!","v":{"$error":"#REF!"}},3,79,{"$f":"INDEX(EntryList,MATCH(E15,'Competitors&Timetable'!A1:A401,0),2)","v":"Callum Clark"},{"$f":"INDEX(EntryList,MATCH(E15,'Competitors&Timetable'!A1:A401,0),3)","v":"U20 Men"},"59.26",36,3,11,{"$f":"INDEX(EntryList,MATCH(K15,'Competitors&Timetable'!A1:A401,0),2)","v":"Holli Boyd"},{"$f":"INDEX(EntryList,MATCH(K15,'Competitors&Timetable'!A1:A401,0),3)","v":"U11 Girl"},33.979999999999997,18]
[{"$f":"#REF!","v":{"$error":"#REF!"}},{"$f":"#REF!","v":{"$error":"#REF!"}},{"$f":"#REF!","v":{"$error":"#REF!"}},4,75,{"$f":"INDEX(EntryList,MATCH(E16,'Competitors&Timetable'!A1:A401,0),2)","v":"Jamie Cousin"},{"$f":"INDEX(EntryList,MATCH(E16,'Competitors&Timetable'!A1:A401,0),3)","v":"U17 Men"},"DNS",0,null,".",{"$f":"INDEX(EntryList,MATCH(K16,'Competitors&Timetable'!A1:A401,0),2)","v":" "},{"$f":"INDEX(EntryList,MATCH(K16,'Competitors&Timetable'!A1:A401,0),3)","v":" "}]
[{"$f":"#REF!","v":{"$error":"#REF!"}},{"$f":"#REF!","v":{"$error":"#REF!"}},{"$f":"#REF!","v":{"$error":"#REF!"}},5,85,{"$f":"INDEX(EntryList,MATCH(E17,'Competitors&Timetable'!A1:A401,0),2)","v":"Greg Louden"},{"$f":"INDEX(EntryList,MATCH(E17,'Competitors&Timetable'!A1:A401,0),3)","v":"Sen Men"},"DNS",0,null,".",{"$f":"INDEX(EntryList,MATCH(K17,'Competitors&Timetable'!A1:A401,0),2)","v":" "},{"$f":"INDEX(EntryList,MATCH(K17,'Competitors&Timetable'!A1:A401,0),3)","v":" "}]
[{"$f":"#REF!","v":{"$error":"#REF!"}},{"$f":"#REF!","v":{"$error":"#REF!"}},{"$f":"#REF!","v":{"$error":"#REF!"}},null,".",{"$f":"INDEX(EntryList,MATCH(E18,'Competitors&Timetable'!A1:A401,0),2)","v":" "},{"$f":"INDEX(EntryList,MATCH(E18,'Competitors&Timetable'!A1:A401,0),3)","v":" "},null,null,null,".",{"$f":"INDEX(EntryList,MATCH(K18,'Competitors&Timetable'!A1:A401,0),2)","v":" "},{"$f":"INDEX(EntryList,MATCH(K18,'Competitors&Timetable'!A1:A401,0),3)","v":" "}]
[{"$f":"#REF!","v":{"$error":"#REF!"}},{"$f":"#REF!","v":{"$error":"#REF!"}},{"$f":"#REF!","v":{"$error":"#REF!"}},null,".",{"$f":"INDEX(EntryList,MATCH(E19,'Competitors&Timetable'!A1:A401,0),2)","v":" "},{"$f":"INDEX(EntryList,MATCH(E19,'Competitors&Timetable'!A1:A401,0),3)","v":" "},null,null,null,".",{"$f":"INDEX(EntryList,MATCH(K19,'Competitors&Timetable'!A1:A401,0),2)","v":" "},{"$f":"INDEX(EntryList,MATCH(K19,'Competitors&Timetable'!A1:A401,0),3)","v":" "}]
[{"$f":"#REF!","v":{"$error":"#REF!"}},{"$f":"#REF!","v":{"$error":"#REF!"}},{"$f":"#REF!","v":{"$error":"#REF!"}},null,".",{"$f":"INDEX(EntryList,MATCH(E20,'Competitors&Timetable'!A1:A401,0),2)","v":" "},{"$f":"INDEX(EntryList,MATCH(E20,'Competitors&Timetable'!A1:A401,0),3)","v":" "},null,null,null,".",{"$f":"INDEX(EntryList,MATCH(K20,'Competitors&Timetable'!A1:A401,0),2)","v":" "},{"$f":"INDEX(EntryList,MATCH(K20,'Competitors&Timetable'!A1:A401,0),3)","v":" "}]
[{"$f":"#REF!","v":{"$error":"#REF!"}},{"$f":"#REF!","v":{"$error":"#REF!"}},{"$f":"#REF!","v":{"$error":"#REF!"}},null,null,{"$f":"IF(E21=\"\",\"\",LOOKUP(E21,#REF!,#REF!))","v":""},{"$f":"IF(E21=\"\",\"\",LOOKUP(E21,'Competitors&Timetable'!#REF!))","v":""},null,null,null,null,{"$f":"IF(K21=\"\",\"\",LOOKUP(K21,#REF!,#REF!))","v":""},{"$f":"IF(K21=\"\",\"\",LOOKUP(K21,'Competitors&Timetable'!#REF!))","v":""}]
[{"$f":"#REF!","v":{"$error":"#REF!"}},{"$f":"#REF!","v":{"$error":"#REF!"}},{"$f":"#REF!","v":{"$error":"#REF!"}}]
[{"$f":"#REF!","v":{"$error":"#REF!"}},{"$f":"#REF!","v":{"$error":"#REF!"}},{"$f":"#REF!","v":{"$error":"#REF!"}},null,"T18",{"$f":"INDEX('Competitors&Timetable'!F1:H144,MATCH(E23,'Competitors&Timetable'!F1:F144,0),2)","v":"200m Under 11 Boys"},null,"Final",null,null,"T19",{"$f":"INDEX('Competitors&Timetable'!F1:H144,MATCH(K23,'Competitors&Timetable'!F1:F144,0),2)","v":"200m Under 13 Girls"},{"$f":"INDEX(#REF!,MATCH(K23,#REF!,0),3)","v":{"$error":"#REF!"}},"Final"]
[{"$f":"#REF!","v":{"$error":"#REF!"}},{"$f":"#REF!","v":{"$error":"#REF!"}},{"$f":"#REF!","v":{"$error":"#REF!"}},1,18,{"$f":"INDEX(EntryList,MATCH(E24,'Competitors&Timetable'!A1:A401,0),2)","v":"Charlie Griffiths"},{"$f":"INDEX(EntryList,MATCH(E24,'Competitors&Timetable'!A1:A401,0),3)","v":"U11 Boy"},31.51,20,1,25,{"$f":"INDEX(EntryList,MATCH(K24,'Competitors&Timetable'!A1:A401,0),2)","v":"Katy Martin"},{"$f":"INDEX(EntryList,MATCH(K24,'Competitors&Timetable'!A1:A401,0),3)","v":"U13 Girl"},30.47,22]
[{"$f":"#REF!","v":{"$error":"#REF!"}},{"$f":"#REF!","v":{"$error":"#REF!"}},{"$f":"#REF!","v":{"$error":"#REF!"}},2,21,{"$f":"INDEX(EntryList,MATCH(E25,'Competitors&Timetable'!A1:A401,0),2)","v":"Alex Biavati-Smith"},{"$f":"INDEX(EntryList,MATCH(E25,'Competitors&Timetable'!A1:A401,0),3)","v":"U11 Boy"},35.93,16,2,87,{"$f":"INDEX(EntryList,MATCH(K25,'Competitors&Timetable'!A1:A401,0),2)","v":"Olivia Harris"},{"$f":"INDEX(EntryList,MATCH(K25,'Competitors&Timetable'!A1:A401,0),3)","v":"U13 Girl"},31.24,21]
[{"$f":"#REF!","v":{"$error":"#REF!"}},{"$f":"#REF!","v":{"$error":"#REF!"}},{"$f":"#REF!","v":{"$error":"#REF!"}},3,19,{"$f":"INDEX(EntryList,MATCH(E26,'Competitors&Timetable'!A1:A401,0),2)","v":"Euan Donaldson"},{"$f":"INDEX(EntryList,MATCH(E26,'Competitors&Timetable'!A1:A401,0),3)","v":"U11 Boy"},36.47,15,3,29,{"$f":"INDEX(EntryList,MATCH(K26,'Competitors&Timetable'!A1:A401,0),2)","v":"Sarah Tait"},{"$f":"INDEX(EntryList,MATCH(K26,'Competitors&Timetable'!A1:A401,0),3)","v":"U13 Girl"},31.25,21]
[{"$f":"#REF!","v":{"$error":"#REF!"}},{"$f":"#REF!","v":{"$error":"#REF!"}},{"$f":"#REF!","v":{"$error":"#REF!"}},4,20,{"$f":"INDEX(EntryList,MATCH(E27,'Competitors&Timetable'!A1:A401,0),2)","v":"Jack Armitage"},{"$f":"INDEX(EntryList,MATCH(E27,'Competitors&Timetable'!A1:A401,0),3)","v":"U11 Boy"},38.299999999999997,13,4,31,{"$f":"INDEX(EntryList,MATCH(K27,'Competitors&Timetable'!A1:A401,0),2)","v":"Caroline McKinlay"},{"$f":"INDEX(EntryList,MATCH(K27,'Competitors&Timetable'!A1:A401,0),3)","v":"U13 Girl"},32.81,20]
[{"$f":"#REF!","v":{"$error":"#REF!"}},{"$f":"#REF!","v":{"$error":"#REF!"}},{"$f":"#REF!","v":{"$error":"#REF!"}},5,23,{"$f":"INDEX(EntryList,MATCH(E28,'Competitors&Timetable'!A1:A401,0),2)","v":"Ryan Wilson"},{"$f":"INDEX(EntryList,MATCH(E28,'Competitors&Timetable'!A1:A401,0),3)","v":"U11 Boy"},38.99,13,5,28,{"$f":"INDEX(EntryList,MATCH(K28,'Competitors&Timetable'!A1:A401,0),2)","v":"Samantha Laing"},{"$f":"INDEX(EntryList,MATCH(K28,'Competitors&Timetable'!A1:A401,0),3)","v":"U13 Girl"},34.39,17]
[{"$f":"#REF!","v":{"$error":"#REF!"}},{"$f":"#REF!","v":{"$error":"#REF!"}},{"$f":"#REF!","v":{"$error":"#REF!"}},null,".",{"$f":"INDEX(EntryList,MATCH(E29,'Competitors&Timetable'!A1:A401,0),2)","v":" "},{"$f":"INDEX(EntryList,MATCH(E29,'Competitors&Timetable'!A1:A401,0),3)","v":" "},null,null,6,36,{"$f":"INDEX(EntryList,MATCH(K29,'Competitors&Timetable'!A1:A401,0),2)","v":"Abbi Diamond"},{"$f":"INDEX(EntryList,MATCH(K29,'Competitors&Timetable'!A1:A401,0),3)","v":"U13 Girl"},34.880000000000003,17]
[{"$f":"#REF!","v":{"$error":"#REF!"}},{"$f":"#REF!","v":{"$error":"#REF!"}},{"$f":"#REF!","v":{"$error":"#REF!"}},null,".",{"$f":"INDEX(EntryList,MATCH(E30,'Competitors&Timetable'!A1:A401,0),2)","v":" "},{"$f":"INDEX(EntryList,MATCH(E30,'Competitors&Timetable'!A1:A401,0),3)","v":" "},null,null,7,26,{"$f":"INDEX(EntryList,MATCH(K30,'Competitors&Timetable'!A1:A401,0),2)","v":"Amy Hewitt"},{"$f":"INDEX(EntryList,MATCH(K30,'Competitors&Timetable'!A1:A401,0),3)","v":"U13 Girl"},36.15,15]
[{"$f":"#REF!","v":{"$error":"#REF!"}},{"$f":"#REF!","v":{"$error":"#REF!"}},{"$f":"#REF!","v":{"$error":"#REF!"}},null,".",{"$f":"INDEX(EntryList,MATCH(E31,'Competitors&Timetable'!A1:A401,0),2)","v":" "},{"$f":"INDEX(EntryList,MATCH(E31,'Competitors&Timetable'!A1:A401,0),3)","v":" "},null,null,null,".",{"$f":"INDEX(EntryList,MATCH(K31,'Competitors&Timetable'!A1:A401,0),2)","v":" "},{"$f":"INDEX(EntryList,MATCH(K31,'Competitors&Timetable'!A1:A401,0),3)","v":" "}]
[{"$f":"#REF!","v":{"$error":"#REF!"}},{"$f":"#REF!","v":{"$error":"#REF!"}},{"$f":"#REF!","v":{"$error":"#REF!"}},null,null,{"$f":"IF(E32=\"\",\"\",LOOKUP(E32,#REF!,#REF!))","v":""},{"$f":"IF(E32=\"\",\"\",LOOKUP(E32,'Competitors&Timetable'!#REF!))","v":""},null,null,null,null,{"$f":"IF(K32=\"\",\"\",LOOKUP(K32,#REF!,#REF!))","v":""},{"$f":"IF(K32=\"\",\"\",LOOKUP(K32,'Competitors&Timetable'!#REF!))","v":""}]
[{"$f":"#REF!","v":{"$error":"#REF!"}},{"$f":"#REF!","v":{"$error":"#REF!"}},{"$f":"#REF!","v":{"$error":"#REF!"}}]
[{"$f":"#REF!","v":{"$error":"#REF!"}},{"$f":"#REF!","v":{"$error":"#REF!"}},{"$f":"#REF!","v":{"$error":"#REF!"}},null,"T20",{"$f":"INDEX('Competitors&Timetable'!F1:H144,MATCH(E34,'Competitors&Timetable'!F1:F144,0),2)","v":"200m Under 13 Boys"},null,"Final",null,null,"T21",{"$f":"INDEX('Competitors&Timetable'!F1:H144,MATCH(K34,'Competitors&Timetable'!F1:F144,0),2)","v":"200m Under 15 Girls"},{"$f":"INDEX(#REF!,MATCH(K34,#REF!,0),3)","v":{"$error":"#REF!"}},"Final"]
[{"$f":"#REF!","v":{"$error":"#REF!"}},{"$f":"#REF!","v":{"$error":"#REF!"}},{"$f":"#REF!","v":{"$error":"#REF!"}},1,43,{"$f":"INDEX(EntryList,MATCH(E35,'Competitors&Timetable'!A1:A401,0),2)","v":"Fraser Judge"},{"$f":"INDEX(EntryList,MATCH(E35,'Competitors&Timetable'!A1:A401,0),3)","v":"U13 Boy"},27.46,29,1,52,{"$f":"INDEX(EntryList,MATCH(K35,'Competitors&Timetable'!A1:A401,0),2)","v":"Rachel Louden"},{"$f":"INDEX(EntryList,MATCH(K35,'Competitors&Timetable'!A1:A401,0),3)","v":"U15 Girl"},28.55,26]
[{"$f":"#REF!","v":{"$error":"#REF!"}},{"$f":"#REF!","v":{"$error":"#REF!"}},{"$f":"#REF!","v":{"$error":"#REF!"}},2,42,{"$f":"INDEX(EntryList,MATCH(E36,'Competitors&Timetable'!A1:A401,0),2)","v":"Lawrie Wilson"},{"$f":"INDEX(EntryList,MATCH(E36,'Competitors&Timetable'!A1:A401,0),3)","v":"U13 Boy"},29.74,24,2,56,{"$f":"INDEX(EntryList,MATCH(K36,'Competitors&Timetable'!A1:A401,0),2)","v":"Rachel Hutchison"},{"$f":"INDEX(EntryList,MATCH(K36,'Competitors&Timetable'!A1:A401,0),3)","v":"U15 Girl"},28.95,26]
[{"$f":"#REF!","v":{"$error":"#REF!"}},{"$f":"#REF!","v":{"$error":"#REF!"}},{"$f":"#REF!","v":{"$error":"#REF!"}},3,40,{"$f":"INDEX(EntryList,MATCH(E37,'Competitors&Timetable'!A1:A401,0),2)","v":"Magnus Tait"},{"$f":"INDEX(EntryList,MATCH(E37,'Competitors&Timetable'!A1:A401,0),3)","v":"U13 Boy"},30.4,23,3,53,{"$f":"INDEX(EntryList,MATCH(K37,'Competitors&Timetable'!A1:A401,0),2)","v":"Megan Wilson"},{"$f":"INDEX(EntryList,MATCH(K37,'Competitors&Timetable'!A1:A401,0),3)","v":"U15 Girl"},28.97,26]
[{"$f":"#REF!","v":{"$error":"#REF!"}},{"$f":"#REF!","v":{"$error":"#REF!"}},{"$f":"#REF!","v":{"$error":"#REF!"}},4,46,{"$f":"INDEX(EntryList,MATCH(E38,'Competitors&Timetable'!A1:A401,0),2)","v":"Euan McAlister"},{"$f":"INDEX(EntryList,MATCH(E38,'Competitors&Timetable'!A1:A401,0),3)","v":"U13 Boy"},32.4,19,4,51,{"$f":"INDEX(EntryList,MATCH(K38,'Competitors&Timetable'!A1:A401,0),2)","v":"Bethany Murray"},{"$f":"INDEX(EntryList,MATCH(K38,'Competitors&Timetable'!A1:A401,0),3)","v":"U15 Girl"},29.37,25]
[{"$f":"#REF!","v":{"$error":"#REF!"}},{"$f":"#REF!","v":{"$error":"#REF!"}},{"$f":"#REF!","v":{"$error":"#REF!"}},5,44,{"$f":"INDEX(EntryList,MATCH(E39,'Competitors&Timetable'!A1:A401,0),2)","v":"Gregor Hutchison"},{"$f":"INDEX(EntryList,MATCH(E39,'Competitors&Timetable'!A1:A401,0),3)","v":"U13 Boy"},33.450000000000003,18,5,59,{"$f":"INDEX(EntryList,MATCH(K39,'Competitors&Timetable'!A1:A401,0),2)","v":"Kirsty Robertson"},{"$f":"INDEX(EntryList,MATCH(K39,'Competitors&Timetable'!A1:A401,0),3)","v":"U15 Girl"},31.57,20]
[{"$f":"#REF!","v":{"$error":"#REF!"}},{"$f":"#REF!","v":{"$error":"#REF!"}},{"$f":"#REF!","v":{"$error":"#REF!"}},6,41,{"$f":"INDEX(EntryList,MATCH(E40,'Competitors&Timetable'!A1:A401,0),2)","v":"Craig Gallagher"},{"$f":"INDEX(EntryList,MATCH(E40,'Competitors&Timetable'!A1:A401,0),3)","v":"U13 Boy"},"DNS",0,6,88,{"$f":"INDEX(EntryList,MATCH(K40,'Competitors&Timetable'!A1:A401,0),2)","v":"Hannah McVicar"},{"$f":"INDEX(EntryList,MATCH(K40,'Competitors&Timetable'!A1:A401,0),3)","v":"U15 Girl"},32.69,19]
[null,null,null,null,".",{"$f":"INDEX(EntryList,MATCH(E41,'Competitors&Timetable'!A1:A401,0),2)","v":" "},{"$f":"INDEX(EntryList,MATCH(E41,'Competitors&Timetable'!A1:A401,0),3)","v":" "},null,null,null,".",{"$f":"INDEX(EntryList,MATCH(K41,'Competitors&Timetable'!A1:A401,0),2)","v":" "},{"$f":"INDEX(EntryList,MATCH(K41,'Competitors&Timetable'!A1:A401,0),3)","v":" "}]
[null,null,null,null,".",{"$f":"INDEX(EntryList,MATCH(E42,'Competitors&Timetable'!A1:A401,0),2)","v":" "},{"$f":"INDEX(EntryList,MATCH(E42,'Competitors&Timetable'!A1:A401,0),3)","v":" "},null,null,null,".",{"$f":"INDEX(EntryList,MATCH(K42,'Competitors&Timetable'!A1:A401,0),2)","v":" "},{"$f":"INDEX(EntryList,MATCH(K42,'Competitors&Timetable'!A1:A401,0),3)","v":" "}]
[null,null,null,null,null,{"$f":"IF(E43=\"\",\"\",LOOKUP(E43,#REF!,#REF!))","v":""},{"$f":"IF(E43=\"\",\"\",LOOKUP(E43,'Competitors&Timetable'!#REF!))","v":""},null,null,null,null,{"$f":"IF(K43=\"\",\"\",LOOKUP(K43,#REF!,#REF!))","v":""},{"$f":"IF(K43=\"\",\"\",LOOKUP(K43,'Competitors&Timetable'!#REF!))","v":""}]
[]
[{"$f":"#REF!","v":{"$error":"#REF!"}},{"$f":"#REF!","v":{"$error":"#REF!"}},{"$f":"#REF!","v":{"$error":"#REF!"}},null,"T22",{"$f":"INDEX('Competitors&Timetable'!F1:H144,MATCH(E45,'Competitors&Timetable'!F1:F144,0),2)","v":"200m Under 15 Boys & Under 17/20/Sen Women"},null,"Final",null,null,"T23",{"$f":"INDEX('Competitors&Timetable'!F1:H144,MATCH(K45,'Competitors&Timetable'!F1:F144,0),2)","v":"200m Under 17/Sen. Men"},{"$f":"INDEX(#REF!,MATCH(K45,#REF!,0),3)","v":{"$error":"#REF!"}},"Final"]
[{"$f":"#REF!","v":{"$error":"#REF!"}},{"$f":"#REF!","v":{"$error":"#REF!"}},{"$f":"#REF!","v":{"$error":"#REF!"}},1,60,{"$f":"INDEX(EntryList,MATCH(E46,'Competitors&Timetable'!A1:A401,0),2)","v":"Jamie Darling"},{"$f":"INDEX(EntryList,MATCH(E46,'Competitors&Timetable'!A1:A401,0),3)","v":"U15 Boy"},27.79,28,1,102,{"$f":"INDEX(EntryList,MATCH(K46,'Competitors&Timetable'!A1:A401,0),2)","v":"Morro Bajo"},{"$f":"INDEX(EntryList,MATCH(K46,'Competitors&Timetable'!A1:A401,0),3)","v":"U17 Men"},23.12,"G"]
[{"$f":"#REF!","v":{"$error":"#REF!"}},{"$f":"#REF!","v":{"$error":"#REF!"}},{"$f":"#REF!","v":{"$error":"#REF!"}},1,67,{"$f":"INDEX(EntryList,MATCH(E47,'Competitors&Timetable'!A1:A401,0),2)","v":"Rachel Stoakes"},{"$f":"INDEX(EntryList,MATCH(E47,'Competitors&Timetable'!A1:A401,0),3)","v":"U17 Woman"},29.2,25,2,98,{"$f":"INDEX(EntryList,MATCH(K47,'Competitors&Timetable'!A1:A401,0),2)","v":"Toby Oladipo"},{"$f":"INDEX(EntryList,MATCH(K47,'Competitors&Timetable'!A1:A401,0),3)","v":"Sen Men"},23.23,"G"]
[{"$f":"#REF!","v":{"$error":"#REF!"}},{"$f":"#REF!","v":{"$error":"#REF!"}},{"$f":"#REF!","v":{"$error":"#REF!"}},1,68,{"$f":"INDEX(EntryList,MATCH(E48,'Competitors&Timetable'!A1:A401,0),2)","v":"Sophie Miller"},{"$f":"INDEX(EntryList,MATCH(E48,'Competitors&Timetable'!A1:A401,0),3)","v":"U17 Woman"},30.25,23,3,70,{"$f":"INDEX(EntryList,MATCH(K48,'Competitors&Timetable'!A1:A401,0),2)","v":"Mathew Timms"},{"$f":"INDEX(EntryList,MATCH(K48,'Competitors&Timetable'!A1:A401,0),3)","v":"U17 Men"},25.07,39]
[{"$f":"#REF!","v":{"$error":"#REF!"}},{"$f":"#REF!","v":{"$error":"#REF!"}},{"$f":"#REF!","v":{"$error":"#REF!"}},1,83,{"$f":"INDEX(EntryList,MATCH(E49,'Competitors&Timetable'!A1:A401,0),2)","v":"Karen McKinlay"},{"$f":"INDEX(EntryList,MATCH(E49,'Competitors&Timetable'!A1:A401,0),3)","v":"Sen Women"},36.549999999999997,15,4,69,{"$f":"INDEX(EntryList,MATCH(K49,'Competitors&Timetable'!A1:A401,0),2)","v":"Ross O'Brien"},{"$f":"INDEX(EntryList,MATCH(K49,'Competitors&Timetable'!A1:A401,0),3)","v":"U17 Men"},28.81,26]
[null,null,null,null,".",{"$f":"INDEX(EntryList,MATCH(E50,'Competitors&Timetable'!A1:A401,0),2)","v":" "},{"$f":"INDEX(EntryList,MATCH(E50,'Competitors&Timetable'!A1:A401,0),3)","v":" "},null,null,5,91,{"$f":"INDEX(EntryList,MATCH(K50,'Competitors&Timetable'!A1:A401,0),2)","v":"Jamie Laird"},{"$f":"INDEX(EntryList,MATCH(K50,'Competitors&Timetable'!A1:A401,0),3)","v":"U17 Men"},"DNS",0]
[null,null,null,null,".",{"$f":"INDEX(EntryList,MATCH(E51,'Competitors&Timetable'!A1:A401,0),2)","v":" "},{"$f":"INDEX(EntryList,MATCH(E51,'Competitors&Timetable'!A1:A401,0),3)","v":" "},null,null,6,85,{"$f":"INDEX(EntryList,MATCH(K51,'Competitors&Timetable'!A1:A401,0),2)","v":"Greg Louden"},{"$f":"INDEX(EntryList,MATCH(K51,'Competitors&Timetable'!A1:A401,0),3)","v":"Sen Men"},"DNS",0]
[{"$f":"#REF!","v":{"$error":"#REF!"}},{"$f":"#REF!","v":{"$error":"#REF!"}},{"$f":"#REF!","v":{"$error":"#REF!"}},null,".",{"$f":"INDEX(EntryList,MATCH(E52,'Competitors&Timetable'!A1:A401,0),2)","v":" "},{"$f":"INDEX(EntryList,MATCH(E52,'Competitors&Timetable'!A1:A401,0),3)","v":" "},null,null,null,".",{"$f":"INDEX(EntryList,MATCH(K52,'Competitors&Timetable'!A1:A401,0),2)","v":" "},{"$f":"INDEX(EntryList,MATCH(K52,'Competitors&Timetable'!A1:A401,0),3)","v":" "}]
[{"$f":"#REF!","v":{"$error":"#REF!"}},{"$f":"#REF!","v":{"$error":"#REF!"}},{"$f":"#REF!","v":{"$error":"#REF!"}},null,".",{"$f":"INDEX(EntryList,MATCH(E53,'Competitors&Timetable'!A1:A401,0),2)","v":" "},{"$f":"INDEX(EntryList,MATCH(E53,'Competitors&Timetable'!A1:A401,0),3)","v":" "},null,null,null,".",{"$f":"INDEX(EntryList,MATCH(K53,'Competitors&Timetable'!A1:A401,0),2)","v":" "},{"$f":"INDEX(EntryList,MATCH(K53,'Competitors&Timetable'!A1:A401,0),3)","v":" "}]
[{"$f":"#REF!","v":{"$error":"#REF!"}},{"$f":"#REF!","v":{"$error":"#REF!"}},{"$f":"#REF!","v":{"$error":"#REF!"}},null,null,{"$f":"IF(E54=\"\",\"\",LOOKUP(E54,#REF!,#REF!))","v":""},{"$f":"IF(E54=\"\",\"\",LOOKUP(E54,'Competitors&Timetable'!#REF!))","v":""},null,null,null,null,{"$f":"IF(K54=\"\",\"\",LOOKUP(K54,#REF!,#REF!))","v":""},{"$f":"IF(K54=\"\",\"\",LOOKUP(K54,'Competitors&Timetable'!#REF!))","v":""}]
[{"$f":"#REF!","v":{"$error":"#REF!"}},{"$f":"#REF!","v":{"$error":"#REF!"}},{"$f":"#REF!","v":{"$error":"#REF!"}}]
[{"$f":"#REF!","v":{"$error":"#REF!"}},{"$f":"#REF!","v":{"$error":"#REF!"}},{"$f":"#REF!","v":{"$error":"#REF!"}},null,"T30",{"$f":"INDEX('Competitors&Timetable'!F1:H144,MATCH(E56,'Competitors&Timetable'!F1:F144,0),2)","v":"200m U17 Men"},{"$f":"INDEX(#REF!,MATCH(E56,#REF!,0),3)","v":{"$error":"#REF!"}},"Final",null,null,".",{"$f":"INDEX('Competitors&Timetable'!F1:H144,MATCH(K56,'Competitors&Timetable'!F1:F144,0),2)","v":" "},{"$f":"INDEX(#REF!,MATCH(K56,#REF!,0),3)","v":{"$error":"#REF!"}}]
[{"$f":"#REF!","v":{"$error":"#REF!"}},{"$f":"#REF!","v":{"$error":"#REF!"}},{"$f":"#REF!","v":{"$error":"#REF!"}},1,74,{"$f":"INDEX(EntryList,MATCH(E57,'Competitors&Timetable'!A1:A401,0),2)","v":"William Hutchison"},{"$f":"INDEX(EntryList,MATCH(E57,'Competitors&Timetable'!A1:A401,0),3)","v":"U17 Men"},24.37,44,null,".",{"$f":"INDEX(EntryList,MATCH(K57,'Competitors&Timetable'!A1:A401,0),2)","v":" "},{"$f":"INDEX(EntryList,MATCH(K57,'Competitors&Timetable'!A1:A401,0),3)","v":" "}]
[{"$f":"#REF!","v":{"$error":"#REF!"}},{"$f":"#REF!","v":{"$error":"#REF!"}},{"$f":"#REF!","v":{"$error":"#REF!"}},2,71,{"$f":"INDEX(EntryList,MATCH(E58,'Competitors&Timetable'!A1:A401,0),2)","v":"Andrew Mahady"},{"$f":"INDEX(EntryList,MATCH(E58,'Competitors&Timetable'!A1:A401,0),3)","v":"U17 Men"},25.22,28,null,".",{"$f":"INDEX(EntryList,MATCH(K58,'Competitors&Timetable'!A1:A401,0),2)","v":" "},{"$f":"INDEX(EntryList,MATCH(K58,'Competitors&Timetable'!A1:A401,0),3)","v":" "}]
[{"$f":"#REF!","v":{"$error":"#REF!"}},{"$f":"#REF!","v":{"$error":"#REF!"}},{"$f":"#REF!","v":{"$error":"#REF!"}},3,76,{"$f":"INDEX(EntryList,MATCH(E59,'Competitors&Timetable'!A1:A401,0),2)","v":"Robert Ferguson"},{"$f":"INDEX(EntryList,MATCH(E59,'Competitors&Timetable'!A1:A401,0),3)","v":"U17 Men"},28.71,26,null,".",{"$f":"INDEX(EntryList,MATCH(K59,'Competitors&Timetable'!A1:A401,0),2)","v":" "},{"$f":"INDEX(EntryList,MATCH(K59,'Competitors&Timetable'!A1:A401,0),3)","v":" "}]
[{"$f":"#REF!","v":{"$error":"#REF!"}},{"$f":"#REF!","v":{"$error":"#REF!"}},{"$f":"#REF!","v":{"$error":"#REF!"}},4,75,{"$f":"INDEX(EntryList,MATCH(E60,'Competitors&Timetable'!A1:A401,0),2)","v":"Jamie Cousin"},{"$f":"INDEX(EntryList,MATCH(E60,'Competitors&Timetable'!A1:A401,0),3)","v":"U17 Men"},"DNS",0,null,".",{"$f":"INDEX(EntryList,MATCH(K60,'Competitors&Timetable'!A1:A401,0),2)","v":" "},{"$f":"INDEX(EntryList,MATCH(K60,'Competitors&Timetable'!A1:A401,0),3)","v":" "}]
[{"$f":"#REF!","v":{"$error":"#REF!"}},{"$f":"#REF!","v":{"$error":"#REF!"}},{"$f":"#REF!","v":{"$error":"#REF!"}},null,".",{"$f":"INDEX(EntryList,MATCH(E61,'Competitors&Timetable'!A1:A401,0),2)","v":" "},{"$f":"INDEX(EntryList,MATCH(E61,'Competitors&Timetable'!A1:A401,0),3)","v":" "},null,null,null,".",{"$f":"INDEX(EntryList,MATCH(K61,'Competitors&Timetable'!A1:A401,0),2)","v":" "},{"$f":"INDEX(EntryList,MATCH(K61,'Competitors&Timetable'!A1:A401,0),3)","v":" "}]
[{"$f":"#REF!","v":{"$error":"#REF!"}},{"$f":"#REF!","v":{"$error":"#REF!"}},{"$f":"#REF!","v":{"$error":"#REF!"}},null,".",{"$f":"INDEX(EntryList,MATCH(E62,'Competitors&Timetable'!A1:A401,0),2)","v":" "},{"$f":"INDEX(EntryList,MATCH(E62,'Competitors&Timetable'!A1:A401,0),3)","v":" "},null,null,null,".",{"$f":"INDEX(EntryList,MATCH(K62,'Competitors&Timetable'!A1:A401,0),2)","v":" "},{"$f":"INDEX(EntryList,MATCH(K62,'Competitors&Timetable'!A1:A401,0),3)","v":" "}]
[{"$f":"#REF!","v":{"$error":"#REF!"}},{"$f":"#REF!","v":{"$error":"#REF!"}},{"$f":"#REF!","v":{"$error":"#REF!"}},null,".",{"$f":"INDEX(EntryList,MATCH(E63,'Competitors&Timetable'!A1:A401,0),2)","v":" "},{"$f":"INDEX(EntryList,MATCH(E63,'Competitors&Timetable'!A1:A401,0),3)","v":" "},null,null,null,".",{"$f":"INDEX(EntryList,MATCH(K63,'Competitors&Timetable'!A1:A401,0),2)","v":" "},{"$f":"INDEX(EntryList,MATCH(K63,'Competitors&Timetable'!A1:A401,0),3)","v":" "}]
[null,null,null,null,".",{"$f":"INDEX(EntryList,MATCH(E64,'Competitors&Timetable'!A1:A401,0),2)","v":" "},{"$f":"INDEX(EntryList,MATCH(E64,'Competitors&Timetable'!A1:A401,0),3)","v":" "},null,null,null,".",{"$f":"INDEX(EntryList,MATCH(K64,'Competitors&Timetable'!A1:A401,0),2)","v":" "},{"$f":"INDEX(EntryList,MATCH(K64,'Competitors&Timetable'!A1:A401,0),3)","v":" "}]
[null,null,null,null,null,{"$f":"IF(E65=\"\",\"\",LOOKUP(E65,#REF!,#REF!))","v":""},{"$f":"IF(E65=\"\",\"\",LOOKUP(E65,'Competitors&Timetable'!#REF!))","v":""},null,null,null,null,{"$f":"IF(K65=\"\",\"\",LOOKUP(K65,#REF!,#REF!))","v":""},{"$f":"IF(K65=\"\",\"\",LOOKUP(K65,'Competitors&Timetable'!#REF!))","v":""}]
[]
[null,null,null,null,".",{"$f":"INDEX('Competitors&Timetable'!F1:H144,MATCH(E67,'Competitors&Timetable'!F1:F144,0),2)","v":" "},{"$f":"INDEX(#REF!,MATCH(E67,#REF!,0),3)","v":{"$error":"#REF!"}},null,null,null,".",{"$f":"INDEX('Competitors&Timetable'!F1:H144,MATCH(K67,'Competitors&Timetable'!F1:F144,0),2)","v":" "},{"$f":"INDEX(#REF!,MATCH(K67,#REF!,0),3)","v":{"$error":"#REF!"}}]
[null,null,null,null,".",{"$f":"INDEX(EntryList,MATCH(E68,'Competitors&Timetable'!A1:A401,0),2)","v":" "},{"$f":"INDEX(EntryList,MATCH(E68,'Competitors&Timetable'!A1:A401,0),3)","v":" "},null,null,null,".",{"$f":"INDEX(EntryList,MATCH(K68,'Competitors&Timetable'!A1:A401,0),2)","v":" "},{"$f":"INDEX(EntryList,MATCH(K68,'Competitors&Timetable'!A1:A401,0),3)","v":" "}]
[null,null,null,null,".",{"$f":"INDEX(EntryList,MATCH(E69,'Competitors&Timetable'!A1:A401,0),2)","v":" "},{"$f":"INDEX(EntryList,MATCH(E69,'Competitors&Timetable'!A1:A401,0),3)","v":" "},null,null,null,".",{"$f":"INDEX(EntryList,MATCH(K69,'Competitors&Timetable'!A1:A401,0),2)","v":" "},{"$f":"INDEX(EntryList,MATCH(K69,'Competitors&Timetable'!A1:A401,0),3)","v":" "}]
[null,null,null,null,".",{"$f":"INDEX(EntryList,MATCH(E70,'Competitors&Timetable'!A1:A401,0),2)","v":" "},{"$f":"INDEX(EntryList,MATCH(E70,'Competitors&Timetable'!A1:A401,0),3)","v":" "},null,null,null,".",{"$f":"INDEX(EntryList,MATCH(K70,'Competitors&Timetable'!A1:A401,0),2)","v":" "},{"$f":"INDEX(EntryList,MATCH(K70,'Competitors&Timetable'!A1:A401,0),3)","v":" "}]
[null,null,null,null,".",{"$f":"INDEX(EntryList,MATCH(E71,'Competitors&Timetable'!A1:A401,0),2)","v":" "},{"$f":"INDEX(EntryList,MATCH(E71,'Competitors&Timetable'!A1:A401,0),3)","v":" "},null,null,null,".",{"$f":"INDEX(EntryList,MATCH(K71,'Competitors&Timetable'!A1:A401,0),2)","v":" "},{"$f":"INDEX(EntryList,MATCH(K71,'Competitors&Timetable'!A1:A401,0),3)","v":" "}]
[null,null,null,null,".",{"$f":"INDEX(EntryList,MATCH(E72,'Competitors&Timetable'!A1:A401,0),2)","v":" "},{"$f":"INDEX(EntryList,MATCH(E72,'Competitors&Timetable'!A1:A401,0),3)","v":" "},null,null,null,".",{"$f":"INDEX(EntryList,MATCH(K72,'Competitors&Timetable'!A1:A401,0),2)","v":" "},{"$f":"INDEX(EntryList,MATCH(K72,'Competitors&Timetable'!A1:A401,0),3)","v":" "}]
[null,null,null,null,".",{"$f":"INDEX(EntryList,MATCH(E73,'Competitors&Timetable'!A1:A401,0),2)","v":" "},{"$f":"INDEX(EntryList,MATCH(E73,'Competitors&Timetable'!A1:A401,0),3)","v":" "},null,null,null,".",{"$f":"INDEX(EntryList,MATCH(K73,'Competitors&Timetable'!A1:A401,0),2)","v":" "},{"$f":"INDEX(EntryList,MATCH(K73,'Competitors&Timetable'!A1:A401,0),3)","v":" "}]
[null,null,null,null,".",{"$f":"INDEX(EntryList,MATCH(E74,'Competitors&Timetable'!A1:A401,0),2)","v":" "},{"$f":"INDEX(EntryList,MATCH(E74,'Competitors&Timetable'!A1:A401,0),3)","v":" "},null,null,null,".",{"$f":"INDEX(EntryList,MATCH(K74,'Competitors&Timetable'!A1:A401,0),2)","v":" "},{"$f":"INDEX(EntryList,MATCH(K74,'Competitors&Timetable'!A1:A401,0),3)","v":" "}]
[null,null,null,null,".",{"$f":"INDEX(EntryList,MATCH(E75,'Competitors&Timetable'!A1:A401,0),2)","v":" "},{"$f":"INDEX(EntryList,MATCH(E75,'Competitors&Timetable'!A1:A401,0),3)","v":" "},null,null,null,".",{"$f":"INDEX(EntryList,MATCH(K75,'Competitors&Timetable'!A1:A401,0),2)","v":" "},{"$f":"INDEX(EntryList,MATCH(K75,'Competitors&Timetable'!A1:A401,0),3)","v":" "}]
[null,null,null,null,null,{"$f":"IF(E76=\"\",\"\",LOOKUP(E76,#REF!,#REF!))","v":""},{"$f":"IF(E76=\"\",\"\",LOOKUP(E76,'Competitors&Timetable'!#REF!))","v":""},null,null,null,null,{"$f":"IF(K76=\"\",\"\",LOOKUP(K76,#REF!,#REF!))","v":""},{"$f":"IF(K76=\"\",\"\",LOOKUP(K76,'Competitors&Timetable'!#REF!))","v":""}]
[]
[null,null,null,null,".",{"$f":"INDEX('Competitors&Timetable'!F1:H144,MATCH(E78,'Competitors&Timetable'!F1:F144,0),2)","v":" "},{"$f":"INDEX(#REF!,MATCH(E78,#REF!,0),3)","v":{"$error":"#REF!"}},null,null,null,".",{"$f":"INDEX('Competitors&Timetable'!F1:H144,MATCH(K78,'Competitors&Timetable'!F1:F144,0),2)","v":" "},{"$f":"INDEX(#REF!,MATCH(K78,#REF!,0),3)","v":{"$error":"#REF!"}}]
[null,null,null,null,".",{"$f":"INDEX(EntryList,MATCH(E79,'Competitors&Timetable'!A1:A401,0),2)","v":" "},{"$f":"INDEX(EntryList,MATCH(E79,'Competitors&Timetable'!A1:A401,0),3)","v":" "},null,null,null,".",{"$f":"INDEX(EntryList,MATCH(K79,'Competitors&Timetable'!A1:A401,0),2)","v":" "},{"$f":"INDEX(EntryList,MATCH(K79,'Competitors&Timetable'!A1:A401,0),3)","v":" "}]
[null,null,null,null,".",{"$f":"INDEX(EntryList,MATCH(E80,'Competitors&Timetable'!A1:A401,0),2)","v":" "},{"$f":"INDEX(EntryList,MATCH(E80,'Competitors&Timetable'!A1:A401,0),3)","v":" "},null,null,null,".",{"$f":"INDEX(EntryList,MATCH(K80,'Competitors&Timetable'!A1:A401,0),2)","v":" "},{"$f":"INDEX(EntryList,MATCH(K80,'Competitors&Timetable'!A1:A401,0),3)","v":" "}]
[null,null,null,null,".",{"$f":"INDEX(EntryList,MATCH(E81,'Competitors&Timetable'!A1:A401,0),2)","v":" "},{"$f":"INDEX(EntryList,MATCH(E81,'Competitors&Timetable'!A1:A401,0),3)","v":" "},null,null,null,".",{"$f":"INDEX(EntryList,MATCH(K81,'Competitors&Timetable'!A1:A401,0),2)","v":" "},{"$f":"INDEX(EntryList,MATCH(K81,'Competitors&Timetable'!A1:A401,0),3)","v":" "}]
[null,null,null,null,".",{"$f":"INDEX(EntryList,MATCH(E82,'Competitors&Timetable'!A1:A401,0),2)","v":" "},{"$f":"INDEX(EntryList,MATCH(E82,'Competitors&Timetable'!A1:A401,0),3)","v":" "},null,null,null,".",{"$f":"INDEX(EntryList,MATCH(K82,'Competitors&Timetable'!A1:A401,0),2)","v":" "},{"$f":"INDEX(EntryList,MATCH(K82,'Competitors&Timetable'!A1:A401,0),3)","v":" "}]
[null,null,null,null,".",{"$f":"INDEX(EntryList,MATCH(E83,'Competitors&Timetable'!A1:A401,0),2)","v":" "},{"$f":"INDEX(EntryList,MATCH(E83,'Competitors&Timetable'!A1:A401,0),3)","v":" "},null,null,null,".",{"$f":"INDEX(EntryList,MATCH(K83,'Competitors&Timetable'!A1:A401,0),2)","v":" "},{"$f":"INDEX(EntryList,MATCH(K83,'Competitors&Timetable'!A1:A401,0),3)","v":" "}]
[null,null,null,null,".",{"$f":"INDEX(EntryList,MATCH(E84,'Competitors&Timetable'!A1:A401,0),2)","v":" "},{"$f":"INDEX(EntryList,MATCH(E84,'Competitors&Timetable'!A1:A401,0),3)","v":" "},null,null,null,".",{"$f":"INDEX(EntryList,MATCH(K84,'Competitors&Timetable'!A1:A401,0),2)","v":" "},{"$f":"INDEX(EntryList,MATCH(K84,'Competitors&Timetable'!A1:A401,0),3)","v":" "}]
[null,null,null,null,".",{"$f":"INDEX(EntryList,MATCH(E85,'Competitors&Timetable'!A1:A401,0),2)","v":" "},{"$f":"INDEX(EntryList,MATCH(E85,'Competitors&Timetable'!A1:A401,0),3)","v":" "},null,null,null,".",{"$f":"INDEX(EntryList,MATCH(K85,'Competitors&Timetable'!A1:A401,0),2)","v":" "},{"$f":"INDEX(EntryList,MATCH(K85,'Competitors&Timetable'!A1:A401,0),3)","v":" "}]
[null,null,null,null,".",{"$f":"INDEX(EntryList,MATCH(E86,'Competitors&Timetable'!A1:A401,0),2)","v":" "},{"$f":"INDEX(EntryList,MATCH(E86,'Competitors&Timetable'!A1:A401,0),3)","v":" "},null,null,null,".",{"$f":"INDEX(EntryList,MATCH(K86,'Competitors&Timetable'!A1:A401,0),2)","v":" "},{"$f":"INDEX(EntryList,MATCH(K86,'Competitors&Timetable'!A1:A401,0),3)","v":" "}]
[null,null,null,null,null,{"$f":"IF(E87=\"\",\"\",LOOKUP(E87,#REF!,#REF!))","v":""},{"$f":"IF(E87=\"\",\"\",LOOKUP(E87,'Competitors&Timetable'!#REF!))","v":""},null,null,null,null,{"$f":"IF(K87=\"\",\"\",LOOKUP(K87,#REF!,#REF!))","v":""},{"$f":"IF(K87=\"\",\"\",LOOKUP(K87,'Competitors&Timetable'!#REF!))","v":""}]
[]
[null,null,null,null,".",{"$f":"INDEX('Competitors&Timetable'!F1:H144,MATCH(E89,'Competitors&Timetable'!F1:F144,0),2)","v":" "},{"$f":"INDEX(#REF!,MATCH(E89,#REF!,0),3)","v":{"$error":"#REF!"}},null,null,null,".",{"$f":"INDEX('Competitors&Timetable'!F1:H144,MATCH(K89,'Competitors&Timetable'!F1:F144,0),2)","v":" "},{"$f":"INDEX(#REF!,MATCH(K89,#REF!,0),3)","v":{"$error":"#REF!"}}]
[null,null,null,null,".",{"$f":"INDEX(EntryList,MATCH(E90,'Competitors&Timetable'!A1:A401,0),2)","v":" "},{"$f":"INDEX(EntryList,MATCH(E90,'Competitors&Timetable'!A1:A401,0),3)","v":" "},null,null,null,".",{"$f":"INDEX(EntryList,MATCH(K90,'Competitors&Timetable'!A1:A401,0),2)","v":" "},{"$f":"INDEX(EntryList,MATCH(K90,'Competitors&Timetable'!A1:A401,0),3)","v":" "}]
[null,null,null,null,".",{"$f":"INDEX(EntryList,MATCH(E91,'Competitors&Timetable'!A1:A401,0),2)","v":" "},{"$f":"INDEX(EntryList,MATCH(E91,'Competitors&Timetable'!A1:A401,0),3)","v":" "},null,null,null,".",{"$f":"INDEX(EntryList,MATCH(K91,'Competitors&Timetable'!A1:A401,0),2)","v":" "},{"$f":"INDEX(EntryList,MATCH(K91,'Competitors&Timetable'!A1:A401,0),3)","v":" "}]
[null,null,null,null,".",{"$f":"INDEX(EntryList,MATCH(E92,'Competitors&Timetable'!A1:A401,0),2)","v":" "},{"$f":"INDEX(EntryList,MATCH(E92,'Competitors&Timetable'!A1:A401,0),3)","v":" "},null,null,null,".",{"$f":"INDEX(EntryList,MATCH(K92,'Competitors&Timetable'!A1:A401,0),2)","v":" "},{"$f":"INDEX(EntryList,MATCH(K92,'Competitors&Timetable'!A1:A401,0),3)","v":" "}]
[null,null,null,null,".",{"$f":"INDEX(EntryList,MATCH(E93,'Competitors&Timetable'!A1:A401,0),2)","v":" "},{"$f":"INDEX(EntryList,MATCH(E93,'Competitors&Timetable'!A1:A401,0),3)","v":" "},null,null,null,".",{"$f":"INDEX(EntryList,MATCH(K93,'Competitors&Timetable'!A1:A401,0),2)","v":" "},{"$f":"INDEX(EntryList,MATCH(K93,'Competitors&Timetable'!A1:A401,0),3)","v":" "}]
[null,null,null,null,".",{"$f":"INDEX(EntryList,MATCH(E94,'Competitors&Timetable'!A1:A401,0),2)","v":" "},{"$f":"INDEX(EntryList,MATCH(E94,'Competitors&Timetable'!A1:A401,0),3)","v":" "},null,null,null,".",{"$f":"INDEX(EntryList,MATCH(K94,'Competitors&Timetable'!A1:A401,0),2)","v":" "},{"$f":"INDEX(EntryList,MATCH(K94,'Competitors&Timetable'!A1:A401,0),3)","v":" "}]
[null,null,null,null,".",{"$f":"INDEX(EntryList,MATCH(E95,'Competitors&Timetable'!A1:A401,0),2)","v":" "},{"$f":"INDEX(EntryList,MATCH(E95,'Competitors&Timetable'!A1:A401,0),3)","v":" "},null,null,null,".",{"$f":"INDEX(EntryList,MATCH(K95,'Competitors&Timetable'!A1:A401,0),2)","v":" "},{"$f":"INDEX(EntryList,MATCH(K95,'Competitors&Timetable'!A1:A401,0),3)","v":" "}]
[null,null,null,null,".",{"$f":"INDEX(EntryList,MATCH(E96,'Competitors&Timetable'!A1:A401,0),2)","v":" "},{"$f":"INDEX(EntryList,MATCH(E96,'Competitors&Timetable'!A1:A401,0),3)","v":" "},null,null,null,".",{"$f":"INDEX(EntryList,MATCH(K96,'Competitors&Timetable'!A1:A401,0),2)","v":" "},{"$f":"INDEX(EntryList,MATCH(K96,'Competitors&Timetable'!A1:A401,0),3)","v":" "}]
[null,null,null,null,".",{"$f":"INDEX(EntryList,MATCH(E97,'Competitors&Timetable'!A1:A401,0),2)","v":" "},{"$f":"INDEX(EntryList,MATCH(E97,'Competitors&Timetable'!A1:A401,0),3)","v":" "},null,null,null,".",{"$f":"INDEX(EntryList,MATCH(K97,'Competitors&Timetable'!A1:A401,0),2)","v":" "},{"$f":"INDEX(EntryList,MATCH(K97,'Competitors&Timetable'!A1:A401,0),3)","v":" "}]
[null,null,null,null,null,{"$f":"IF(E98=\"\",\"\",LOOKUP(E98,#REF!,#REF!))","v":""},{"$f":"IF(E98=\"\",\"\",LOOKUP(E98,'Competitors&Timetable'!#REF!))","v":""},null,null,null,null,{"$f":"IF(K98=\"\",\"\",LOOKUP(K98,#REF!,#REF!))","v":""},{"$f":"IF(K98=\"\",\"\",LOOKUP(K98,'Competitors&Timetable'!#REF!))","v":""}]
[]
[null,null,null,null,".",{"$f":"INDEX('Competitors&Timetable'!F1:H144,MATCH(E100,'Competitors&Timetable'!F1:F144,0),2)","v":" "},{"$f":"INDEX(#REF!,MATCH(E100,#REF!,0),3)","v":{"$error":"#REF!"}},null,null,null,".",{"$f":"INDEX('Competitors&Timetable'!F1:H144,MATCH(K100,'Competitors&Timetable'!F1:F144,0),2)","v":" "},{"$f":"INDEX(#REF!,MATCH(K100,#REF!,0),3)","v":{"$error":"#REF!"}}]
[null,null,null,null,".",{"$f":"INDEX(EntryList,MATCH(E101,'Competitors&Timetable'!A1:A401,0),2)","v":" "},{"$f":"INDEX(EntryList,MATCH(E101,'Competitors&Timetable'!A1:A401,0),3)","v":" "},null,null,null,".",{"$f":"INDEX(EntryList,MATCH(K101,'Competitors&Timetable'!A1:A401,0),2)","v":" "},{"$f":"INDEX(EntryList,MATCH(K101,'Competitors&Timetable'!A1:A401,0),3)","v":" "}]
[null,null,null,null,".",{"$f":"INDEX(EntryList,MATCH(E102,'Competitors&Timetable'!A1:A401,0),2)","v":" "},{"$f":"INDEX(EntryList,MATCH(E102,'Competitors&Timetable'!A1:A401,0),3)","v":" "},null,null,null,".",{"$f":"INDEX(EntryList,MATCH(K102,'Competitors&Timetable'!A1:A401,0),2)","v":" "},{"$f":"INDEX(EntryList,MATCH(K102,'Competitors&Timetable'!A1:A401,0),3)","v":" "}]
[null,null,null,null,".",{"$f":"INDEX(EntryList,MATCH(E103,'Competitors&Timetable'!A1:A401,0),2)","v":" "},{"$f":"INDEX(EntryList,MATCH(E103,'Competitors&Timetable'!A1:A401,0),3)","v":" "},null,null,null,".",{"$f":"INDEX(EntryList,MATCH(K103,'Competitors&Timetable'!A1:A401,0),2)","v":" "},{"$f":"INDEX(EntryList,MATCH(K103,'Competitors&Timetable'!A1:A401,0),3)","v":" "}]
[null,null,null,null,".",{"$f":"INDEX(EntryList,MATCH(E104,'Competitors&Timetable'!A1:A401,0),2)","v":" "},{"$f":"INDEX(EntryList,MATCH(E104,'Competitors&Timetable'!A1:A401,0),3)","v":" "},null,null,null,".",{"$f":"INDEX(EntryList,MATCH(K104,'Competitors&Timetable'!A1:A401,0),2)","v":" "},{"$f":"INDEX(EntryList,MATCH(K104,'Competitors&Timetable'!A1:A401,0),3)","v":" "}]
[null,null,null,null,".",{"$f":"INDEX(EntryList,MATCH(E105,'Competitors&Timetable'!A1:A401,0),2)","v":" "},{"$f":"INDEX(EntryList,MATCH(E105,'Competitors&Timetable'!A1:A401,0),3)","v":" "},null,null,null,".",{"$f":"INDEX(EntryList,MATCH(K105,'Competitors&Timetable'!A1:A401,0),2)","v":" "},{"$f":"INDEX(EntryList,MATCH(K105,'Competitors&Timetable'!A1:A401,0),3)","v":" "}]
[null,null,null,null,".",{"$f":"INDEX(EntryList,MATCH(E106,'Competitors&Timetable'!A1:A401,0),2)","v":" "},{"$f":"INDEX(EntryList,MATCH(E106,'Competitors&Timetable'!A1:A401,0),3)","v":" "},null,null,null,".",{"$f":"INDEX(EntryList,MATCH(K106,'Competitors&Timetable'!A1:A401,0),2)","v":" "},{"$f":"INDEX(EntryList,MATCH(K106,'Competitors&Timetable'!A1:A401,0),3)","v":" "}]
[null,null,null,null,".",{"$f":"INDEX(EntryList,MATCH(E107,'Competitors&Timetable'!A1:A401,0),2)","v":" "},{"$f":"INDEX(EntryList,MATCH(E107,'Competitors&Timetable'!A1:A401,0),3)","v":" "},null,null,null,".",{"$f":"INDEX(EntryList,MATCH(K107,'Competitors&Timetable'!A1:A401,0),2)","v":" "},{"$f":"INDEX(EntryList,MATCH(K107,'Competitors&Timetable'!A1:A401,0),3)","v":" "}]
[null,null,null,null,".",{"$f":"INDEX(EntryList,MATCH(E108,'Competitors&Timetable'!A1:A401,0),2)","v":" "},{"$f":"INDEX(EntryList,MATCH(E108,'Competitors&Timetable'!A1:A401,0),3)","v":" "},null,null,null,".",{"$f":"INDEX(EntryList,MATCH(K108,'Competitors&Timetable'!A1:A401,0),2)","v":" "},{"$f":"INDEX(EntryList,MATCH(K108,'Competitors&Timetable'!A1:A401,0),3)","v":" "}]
[null,null,null,null,null,{"$f":"IF(E109=\"\",\"\",LOOKUP(E109,#REF!,#REF!))","v":""},{"$f":"IF(E109=\"\",\"\",LOOKUP(E109,'Competitors&Timetable'!#REF!))","v":""},null,null,null,null,{"$f":"IF(K109=\"\",\"\",LOOKUP(K109,#REF!,#REF!))","v":""},{"$f":"IF(K109=\"\",\"\",LOOKUP(K109,'Competitors&Timetable'!#REF!))","v":""}]
[]
[null,null,null,null,".",{"$f":"INDEX('Competitors&Timetable'!F1:H144,MATCH(E111,'Competitors&Timetable'!F1:F144,0),2)","v":" "},{"$f":"INDEX(#REF!,MATCH(E111,#REF!,0),3)","v":{"$error":"#REF!"}},null,null,null,".",{"$f":"INDEX('Competitors&Timetable'!F1:H144,MATCH(K111,'Competitors&Timetable'!F1:F144,0),2)","v":" "},{"$f":"INDEX(#REF!,MATCH(K111,#REF!,0),3)","v":{"$error":"#REF!"}}]
[null,null,null,null,".",{"$f":"INDEX(EntryList,MATCH(E112,'Competitors&Timetable'!A1:A401,0),2)","v":" "},{"$f":"INDEX(EntryList,MATCH(E112,'Competitors&Timetable'!A1:A401,0),3)","v":" "},null,null,null,".",{"$f":"INDEX(EntryList,MATCH(K112,'Competitors&Timetable'!A1:A401,0),2)","v":" "},{"$f":"INDEX(EntryList,MATCH(K112,'Competitors&Timetable'!A1:A401,0),3)","v":" "}]
[null,null,null,null,".",{"$f":"INDEX(EntryList,MATCH(E113,'Competitors&Timetable'!A1:A401,0),2)","v":" "},{"$f":"INDEX(EntryList,MATCH(E113,'Competitors&Timetable'!A1:A401,0),3)","v":" "},null,null,null,".",{"$f":"INDEX(EntryList,MATCH(K113,'Competitors&Timetable'!A1:A401,0),2)","v":" "},{"$f":"INDEX(EntryList,MATCH(K113,'Competitors&Timetable'!A1:A401,0),3)","v":" "}]
[null,null,null,null,".",{"$f":"INDEX(EntryList,MATCH(E114,'Competitors&Timetable'!A1:A401,0),2)","v":" "},{"$f":"INDEX(EntryList,MATCH(E114,'Competitors&Timetable'!A1:A401,0),3)","v":" "},null,null,null,".",{"$f":"INDEX(EntryList,MATCH(K114,'Competitors&Timetable'!A1:A401,0),2)","v":" "},{"$f":"INDEX(EntryList,MATCH(K114,'Competitors&Timetable'!A1:A401,0),3)","v":" "}]
[null,null,null,null,".",{"$f":"INDEX(EntryList,MATCH(E115,'Competitors&Timetable'!A1:A401,0),2)","v":" "},{"$f":"INDEX(EntryList,MATCH(E115,'Competitors&Timetable'!A1:A401,0),3)","v":" "},null,null,null,".",{"$f":"INDEX(EntryList,MATCH(K115,'Competitors&Timetable'!A1:A401,0),2)","v":" "},{"$f":"INDEX(EntryList,MATCH(K115,'Competitors&Timetable'!A1:A401,0),3)","v":" "}]
[null,null,null,null,".",{"$f":"INDEX(EntryList,MATCH(E116,'Competitors&Timetable'!A1:A401,0),2)","v":" "},{"$f":"INDEX(EntryList,MATCH(E116,'Competitors&Timetable'!A1:A401,0),3)","v":" "},null,null,null,".",{"$f":"INDEX(EntryList,MATCH(K116,'Competitors&Timetable'!A1:A401,0),2)","v":" "},{"$f":"INDEX(EntryList,MATCH(K116,'Competitors&Timetable'!A1:A401,0),3)","v":" "}]
[null,null,null,null,".",{"$f":"INDEX(EntryList,MATCH(E117,'Competitors&Timetable'!A1:A401,0),2)","v":" "},{"$f":"INDEX(EntryList,MATCH(E117,'Competitors&Timetable'!A1:A401,0),3)","v":" "},null,null,null,".",{"$f":"INDEX(EntryList,MATCH(K117,'Competitors&Timetable'!A1:A401,0),2)","v":" "},{"$f":"INDEX(EntryList,MATCH(K117,'Competitors&Timetable'!A1:A401,0),3)","v":" "}]
[null,null,null,null,".",{"$f":"INDEX(EntryList,MATCH(E118,'Competitors&Timetable'!A1:A401,0),2)","v":" "},{"$f":"INDEX(EntryList,MATCH(E118,'Competitors&Timetable'!A1:A401,0),3)","v":" "},null,null,null,".",{"$f":"INDEX(EntryList,MATCH(K118,'Competitors&Timetable'!A1:A401,0),2)","v":" "},{"$f":"INDEX(EntryList,MATCH(K118,'Competitors&Timetable'!A1:A401,0),3)","v":" "}]
[null,null,null,null,".",{"$f":"INDEX(EntryList,MATCH(E119,'Competitors&Timetable'!A1:A401,0),2)","v":" "},{"$f":"INDEX(EntryList,MATCH(E119,'Competitors&Timetable'!A1:A401,0),3)","v":" "},null,null,null,".",{"$f":"INDEX(EntryList,MATCH(K119,'Competitors&Timetable'!A1:A401,0),2)","v":" "},{"$f":"INDEX(EntryList,MATCH(K119,'Competitors&Timetable'!A1:A401,0),3)","v":" "}]
[null,null,null,null,null,{"$f":"IF(E120=\"\",\"\",LOOKUP(E120,#REF!,#REF!))","v":""},{"$f":"IF(E120=\"\",\"\",LOOKUP(E120,'Competitors&Timetable'!#REF!))","v":""},null,null,null,null,{"$f":"IF(K120=\"\",\"\",LOOKUP(K120,#REF!,#REF!))","v":""},{"$f":"IF(K120=\"\",\"\",LOOKUP(K120,'Competitors&Timetable'!#REF!))","v":""}]
[]
[null,null,null,null,".",{"$f":"INDEX('Competitors&Timetable'!F1:H144,MATCH(E122,'Competitors&Timetable'!F1:F144,0),2)","v":" "},{"$f":"INDEX(#REF!,MATCH(E122,#REF!,0),3)","v":{"$error":"#REF!"}},null,null,null,".",{"$f":"INDEX('Competitors&Timetable'!F1:H144,MATCH(K122,'Competitors&Timetable'!F1:F144,0),2)","v":" "},{"$f":"INDEX(#REF!,MATCH(K122,#REF!,0),3)","v":{"$error":"#REF!"}}]
[null,null,null,null,".",{"$f":"INDEX(EntryList,MATCH(E123,'Competitors&Timetable'!A1:A401,0),2)","v":" "},{"$f":"INDEX(EntryList,MATCH(E123,'Competitors&Timetable'!A1:A401,0),3)","v":" "},null,null,null,".",{"$f":"INDEX(EntryList,MATCH(K123,'Competitors&Timetable'!A1:A401,0),2)","v":" "},{"$f":"INDEX(EntryList,MATCH(K123,'Competitors&Timetable'!A1:A401,0),3)","v":" "}]
[null,null,null,null,".",{"$f":"INDEX(EntryList,MATCH(E124,'Competitors&Timetable'!A1:A401,0),2)","v":" "},{"$f":"INDEX(EntryList,MATCH(E124,'Competitors&Timetable'!A1:A401,0),3)","v":" "},null,null,null,".",{"$f":"INDEX(EntryList,MATCH(K124,'Competitors&Timetable'!A1:A401,0),2)","v":" "},{"$f":"INDEX(EntryList,MATCH(K124,'Competitors&Timetable'!A1:A401,0),3)","v":" "}]
[null,null,null,null,".",{"$f":"INDEX(EntryList,MATCH(E125,'Competitors&Timetable'!A1:A401,0),2)","v":" "},{"$f":"INDEX(EntryList,MATCH(E125,'Competitors&Timetable'!A1:A401,0),3)","v":" "},null,null,null,".",{"$f":"INDEX(EntryList,MATCH(K125,'Competitors&Timetable'!A1:A401,0),2)","v":" "},{"$f":"INDEX(EntryList,MATCH(K125,'Competitors&Timetable'!A1:A401,0),3)","v":" "}]
[null,null,null,null,".",{"$f":"INDEX(EntryList,MATCH(E126,'Competitors&Timetable'!A1:A401,0),2)","v":" "},{"$f":"INDEX(EntryList,MATCH(E126,'Competitors&Timetable'!A1:A401,0),3)","v":" "},null,null,null,".",{"$f":"INDEX(EntryList,MATCH(K126,'Competitors&Timetable'!A1:A401,0),2)","v":" "},{"$f":"INDEX(EntryList,MATCH(K126,'Competitors&Timetable'!A1:A401,0),3)","v":" "}]
[null,null,null,null,".",{"$f":"INDEX(EntryList,MATCH(E127,'Competitors&Timetable'!A1:A401,0),2)","v":" "},{"$f":"INDEX(EntryList,MATCH(E127,'Competitors&Timetable'!A1:A401,0),3)","v":" "},null,null,null,".",{"$f":"INDEX(EntryList,MATCH(K127,'Competitors&Timetable'!A1:A401,0),2)","v":" "},{"$f":"INDEX(EntryList,MATCH(K127,'Competitors&Timetable'!A1:A401,0),3)","v":" "}]
[null,null,null,null,".",{"$f":"INDEX(EntryList,MATCH(E128,'Competitors&Timetable'!A1:A401,0),2)","v":" "},{"$f":"INDEX(EntryList,MATCH(E128,'Competitors&Timetable'!A1:A401,0),3)","v":" "},null,null,null,".",{"$f":"INDEX(EntryList,MATCH(K128,'Competitors&Timetable'!A1:A401,0),2)","v":" "},{"$f":"INDEX(EntryList,MATCH(K128,'Competitors&Timetable'!A1:A401,0),3)","v":" "}]
[null,null,null,null,".",{"$f":"INDEX(EntryList,MATCH(E129,'Competitors&Timetable'!A1:A401,0),2)","v":" "},{"$f":"INDEX(EntryList,MATCH(E129,'Competitors&Timetable'!A1:A401,0),3)","v":" "},null,null,null,".",{"$f":"INDEX(EntryList,MATCH(K129,'Competitors&Timetable'!A1:A401,0),2)","v":" "},{"$f":"INDEX(EntryList,MATCH(K129,'Competitors&Timetable'!A1:A401,0),3)","v":" "}]
[null,null,null,null,".",{"$f":"INDEX(EntryList,MATCH(E130,'Competitors&Timetable'!A1:A401,0),2)","v":" "},{"$f":"INDEX(EntryList,MATCH(E130,'Competitors&Timetable'!A1:A401,0),3)","v":" "},null,null,null,".",{"$f":"INDEX(EntryList,MATCH(K130,'Competitors&Timetable'!A1:A401,0),2)","v":" "},{"$f":"INDEX(EntryList,MATCH(K130,'Competitors&Timetable'!A1:A401,0),3)","v":" "}]
[null,null,null,null,null,{"$f":"IF(E131=\"\",\"\",LOOKUP(E131,#REF!,#REF!))","v":""},{"$f":"IF(E131=\"\",\"\",LOOKUP(E131,'Competitors&Timetable'!#REF!))","v":""},null,null,null,null,{"$f":"IF(K131=\"\",\"\",LOOKUP(K131,#REF!,#REF!))","v":""},{"$f":"IF(K131=\"\",\"\",LOOKUP(K131,'Competitors&Timetable'!#REF!))","v":""}]
[]
[null,null,null,null,".",{"$f":"INDEX('Competitors&Timetable'!F1:H144,MATCH(E133,'Competitors&Timetable'!F1:F144,0),2)","v":" "},{"$f":"INDEX(#REF!,MATCH(E133,#REF!,0),3)","v":{"$error":"#REF!"}},null,null,null,".",{"$f":"INDEX('Competitors&Timetable'!F1:H144,MATCH(K133,'Competitors&Timetable'!F1:F144,0),2)","v":" "},{"$f":"INDEX(#REF!,MATCH(K133,#REF!,0),3)","v":{"$error":"#REF!"}}]
[null,null,null,null,".",{"$f":"INDEX(EntryList,MATCH(E134,'Competitors&Timetable'!A1:A401,0),2)","v":" "},{"$f":"INDEX(EntryList,MATCH(E134,'Competitors&Timetable'!A1:A401,0),3)","v":" "},null,null,null,".",{"$f":"INDEX(EntryList,MATCH(K134,'Competitors&Timetable'!A1:A401,0),2)","v":" "},{"$f":"INDEX(EntryList,MATCH(K134,'Competitors&Timetable'!A1:A401,0),3)","v":" "}]
[null,null,null,null,".",{"$f":"INDEX(EntryList,MATCH(E135,'Competitors&Timetable'!A1:A401,0),2)","v":" "},{"$f":"INDEX(EntryList,MATCH(E135,'Competitors&Timetable'!A1:A401,0),3)","v":" "},null,null,null,".",{"$f":"INDEX(EntryList,MATCH(K135,'Competitors&Timetable'!A1:A401,0),2)","v":" "},{"$f":"INDEX(EntryList,MATCH(K135,'Competitors&Timetable'!A1:A401,0),3)","v":" "}]
[null,null,null,null,".",{"$f":"INDEX(EntryList,MATCH(E136,'Competitors&Timetable'!A1:A401,0),2)","v":" "},{"$f":"INDEX(EntryList,MATCH(E136,'Competitors&Timetable'!A1:A401,0),3)","v":" "},null,null,null,".",{"$f":"INDEX(EntryList,MATCH(K136,'Competitors&Timetable'!A1:A401,0),2)","v":" "},{"$f":"INDEX(EntryList,MATCH(K136,'Competitors&Timetable'!A1:A401,0),3)","v":" "}]
[null,null,null,null,".",{"$f":"INDEX(EntryList,MATCH(E137,'Competitors&Timetable'!A1:A401,0),2)","v":" "},{"$f":"INDEX(EntryList,MATCH(E137,'Competitors&Timetable'!A1:A401,0),3)","v":" "},null,null,null,".",{"$f":"INDEX(EntryList,MATCH(K137,'Competitors&Timetable'!A1:A401,0),2)","v":" "},{"$f":"INDEX(EntryList,MATCH(K137,'Competitors&Timetable'!A1:A401,0),3)","v":" "}]
[null,null,null,null,".",{"$f":"INDEX(EntryList,MATCH(E138,'Competitors&Timetable'!A1:A401,0),2)","v":" "},{"$f":"INDEX(EntryList,MATCH(E138,'Competitors&Timetable'!A1:A401,0),3)","v":" "},null,null,null,".",{"$f":"INDEX(EntryList,MATCH(K138,'Competitors&Timetable'!A1:A401,0),2)","v":" "},{"$f":"INDEX(EntryList,MATCH(K138,'Competitors&Timetable'!A1:A401,0),3)","v":" "}]
[null,null,null,null,".",{"$f":"INDEX(EntryList,MATCH(E139,'Competitors&Timetable'!A1:A401,0),2)","v":" "},{"$f":"INDEX(EntryList,MATCH(E139,'Competitors&Timetable'!A1:A401,0),3)","v":" "},null,null,null,".",{"$f":"INDEX(EntryList,MATCH(K139,'Competitors&Timetable'!A1:A401,0),2)","v":" "},{"$f":"INDEX(EntryList,MATCH(K139,'Competitors&Timetable'!A1:A401,0),3)","v":" "}]
[null,null,null,null,".",{"$f":"INDEX(EntryList,MATCH(E140,'Competitors&Timetable'!A1:A401,0),2)","v":" "},{"$f":"INDEX(EntryList,MATCH(E140,'Competitors&Timetable'!A1:A401,0),3)","v":" "},null,null,null,".",{"$f":"INDEX(EntryList,MATCH(K140,'Competitors&Timetable'!A1:A401,0),2)","v":" "},{"$f":"INDEX(EntryList,MATCH(K140,'Competitors&Timetable'!A1:A401,0),3)","v":" "}]
[null,null,null,null,".",{"$f":"INDEX(EntryList,MATCH(E141,'Competitors&Timetable'!A1:A401,0),2)","v":" "},{"$f":"INDEX(EntryList,MATCH(E141,'Competitors&Timetable'!A1:A401,0),3)","v":" "},null,null,null,".",{"$f":"INDEX(EntryList,MATCH(K141,'Competitors&Timetable'!A1:A401,0),2)","v":" "},{"$f":"INDEX(EntryList,MATCH(K141,'Competitors&Timetable'!A1:A401,0),3)","v":" "}]
[null,null,null,null,null,{"$f":"IF(E142=\"\",\"\",LOOKUP(E142,#REF!,#REF!))","v":""},{"$f":"IF(E142=\"\",\"\",LOOKUP(E142,'Competitors&Timetable'!#REF!))","v":""},null,null,null,null,{"$f":"IF(K142=\"\",\"\",LOOKUP(K142,#REF!,#REF!))","v":""},{"$f":"IF(K142=\"\",\"\",LOOKUP(K142,'Competitors&Timetable'!#REF!))","v":""}]
[]
[null,null,null,null,".",{"$f":"INDEX('Competitors&Timetable'!F1:H144,MATCH(E144,'Competitors&Timetable'!F1:F144,0),2)","v":" "},{"$f":"INDEX(#REF!,MATCH(E144,#REF!,0),3)","v":{"$error":"#REF!"}},null,null,null,".",{"$f":"INDEX('Competitors&Timetable'!F1:H144,MATCH(K144,'Competitors&Timetable'!F1:F144,0),2)","v":" "},{"$f":"INDEX(#REF!,MATCH(K144,#REF!,0),3)","v":{"$error":"#REF!"}}]
[null,null,null,null,".",{"$f":"INDEX(EntryList,MATCH(E145,'Competitors&Timetable'!A1:A401,0),2)","v":" "},{"$f":"INDEX(EntryList,MATCH(E145,'Competitors&Timetable'!A1:A401,0),3)","v":" "},null,null,null,".",{"$f":"INDEX(EntryList,MATCH(K145,'Competitors&Timetable'!A1:A401,0),2)","v":" "},{"$f":"INDEX(EntryList,MATCH(K145,'Competitors&Timetable'!A1:A401,0),3)","v":" "}]
[null,null,null,null,".",{"$f":"INDEX(EntryList,MATCH(E146,'Competitors&Timetable'!A1:A401,0),2)","v":" "},{"$f":"INDEX(EntryList,MATCH(E146,'Competitors&Timetable'!A1:A401,0),3)","v":" "},null,null,null,".",{"$f":"INDEX(EntryList,MATCH(K146,'Competitors&Timetable'!A1:A401,0),2)","v":" "},{"$f":"INDEX(EntryList,MATCH(K146,'Competitors&Timetable'!A1:A401,0),3)","v":" "}]
[null,null,null,null,".",{"$f":"INDEX(EntryList,MATCH(E147,'Competitors&Timetable'!A1:A401,0),2)","v":" "},{"$f":"INDEX(EntryList,MATCH(E147,'Competitors&Timetable'!A1:A401,0),3)","v":" "},null,null,null,".",{"$f":"INDEX(EntryList,MATCH(K147,'Competitors&Timetable'!A1:A401,0),2)","v":" "},{"$f":"INDEX(EntryList,MATCH(K147,'Competitors&Timetable'!A1:A401,0),3)","v":" "}]
[null,null,null,null,".",{"$f":"INDEX(EntryList,MATCH(E148,'Competitors&Timetable'!A1:A401,0),2)","v":" "},{"$f":"INDEX(EntryList,MATCH(E148,'Competitors&Timetable'!A1:A401,0),3)","v":" "},null,null,null,".",{"$f":"INDEX(EntryList,MATCH(K148,'Competitors&Timetable'!A1:A401,0),2)","v":" "},{"$f":"INDEX(EntryList,MATCH(K148,'Competitors&Timetable'!A1:A401,0),3)","v":" "}]
[null,null,null,null,".",{"$f":"INDEX(EntryList,MATCH(E149,'Competitors&Timetable'!A1:A401,0),2)","v":" "},{"$f":"INDEX(EntryList,MATCH(E149,'Competitors&Timetable'!A1:A401,0),3)","v":" "},null,null,null,".",{"$f":"INDEX(EntryList,MATCH(K149,'Competitors&Timetable'!A1:A401,0),2)","v":" "},{"$f":"INDEX(EntryList,MATCH(K149,'Competitors&Timetable'!A1:A401,0),3)","v":" "}]
[null,null,null,null,".",{"$f":"INDEX(EntryList,MATCH(E150,'Competitors&Timetable'!A1:A401,0),2)","v":" "},{"$f":"INDEX(EntryList,MATCH(E150,'Competitors&Timetable'!A1:A401,0),3)","v":" "},null,null,null,".",{"$f":"INDEX(EntryList,MATCH(K150,'Competitors&Timetable'!A1:A401,0),2)","v":" "},{"$f":"INDEX(EntryList,MATCH(K150,'Competitors&Timetable'!A1:A401,0),3)","v":" "}]
[null,null,null,null,".",{"$f":"INDEX(EntryList,MATCH(E151,'Competitors&Timetable'!A1:A401,0),2)","v":" "},{"$f":"INDEX(EntryList,MATCH(E151,'Competitors&Timetable'!A1:A401,0),3)","v":" "},null,null,null,".",{"$f":"INDEX(EntryList,MATCH(K151,'Competitors&Timetable'!A1:A401,0),2)","v":" "},{"$f":"INDEX(EntryList,MATCH(K151,'Competitors&Timetable'!A1:A401,0),3)","v":" "}]
[null,null,null,null,".",{"$f":"INDEX(EntryList,MATCH(E152,'Competitors&Timetable'!A1:A401,0),2)","v":" "},{"$f":"INDEX(EntryList,MATCH(E152,'Competitors&Timetable'!A1:A401,0),3)","v":" "},null,null,null,".",{"$f":"INDEX(EntryList,MATCH(K152,'Competitors&Timetable'!A1:A401,0),2)","v":" "},{"$f":"INDEX(EntryList,MATCH(K152,'Competitors&Timetable'!A1:A401,0),3)","v":" "}]
[null,null,null,null,null,{"$f":"IF(E153=\"\",\"\",LOOKUP(E153,#REF!,#REF!))","v":""},{"$f":"IF(E153=\"\",\"\",LOOKUP(E153,'Competitors&Timetable'!#REF!))","v":""},null,null,null,null,{"$f":"IF(K153=\"\",\"\",LOOKUP(K153,#REF!,#REF!))","v":""},{"$f":"IF(K153=\"\",\"\",LOOKUP(K153,'Competitors&Timetable'!#REF!))","v":""}]

{"sheet":"DistanceRaces","index":3,"n_rows":154,"n_cols":15,"rows_kept":154,"cut":false,"hidden":false,"merged":[[78,5,78,6],[67,11,67,12],[78,11,78,12],[0,5,0,6],[11,5,11,6],[0,11,0,12],[11,11,11,12],[22,5,22,6],[34,5,34,6],[22,11,22,12],[34,11,34,12],[45,5,45,6],[56,5,56,6],[45,11,45,12],[56,11,56,12],[67,5,67,6],[133,5,133,6],[133,11,133,12],[144,5,144,6],[144,11,144,12],[89,5,89,6],[100,5,100,6],[89,11,89,12],[100,11,100,12],[111,5,111,6],[122,5,122,6],[111,11,111,12],[122,11,122,12]]}
[{"$f":"#REF!","v":{"$error":"#REF!"}},{"$f":"#REF!","v":{"$error":"#REF!"}},{"$f":"#REF!","v":{"$error":"#REF!"}},null,"T12",{"$f":"INDEX('Competitors&Timetable'!F1:H144,MATCH(E1,'Competitors&Timetable'!F1:F144,0),2)","v":"1500m Under 13 G/B & Under 15 Girls"},null,null,null,null,"T13",{"$f":"INDEX('Competitors&Timetable'!F1:H144,MATCH(K1,'Competitors&Timetable'!F1:F144,0),2)","v":"1500m Under 15/17/Sen Men/Women"}]
[{"$f":"#REF!","v":{"$error":"#REF!"}},{"$f":"#REF!","v":{"$error":"#REF!"}},{"$f":"#REF!","v":{"$error":"#REF!"}},1,40,{"$f":"INDEX(EntryList,MATCH(E2,'Competitors&Timetable'!A1:A401,0),2)","v":"Magnus Tait"},{"$f":"INDEX(EntryList,MATCH(E2,'Competitors&Timetable'!A1:A401,0),3)","v":"U13 Boy"},"00:04:55.040",37,1,80,{"$f":"INDEX(EntryList,MATCH(K2,'Competitors&Timetable'!A1:A401,0),2)","v":"Rowan Marr"},{"$f":"INDEX(EntryList,MATCH(K2,'Competitors&Timetable'!A1:A401,0),3)","v":"U20 Men"},"00:04:22.670",50]
[{"$f":"#REF!","v":{"$error":"#REF!"}},{"$f":"#REF!","v":{"$error":"#REF!"}},{"$f":"#REF!","v":{"$error":"#REF!"}},1,49,{"$f":"INDEX(EntryList,MATCH(E3,'Competitors&Timetable'!A1:A401,0),2)","v":"Lauren Dickson"},{"$f":"INDEX(EntryList,MATCH(E3,'Competitors&Timetable'!A1:A401,0),3)","v":"U15 Girl"},"00:04:56.390",37,1,65,{"$f":"INDEX(EntryList,MATCH(K3,'Competitors&Timetable'!A1:A401,0),2)","v":"Cameron Steven"},{"$f":"INDEX(EntryList,MATCH(K3,'Competitors&Timetable'!A1:A401,0),3)","v":"U15 Boy"},"00:04:36.610",43]
[{"$f":"#REF!","v":{"$error":"#REF!"}},{"$f":"#REF!","v":{"$error":"#REF!"}},{"$f":"#REF!","v":{"$error":"#REF!"}},1,29,{"$f":"INDEX(EntryList,MATCH(E4,'Competitors&Timetable'!A1:A401,0),2)","v":"Sarah Tait"},{"$f":"INDEX(EntryList,MATCH(E4,'Competitors&Timetable'!A1:A401,0),3)","v":"U13 Girl"},"00:05:16.120",31,1,73,{"$f":"INDEX(EntryList,MATCH(K4,'Competitors&Timetable'!A1:A401,0),2)","v":"Kyle Mackenzie"},{"$f":"INDEX(EntryList,MATCH(K4,'Competitors&Timetable'!A1:A401,0),3)","v":"U17 Men"},"00:04:59.260",36]
[{"$f":"#REF!","v":{"$error":"#REF!"}},{"$f":"#REF!","v":{"$error":"#REF!"}},{"$f":"#REF!","v":{"$error":"#REF!"}},2,58,{"$f":"INDEX(EntryList,MATCH(E5,'Competitors&Timetable'!A1:A401,0),2)","v":"Lauren Wilkie"},{"$f":"INDEX(EntryList,MATCH(E5,'Competitors&Timetable'!A1:A401,0),3)","v":"U15 Girl"},"00:05:49.320",25,1,81,{"$f":"INDEX(EntryList,MATCH(K5,'Competitors&Timetable'!A1:A401,0),2)","v":"Amy Frankland"},{"$f":"INDEX(EntryList,MATCH(K5,'Competitors&Timetable'!A1:A401,0),3)","v":"U20 Women"},"00:05:14.490",32]
[{"$f":"#REF!","v":{"$error":"#REF!"}},{"$f":"#REF!","v":{"$error":"#REF!"}},{"$f":"#REF!","v":{"$error":"#REF!"}},2,32,{"$f":"INDEX(EntryList,MATCH(E6,'Competitors&Timetable'!A1:A401,0),2)","v":"Eilidh Brown"},{"$f":"INDEX(EntryList,MATCH(E6,'Competitors&Timetable'!A1:A401,0),3)","v":"U13 Girl"},"00:06:19.570",19,null,".",{"$f":"INDEX(EntryList,MATCH(K6,'Competitors&Timetable'!A1:A401,0),2)","v":" "},{"$f":"INDEX(EntryList,MATCH(K6,'Competitors&Timetable'!A1:A401,0),3)","v":" "}]
[{"$f":"#REF!","v":{"$error":"#REF!"}},{"$f":"#REF!","v":{"$error":"#REF!"}},{"$f":"#REF!","v":{"$error":"#REF!"}},null,".",{"$f":"INDEX(EntryList,MATCH(E7,'Competitors&Timetable'!A1:A401,0),2)","v":" "},{"$f":"INDEX(EntryList,MATCH(E7,'Competitors&Timetable'!A1:A401,0),3)","v":" "},null,null,null,".",{"$f":"INDEX(EntryList,MATCH(K7,'Competitors&Timetable'!A1:A401,0),2)","v":" "},{"$f":"INDEX(EntryList,MATCH(K7,'Competitors&Timetable'!A1:A401,0),3)","v":" "}]
[{"$f":"#REF!","v":{"$error":"#REF!"}},{"$f":"#REF!","v":{"$error":"#REF!"}},{"$f":"#REF!","v":{"$error":"#REF!"}},null,".",{"$f":"INDEX(EntryList,MATCH(E8,'Competitors&Timetable'!A1:A401,0),2)","v":" "},{"$f":"INDEX(EntryList,MATCH(E8,'Competitors&Timetable'!A1:A401,0),3)","v":" "},null,null,null,".",{"$f":"INDEX(EntryList,MATCH(K8,'Competitors&Timetable'!A1:A401,0),2)","v":" "},{"$f":"INDEX(EntryList,MATCH(K8,'Competitors&Timetable'!A1:A401,0),3)","v":" "}]
[{"$f":"#REF!","v":{"$error":"#REF!"}},{"$f":"#REF!","v":{"$error":"#REF!"}},{"$f":"#REF!","v":{"$error":"#REF!"}},null,".",{"$f":"INDEX(EntryList,MATCH(E9,'Competitors&Timetable'!A1:A401,0),2)","v":" "},{"$f":"INDEX(EntryList,MATCH(E9,'Competitors&Timetable'!A1:A401,0),3)","v":" "},null,null,null,".",{"$f":"INDEX(EntryList,MATCH(K9,'Competitors&Timetable'!A1:A401,0),2)","v":" "},{"$f":"INDEX(EntryList,MATCH(K9,'Competitors&Timetable'!A1:A401,0),3)","v":" "}]
[{"$f":"#REF!","v":{"$error":"#REF!"}},{"$f":"#REF!","v":{"$error":"#REF!"}},{"$f":"#REF!","v":{"$error":"#REF!"}},null,null,{"$f":"IF(E10=\"\",\"\",LOOKUP(E10,#REF!,#REF!))","v":""},{"$f":"IF(E10=\"\",\"\",LOOKUP(E10,'Competitors&Timetable'!#REF!))","v":""},null,null,null,null,{"$f":"IF(K10=\"\",\"\",LOOKUP(K10,#REF!,#REF!))","v":""},{"$f":"IF(K10=\"\",\"\",LOOKUP(K10,'Competitors&Timetable'!#REF!))","v":""}]
[{"$f":"#REF!","v":{"$error":"#REF!"}},{"$f":"#REF!","v":{"$error":"#REF!"}},{"$f":"#REF!","v":{"$error":"#REF!"}}]
[{"$f":"#REF!","v":{"$error":"#REF!"}},{"$f":"#REF!","v":{"$error":"#REF!"}},{"$f":"#REF!","v":{"$error":"#REF!"}},null,"T24",{"$f":"INDEX('Competitors&Timetable'!F1:H144,MATCH(E12,'Competitors&Timetable'!F1:F144,0),2)","v":"800m Under 11 Girls/Boys"},null,null,null,null,"T25",{"$f":"INDEX('Competitors&Timetable'!F1:H144,MATCH(K12,'Competitors&Timetable'!F1:F144,0),2)","v":"800m Under 13 Girls /Boys"}]
[{"$f":"#REF!","v":{"$error":"#REF!"}},{"$f":"#REF!","v":{"$error":"#REF!"}},{"$f":"#REF!","v":{"$error":"#REF!"}},1,16,{"$f":"INDEX(EntryList,MATCH(E13,'Competitors&Timetable'!A1:A401,0),2)","v":"Callum Alexander"},{"$f":"INDEX(EntryList,MATCH(E13,'Competitors&Timetable'!A1:A401,0),3)","v":"U11 Boy"},"3:14.20",12,1,43,{"$f":"INDEX(EntryList,MATCH(K13,'Competitors&Timetable'!A1:A401,0),2)","v":"Fraser Judge"},{"$f":"INDEX(EntryList,MATCH(K13,'Competitors&Timetable'!A1:A401,0),3)","v":"U13 Boy"},"2:23.85",35]
[{"$f":"#REF!","v":{"$error":"#REF!"}},{"$f":"#REF!","v":{"$error":"#REF!"}},{"$f":"#REF!","v":{"$error":"#REF!"}},2,17,{"$f":"INDEX(EntryList,MATCH(E14,'Competitors&Timetable'!A1:A401,0),2)","v":"Cameron Dickson"},{"$f":"INDEX(EntryList,MATCH(E14,'Competitors&Timetable'!A1:A401,0),3)","v":"U11 Boy"},"3:20.41",10,2,40,{"$f":"INDEX(EntryList,MATCH(K14,'Competitors&Timetable'!A1:A401,0),2)","v":"Magnus Tait"},{"$f":"INDEX(EntryList,MATCH(K14,'Competitors&Timetable'!A1:A401,0),3)","v":"U13 Boy"},"2:40.10",25]
[{"$f":"#REF!","v":{"$error":"#REF!"}},{"$f":"#REF!","v":{"$error":"#REF!"}},{"$f":"#REF!","v":{"$error":"#REF!"}},3,19,{"$f":"INDEX(EntryList,MATCH(E15,'Competitors&Timetable'!A1:A401,0),2)","v":"Euan Donaldson"},{"$f":"INDEX(EntryList,MATCH(E15,'Competitors&Timetable'!A1:A401,0),3)","v":"U11 Boy"},"3:27.37",9,3,42,{"$f":"INDEX(EntryList,MATCH(K15,'Competitors&Timetable'!A1:A401,0),2)","v":"Lawrie Wilson"},{"$f":"INDEX(EntryList,MATCH(K15,'Competitors&Timetable'!A1:A401,0),3)","v":"U13 Boy"},"2:42.40",24]
[{"$f":"#REF!","v":{"$error":"#REF!"}},{"$f":"#REF!","v":{"$error":"#REF!"}},{"$f":"#REF!","v":{"$error":"#REF!"}},4,13,{"$f":"INDEX(EntryList,MATCH(E16,'Competitors&Timetable'!A1:A401,0),2)","v":"Rachel Mair"},{"$f":"INDEX(EntryList,MATCH(E16,'Competitors&Timetable'!A1:A401,0),3)","v":"U11 Girl"},"DNF",0,1,29,{"$f":"INDEX(EntryList,MATCH(K16,'Competitors&Timetable'!A1:A401,0),2)","v":"Sarah Tait"},{"$f":"INDEX(EntryList,MATCH(K16,'Competitors&Timetable'!A1:A401,0),3)","v":"U13 Girl"},"2:42.62",24]
[{"$f":"#REF!","v":{"$error":"#REF!"}},{"$f":"#REF!","v":{"$error":"#REF!"}},{"$f":"#REF!","v":{"$error":"#REF!"}},null,".",{"$f":"INDEX(EntryList,MATCH(E17,'Competitors&Timetable'!A1:A401,0),2)","v":" "},{"$f":"INDEX(EntryList,MATCH(E17,'Competitors&Timetable'!A1:A401,0),3)","v":" "},null,null,2,31,{"$f":"INDEX(EntryList,MATCH(K17,'Competitors&Timetable'!A1:A401,0),2)","v":"Caroline McKinlay"},{"$f":"INDEX(EntryList,MATCH(K17,'Competitors&Timetable'!A1:A401,0),3)","v":"U13 Girl"},"2:55.53",19]
[{"$f":"#REF!","v":{"$error":"#REF!"}},{"$f":"#REF!","v":{"$error":"#REF!"}},{"$f":"#REF!","v":{"$error":"#REF!"}},null,".",{"$f":"INDEX(EntryList,MATCH(E18,'Competitors&Timetable'!A1:A401,0),2)","v":" "},{"$f":"INDEX(EntryList,MATCH(E18,'Competitors&Timetable'!A1:A401,0),3)","v":" "},null,null,4,46,{"$f":"INDEX(EntryList,MATCH(K18,'Competitors&Timetable'!A1:A401,0),2)","v":"Euan McAlister"},{"$f":"INDEX(EntryList,MATCH(K18,'Competitors&Timetable'!A1:A401,0),3)","v":"U13 Boy"},"3:07.27",15]
[{"$f":"#REF!","v":{"$error":"#REF!"}},{"$f":"#REF!","v":{"$error":"#REF!"}},{"$f":"#REF!","v":{"$error":"#REF!"}},null,".",{"$f":"INDEX(EntryList,MATCH(E19,'Competitors&Timetable'!A1:A401,0),2)","v":" "},{"$f":"INDEX(EntryList,MATCH(E19,'Competitors&Timetable'!A1:A401,0),3)","v":" "},null,null,null,32,{"$f":"INDEX(EntryList,MATCH(K19,'Competitors&Timetable'!A1:A401,0),2)","v":"Eilidh Brown"},{"$f":"INDEX(EntryList,MATCH(K19,'Competitors&Timetable'!A1:A401,0),3)","v":"U13 Girl"},"DNS",0]
[{"$f":"#REF!","v":{"$error":"#REF!"}},{"$f":"#REF!","v":{"$error":"#REF!"}},{"$f":"#REF!","v":{"$error":"#REF!"}},null,".",{"$f":"INDEX(EntryList,MATCH(E20,'Competitors&Timetable'!A1:A401,0),2)","v":" "},{"$f":"INDEX(EntryList,MATCH(E20,'Competitors&Timetable'!A1:A401,0),3)","v":" "},null,null,null,41,{"$f":"INDEX(EntryList,MATCH(K20,'Competitors&Timetable'!A1:A401,0),2)","v":"Craig Gallagher"},{"$f":"INDEX(EntryList,MATCH(K20,'Competitors&Timetable'!A1:A401,0),3)","v":"U13 Boy"},"DNS",0]
[{"$f":"#REF!","v":{"$error":"#REF!"}},{"$f":"#REF!","v":{"$error":"#REF!"}},{"$f":"#REF!","v":{"$error":"#REF!"}},null,null,{"$f":"IF(E21=\"\",\"\",LOOKUP(E21,#REF!,#REF!))","v":""},{"$f":"IF(E21=\"\",\"\",LOOKUP(E21,'Competitors&Timetable'!#REF!))","v":""},null,null,null,null,{"$f":"IF(K21=\"\",\"\",LOOKUP(K21,#REF!,#REF!))","v":""},{"$f":"IF(K21=\"\",\"\",LOOKUP(K21,'Competitors&Timetable'!#REF!))","v":""}]
[{"$f":"#REF!","v":{"$error":"#REF!"}},{"$f":"#REF!","v":{"$error":"#REF!"}},{"$f":"#REF!","v":{"$error":"#REF!"}}]
[{"$f":"#REF!","v":{"$error":"#REF!"}},{"$f":"#REF!","v":{"$error":"#REF!"}},{"$f":"#REF!","v":{"$error":"#REF!"}},null,"T26",{"$f":"INDEX('Competitors&Timetable'!F1:H144,MATCH(E23,'Competitors&Timetable'!F1:F144,0),2)","v":"800m Under 15 Girls"},null,null,null,null,"T27",{"$f":"INDEX('Competitors&Timetable'!F1:H144,MATCH(K23,'Competitors&Timetable'!F1:F144,0),2)","v":"800m Under 15 /17/20 Men/U17/Sen. Women"},{"$f":"INDEX(#REF!,MATCH(K23,#REF!,0),3)","v":{"$error":"#REF!"}}]
[{"$f":"#REF!","v":{"$error":"#REF!"}},{"$f":"#REF!","v":{"$error":"#REF!"}},{"$f":"#REF!","v":{"$error":"#REF!"}},1,49,{"$f":"INDEX(EntryList,MATCH(E24,'Competitors&Timetable'!A1:A401,0),2)","v":"Lauren Dickson"},{"$f":"INDEX(EntryList,MATCH(E24,'Competitors&Timetable'!A1:A401,0),3)","v":"U15 Girl"},"2:28.22",31,1,93,{"$f":"INDEX(EntryList,MATCH(K24,'Competitors&Timetable'!A1:A401,0),2)","v":"Ashleigh Kennedy (Guest)"},{"$f":"INDEX(EntryList,MATCH(K24,'Competitors&Timetable'!A1:A401,0),3)","v":"Sen Women"},"2:06.46","G"]
[{"$f":"#REF!","v":{"$error":"#REF!"}},{"$f":"#REF!","v":{"$error":"#REF!"}},{"$f":"#REF!","v":{"$error":"#REF!"}},2,50,{"$f":"INDEX(EntryList,MATCH(E25,'Competitors&Timetable'!A1:A401,0),2)","v":"Imogen Wilson"},{"$f":"INDEX(EntryList,MATCH(E25,'Competitors&Timetable'!A1:A401,0),3)","v":"U15 Girl"},"2:37.48",27,1,73,{"$f":"INDEX(EntryList,MATCH(K25,'Competitors&Timetable'!A1:A401,0),2)","v":"Kyle Mackenzie"},{"$f":"INDEX(EntryList,MATCH(K25,'Competitors&Timetable'!A1:A401,0),3)","v":"U17 Men"},"2:12.65",36]
[{"$f":"#REF!","v":{"$error":"#REF!"}},{"$f":"#REF!","v":{"$error":"#REF!"}},{"$f":"#REF!","v":{"$error":"#REF!"}},3,48,{"$f":"INDEX(EntryList,MATCH(E26,'Competitors&Timetable'!A1:A401,0),2)","v":"Niamh Fellenger"},{"$f":"INDEX(EntryList,MATCH(E26,'Competitors&Timetable'!A1:A401,0),3)","v":"U15 Girl"},"2:40.23",25,1,60,{"$f":"INDEX(EntryList,MATCH(K26,'Competitors&Timetable'!A1:A401,0),2)","v":"Jamie Darling"},{"$f":"INDEX(EntryList,MATCH(K26,'Competitors&Timetable'!A1:A401,0),3)","v":"U15 Boy"},"2:32.19",29]
[{"$f":"#REF!","v":{"$error":"#REF!"}},{"$f":"#REF!","v":{"$error":"#REF!"}},{"$f":"#REF!","v":{"$error":"#REF!"}},4,58,{"$f":"INDEX(EntryList,MATCH(E27,'Competitors&Timetable'!A1:A401,0),2)","v":"Lauren Wilkie"},{"$f":"INDEX(EntryList,MATCH(E27,'Competitors&Timetable'!A1:A401,0),3)","v":"U15 Girl"},"3:00.77",17,1,81,{"$f":"INDEX(EntryList,MATCH(K27,'Competitors&Timetable'!A1:A401,0),2)","v":"Amy Frankland"},{"$f":"INDEX(EntryList,MATCH(K27,'Competitors&Timetable'!A1:A401,0),3)","v":"U20 Women"},"2:33.59",29]
[{"$f":"#REF!","v":{"$error":"#REF!"}},{"$f":"#REF!","v":{"$error":"#REF!"}},{"$f":"#REF!","v":{"$error":"#REF!"}},5,54,{"$f":"INDEX(EntryList,MATCH(E28,'Competitors&Timetable'!A1:A401,0),2)","v":"Sabina Jedrzejczyk"},{"$f":"INDEX(EntryList,MATCH(E28,'Competitors&Timetable'!A1:A401,0),3)","v":"U15 Girl"},"3:05.21",15,1,68,{"$f":"INDEX(EntryList,MATCH(K28,'Competitors&Timetable'!A1:A401,0),2)","v":"Sophie Miller"},{"$f":"INDEX(EntryList,MATCH(K28,'Competitors&Timetable'!A1:A401,0),3)","v":"U17 Woman"},"2:35.19",28]
[{"$f":"#REF!","v":{"$error":"#REF!"}},{"$f":"#REF!","v":{"$error":"#REF!"}},{"$f":"#REF!","v":{"$error":"#REF!"}},6,59,{"$f":"INDEX(EntryList,MATCH(E29,'Competitors&Timetable'!A1:A401,0),2)","v":"Kirsty Robertson"},{"$f":"INDEX(EntryList,MATCH(E29,'Competitors&Timetable'!A1:A401,0),3)","v":"U15 Girl"},"DNS",0,2,83,{"$f":"INDEX(EntryList,MATCH(K29,'Competitors&Timetable'!A1:A401,0),2)","v":"Karen McKinlay"},{"$f":"INDEX(EntryList,MATCH(K29,'Competitors&Timetable'!A1:A401,0),3)","v":"Sen Women"},"3:15.09",12]
[{"$f":"#REF!","v":{"$error":"#REF!"}},{"$f":"#REF!","v":{"$error":"#REF!"}},{"$f":"#REF!","v":{"$error":"#REF!"}},null,".",{"$f":"INDEX(EntryList,MATCH(E30,'Competitors&Timetable'!A1:A401,0),2)","v":" "},{"$f":"INDEX(EntryList,MATCH(E30,'Competitors&Timetable'!A1:A401,0),3)","v":" "},null,null,null,".",{"$f":"INDEX(EntryList,MATCH(K30,'Competitors&Timetable'!A1:A401,0),2)","v":" "},{"$f":"INDEX(EntryList,MATCH(K30,'Competitors&Timetable'!A1:A401,0),3)","v":" "}]
[{"$f":"#REF!","v":{"$error":"#REF!"}},{"$f":"#REF!","v":{"$error":"#REF!"}},{"$f":"#REF!","v":{"$error":"#REF!"}},null,".",{"$f":"INDEX(EntryList,MATCH(E31,'Competitors&Timetable'!A1:A401,0),2)","v":" "},{"$f":"INDEX(EntryList,MATCH(E31,'Competitors&Timetable'!A1:A401,0),3)","v":" "},null,null,null,".",{"$f":"INDEX(EntryList,MATCH(K31,'Competitors&Timetable'!A1:A401,0),2)","v":" "},{"$f":"INDEX(EntryList,MATCH(K31,'Competitors&Timetable'!A1:A401,0),3)","v":" "}]
[{"$f":"#REF!","v":{"$error":"#REF!"}},{"$f":"#REF!","v":{"$error":"#REF!"}},{"$f":"#REF!","v":{"$error":"#REF!"}},null,null,{"$f":"IF(E32=\"\",\"\",LOOKUP(E32,#REF!,#REF!))","v":""},{"$f":"IF(E32=\"\",\"\",LOOKUP(E32,'Competitors&Timetable'!#REF!))","v":""},null,null,null,null,{"$f":"IF(K32=\"\",\"\",LOOKUP(K32,#REF!,#REF!))","v":""},{"$f":"IF(K32=\"\",\"\",LOOKUP(K32,'Competitors&Timetable'!#REF!))","v":""}]
[]
[{"$f":"#REF!","v":{"$error":"#REF!"}},{"$f":"#REF!","v":{"$error":"#REF!"}},{"$f":"#REF!","v":{"$error":"#REF!"}}]
[{"$f":"#REF!","v":{"$error":"#REF!"}},{"$f":"#REF!","v":{"$error":"#REF!"}},{"$f":"#REF!","v":{"$error":"#REF!"}},null,"T28",{"$f":"INDEX('Competitors&Timetable'!F1:H144,MATCH(E35,'Competitors&Timetable'!F1:F144,0),2)","v":"Medley Relay"},null,null,null,null,"T13",{"$f":"INDEX('Competitors&Timetable'!F1:H144,MATCH(K35,'Competitors&Timetable'!F1:F144,0),2)","v":"1500m Under 15/17/Sen Men/Women"},{"$f":"INDEX(#REF!,MATCH(K35,#REF!,0),3)","v":{"$error":"#REF!"}}]
[{"$f":"#REF!","v":{"$error":"#REF!"}},{"$f":"#REF!","v":{"$error":"#REF!"}},{"$f":"#REF!","v":{"$error":"#REF!"}},1,203,"Team 3","J Armitage,S Robertson,S Griswood,C Carstairs","4:43.94",0,1,80,{"$f":"INDEX(EntryList,MATCH(K36,'Competitors&Timetable'!A1:A401,0),2)","v":"Rowan Marr"},{"$f":"INDEX(EntryList,MATCH(K36,'Competitors&Timetable'!A1:A401,0),3)","v":"U20 Men"},"4:22,67",50]
[{"$f":"#REF!","v":{"$error":"#REF!"}},{"$f":"#REF!","v":{"$error":"#REF!"}},{"$f":"#REF!","v":{"$error":"#REF!"}},2,206,"Team 6","C Dickson,A Diamond,,N Fellenger,Toladipo","4:47.74",0,"G",96,{"$f":"INDEX(EntryList,MATCH(K37,'Competitors&Timetable'!A1:A401,0),2)","v":"Patrick Keith (Guest)"},{"$f":"INDEX(EntryList,MATCH(K37,'Competitors&Timetable'!A1:A401,0),3)","v":"U17 Men"},"4:36,61","G"]
[{"$f":"#REF!","v":{"$error":"#REF!"}},{"$f":"#REF!","v":{"$error":"#REF!"}},{"$f":"#REF!","v":{"$error":"#REF!"}},3,201,"Team 1","K Robertson,A Biavati-Smith,E Maxwell,A Kennedy","4:48.38",0,"G",97,{"$f":"INDEX(EntryList,MATCH(K38,'Competitors&Timetable'!A1:A401,0),2)","v":"Christiano Crolla (Guest)"},{"$f":"INDEX(EntryList,MATCH(K38,'Competitors&Timetable'!A1:A401,0),3)","v":"U17 Men"},"4:14.87","G"]
[{"$f":"#REF!","v":{"$error":"#REF!"}},{"$f":"#REF!","v":{"$error":"#REF!"}},{"$f":"#REF!","v":{"$error":"#REF!"}},4,204,"Team 4","C Griffiths,L Tod,L Dickson,R Hutchison","4:56.95",0,"G",95,{"$f":"INDEX(EntryList,MATCH(K39,'Competitors&Timetable'!A1:A401,0),2)","v":"Andrew Taylor (Guest)"},{"$f":"INDEX(EntryList,MATCH(K39,'Competitors&Timetable'!A1:A401,0),3)","v":"U17 Men"},"4:15.52","G"]
[{"$f":"#REF!","v":{"$error":"#REF!"}},{"$f":"#REF!","v":{"$error":"#REF!"}},{"$f":"#REF!","v":{"$error":"#REF!"}},5,208,"Team 8","A Malinowski, L Wilson,S Tait,S Miller","5:06.93",0,"G",94,{"$f":"INDEX(EntryList,MATCH(K40,'Competitors&Timetable'!A1:A401,0),2)","v":"Andy Stoane (Guest)"},{"$f":"INDEX(EntryList,MATCH(K40,'Competitors&Timetable'!A1:A401,0),3)","v":"Sen Men"},"4:16.04","G"]
[{"$f":"#REF!","v":{"$error":"#REF!"}},{"$f":"#REF!","v":{"$error":"#REF!"}},{"$f":"#REF!","v":{"$error":"#REF!"}},6,209,"Team 9","J Martin,E McAlister,R LoudenL Robertson","5:09.63",0,null,79,{"$f":"INDEX(EntryList,MATCH(K41,'Competitors&Timetable'!A1:A401,0),2)","v":"Callum Clark"},{"$f":"INDEX(EntryList,MATCH(K41,'Competitors&Timetable'!A1:A401,0),3)","v":"U20 Men"},"DNS",0]
[null,null,null,7,207,"Team 7","C Scothorne,M Tait,C McKinlay,E Brown","5:09.80",0,null,".",{"$f":"INDEX(EntryList,MATCH(K42,'Competitors&Timetable'!A1:A401,0),2)","v":" "},{"$f":"INDEX(EntryList,MATCH(K42,'Competitors&Timetable'!A1:A401,0),3)","v":" "}]
[null,null,null,8,202,"Team 2","L Fallon,K Martin,J Darling, K McKinlay","5:14.55",0,null,".",{"$f":"INDEX(EntryList,MATCH(K43,'Competitors&Timetable'!A1:A401,0),2)","v":" "},{"$f":"INDEX(EntryList,MATCH(K43,'Competitors&Timetable'!A1:A401,0),3)","v":" "}]
[null,null,null,9,205,"Team 5","E Darling,M Blair,M Wilson,A Frankland","5:16.88",0,null,null,{"$f":"IF(K44=\"\",\"\",LOOKUP(K44,#REF!,#REF!))","v":""},{"$f":"IF(K44=\"\",\"\",LOOKUP(K44,'Competitors&Timetable'!#REF!))","v":""}]
[]
[{"$f":"#REF!","v":{"$error":"#REF!"}},{"$f":"#REF!","v":{"$error":"#REF!"}},{"$f":"#REF!","v":{"$error":"#REF!"}},null,".",{"$f":"INDEX('Competitors&Timetable'!F1:H144,MATCH(E46,'Competitors&Timetable'!F1:F144,0),2)","v":" "},null,null,null,null,".",{"$f":"INDEX('Competitors&Timetable'!F1:H144,MATCH(K46,'Competitors&Timetable'!F1:F144,0),2)","v":" "},{"$f":"INDEX(#REF!,MATCH(K46,#REF!,0),3)","v":{"$error":"#REF!"}}]
[{"$f":"#REF!","v":{"$error":"#REF!"}},{"$f":"#REF!","v":{"$error":"#REF!"}},{"$f":"#REF!","v":{"$error":"#REF!"}},null,".",{"$f":"INDEX(EntryList,MATCH(E47,'Competitors&Timetable'!A1:A401,0),2)","v":" "},{"$f":"INDEX(EntryList,MATCH(E47,'Competitors&Timetable'!A1:A401,0),3)","v":" "},null,null,null,".",{"$f":"INDEX(EntryList,MATCH(K47,'Competitors&Timetable'!A1:A401,0),2)","v":" "},{"$f":"INDEX(EntryList,MATCH(K47,'Competitors&Timetable'!A1:A401,0),3)","v":" "}]
[{"$f":"#REF!","v":{"$error":"#REF!"}},{"$f":"#REF!","v":{"$error":"#REF!"}},{"$f":"#REF!","v":{"$error":"#REF!"}},null,".",{"$f":"INDEX(EntryList,MATCH(E48,'Competitors&Timetable'!A1:A401,0),2)","v":" "},{"$f":"INDEX(EntryList,MATCH(E48,'Competitors&Timetable'!A1:A401,0),3)","v":" "},null,null,null,".",{"$f":"INDEX(EntryList,MATCH(K48,'Competitors&Timetable'!A1:A401,0),2)","v":" "},{"$f":"INDEX(EntryList,MATCH(K48,'Competitors&Timetable'!A1:A401,0),3)","v":" "}]
[{"$f":"#REF!","v":{"$error":"#REF!"}},{"$f":"#REF!","v":{"$error":"#REF!"}},{"$f":"#REF!","v":{"$error":"#REF!"}},null,".",{"$f":"INDEX(EntryList,MATCH(E49,'Competitors&Timetable'!A1:A401,0),2)","v":" "},{"$f":"INDEX(EntryList,MATCH(E49,'Competitors&Timetable'!A1:A401,0),3)","v":" "},null,null,null,".",{"$f":"INDEX(EntryList,MATCH(K49,'Competitors&Timetable'!A1:A401,0),2)","v":" "},{"$f":"INDEX(EntryList,MATCH(K49,'Competitors&Timetable'!A1:A401,0),3)","v":" "}]
[{"$f":"#REF!","v":{"$error":"#REF!"}},{"$f":"#REF!","v":{"$error":"#REF!"}},{"$f":"#REF!","v":{"$error":"#REF!"}},null,".",{"$f":"INDEX(EntryList,MATCH(E50,'Competitors&Timetable'!A1:A401,0),2)","v":" "},{"$f":"INDEX(EntryList,MATCH(E50,'Competitors&Timetable'!A1:A401,0),3)","v":" "},null,null,null,".",{"$f":"INDEX(EntryList,MATCH(K50,'Competitors&Timetable'!A1:A401,0),2)","v":" "},{"$f":"INDEX(EntryList,MATCH(K50,'Competitors&Timetable'!A1:A401,0),3)","v":" "}]
[null,null,null,null,".",{"$f":"INDEX(EntryList,MATCH(E51,'Competitors&Timetable'!A1:A401,0),2)","v":" "},{"$f":"INDEX(EntryList,MATCH(E51,'Competitors&Timetable'!A1:A401,0),3)","v":" "},null,null,null,".",{"$f":"INDEX(EntryList,MATCH(K51,'Competitors&Timetable'!A1:A401,0),2)","v":" "},{"$f":"INDEX(EntryList,MATCH(K51,'Competitors&Timetable'!A1:A401,0),3)","v":" "}]
[null,null,null,null,".",{"$f":"INDEX(EntryList,MATCH(E52,'Competitors&Timetable'!A1:A401,0),2)","v":" "},{"$f":"INDEX(EntryList,MATCH(E52,'Competitors&Timetable'!A1:A401,0),3)","v":" "},null,null,null,".",{"$f":"INDEX(EntryList,MATCH(K52,'Competitors&Timetable'!A1:A401,0),2)","v":" "},{"$f":"INDEX(EntryList,MATCH(K52,'Competitors&Timetable'!A1:A401,0),3)","v":" "}]
[{"$f":"#REF!","v":{"$error":"#REF!"}},{"$f":"#REF!","v":{"$error":"#REF!"}},{"$f":"#REF!","v":{"$error":"#REF!"}},null,".",{"$f":"INDEX(EntryList,MATCH(E53,'Competitors&Timetable'!A1:A401,0),2)","v":" "},{"$f":"INDEX(EntryList,MATCH(E53,'Competitors&Timetable'!A1:A401,0),3)","v":" "},null,null,null,".",{"$f":"INDEX(EntryList,MATCH(K53,'Competitors&Timetable'!A1:A401,0),2)","v":" "},{"$f":"INDEX(EntryList,MATCH(K53,'Competitors&Timetable'!A1:A401,0),3)","v":" "}]
[{"$f":"#REF!","v":{"$error":"#REF!"}},{"$f":"#REF!","v":{"$error":"#REF!"}},{"$f":"#REF!","v":{"$error":"#REF!"}},null,".",{"$f":"INDEX(EntryList,MATCH(E54,'Competitors&Timetable'!A1:A401,0),2)","v":" "},{"$f":"INDEX(EntryList,MATCH(E54,'Competitors&Timetable'!A1:A401,0),3)","v":" "},null,null,null,".",{"$f":"INDEX(EntryList,MATCH(K54,'Competitors&Timetable'!A1:A401,0),2)","v":" "},{"$f":"INDEX(EntryList,MATCH(K54,'Competitors&Timetable'!A1:A401,0),3)","v":" "}]
[{"$f":"#REF!","v":{"$error":"#REF!"}},{"$f":"#REF!","v":{"$error":"#REF!"}},{"$f":"#REF!","v":{"$error":"#REF!"}},null,null,{"$f":"IF(E55=\"\",\"\",LOOKUP(E55,#REF!,#REF!))","v":""},{"$f":"IF(E55=\"\",\"\",LOOKUP(E55,'Competitors&Timetable'!#REF!))","v":""},null,null,null,null,{"$f":"IF(K55=\"\",\"\",LOOKUP(K55,#REF!,#REF!))","v":""},{"$f":"IF(K55=\"\",\"\",LOOKUP(K55,'Competitors&Timetable'!#REF!))","v":""}]
[{"$f":"#REF!","v":{"$error":"#REF!"}},{"$f":"#REF!","v":{"$error":"#REF!"}},{"$f":"#REF!","v":{"$error":"#REF!"}}]
[{"$f":"#REF!","v":{"$error":"#REF!"}},{"$f":"#REF!","v":{"$error":"#REF!"}},{"$f":"#REF!","v":{"$error":"#REF!"}},null,".",{"$f":"INDEX('Competitors&Timetable'!F1:H144,MATCH(E57,'Competitors&Timetable'!F1:F144,0),2)","v":" "},{"$f":"INDEX(#REF!,MATCH(E57,#REF!,0),3)","v":{"$error":"#REF!"}},null,null,null,".",{"$f":"INDEX('Competitors&Timetable'!F1:H144,MATCH(K57,'Competitors&Timetable'!F1:F144,0),2)","v":" "},{"$f":"INDEX(#REF!,MATCH(K57,#REF!,0),3)","v":{"$error":"#REF!"}}]
[{"$f":"#REF!","v":{"$error":"#REF!"}},{"$f":"#REF!","v":{"$error":"#REF!"}},{"$f":"#REF!","v":{"$error":"#REF!"}},null,".",{"$f":"INDEX(EntryList,MATCH(E58,'Competitors&Timetable'!A1:A401,0),2)","v":" "},{"$f":"INDEX(EntryList,MATCH(E58,'Competitors&Timetable'!A1:A401,0),3)","v":" "},null,null,null,".",{"$f":"INDEX(EntryList,MATCH(K58,'Competitors&Timetable'!A1:A401,0),2)","v":" "},{"$f":"INDEX(EntryList,MATCH(K58,'Competitors&Timetable'!A1:A401,0),3)","v":" "}]
[{"$f":"#REF!","v":{"$error":"#REF!"}},{"$f":"#REF!","v":{"$error":"#REF!"}},{"$f":"#REF!","v":{"$error":"#REF!"}},null,".",{"$f":"INDEX(EntryList,MATCH(E59,'Competitors&Timetable'!A1:A401,0),2)","v":" "},{"$f":"INDEX(EntryList,MATCH(E59,'Competitors&Timetable'!A1:A401,0),3)","v":" "},null,null,null,".",{"$f":"INDEX(EntryList,MATCH(K59,'Competitors&Timetable'!A1:A401,0),2)","v":" "},{"$f":"INDEX(EntryList,MATCH(K59,'Competitors&Timetable'!A1:A401,0),3)","v":" "}]
[{"$f":"#REF!","v":{"$error":"#REF!"}},{"$f":"#REF!","v":{"$error":"#REF!"}},{"$f":"#REF!","v":{"$error":"#REF!"}},null,".",{"$f":"INDEX(EntryList,MATCH(E60,'Competitors&Timetable'!A1:A401,0),2)","v":" "},{"$f":"INDEX(EntryList,MATCH(E60,'Competitors&Timetable'!A1:A401,0),3)","v":" "},null,null,null,".",{"$f":"INDEX(EntryList,MATCH(K60,'Competitors&Timetable'!A1:A401,0),2)","v":" "},{"$f":"INDEX(EntryList,MATCH(K60,'Competitors&Timetable'!A1:A401,0),3)","v":" "}]
[{"$f":"#REF!","v":{"$error":"#REF!"}},{"$f":"#REF!","v":{"$error":"#REF!"}},{"$f":"#REF!","v":{"$error":"#REF!"}},null,".",{"$f":"INDEX(EntryList,MATCH(E61,'Competitors&Timetable'!A1:A401,0),2)","v":" "},{"$f":"INDEX(EntryList,MATCH(E61,'Competitors&Timetable'!A1:A401,0),3)","v":" "},null,null,null,".",{"$f":"INDEX(EntryList,MATCH(K61,'Competitors&Timetable'!A1:A401,0),2)","v":" "},{"$f":"INDEX(EntryList,MATCH(K61,'Competitors&Timetable'!A1:A401,0),3)","v":" "}]
[{"$f":"#REF!","v":{"$error":"#REF!"}},{"$f":"#REF!","v":{"$error":"#REF!"}},{"$f":"#REF!","v":{"$error":"#REF!"}},null,".",{"$f":"INDEX(EntryList,MATCH(E62,'Competitors&Timetable'!A1:A401,0),2)","v":" "},{"$f":"INDEX(EntryList,MATCH(E62,'Competitors&Timetable'!A1:A401,0),3)","v":" "},null,null,null,".",{"$f":"INDEX(EntryList,MATCH(K62,'Competitors&Timetable'!A1:A401,0),2)","v":" "},{"$f":"INDEX(EntryList,MATCH(K62,'Competitors&Timetable'!A1:A401,0),3)","v":" "}]
[{"$f":"#REF!","v":{"$error":"#REF!"}},{"$f":"#REF!","v":{"$error":"#REF!"}},{"$f":"#REF!","v":{"$error":"#REF!"}},null,".",{"$f":"INDEX(EntryList,MATCH(E63,'Competitors&Timetable'!A1:A401,0),2)","v":" "},{"$f":"INDEX(EntryList,MATCH(E63,'Competitors&Timetable'!A1:A401,0),3)","v":" "},null,null,null,".",{"$f":"INDEX(EntryList,MATCH(K63,'Competitors&Timetable'!A1:A401,0),2)","v":" "},{"$f":"INDEX(EntryList,MATCH(K63,'Competitors&Timetable'!A1:A401,0),3)","v":" "}]
[{"$f":"#REF!","v":{"$error":"#REF!"}},{"$f":"#REF!","v":{"$error":"#REF!"}},{"$f":"#REF!","v":{"$error":"#REF!"}},null,".",{"$f":"INDEX(EntryList,MATCH(E64,'Competitors&Timetable'!A1:A401,0),2)","v":" "},{"$f":"INDEX(EntryList,MATCH(E64,'Competitors&Timetable'!A1:A401,0),3)","v":" "},null,null,null,".",{"$f":"INDEX(EntryList,MATCH(K64,'Competitors&Timetable'!A1:A401,0),2)","v":" "},{"$f":"INDEX(EntryList,MATCH(K64,'Competitors&Timetable'!A1:A401,0),3)","v":" "}]
[null,null,null,null,".",{"$f":"INDEX(EntryList,MATCH(E65,'Competitors&Timetable'!A1:A401,0),2)","v":" "},{"$f":"INDEX(EntryList,MATCH(E65,'Competitors&Timetable'!A1:A401,0),3)","v":" "},null,null,null,".",{"$f":"INDEX(EntryList,MATCH(K65,'Competitors&Timetable'!A1:A401,0),2)","v":" "},{"$f":"INDEX(EntryList,MATCH(K65,'Competitors&Timetable'!A1:A401,0),3)","v":" "}]
[null,null,null,null,null,{"$f":"IF(E66=\"\",\"\",LOOKUP(E66,#REF!,#REF!))","v":""},{"$f":"IF(E66=\"\",\"\",LOOKUP(E66,'Competitors&Timetable'!#REF!))","v":""},null,null,null,null,{"$f":"IF(K66=\"\",\"\",LOOKUP(K66,#REF!,#REF!))","v":""},{"$f":"IF(K66=\"\",\"\",LOOKUP(K66,'Competitors&Timetable'!#REF!))","v":""}]
[]
[null,null,null,null,".",{"$f":"INDEX('Competitors&Timetable'!F1:H144,MATCH(E68,'Competitors&Timetable'!F1:F144,0),2)","v":" "},{"$f":"INDEX(#REF!,MATCH(E68,#REF!,0),3)","v":{"$error":"#REF!"}},null,null,null,".",{"$f":"INDEX('Competitors&Timetable'!F1:H144,MATCH(K68,'Competitors&Timetable'!F1:F144,0),2)","v":" "},{"$f":"INDEX(#REF!,MATCH(K68,#REF!,0),3)","v":{"$error":"#REF!"}}]
[null,null,null,null,".",{"$f":"INDEX(EntryList,MATCH(E69,'Competitors&Timetable'!A1:A401,0),2)","v":" "},{"$f":"INDEX(EntryList,MATCH(E69,'Competitors&Timetable'!A1:A401,0),3)","v":" "},null,null,null,".",{"$f":"INDEX(EntryList,MATCH(K69,'Competitors&Timetable'!A1:A401,0),2)","v":" "},{"$f":"INDEX(EntryList,MATCH(K69,'Competitors&Timetable'!A1:A401,0),3)","v":" "}]
[null,null,null,null,".",{"$f":"INDEX(EntryList,MATCH(E70,'Competitors&Timetable'!A1:A401,0),2)","v":" "},{"$f":"INDEX(EntryList,MATCH(E70,'Competitors&Timetable'!A1:A401,0),3)","v":" "},null,null,null,".",{"$f":"INDEX(EntryList,MATCH(K70,'Competitors&Timetable'!A1:A401,0),2)","v":" "},{"$f":"INDEX(EntryList,MATCH(K70,'Competitors&Timetable'!A1:A401,0),3)","v":" "}]
[null,null,null,null,".",{"$f":"INDEX(EntryList,MATCH(E71,'Competitors&Timetable'!A1:A401,0),2)","v":" "},{"$f":"INDEX(EntryList,MATCH(E71,'Competitors&Timetable'!A1:A401,0),3)","v":" "},null,null,null,".",{"$f":"INDEX(EntryList,MATCH(K71,'Competitors&Timetable'!A1:A401,0),2)","v":" "},{"$f":"INDEX(EntryList,MATCH(K71,'Competitors&Timetable'!A1:A401,0),3)","v":" "}]
[null,null,null,null,".",{"$f":"INDEX(EntryList,MATCH(E72,'Competitors&Timetable'!A1:A401,0),2)","v":" "},{"$f":"INDEX(EntryList,MATCH(E72,'Competitors&Timetable'!A1:A401,0),3)","v":" "},null,null,null,".",{"$f":"INDEX(EntryList,MATCH(K72,'Competitors&Timetable'!A1:A401,0),2)","v":" "},{"$f":"INDEX(EntryList,MATCH(K72,'Competitors&Timetable'!A1:A401,0),3)","v":" "}]
[null,null,null,null,".",{"$f":"INDEX(EntryList,MATCH(E73,'Competitors&Timetable'!A1:A401,0),2)","v":" "},{"$f":"INDEX(EntryList,MATCH(E73,'Competitors&Timetable'!A1:A401,0),3)","v":" "},null,null,null,".",{"$f":"INDEX(EntryList,MATCH(K73,'Competitors&Timetable'!A1:A401,0),2)","v":" "},{"$f":"INDEX(EntryList,MATCH(K73,'Competitors&Timetable'!A1:A401,0),3)","v":" "}]
[null,null,null,null,".",{"$f":"INDEX(EntryList,MATCH(E74,'Competitors&Timetable'!A1:A401,0),2)","v":" "},{"$f":"INDEX(EntryList,MATCH(E74,'Competitors&Timetable'!A1:A401,0),3)","v":" "},null,null,null,".",{"$f":"INDEX(EntryList,MATCH(K74,'Competitors&Timetable'!A1:A401,0),2)","v":" "},{"$f":"INDEX(EntryList,MATCH(K74,'Competitors&Timetable'!A1:A401,0),3)","v":" "}]
[null,null,null,null,".",{"$f":"INDEX(EntryList,MATCH(E75,'Competitors&Timetable'!A1:A401,0),2)","v":" "},{"$f":"INDEX(EntryList,MATCH(E75,'Competitors&Timetable'!A1:A401,0),3)","v":" "},null,null,null,".",{"$f":"INDEX(EntryList,MATCH(K75,'Competitors&Timetable'!A1:A401,0),2)","v":" "},{"$f":"INDEX(EntryList,MATCH(K75,'Competitors&Timetable'!A1:A401,0),3)","v":" "}]
[null,null,null,null,".",{"$f":"INDEX(EntryList,MATCH(E76,'Competitors&Timetable'!A1:A401,0),2)","v":" "},{"$f":"INDEX(EntryList,MATCH(E76,'Competitors&Timetable'!A1:A401,0),3)","v":" "},null,null,null,".",{"$f":"INDEX(EntryList,MATCH(K76,'Competitors&Timetable'!A1:A401,0),2)","v":" "},{"$f":"INDEX(EntryList,MATCH(K76,'Competitors&Timetable'!A1:A401,0),3)","v":" "}]
[null,null,null,null,null,{"$f":"IF(E77=\"\",\"\",LOOKUP(E77,#REF!,#REF!))","v":""},{"$f":"IF(E77=\"\",\"\",LOOKUP(E77,'Competitors&Timetable'!#REF!))","v":""},null,null,null,null,{"$f":"IF(K77=\"\",\"\",LOOKUP(K77,#REF!,#REF!))","v":""},{"$f":"IF(K77=\"\",\"\",LOOKUP(K77,'Competitors&Timetable'!#REF!))","v":""}]
[]
[null,null,null,null,".",{"$f":"INDEX('Competitors&Timetable'!F1:H144,MATCH(E79,'Competitors&Timetable'!F1:F144,0),2)","v":" "},{"$f":"INDEX(#REF!,MATCH(E79,#REF!,0),3)","v":{"$error":"#REF!"}},null,null,null,".",{"$f":"INDEX('Competitors&Timetable'!F1:H144,MATCH(K79,'Competitors&Timetable'!F1:F144,0),2)","v":" "},{"$f":"INDEX(#REF!,MATCH(K79,#REF!,0),3)","v":{"$error":"#REF!"}}]
[null,null,null,null,".",{"$f":"INDEX(EntryList,MATCH(E80,'Competitors&Timetable'!A1:A401,0),2)","v":" "},{"$f":"INDEX(EntryList,MATCH(E80,'Competitors&Timetable'!A1:A401,0),3)","v":" "},null,null,null,".",{"$f":"INDEX(EntryList,MATCH(K80,'Competitors&Timetable'!A1:A401,0),2)","v":" "},{"$f":"INDEX(EntryList,MATCH(K80,'Competitors&Timetable'!A1:A401,0),3)","v":" "}]
[null,null,null,null,".",{"$f":"INDEX(EntryList,MATCH(E81,'Competitors&Timetable'!A1:A401,0),2)","v":" "},{"$f":"INDEX(EntryList,MATCH(E81,'Competitors&Timetable'!A1:A401,0),3)","v":" "},null,null,null,".",{"$f":"INDEX(EntryList,MATCH(K81,'Competitors&Timetable'!A1:A401,0),2)","v":" "},{"$f":"INDEX(EntryList,MATCH(K81,'Competitors&Timetable'!A1:A401,0),3)","v":" "}]
[null,null,null,null,".",{"$f":"INDEX(EntryList,MATCH(E82,'Competitors&Timetable'!A1:A401,0),2)","v":" "},{"$f":"INDEX(EntryList,MATCH(E82,'Competitors&Timetable'!A1:A401,0),3)","v":" "},null,null,null,".",{"$f":"INDEX(EntryList,MATCH(K82,'Competitors&Timetable'!A1:A401,0),2)","v":" "},{"$f":"INDEX(EntryList,MATCH(K82,'Competitors&Timetable'!A1:A401,0),3)","v":" "}]
[null,null,null,null,".",{"$f":"INDEX(EntryList,MATCH(E83,'Competitors&Timetable'!A1:A401,0),2)","v":" "},{"$f":"INDEX(EntryList,MATCH(E83,'Competitors&Timetable'!A1:A401,0),3)","v":" "},null,null,null,".",{"$f":"INDEX(EntryList,MATCH(K83,'Competitors&Timetable'!A1:A401,0),2)","v":" "},{"$f":"INDEX(EntryList,MATCH(K83,'Competitors&Timetable'!A1:A401,0),3)","v":" "}]
[null,null,null,null,".",{"$f":"INDEX(EntryList,MATCH(E84,'Competitors&Timetable'!A1:A401,0),2)","v":" "},{"$f":"INDEX(EntryList,MATCH(E84,'Competitors&Timetable'!A1:A401,0),3)","v":" "},null,null,null,".",{"$f":"INDEX(EntryList,MATCH(K84,'Competitors&Timetable'!A1:A401,0),2)","v":" "},{"$f":"INDEX(EntryList,MATCH(K84,'Competitors&Timetable'!A1:A401,0),3)","v":" "}]
[null,null,null,null,".",{"$f":"INDEX(EntryList,MATCH(E85,'Competitors&Timetable'!A1:A401,0),2)","v":" "},{"$f":"INDEX(EntryList,MATCH(E85,'Competitors&Timetable'!A1:A401,0),3)","v":" "},null,null,null,".",{"$f":"INDEX(EntryList,MATCH(K85,'Competitors&Timetable'!A1:A401,0),2)","v":" "},{"$f":"INDEX(EntryList,MATCH(K85,'Competitors&Timetable'!A1:A401,0),3)","v":" "}]
[null,null,null,null,".",{"$f":"INDEX(EntryList,MATCH(E86,'Competitors&Timetable'!A1:A401,0),2)","v":" "},{"$f":"INDEX(EntryList,MATCH(E86,'Competitors&Timetable'!A1:A401,0),3)","v":" "},null,null,null,".",{"$f":"INDEX(EntryList,MATCH(K86,'Competitors&Timetable'!A1:A401,0),2)","v":" "},{"$f":"INDEX(EntryList,MATCH(K86,'Competitors&Timetable'!A1:A401,0),3)","v":" "}]
[null,null,null,null,".",{"$f":"INDEX(EntryList,MATCH(E87,'Competitors&Timetable'!A1:A401,0),2)","v":" "},{"$f":"INDEX(EntryList,MATCH(E87,'Competitors&Timetable'!A1:A401,0),3)","v":" "},null,null,null,".",{"$f":"INDEX(EntryList,MATCH(K87,'Competitors&Timetable'!A1:A401,0),2)","v":" "},{"$f":"INDEX(EntryList,MATCH(K87,'Competitors&Timetable'!A1:A401,0),3)","v":" "}]
[null,null,null,null,null,{"$f":"IF(E88=\"\",\"\",LOOKUP(E88,#REF!,#REF!))","v":""},{"$f":"IF(E88=\"\",\"\",LOOKUP(E88,'Competitors&Timetable'!#REF!))","v":""},null,null,null,null,{"$f":"IF(K88=\"\",\"\",LOOKUP(K88,#REF!,#REF!))","v":""},{"$f":"IF(K88=\"\",\"\",LOOKUP(K88,'Competitors&Timetable'!#REF!))","v":""}]
[]
[null,null,null,null,".",{"$f":"INDEX('Competitors&Timetable'!F1:H144,MATCH(E90,'Competitors&Timetable'!F1:F144,0),2)","v":" "},{"$f":"INDEX(#REF!,MATCH(E90,#REF!,0),3)","v":{"$error":"#REF!"}},null,null,null,".",{"$f":"INDEX('Competitors&Timetable'!F1:H144,MATCH(K90,'Competitors&Timetable'!F1:F144,0),2)","v":" "},{"$f":"INDEX(#REF!,MATCH(K90,#REF!,0),3)","v":{"$error":"#REF!"}}]
[null,null,null,null,".",{"$f":"INDEX(EntryList,MATCH(E91,'Competitors&Timetable'!A1:A401,0),2)","v":" "},{"$f":"INDEX(EntryList,MATCH(E91,'Competitors&Timetable'!A1:A401,0),3)","v":" "},null,null,null,".",{"$f":"INDEX(EntryList,MATCH(K91,'Competitors&Timetable'!A1:A401,0),2)","v":" "},{"$f":"INDEX(EntryList,MATCH(K91,'Competitors&Timetable'!A1:A401,0),3)","v":" "}]
[null,null,null,null,".",{"$f":"INDEX(EntryList,MATCH(E92,'Competitors&Timetable'!A1:A401,0),2)","v":" "},{"$f":"INDEX(EntryList,MATCH(E92,'Competitors&Timetable'!A1:A401,0),3)","v":" "},null,null,null,".",{"$f":"INDEX(EntryList,MATCH(K92,'Competitors&Timetable'!A1:A401,0),2)","v":" "},{"$f":"INDEX(EntryList,MATCH(K92,'Competitors&Timetable'!A1:A401,0),3)","v":" "}]
[null,null,null,null,".",{"$f":"INDEX(EntryList,MATCH(E93,'Competitors&Timetable'!A1:A401,0),2)","v":" "},{"$f":"INDEX(EntryList,MATCH(E93,'Competitors&Timetable'!A1:A401,0),3)","v":" "},null,null,null,".",{"$f":"INDEX(EntryList,MATCH(K93,'Competitors&Timetable'!A1:A401,0),2)","v":" "},{"$f":"INDEX(EntryList,MATCH(K93,'Competitors&Timetable'!A1:A401,0),3)","v":" "}]
[null,null,null,null,".",{"$f":"INDEX(EntryList,MATCH(E94,'Competitors&Timetable'!A1:A401,0),2)","v":" "},{"$f":"INDEX(EntryList,MATCH(E94,'Competitors&Timetable'!A1:A401,0),3)","v":" "},null,null,null,".",{"$f":"INDEX(EntryList,MATCH(K94,'Competitors&Timetable'!A1:A401,0),2)","v":" "},{"$f":"INDEX(EntryList,MATCH(K94,'Competitors&Timetable'!A1:A401,0),3)","v":" "}]
[null,null,null,null,".",{"$f":"INDEX(EntryList,MATCH(E95,'Competitors&Timetable'!A1:A401,0),2)","v":" "},{"$f":"INDEX(EntryList,MATCH(E95,'Competitors&Timetable'!A1:A401,0),3)","v":" "},null,null,null,".",{"$f":"INDEX(EntryList,MATCH(K95,'Competitors&Timetable'!A1:A401,0),2)","v":" "},{"$f":"INDEX(EntryList,MATCH(K95,'Competitors&Timetable'!A1:A401,0),3)","v":" "}]
[null,null,null,null,".",{"$f":"INDEX(EntryList,MATCH(E96,'Competitors&Timetable'!A1:A401,0),2)","v":" "},{"$f":"INDEX(EntryList,MATCH(E96,'Competitors&Timetable'!A1:A401,0),3)","v":" "},null,null,null,".",{"$f":"INDEX(EntryList,MATCH(K96,'Competitors&Timetable'!A1:A401,0),2)","v":" "},{"$f":"INDEX(EntryList,MATCH(K96,'Competitors&Timetable'!A1:A401,0),3)","v":" "}]
[null,null,null,null,".",{"$f":"INDEX(EntryList,MATCH(E97,'Competitors&Timetable'!A1:A401,0),2)","v":" "},{"$f":"INDEX(EntryList,MATCH(E97,'Competitors&Timetable'!A1:A401,0),3)","v":" "},null,null,null,".",{"$f":"INDEX(EntryList,MATCH(K97,'Competitors&Timetable'!A1:A401,0),2)","v":" "},{"$f":"INDEX(EntryList,MATCH(K97,'Competitors&Timetable'!A1:A401,0),3)","v":" "}]
[null,null,null,null,".",{"$f":"INDEX(EntryList,MATCH(E98,'Competitors&Timetable'!A1:A401,0),2)","v":" "},{"$f":"INDEX(EntryList,MATCH(E98,'Competitors&Timetable'!A1:A401,0),3)","v":" "},null,null,null,".",{"$f":"INDEX(EntryList,MATCH(K98,'Competitors&Timetable'!A1:A401,0),2)","v":" "},{"$f":"INDEX(EntryList,MATCH(K98,'Competitors&Timetable'!A1:A401,0),3)","v":" "}]
[null,null,null,null,null,{"$f":"IF(E99=\"\",\"\",LOOKUP(E99,#REF!,#REF!))","v":""},{"$f":"IF(E99=\"\",\"\",LOOKUP(E99,'Competitors&Timetable'!#REF!))","v":""},null,null,null,null,{"$f":"IF(K99=\"\",\"\",LOOKUP(K99,#REF!,#REF!))","v":""},{"$f":"IF(K99=\"\",\"\",LOOKUP(K99,'Competitors&Timetable'!#REF!))","v":""}]
[]
[null,null,null,null,".",{"$f":"INDEX('Competitors&Timetable'!F1:H144,MATCH(E101,'Competitors&Timetable'!F1:F144,0),2)","v":" "},{"$f":"INDEX(#REF!,MATCH(E101,#REF!,0),3)","v":{"$error":"#REF!"}},null,null,null,".",{"$f":"INDEX('Competitors&Timetable'!F1:H144,MATCH(K101,'Competitors&Timetable'!F1:F144,0),2)","v":" "},{"$f":"INDEX(#REF!,MATCH(K101,#REF!,0),3)","v":{"$error":"#REF!"}}]
[null,null,null,null,".",{"$f":"INDEX(EntryList,MATCH(E102,'Competitors&Timetable'!A1:A401,0),2)","v":" "},{"$f":"INDEX(EntryList,MATCH(E102,'Competitors&Timetable'!A1:A401,0),3)","v":" "},null,null,null,".",{"$f":"INDEX(EntryList,MATCH(K102,'Competitors&Timetable'!A1:A401,0),2)","v":" "},{"$f":"INDEX(EntryList,MATCH(K102,'Competitors&Timetable'!A1:A401,0),3)","v":" "}]
[null,null,null,null,".",{"$f":"INDEX(EntryList,MATCH(E103,'Competitors&Timetable'!A1:A401,0),2)","v":" "},{"$f":"INDEX(EntryList,MATCH(E103,'Competitors&Timetable'!A1:A401,0),3)","v":" "},null,null,null,".",{"$f":"INDEX(EntryList,MATCH(K103,'Competitors&Timetable'!A1:A401,0),2)","v":" "},{"$f":"INDEX(EntryList,MATCH(K103,'Competitors&Timetable'!A1:A401,0),3)","v":" "}]
[null,null,null,null,".",{"$f":"INDEX(EntryList,MATCH(E104,'Competitors&Timetable'!A1:A401,0),2)","v":" "},{"$f":"INDEX(EntryList,MATCH(E104,'Competitors&Timetable'!A1:A401,0),3)","v":" "},null,null,null,".",{"$f":"INDEX(EntryList,MATCH(K104,'Competitors&Timetable'!A1:A401,0),2)","v":" "},{"$f":"INDEX(EntryList,MATCH(K104,'Competitors&Timetable'!A1:A401,0),3)","v":" "}]
[null,null,null,null,".",{"$f":"INDEX(EntryList,MATCH(E105,'Competitors&Timetable'!A1:A401,0),2)","v":" "},{"$f":"INDEX(EntryList,MATCH(E105,'Competitors&Timetable'!A1:A401,0),3)","v":" "},null,null,null,".",{"$f":"INDEX(EntryList,MATCH(K105,'Competitors&Timetable'!A1:A401,0),2)","v":" "},{"$f":"INDEX(EntryList,MATCH(K105,'Competitors&Timetable'!A1:A401,0),3)","v":" "}]
[null,null,null,null,".",{"$f":"INDEX(EntryList,MATCH(E106,'Competitors&Timetable'!A1:A401,0),2)","v":" "},{"$f":"INDEX(EntryList,MATCH(E106,'Competitors&Timetable'!A1:A401,0),3)","v":" "},null,null,null,".",{"$f":"INDEX(EntryList,MATCH(K106,'Competitors&Timetable'!A1:A401,0),2)","v":" "},{"$f":"INDEX(EntryList,MATCH(K106,'Competitors&Timetable'!A1:A401,0),3)","v":" "}]
[null,null,null,null,".",{"$f":"INDEX(EntryList,MATCH(E107,'Competitors&Timetable'!A1:A401,0),2)","v":" "},{"$f":"INDEX(EntryList,MATCH(E107,'Competitors&Timetable'!A1:A401,0),3)","v":" "},null,null,null,".",{"$f":"INDEX(EntryList,MATCH(K107,'Competitors&Timetable'!A1:A401,0),2)","v":" "},{"$f":"INDEX(EntryList,MATCH(K107,'Competitors&Timetable'!A1:A401,0),3)","v":" "}]
[null,null,null,null,".",{"$f":"INDEX(EntryList,MATCH(E108,'Competitors&Timetable'!A1:A401,0),2)","v":" "},{"$f":"INDEX(EntryList,MATCH(E108,'Competitors&Timetable'!A1:A401,0),3)","v":" "},null,null,null,".",{"$f":"INDEX(EntryList,MATCH(K108,'Competitors&Timetable'!A1:A401,0),2)","v":" "},{"$f":"INDEX(EntryList,MATCH(K108,'Competitors&Timetable'!A1:A401,0),3)","v":" "}]
[null,null,null,null,".",{"$f":"INDEX(EntryList,MATCH(E109,'Competitors&Timetable'!A1:A401,0),2)","v":" "},{"$f":"INDEX(EntryList,MATCH(E109,'Competitors&Timetable'!A1:A401,0),3)","v":" "},null,null,null,".",{"$f":"INDEX(EntryList,MATCH(K109,'Competitors&Timetable'!A1:A401,0),2)","v":" "},{"$f":"INDEX(EntryList,MATCH(K109,'Competitors&Timetable'!A1:A401,0),3)","v":" "}]
[null,null,null,null,null,{"$f":"IF(E110=\"\",\"\",LOOKUP(E110,#REF!,#REF!))","v":""},{"$f":"IF(E110=\"\",\"\",LOOKUP(E110,'Competitors&Timetable'!#REF!))","v":""},null,null,null,null,{"$f":"IF(K110=\"\",\"\",LOOKUP(K110,#REF!,#REF!))","v":""},{"$f":"IF(K110=\"\",\"\",LOOKUP(K110,'Competitors&Timetable'!#REF!))","v":""}]
[]
[null,null,null,null,".",{"$f":"INDEX('Competitors&Timetable'!F1:H144,MATCH(E112,'Competitors&Timetable'!F1:F144,0),2)","v":" "},{"$f":"INDEX(#REF!,MATCH(E112,#REF!,0),3)","v":{"$error":"#REF!"}},null,null,null,".",{"$f":"INDEX('Competitors&Timetable'!F1:H144,MATCH(K112,'Competitors&Timetable'!F1:F144,0),2)","v":" "},{"$f":"INDEX(#REF!,MATCH(K112,#REF!,0),3)","v":{"$error":"#REF!"}}]
[null,null,null,null,".",{"$f":"INDEX(EntryList,MATCH(E113,'Competitors&Timetable'!A1:A401,0),2)","v":" "},{"$f":"INDEX(EntryList,MATCH(E113,'Competitors&Timetable'!A1:A401,0),3)","v":" "},null,null,null,".",{"$f":"INDEX(EntryList,MATCH(K113,'Competitors&Timetable'!A1:A401,0),2)","v":" "},{"$f":"INDEX(EntryList,MATCH(K113,'Competitors&Timetable'!A1:A401,0),3)","v":" "}]
[null,null,null,null,".",{"$f":"INDEX(EntryList,MATCH(E114,'Competitors&Timetable'!A1:A401,0),2)","v":" "},{"$f":"INDEX(EntryList,MATCH(E114,'Competitors&Timetable'!A1:A401,0),3)","v":" "},null,null,null,".",{"$f":"INDEX(EntryList,MATCH(K114,'Competitors&Timetable'!A1:A401,0),2)","v":" "},{"$f":"INDEX(EntryList,MATCH(K114,'Competitors&Timetable'!A1:A401,0),3)","v":" "}]
[null,null,null,null,".",{"$f":"INDEX(EntryList,MATCH(E115,'Competitors&Timetable'!A1:A401,0),2)","v":" "},{"$f":"INDEX(EntryList,MATCH(E115,'Competitors&Timetable'!A1:A401,0),3)","v":" "},null,null,null,".",{"$f":"INDEX(EntryList,MATCH(K115,'Competitors&Timetable'!A1:A401,0),2)","v":" "},{"$f":"INDEX(EntryList,MATCH(K115,'Competitors&Timetable'!A1:A401,0),3)","v":" "}]
[null,null,null,null,".",{"$f":"INDEX(EntryList,MATCH(E116,'Competitors&Timetable'!A1:A401,0),2)","v":" "},{"$f":"INDEX(EntryList,MATCH(E116,'Competitors&Timetable'!A1:A401,0),3)","v":" "},null,null,null,".",{"$f":"INDEX(EntryList,MATCH(K116,'Competitors&Timetable'!A1:A401,0),2)","v":" "},{"$f":"INDEX(EntryList,MATCH(K116,'Competitors&Timetable'!A1:A401,0),3)","v":" "}]
[null,null,null,null,".",{"$f":"INDEX(EntryList,MATCH(E117,'Competitors&Timetable'!A1:A401,0),2)","v":" "},{"$f":"INDEX(EntryList,MATCH(E117,'Competitors&Timetable'!A1:A401,0),3)","v":" "},null,null,null,".",{"$f":"INDEX(EntryList,MATCH(K117,'Competitors&Timetable'!A1:A401,0),2)","v":" "},{"$f":"INDEX(EntryList,MATCH(K117,'Competitors&Timetable'!A1:A401,0),3)","v":" "}]
[null,null,null,null,".",{"$f":"INDEX(EntryList,MATCH(E118,'Competitors&Timetable'!A1:A401,0),2)","v":" "},{"$f":"INDEX(EntryList,MATCH(E118,'Competitors&Timetable'!A1:A401,0),3)","v":" "},null,null,null,".",{"$f":"INDEX(EntryList,MATCH(K118,'Competitors&Timetable'!A1:A401,0),2)","v":" "},{"$f":"INDEX(EntryList,MATCH(K118,'Competitors&Timetable'!A1:A401,0),3)","v":" "}]
[null,null,null,null,".",{"$f":"INDEX(EntryList,MATCH(E119,'Competitors&Timetable'!A1:A401,0),2)","v":" "},{"$f":"INDEX(EntryList,MATCH(E119,'Competitors&Timetable'!A1:A401,0),3)","v":" "},null,null,null,".",{"$f":"INDEX(EntryList,MATCH(K119,'Competitors&Timetable'!A1:A401,0),2)","v":" "},{"$f":"INDEX(EntryList,MATCH(K119,'Competitors&Timetable'!A1:A401,0),3)","v":" "}]
[null,null,null,null,".",{"$f":"INDEX(EntryList,MATCH(E120,'Competitors&Timetable'!A1:A401,0),2)","v":" "},{"$f":"INDEX(EntryList,MATCH(E120,'Competitors&Timetable'!A1:A401,0),3)","v":" "},null,null,null,".",{"$f":"INDEX(EntryList,MATCH(K120,'Competitors&Timetable'!A1:A401,0),2)","v":" "},{"$f":"INDEX(EntryList,MATCH(K120,'Competitors&Timetable'!A1:A401,0),3)","v":" "}]
[null,null,null,null,null,{"$f":"IF(E121=\"\",\"\",LOOKUP(E121,#REF!,#REF!))","v":""},{"$f":"IF(E121=\"\",\"\",LOOKUP(E121,'Competitors&Timetable'!#REF!))","v":""},null,null,null,null,{"$f":"IF(K121=\"\",\"\",LOOKUP(K121,#REF!,#REF!))","v":""},{"$f":"IF(K121=\"\",\"\",LOOKUP(K121,'Competitors&Timetable'!#REF!))","v":""}]
[]
[null,null,null,null,".",{"$f":"INDEX('Competitors&Timetable'!F1:H144,MATCH(E123,'Competitors&Timetable'!F1:F144,0),2)","v":" "},{"$f":"INDEX(#REF!,MATCH(E123,#REF!,0),3)","v":{"$error":"#REF!"}},null,null,null,".",{"$f":"INDEX('Competitors&Timetable'!F1:H144,MATCH(K123,'Competitors&Timetable'!F1:F144,0),2)","v":" "},{"$f":"INDEX(#REF!,MATCH(K123,#REF!,0),3)","v":{"$error":"#REF!"}}]
[null,null,null,null,".",{"$f":"INDEX(EntryList,MATCH(E124,'Competitors&Timetable'!A1:A401,0),2)","v":" "},{"$f":"INDEX(EntryList,MATCH(E124,'Competitors&Timetable'!A1:A401,0),3)","v":" "},null,null,null,".",{"$f":"INDEX(EntryList,MATCH(K124,'Competitors&Timetable'!A1:A401,0),2)","v":" "},{"$f":"INDEX(EntryList,MATCH(K124,'Competitors&Timetable'!A1:A401,0),3)","v":" "}]
[null,null,null,null,".",{"$f":"INDEX(EntryList,MATCH(E125,'Competitors&Timetable'!A1:A401,0),2)","v":" "},{"$f":"INDEX(EntryList,MATCH(E125,'Competitors&Timetable'!A1:A401,0),3)","v":" "},null,null,null,".",{"$f":"INDEX(EntryList,MATCH(K125,'Competitors&Timetable'!A1:A401,0),2)","v":" "},{"$f":"INDEX(EntryList,MATCH(K125,'Competitors&Timetable'!A1:A401,0),3)","v":" "}]
[null,null,null,null,".",{"$f":"INDEX(EntryList,MATCH(E126,'Competitors&Timetable'!A1:A401,0),2)","v":" "},{"$f":"INDEX(EntryList,MATCH(E126,'Competitors&Timetable'!A1:A401,0),3)","v":" "},null,null,null,".",{"$f":"INDEX(EntryList,MATCH(K126,'Competitors&Timetable'!A1:A401,0),2)","v":" "},{"$f":"INDEX(EntryList,MATCH(K126,'Competitors&Timetable'!A1:A401,0),3)","v":" "}]
[null,null,null,null,".",{"$f":"INDEX(EntryList,MATCH(E127,'Competitors&Timetable'!A1:A401,0),2)","v":" "},{"$f":"INDEX(EntryList,MATCH(E127,'Competitors&Timetable'!A1:A401,0),3)","v":" "},null,null,null,".",{"$f":"INDEX(EntryList,MATCH(K127,'Competitors&Timetable'!A1:A401,0),2)","v":" "},{"$f":"INDEX(EntryList,MATCH(K127,'Competitors&Timetable'!A1:A401,0),3)","v":" "}]
[null,null,null,null,".",{"$f":"INDEX(EntryList,MATCH(E128,'Competitors&Timetable'!A1:A401,0),2)","v":" "},{"$f":"INDEX(EntryList,MATCH(E128,'Competitors&Timetable'!A1:A401,0),3)","v":" "},null,null,null,".",{"$f":"INDEX(EntryList,MATCH(K128,'Competitors&Timetable'!A1:A401,0),2)","v":" "},{"$f":"INDEX(EntryList,MATCH(K128,'Competitors&Timetable'!A1:A401,0),3)","v":" "}]
[null,null,null,null,".",{"$f":"INDEX(EntryList,MATCH(E129,'Competitors&Timetable'!A1:A401,0),2)","v":" "},{"$f":"INDEX(EntryList,MATCH(E129,'Competitors&Timetable'!A1:A401,0),3)","v":" "},null,null,null,".",{"$f":"INDEX(EntryList,MATCH(K129,'Competitors&Timetable'!A1:A401,0),2)","v":" "},{"$f":"INDEX(EntryList,MATCH(K129,'Competitors&Timetable'!A1:A401,0),3)","v":" "}]
[null,null,null,null,".",{"$f":"INDEX(EntryList,MATCH(E130,'Competitors&Timetable'!A1:A401,0),2)","v":" "},{"$f":"INDEX(EntryList,MATCH(E130,'Competitors&Timetable'!A1:A401,0),3)","v":" "},null,null,null,".",{"$f":"INDEX(EntryList,MATCH(K130,'Competitors&Timetable'!A1:A401,0),2)","v":" "},{"$f":"INDEX(EntryList,MATCH(K130,'Competitors&Timetable'!A1:A401,0),3)","v":" "}]
[null,null,null,null,".",{"$f":"INDEX(EntryList,MATCH(E131,'Competitors&Timetable'!A1:A401,0),2)","v":" "},{"$f":"INDEX(EntryList,MATCH(E131,'Competitors&Timetable'!A1:A401,0),3)","v":" "},null,null,null,".",{"$f":"INDEX(EntryList,MATCH(K131,'Competitors&Timetable'!A1:A401,0),2)","v":" "},{"$f":"INDEX(EntryList,MATCH(K131,'Competitors&Timetable'!A1:A401,0),3)","v":" "}]
[null,null,null,null,null,{"$f":"IF(E132=\"\",\"\",LOOKUP(E132,#REF!,#REF!))","v":""},{"$f":"IF(E132=\"\",\"\",LOOKUP(E132,'Competitors&Timetable'!#REF!))","v":""},null,null,null,null,{"$f":"IF(K132=\"\",\"\",LOOKUP(K132,#REF!,#REF!))","v":""},{"$f":"IF(K132=\"\",\"\",LOOKUP(K132,'Competitors&Timetable'!#REF!))","v":""}]
[]
[null,null,null,null,".",{"$f":"INDEX('Competitors&Timetable'!F1:H144,MATCH(E134,'Competitors&Timetable'!F1:F144,0),2)","v":" "},{"$f":"INDEX(#REF!,MATCH(E134,#REF!,0),3)","v":{"$error":"#REF!"}},null,null,null,".",{"$f":"INDEX('Competitors&Timetable'!F1:H144,MATCH(K134,'Competitors&Timetable'!F1:F144,0),2)","v":" "},{"$f":"INDEX(#REF!,MATCH(K134,#REF!,0),3)","v":{"$error":"#REF!"}}]
[null,null,null,null,".",{"$f":"INDEX(EntryList,MATCH(E135,'Competitors&Timetable'!A1:A401,0),2)","v":" "},{"$f":"INDEX(EntryList,MATCH(E135,'Competitors&Timetable'!A1:A401,0),3)","v":" "},null,null,null,".",{"$f":"INDEX(EntryList,MATCH(K135,'Competitors&Timetable'!A1:A401,0),2)","v":" "},{"$f":"INDEX(EntryList,MATCH(K135,'Competitors&Timetable'!A1:A401,0),3)","v":" "}]
[null,null,null,null,".",{"$f":"INDEX(EntryList,MATCH(E136,'Competitors&Timetable'!A1:A401,0),2)","v":" "},{"$f":"INDEX(EntryList,MATCH(E136,'Competitors&Timetable'!A1:A401,0),3)","v":" "},null,null,null,".",{"$f":"INDEX(EntryList,MATCH(K136,'Competitors&Timetable'!A1:A401,0),2)","v":" "},{"$f":"INDEX(EntryList,MATCH(K136,'Competitors&Timetable'!A1:A401,0),3)","v":" "}]
[null,null,null,null,".",{"$f":"INDEX(EntryList,MATCH(E137,'Competitors&Timetable'!A1:A401,0),2)","v":" "},{"$f":"INDEX(EntryList,MATCH(E137,'Competitors&Timetable'!A1:A401,0),3)","v":" "},null,null,null,".",{"$f":"INDEX(EntryList,MATCH(K137,'Competitors&Timetable'!A1:A401,0),2)","v":" "},{"$f":"INDEX(EntryList,MATCH(K137,'Competitors&Timetable'!A1:A401,0),3)","v":" "}]
[null,null,null,null,".",{"$f":"INDEX(EntryList,MATCH(E138,'Competitors&Timetable'!A1:A401,0),2)","v":" "},{"$f":"INDEX(EntryList,MATCH(E138,'Competitors&Timetable'!A1:A401,0),3)","v":" "},null,null,null,".",{"$f":"INDEX(EntryList,MATCH(K138,'Competitors&Timetable'!A1:A401,0),2)","v":" "},{"$f":"INDEX(EntryList,MATCH(K138,'Competitors&Timetable'!A1:A401,0),3)","v":" "}]
[null,null,null,null,".",{"$f":"INDEX(EntryList,MATCH(E139,'Competitors&Timetable'!A1:A401,0),2)","v":" "},{"$f":"INDEX(EntryList,MATCH(E139,'Competitors&Timetable'!A1:A401,0),3)","v":" "},null,null,null,".",{"$f":"INDEX(EntryList,MATCH(K139,'Competitors&Timetable'!A1:A401,0),2)","v":" "},{"$f":"INDEX(EntryList,MATCH(K139,'Competitors&Timetable'!A1:A401,0),3)","v":" "}]
[null,null,null,null,".",{"$f":"INDEX(EntryList,MATCH(E140,'Competitors&Timetable'!A1:A401,0),2)","v":" "},{"$f":"INDEX(EntryList,MATCH(E140,'Competitors&Timetable'!A1:A401,0),3)","v":" "},null,null,null,".",{"$f":"INDEX(EntryList,MATCH(K140,'Competitors&Timetable'!A1:A401,0),2)","v":" "},{"$f":"INDEX(EntryList,MATCH(K140,'Competitors&Timetable'!A1:A401,0),3)","v":" "}]
[null,null,null,null,".",{"$f":"INDEX(EntryList,MATCH(E141,'Competitors&Timetable'!A1:A401,0),2)","v":" "},{"$f":"INDEX(EntryList,MATCH(E141,'Competitors&Timetable'!A1:A401,0),3)","v":" "},null,null,null,".",{"$f":"INDEX(EntryList,MATCH(K141,'Competitors&Timetable'!A1:A401,0),2)","v":" "},{"$f":"INDEX(EntryList,MATCH(K141,'Competitors&Timetable'!A1:A401,0),3)","v":" "}]
[null,null,null,null,".",{"$f":"INDEX(EntryList,MATCH(E142,'Competitors&Timetable'!A1:A401,0),2)","v":" "},{"$f":"INDEX(EntryList,MATCH(E142,'Competitors&Timetable'!A1:A401,0),3)","v":" "},null,null,null,".",{"$f":"INDEX(EntryList,MATCH(K142,'Competitors&Timetable'!A1:A401,0),2)","v":" "},{"$f":"INDEX(EntryList,MATCH(K142,'Competitors&Timetable'!A1:A401,0),3)","v":" "}]
[null,null,null,null,null,{"$f":"IF(E143=\"\",\"\",LOOKUP(E143,#REF!,#REF!))","v":""},{"$f":"IF(E143=\"\",\"\",LOOKUP(E143,'Competitors&Timetable'!#REF!))","v":""},null,null,null,null,{"$f":"IF(K143=\"\",\"\",LOOKUP(K143,#REF!,#REF!))","v":""},{"$f":"IF(K143=\"\",\"\",LOOKUP(K143,'Competitors&Timetable'!#REF!))","v":""}]
[]
[null,null,null,null,".",{"$f":"INDEX('Competitors&Timetable'!F1:H144,MATCH(E145,'Competitors&Timetable'!F1:F144,0),2)","v":" "},{"$f":"INDEX(#REF!,MATCH(E145,#REF!,0),3)","v":{"$error":"#REF!"}},null,null,null,".",{"$f":"INDEX('Competitors&Timetable'!F1:H144,MATCH(K145,'Competitors&Timetable'!F1:F144,0),2)","v":" "},{"$f":"INDEX(#REF!,MATCH(K145,#REF!,0),3)","v":{"$error":"#REF!"}}]
[null,null,null,null,".",{"$f":"INDEX(EntryList,MATCH(E146,'Competitors&Timetable'!A1:A401,0),2)","v":" "},{"$f":"INDEX(EntryList,MATCH(E146,'Competitors&Timetable'!A1:A401,0),3)","v":" "},null,null,null,".",{"$f":"INDEX(EntryList,MATCH(K146,'Competitors&Timetable'!A1:A401,0),2)","v":" "},{"$f":"INDEX(EntryList,MATCH(K146,'Competitors&Timetable'!A1:A401,0),3)","v":" "}]
[null,null,null,null,".",{"$f":"INDEX(EntryList,MATCH(E147,'Competitors&Timetable'!A1:A401,0),2)","v":" "},{"$f":"INDEX(EntryList,MATCH(E147,'Competitors&Timetable'!A1:A401,0),3)","v":" "},null,null,null,".",{"$f":"INDEX(EntryList,MATCH(K147,'Competitors&Timetable'!A1:A401,0),2)","v":" "},{"$f":"INDEX(EntryList,MATCH(K147,'Competitors&Timetable'!A1:A401,0),3)","v":" "}]
[null,null,null,null,".",{"$f":"INDEX(EntryList,MATCH(E148,'Competitors&Timetable'!A1:A401,0),2)","v":" "},{"$f":"INDEX(EntryList,MATCH(E148,'Competitors&Timetable'!A1:A401,0),3)","v":" "},null,null,null,".",{"$f":"INDEX(EntryList,MATCH(K148,'Competitors&Timetable'!A1:A401,0),2)","v":" "},{"$f":"INDEX(EntryList,MATCH(K148,'Competitors&Timetable'!A1:A401,0),3)","v":" "}]
[null,null,null,null,".",{"$f":"INDEX(EntryList,MATCH(E149,'Competitors&Timetable'!A1:A401,0),2)","v":" "},{"$f":"INDEX(EntryList,MATCH(E149,'Competitors&Timetable'!A1:A401,0),3)","v":" "},null,null,null,".",{"$f":"INDEX(EntryList,MATCH(K149,'Competitors&Timetable'!A1:A401,0),2)","v":" "},{"$f":"INDEX(EntryList,MATCH(K149,'Competitors&Timetable'!A1:A401,0),3)","v":" "}]
[null,null,null,null,".",{"$f":"INDEX(EntryList,MATCH(E150,'Competitors&Timetable'!A1:A401,0),2)","v":" "},{"$f":"INDEX(EntryList,MATCH(E150,'Competitors&Timetable'!A1:A401,0),3)","v":" "},null,null,null,".",{"$f":"INDEX(EntryList,MATCH(K150,'Competitors&Timetable'!A1:A401,0),2)","v":" "},{"$f":"INDEX(EntryList,MATCH(K150,'Competitors&Timetable'!A1:A401,0),3)","v":" "}]
[null,null,null,null,".",{"$f":"INDEX(EntryList,MATCH(E151,'Competitors&Timetable'!A1:A401,0),2)","v":" "},{"$f":"INDEX(EntryList,MATCH(E151,'Competitors&Timetable'!A1:A401,0),3)","v":" "},null,null,null,".",{"$f":"INDEX(EntryList,MATCH(K151,'Competitors&Timetable'!A1:A401,0),2)","v":" "},{"$f":"INDEX(EntryList,MATCH(K151,'Competitors&Timetable'!A1:A401,0),3)","v":" "}]
[null,null,null,null,".",{"$f":"INDEX(EntryList,MATCH(E152,'Competitors&Timetable'!A1:A401,0),2)","v":" "},{"$f":"INDEX(EntryList,MATCH(E152,'Competitors&Timetable'!A1:A401,0),3)","v":" "},null,null,null,".",{"$f":"INDEX(EntryList,MATCH(K152,'Competitors&Timetable'!A1:A401,0),2)","v":" "},{"$f":"INDEX(EntryList,MATCH(K152,'Competitors&Timetable'!A1:A401,0),3)","v":" "}]
[null,null,null,null,".",{"$f":"INDEX(EntryList,MATCH(E153,'Competitors&Timetable'!A1:A401,0),2)","v":" "},{"$f":"INDEX(EntryList,MATCH(E153,'Competitors&Timetable'!A1:A401,0),3)","v":" "},null,null,null,".",{"$f":"INDEX(EntryList,MATCH(K153,'Competitors&Timetable'!A1:A401,0),2)","v":" "},{"$f":"INDEX(EntryList,MATCH(K153,'Competitors&Timetable'!A1:A401,0),3)","v":" "}]
[null,null,null,null,null,{"$f":"IF(E154=\"\",\"\",LOOKUP(E154,#REF!,#REF!))","v":""},{"$f":"IF(E154=\"\",\"\",LOOKUP(E154,'Competitors&Timetable'!#REF!))","v":""},null,null,null,null,{"$f":"IF(K154=\"\",\"\",LOOKUP(K154,#REF!,#REF!))","v":""},{"$f":"IF(K154=\"\",\"\",LOOKUP(K154,'Competitors&Timetable'!#REF!))","v":""}]

{"sheet":"Field","index":4,"n_rows":432,"n_cols":15,"rows_kept":432,"cut":false,"hidden":false,"merged":[[411,5,411,6],[411,11,411,12],[422,5,422,6],[422,11,422,12],[389,5,389,6],[389,11,389,12],[400,11,400,12],[400,5,400,6],[356,5,356,6],[356,11,356,12],[367,5,367,6],[378,5,378,6],[378,11,378,12],[367,11,367,12],[345,11,345,12],[334,5,334,6],[334,11,334,12],[48,5,48,6],[48,11,48,12],[59,5,59,6],[70,5,70,6],[81,5,81,6],[92,5,92,6],[103,5,103,6],[257,11,257,12],[268,5,268,6],[268,11,268,12],[235,5,235,6],[235,11,235,12],[59,11,59,12],[0,5,0,6],[11,5,11,6],[26,5,26,6],[37,5,37,6],[345,5,345,6],[279,5,279,6],[290,5,290,6],[180,5,180,6],[257,5,257,6],[136,5,136,6],[114,5,114,6],[246,5,246,6],[70,11,70,12],[81,11,81,12],[92,11,92,12],[0,11,0,12],[11,11,11,12],[26,11,26,12],[37,11,37,12],[224,5,224,6],[224,11,224,12],[191,5,191,6],[191,11,191,12],[202,5,202,6],[202,11,202,12],[158,5,158,6],[147,5,147,6],[169,5,169,6],[103,11,103,12],[213,5,213,6],[213,11,213,12],[125,5,125,6],[290,11,290,12],[114,11,114,12],[125,11,125,12],[136,11,136,12],[147,11,147,12],[158,11,158,12],[169,11,169,12],[180,11,180,12],[279,11,279,12],[246,11,246,12]]}
[{"$f":"#REF!","v":{"$error":"#REF!"}},{"$f":"#REF!","v":{"$error":"#REF!"}},{"$f":"#REF!","v":{"$error":"#REF!"}},null,"F01",{"$f":"INDEX('Competitors&Timetable'!$F$1:$H$144,MATCH(E1,'Competitors&Timetable'!$F$1:$F$144,0),2)","v":"Long Jump Under 11 Girls"},null,null,null,null,"F01",{"$f":"INDEX('Competitors&Timetable'!F1:H144,MATCH(K1,'Competitors&Timetable'!F1:F144,0),2)","v":"Long Jump Under 11 Girls"}]
[{"$f":"#REF!","v":{"$error":"#REF!"}},{"$f":"#REF!","v":{"$error":"#REF!"}},{"$f":"#REF!","v":{"$error":"#REF!"}},null,12,{"$f":"INDEX(EntryList,MATCH(E2,'Competitors&Timetable'!$A$1:$A$401,0),2)","v":"Abbie Malinowski"},{"$f":"INDEX(EntryList,MATCH(E2,'Competitors&Timetable'!$A$1:$A$401,0),3)","v":"U11 Girl"},"3;13",11]
[{"$f":"#REF!","v":{"$error":"#REF!"}},{"$f":"#REF!","v":{"$error":"#REF!"}},{"$f":"#REF!","v":{"$error":"#REF!"}},null,13,{"$f":"INDEX(EntryList,MATCH(E3,'Competitors&Timetable'!$A$1:$A$401,0),2)","v":"Rachel Mair"},{"$f":"INDEX(EntryList,MATCH(E3,'Competitors&Timetable'!$A$1:$A$401,0),3)","v":"U11 Girl"},"3;11",11]
[{"$f":"#REF!","v":{"$error":"#REF!"}},{"$f":"#REF!","v":{"$error":"#REF!"}},{"$f":"#REF!","v":{"$error":"#REF!"}},null,11,{"$f":"INDEX(EntryList,MATCH(E4,'Competitors&Timetable'!$A$1:$A$401,0),2)","v":"Holli Boyd"},{"$f":"INDEX(EntryList,MATCH(E4,'Competitors&Timetable'!$A$1:$A$401,0),3)","v":"U11 Girl"},"2;97",11]
[{"$f":"#REF!","v":{"$error":"#REF!"}},{"$f":"#REF!","v":{"$error":"#REF!"}},{"$f":"#REF!","v":{"$error":"#REF!"}},null,15,{"$f":"INDEX(EntryList,MATCH(E5,'Competitors&Timetable'!$A$1:$A$401,0),2)","v":"Megan McLaughlin"},{"$f":"INDEX(EntryList,MATCH(E5,'Competitors&Timetable'!$A$1:$A$401,0),3)","v":"U11 Girl"},"2;50",7]
[{"$f":"#REF!","v":{"$error":"#REF!"}},{"$f":"#REF!","v":{"$error":"#REF!"}},{"$f":"#REF!","v":{"$error":"#REF!"}},null,14,{"$f":"INDEX(EntryList,MATCH(E6,'Competitors&Timetable'!$A$1:$A$401,0),2)","v":"Ellie Baxter"},{"$f":"INDEX(EntryList,MATCH(E6,'Competitors&Timetable'!$A$1:$A$401,0),3)","v":"U11 Girl"},"2,22",6]
[{"$f":"#REF!","v":{"$error":"#REF!"}},{"$f":"#REF!","v":{"$error":"#REF!"}},{"$f":"#REF!","v":{"$error":"#REF!"}},null,".",{"$f":"INDEX(EntryList,MATCH(E7,'Competitors&Timetable'!$A$1:$A$401,0),2)","v":" "},{"$f":"INDEX(EntryList,MATCH(E7,'Competitors&Timetable'!$A$1:$A$401,0),3)","v":" "}]
[{"$f":"#REF!","v":{"$error":"#REF!"}},{"$f":"#REF!","v":{"$error":"#REF!"}},{"$f":"#REF!","v":{"$error":"#REF!"}},null,".",{"$f":"INDEX(EntryList,MATCH(E8,'Competitors&Timetable'!$A$1:$A$401,0),2)","v":" "},{"$f":"INDEX(EntryList,MATCH(E8,'Competitors&Timetable'!$A$1:$A$401,0),3)","v":" "},null,null,null,".",{"$f":"INDEX(EntryList,MATCH(K8,'Competitors&Timetable'!A1:A401,0),2)","v":" "},{"$f":"INDEX(EntryList,MATCH(K8,'Competitors&Timetable'!A1:A401,0),3)","v":" "}]
[{"$f":"#REF!","v":{"$error":"#REF!"}},{"$f":"#REF!","v":{"$error":"#REF!"}},{"$f":"#REF!","v":{"$error":"#REF!"}},null,".",{"$f":"INDEX(EntryList,MATCH(E9,'Competitors&Timetable'!$A$1:$A$401,0),2)","v":" "},{"$f":"INDEX(EntryList,MATCH(E9,'Competitors&Timetable'!$A$1:$A$401,0),3)","v":" "},null,null,null,".",{"$f":"INDEX(EntryList,MATCH(K9,'Competitors&Timetable'!A1:A401,0),2)","v":" "},{"$f":"INDEX(EntryList,MATCH(K9,'Competitors&Timetable'!A1:A401,0),3)","v":" "}]
[null,null,null,null,".",{"$f":"INDEX(EntryList,MATCH(E10,'Competitors&Timetable'!$A$1:$A$401,0),2)","v":" "},{"$f":"INDEX(EntryList,MATCH(E10,'Competitors&Timetable'!$A$1:$A$401,0),3)","v":" "}]
[{"$f":"#REF!","v":{"$error":"#REF!"}},{"$f":"#REF!","v":{"$error":"#REF!"}},{"$f":"#REF!","v":{"$error":"#REF!"}}]
[{"$f":"#REF!","v":{"$error":"#REF!"}},{"$f":"#REF!","v":{"$error":"#REF!"}},{"$f":"#REF!","v":{"$error":"#REF!"}},null,"F02",{"$f":"INDEX('Competitors&Timetable'!F1:H144,MATCH(E12,'Competitors&Timetable'!F1:F144,0),2)","v":"Long Jump Under 13 Girls"},null,null,null,null,"F03",{"$f":"INDEX('Competitors&Timetable'!F1:H144,MATCH(K12,'Competitors&Timetable'!F1:F144,0),2)","v":"Long Jump Under 15 Girls"}]
[{"$f":"#REF!","v":{"$error":"#REF!"}},{"$f":"#REF!","v":{"$error":"#REF!"}},{"$f":"#REF!","v":{"$error":"#REF!"}},null,25,{"$f":"INDEX(EntryList,MATCH(E13,'Competitors&Timetable'!A1:A401,0),2)","v":"Katy Martin"},{"$f":"INDEX(EntryList,MATCH(E13,'Competitors&Timetable'!A1:A401,0),3)","v":"U13 Girl"},4.07,20,null,89,{"$f":"INDEX(EntryList,MATCH(K13,'Competitors&Timetable'!A1:A401,0),2)","v":"Lisa Robertson"},{"$f":"INDEX(EntryList,MATCH(K13,'Competitors&Timetable'!A1:A401,0),3)","v":"U15 Girl"},4.2300000000000004,22]
[{"$f":"#REF!","v":{"$error":"#REF!"}},{"$f":"#REF!","v":{"$error":"#REF!"}},{"$f":"#REF!","v":{"$error":"#REF!"}},null,26,{"$f":"INDEX(EntryList,MATCH(E14,'Competitors&Timetable'!A1:A401,0),2)","v":"Amy Hewitt"},{"$f":"INDEX(EntryList,MATCH(E14,'Competitors&Timetable'!A1:A401,0),3)","v":"U13 Girl"},3.89,19,null,51,{"$f":"INDEX(EntryList,MATCH(K14,'Competitors&Timetable'!A1:A401,0),2)","v":"Bethany Murray"},{"$f":"INDEX(EntryList,MATCH(K14,'Competitors&Timetable'!A1:A401,0),3)","v":"U15 Girl"},4,20]
[{"$f":"#REF!","v":{"$error":"#REF!"}},{"$f":"#REF!","v":{"$error":"#REF!"}},{"$f":"#REF!","v":{"$error":"#REF!"}},null,24,{"$f":"INDEX(EntryList,MATCH(E15,'Competitors&Timetable'!A1:A401,0),2)","v":"Rachel  Elder"},{"$f":"INDEX(EntryList,MATCH(E15,'Competitors&Timetable'!A1:A401,0),3)","v":"U13 Girl"},3.8,18,null,53,{"$f":"INDEX(EntryList,MATCH(K15,'Competitors&Timetable'!A1:A401,0),2)","v":"Megan Wilson"},{"$f":"INDEX(EntryList,MATCH(K15,'Competitors&Timetable'!A1:A401,0),3)","v":"U15 Girl"},3.77,17]
[{"$f":"#REF!","v":{"$error":"#REF!"}},{"$f":"#REF!","v":{"$error":"#REF!"}},{"$f":"#REF!","v":{"$error":"#REF!"}},null,35,{"$f":"INDEX(EntryList,MATCH(E16,'Competitors&Timetable'!A1:A401,0),2)","v":"Shona Gristwood"},{"$f":"INDEX(EntryList,MATCH(E16,'Competitors&Timetable'!A1:A401,0),3)","v":"U13 Girl"},3.73,17,null,49,{"$f":"INDEX(EntryList,MATCH(K16,'Competitors&Timetable'!A1:A401,0),2)","v":"Lauren Dickson"},{"$f":"INDEX(EntryList,MATCH(K16,'Competitors&Timetable'!A1:A401,0),3)","v":"U15 Girl"},3.75,17]
[{"$f":"#REF!","v":{"$error":"#REF!"}},{"$f":"#REF!","v":{"$error":"#REF!"}},{"$f":"#REF!","v":{"$error":"#REF!"}},null,27,{"$f":"INDEX(EntryList,MATCH(E17,'Competitors&Timetable'!A1:A401,0),2)","v":"Lucy Tod"},{"$f":"INDEX(EntryList,MATCH(E17,'Competitors&Timetable'!A1:A401,0),3)","v":"U13 Girl"},3.49,15,null,88,{"$f":"INDEX(EntryList,MATCH(K17,'Competitors&Timetable'!A1:A401,0),2)","v":"Hannah McVicar"},{"$f":"INDEX(EntryList,MATCH(K17,'Competitors&Timetable'!A1:A401,0),3)","v":"U15 Girl"},3.59,15]
[{"$f":"#REF!","v":{"$error":"#REF!"}},{"$f":"#REF!","v":{"$error":"#REF!"}},{"$f":"#REF!","v":{"$error":"#REF!"}},null,100,{"$f":"INDEX(EntryList,MATCH(E18,'Competitors&Timetable'!A1:A401,0),2)","v":"Georgia Jones"},{"$f":"INDEX(EntryList,MATCH(E18,'Competitors&Timetable'!A1:A401,0),3)","v":"U13 Girl"},3.38,14,null,57,{"$f":"INDEX(EntryList,MATCH(K18,'Competitors&Timetable'!A1:A401,0),2)","v":"Ruth McAlister"},{"$f":"INDEX(EntryList,MATCH(K18,'Competitors&Timetable'!A1:A401,0),3)","v":"U15 Girl"},3.17,11]
[{"$f":"#REF!","v":{"$error":"#REF!"}},{"$f":"#REF!","v":{"$error":"#REF!"}},{"$f":"#REF!","v":{"$error":"#REF!"}},null,32,{"$f":"INDEX(EntryList,MATCH(E19,'Competitors&Timetable'!A1:A401,0),2)","v":"Eilidh Brown"},{"$f":"INDEX(EntryList,MATCH(E19,'Competitors&Timetable'!A1:A401,0),3)","v":"U13 Girl"},3.21,13,null,".",{"$f":"INDEX(EntryList,MATCH(K19,'Competitors&Timetable'!A1:A401,0),2)","v":" "},{"$f":"INDEX(EntryList,MATCH(K19,'Competitors&Timetable'!A1:A401,0),3)","v":" "}]
[{"$f":"#REF!","v":{"$error":"#REF!"}},{"$f":"#REF!","v":{"$error":"#REF!"}},{"$f":"#REF!","v":{"$error":"#REF!"}},null,34,{"$f":"INDEX(EntryList,MATCH(E20,'Competitors&Timetable'!A1:A401,0),2)","v":"Courtney Simpson"},{"$f":"INDEX(EntryList,MATCH(E20,'Competitors&Timetable'!A1:A401,0),3)","v":"U13 Girl"},3.18,12,null,".",{"$f":"INDEX(EntryList,MATCH(K20,'Competitors&Timetable'!A1:A401,0),2)","v":" "},{"$f":"INDEX(EntryList,MATCH(K20,'Competitors&Timetable'!A1:A401,0),3)","v":" "}]
[null,null,null,null,29,{"$f":"INDEX(EntryList,MATCH(E21,'Competitors&Timetable'!$A$1:$A$401,0),2)","v":"Sarah Tait"},{"$f":"INDEX(EntryList,MATCH(E21,'Competitors&Timetable'!$A$1:$A$401,0),3)","v":"U13 Girl"},3.17,12]
[null,null,null,null,28,{"$f":"INDEX(EntryList,MATCH(E22,'Competitors&Timetable'!$A$1:$A$401,0),2)","v":"Samantha Laing"},{"$f":"INDEX(EntryList,MATCH(E22,'Competitors&Timetable'!$A$1:$A$401,0),3)","v":"U13 Girl"},3.06,10]
[null,null,null,null,30,{"$f":"INDEX(EntryList,MATCH(E23,'Competitors&Timetable'!$A$1:$A$401,0),2)","v":"Rachel  Cartledge"},{"$f":"INDEX(EntryList,MATCH(E23,'Competitors&Timetable'!$A$1:$A$401,0),3)","v":"U13 Girl"},3.02,10]
[null,null,null,null,36,{"$f":"INDEX(EntryList,MATCH(E24,'Competitors&Timetable'!$A$1:$A$401,0),2)","v":"Abbi Diamond"},{"$f":"INDEX(EntryList,MATCH(E24,'Competitors&Timetable'!$A$1:$A$401,0),3)","v":"U13 Girl"},2.9,19]
[null,null,null,null,33,{"$f":"INDEX(EntryList,MATCH(E25,'Competitors&Timetable'!$A$1:$A$401,0),2)","v":"Laura Yapp"},{"$f":"INDEX(EntryList,MATCH(E25,'Competitors&Timetable'!$A$1:$A$401,0),3)","v":"U13 Girl"},2.86,9]
[]
[{"$f":"#REF!","v":{"$error":"#REF!"}},{"$f":"#REF!","v":{"$error":"#REF!"}},{"$f":"#REF!","v":{"$error":"#REF!"}},null,"F04",{"$f":"INDEX('Competitors&Timetable'!F1:H144,MATCH(E27,'Competitors&Timetable'!F1:F144,0),2)","v":"Long Jump Under 17 Women"},null,null,null,null,"F05",{"$f":"INDEX('Competitors&Timetable'!F1:H144,MATCH(K27,'Competitors&Timetable'!F1:F144,0),2)","v":"Long Jump Under 20/23 Women"},{"$f":"INDEX(#REF!,MATCH(K27,#REF!,0),3)","v":{"$error":"#REF!"}}]
[{"$f":"#REF!","v":{"$error":"#REF!"}},{"$f":"#REF!","v":{"$error":"#REF!"}},{"$f":"#REF!","v":{"$error":"#REF!"}},null,66,{"$f":"INDEX(EntryList,MATCH(E28,'Competitors&Timetable'!A1:A401,0),2)","v":"Jenna Richards"},{"$f":"INDEX(EntryList,MATCH(E28,'Competitors&Timetable'!A1:A401,0),3)","v":"U17 Woman"},4.6900000000000004,28,null,82,{"$f":"INDEX(EntryList,MATCH(K28,'Competitors&Timetable'!A1:A401,0),2)","v":"Ellen Kristoffersen"},{"$f":"INDEX(EntryList,MATCH(K28,'Competitors&Timetable'!A1:A401,0),3)","v":"U20 Women"},4.99,34]
[{"$f":"#REF!","v":{"$error":"#REF!"}},{"$f":"#REF!","v":{"$error":"#REF!"}},{"$f":"#REF!","v":{"$error":"#REF!"}},null,".",{"$f":"INDEX(EntryList,MATCH(E29,'Competitors&Timetable'!A1:A401,0),2)","v":" "},{"$f":"INDEX(EntryList,MATCH(E29,'Competitors&Timetable'!A1:A401,0),3)","v":" "},null,null,null,".",{"$f":"INDEX(EntryList,MATCH(K29,'Competitors&Timetable'!A1:A401,0),2)","v":" "},{"$f":"INDEX(EntryList,MATCH(K29,'Competitors&Timetable'!A1:A401,0),3)","v":" "}]
[{"$f":"#REF!","v":{"$error":"#REF!"}},{"$f":"#REF!","v":{"$error":"#REF!"}},{"$f":"#REF!","v":{"$error":"#REF!"}},null,".",{"$f":"INDEX(EntryList,MATCH(E30,'Competitors&Timetable'!A1:A401,0),2)","v":" "},{"$f":"INDEX(EntryList,MATCH(E30,'Competitors&Timetable'!A1:A401,0),3)","v":" "},null,null,null,".",{"$f":"INDEX(EntryList,MATCH(K30,'Competitors&Timetable'!A1:A401,0),2)","v":" "},{"$f":"INDEX(EntryList,MATCH(K30,'Competitors&Timetable'!A1:A401,0),3)","v":" "}]
[{"$f":"#REF!","v":{"$error":"#REF!"}},{"$f":"#REF!","v":{"$error":"#REF!"}},{"$f":"#REF!","v":{"$error":"#REF!"}},null,".",{"$f":"INDEX(EntryList,MATCH(E31,'Competitors&Timetable'!A1:A401,0),2)","v":" "},{"$f":"INDEX(EntryList,MATCH(E31,'Competitors&Timetable'!A1:A401,0),3)","v":" "},null,null,null,".",{"$f":"INDEX(EntryList,MATCH(K31,'Competitors&Timetable'!A1:A401,0),2)","v":" "},{"$f":"INDEX(EntryList,MATCH(K31,'Competitors&Timetable'!A1:A401,0),3)","v":" "}]
[{"$f":"#REF!","v":{"$error":"#REF!"}},{"$f":"#REF!","v":{"$error":"#REF!"}},{"$f":"#REF!","v":{"$error":"#REF!"}},null,".",{"$f":"INDEX(EntryList,MATCH(E32,'Competitors&Timetable'!A1:A401,0),2)","v":" "},{"$f":"INDEX(EntryList,MATCH(E32,'Competitors&Timetable'!A1:A401,0),3)","v":" "},null,null,null,".",{"$f":"INDEX(EntryList,MATCH(K32,'Competitors&Timetable'!A1:A401,0),2)","v":" "},{"$f":"INDEX(EntryList,MATCH(K32,'Competitors&Timetable'!A1:A401,0),3)","v":" "}]
[{"$f":"#REF!","v":{"$error":"#REF!"}},{"$f":"#REF!","v":{"$error":"#REF!"}},{"$f":"#REF!","v":{"$error":"#REF!"}},null,".",{"$f":"INDEX(EntryList,MATCH(E33,'Competitors&Timetable'!A1:A401,0),2)","v":" "},{"$f":"INDEX(EntryList,MATCH(E33,'Competitors&Timetable'!A1:A401,0),3)","v":" "},null,null,null,".",{"$f":"INDEX(EntryList,MATCH(K33,'Competitors&Timetable'!A1:A401,0),2)","v":" "},{"$f":"INDEX(EntryList,MATCH(K33,'Competitors&Timetable'!A1:A401,0),3)","v":" "}]
[{"$f":"#REF!","v":{"$error":"#REF!"}},{"$f":"#REF!","v":{"$error":"#REF!"}},{"$f":"#REF!","v":{"$error":"#REF!"}},null,".",{"$f":"INDEX(EntryList,MATCH(E34,'Competitors&Timetable'!A1:A401,0),2)","v":" "},{"$f":"INDEX(EntryList,MATCH(E34,'Competitors&Timetable'!A1:A401,0),3)","v":" "},null,null,null,".",{"$f":"INDEX(EntryList,MATCH(K34,'Competitors&Timetable'!A1:A401,0),2)","v":" "},{"$f":"INDEX(EntryList,MATCH(K34,'Competitors&Timetable'!A1:A401,0),3)","v":" "}]
[{"$f":"#REF!","v":{"$error":"#REF!"}},{"$f":"#REF!","v":{"$error":"#REF!"}},{"$f":"#REF!","v":{"$error":"#REF!"}},null,".",{"$f":"INDEX(EntryList,MATCH(E35,'Competitors&Timetable'!A1:A401,0),2)","v":" "},{"$f":"INDEX(EntryList,MATCH(E35,'Competitors&Timetable'!A1:A401,0),3)","v":" "},null,null,null,".",{"$f":"INDEX(EntryList,MATCH(K35,'Competitors&Timetable'!A1:A401,0),2)","v":" "},{"$f":"INDEX(EntryList,MATCH(K35,'Competitors&Timetable'!A1:A401,0),3)","v":" "}]
[]
[{"$f":"#REF!","v":{"$error":"#REF!"}},{"$f":"#REF!","v":{"$error":"#REF!"}},{"$f":"#REF!","v":{"$error":"#REF!"}}]
[{"$f":"#REF!","v":{"$error":"#REF!"}},{"$f":"#REF!","v":{"$error":"#REF!"}},{"$f":"#REF!","v":{"$error":"#REF!"}},null,"F05",{"$f":"INDEX('Competitors&Timetable'!F1:H144,MATCH(E38,'Competitors&Timetable'!F1:F144,0),2)","v":"Long Jump Under 20/23 Women"},null,null,null,null,"F06",{"$f":"INDEX('Competitors&Timetable'!F1:H144,MATCH(K38,'Competitors&Timetable'!F1:F144,0),2)","v":"Long Jump Sen/Mast Women"},{"$f":"INDEX(#REF!,MATCH(K38,#REF!,0),3)","v":{"$error":"#REF!"}}]
[{"$f":"#REF!","v":{"$error":"#REF!"}},{"$f":"#REF!","v":{"$error":"#REF!"}},{"$f":"#REF!","v":{"$error":"#REF!"}},null,".",{"$f":"INDEX(EntryList,MATCH(E39,'Competitors&Timetable'!A1:A401,0),2)","v":" "},{"$f":"INDEX(EntryList,MATCH(E39,'Competitors&Timetable'!A1:A401,0),3)","v":" "},null,null,null,".",{"$f":"INDEX(EntryList,MATCH(K39,'Competitors&Timetable'!A1:A401,0),2)","v":" "},{"$f":"INDEX(EntryList,MATCH(K39,'Competitors&Timetable'!A1:A401,0),3)","v":" "}]
[{"$f":"#REF!","v":{"$error":"#REF!"}},{"$f":"#REF!","v":{"$error":"#REF!"}},{"$f":"#REF!","v":{"$error":"#REF!"}},null,".",{"$f":"INDEX(EntryList,MATCH(E40,'Competitors&Timetable'!A1:A401,0),2)","v":" "},{"$f":"INDEX(EntryList,MATCH(E40,'Competitors&Timetable'!A1:A401,0),3)","v":" "},null,null,null,".",{"$f":"INDEX(EntryList,MATCH(K40,'Competitors&Timetable'!A1:A401,0),2)","v":" "},{"$f":"INDEX(EntryList,MATCH(K40,'Competitors&Timetable'!A1:A401,0),3)","v":" "}]
[{"$f":"#REF!","v":{"$error":"#REF!"}},{"$f":"#REF!","v":{"$error":"#REF!"}},{"$f":"#REF!","v":{"$error":"#REF!"}},null,".",{"$f":"INDEX(EntryList,MATCH(E41,'Competitors&Timetable'!A1:A401,0),2)","v":" "},{"$f":"INDEX(EntryList,MATCH(E41,'Competitors&Timetable'!A1:A401,0),3)","v":" "},null,null,null,".",{"$f":"INDEX(EntryList,MATCH(K41,'Competitors&Timetable'!A1:A401,0),2)","v":" "},{"$f":"INDEX(EntryList,MATCH(K41,'Competitors&Timetable'!A1:A401,0),3)","v":" "}]
[{"$f":"#REF!","v":{"$error":"#REF!"}},{"$f":"#REF!","v":{"$error":"#REF!"}},{"$f":"#REF!","v":{"$error":"#REF!"}},null,".",{"$f":"INDEX(EntryList,MATCH(E42,'Competitors&Timetable'!A1:A401,0),2)","v":" "},{"$f":"INDEX(EntryList,MATCH(E42,'Competitors&Timetable'!A1:A401,0),3)","v":" "},null,null,null,".",{"$f":"INDEX(EntryList,MATCH(K42,'Competitors&Timetable'!A1:A401,0),2)","v":" "},{"$f":"INDEX(EntryList,MATCH(K42,'Competitors&Timetable'!A1:A401,0),3)","v":" "}]
[{"$f":"#REF!","v":{"$error":"#REF!"}},{"$f":"#REF!","v":{"$error":"#REF!"}},{"$f":"#REF!","v":{"$error":"#REF!"}},null,".",{"$f":"INDEX(EntryList,MATCH(E43,'Competitors&Timetable'!A1:A401,0),2)","v":" "},{"$f":"INDEX(EntryList,MATCH(E43,'Competitors&Timetable'!A1:A401,0),3)","v":" "},null,null,null,".",{"$f":"INDEX(EntryList,MATCH(K43,'Competitors&Timetable'!A1:A401,0),2)","v":" "},{"$f":"INDEX(EntryList,MATCH(K43,'Competitors&Timetable'!A1:A401,0),3)","v":" "}]
[{"$f":"#REF!","v":{"$error":"#REF!"}},{"$f":"#REF!","v":{"$error":"#REF!"}},{"$f":"#REF!","v":{"$error":"#REF!"}},null,".",{"$f":"INDEX(EntryList,MATCH(E44,'Competitors&Timetable'!A1:A401,0),2)","v":" "},{"$f":"INDEX(EntryList,MATCH(E44,'Competitors&Timetable'!A1:A401,0),3)","v":" "},null,null,null,".",{"$f":"INDEX(EntryList,MATCH(K44,'Competitors&Timetable'!A1:A401,0),2)","v":" "},{"$f":"INDEX(EntryList,MATCH(K44,'Competitors&Timetable'!A1:A401,0),3)","v":" "}]
[null,null,null,null,".",{"$f":"INDEX(EntryList,MATCH(E45,'Competitors&Timetable'!A1:A401,0),2)","v":" "},{"$f":"INDEX(EntryList,MATCH(E45,'Competitors&Timetable'!A1:A401,0),3)","v":" "},null,null,null,".",{"$f":"INDEX(EntryList,MATCH(K45,'Competitors&Timetable'!A1:A401,0),2)","v":" "},{"$f":"INDEX(EntryList,MATCH(K45,'Competitors&Timetable'!A1:A401,0),3)","v":" "}]
[null,null,null,null,".",{"$f":"INDEX(EntryList,MATCH(E46,'Competitors&Timetable'!A1:A401,0),2)","v":" "},{"$f":"INDEX(EntryList,MATCH(E46,'Competitors&Timetable'!A1:A401,0),3)","v":" "},null,null,null,".",{"$f":"INDEX(EntryList,MATCH(K46,'Competitors&Timetable'!A1:A401,0),2)","v":" "},{"$f":"INDEX(EntryList,MATCH(K46,'Competitors&Timetable'!A1:A401,0),3)","v":" "}]
[null,null,null,null,null,null,null,null,null,null,".",{"$f":"INDEX(EntryList,MATCH(K47,'Competitors&Timetable'!A1:A401,0),2)","v":" "},{"$f":"INDEX(EntryList,MATCH(K47,'Competitors&Timetable'!A1:A401,0),3)","v":" "}]
[]
[{"$f":"#REF!","v":{"$error":"#REF!"}},{"$f":"#REF!","v":{"$error":"#REF!"}},{"$f":"#REF!","v":{"$error":"#REF!"}},null,"F07",{"$f":"INDEX('Competitors&Timetable'!F1:H144,MATCH(E49,'Competitors&Timetable'!F1:F144,0),2)","v":"Shot Putt Under 11 Girls"},null,null,null,null,"F08",{"$f":"INDEX('Competitors&Timetable'!F1:H144,MATCH(K49,'Competitors&Timetable'!F1:F144,0),2)","v":"Shot Putt Under 13 Girls"},{"$f":"INDEX(#REF!,MATCH(K49,#REF!,0),3)","v":{"$error":"#REF!"}}]
[{"$f":"#REF!","v":{"$error":"#REF!"}},{"$f":"#REF!","v":{"$error":"#REF!"}},{"$f":"#REF!","v":{"$error":"#REF!"}},null,15,{"$f":"INDEX(EntryList,MATCH(E50,'Competitors&Timetable'!A1:A401,0),2)","v":"Megan McLaughlin"},{"$f":"INDEX(EntryList,MATCH(E50,'Competitors&Timetable'!A1:A401,0),3)","v":"U11 Girl"},3.73,5,null,37,{"$f":"INDEX(EntryList,MATCH(K50,'Competitors&Timetable'!A1:A401,0),2)","v":"Sarah Robertson"},{"$f":"INDEX(EntryList,MATCH(K50,'Competitors&Timetable'!A1:A401,0),3)","v":"U13 Girl"},5.82,15]
[{"$f":"#REF!","v":{"$error":"#REF!"}},{"$f":"#REF!","v":{"$error":"#REF!"}},{"$f":"#REF!","v":{"$error":"#REF!"}},null,14,{"$f":"INDEX(EntryList,MATCH(E51,'Competitors&Timetable'!A1:A401,0),2)","v":"Ellie Baxter"},{"$f":"INDEX(EntryList,MATCH(E51,'Competitors&Timetable'!A1:A401,0),3)","v":"U11 Girl"},2.97,1,null,36,{"$f":"INDEX(EntryList,MATCH(K51,'Competitors&Timetable'!A1:A401,0),2)","v":"Abbi Diamond"},{"$f":"INDEX(EntryList,MATCH(K51,'Competitors&Timetable'!A1:A401,0),3)","v":"U13 Girl"},3.6,4]
[{"$f":"#REF!","v":{"$error":"#REF!"}},{"$f":"#REF!","v":{"$error":"#REF!"}},{"$f":"#REF!","v":{"$error":"#REF!"}},null,".",{"$f":"INDEX(EntryList,MATCH(E52,'Competitors&Timetable'!A1:A401,0),2)","v":" "},{"$f":"INDEX(EntryList,MATCH(E52,'Competitors&Timetable'!A1:A401,0),3)","v":" "},null,null,null,".",{"$f":"INDEX(EntryList,MATCH(K52,'Competitors&Timetable'!A1:A401,0),2)","v":" "},{"$f":"INDEX(EntryList,MATCH(K52,'Competitors&Timetable'!A1:A401,0),3)","v":" "}]
[{"$f":"#REF!","v":{"$error":"#REF!"}},{"$f":"#REF!","v":{"$error":"#REF!"}},{"$f":"#REF!","v":{"$error":"#REF!"}},null,".",{"$f":"INDEX(EntryList,MATCH(E53,'Competitors&Timetable'!A1:A401,0),2)","v":" "},{"$f":"INDEX(EntryList,MATCH(E53,'Competitors&Timetable'!A1:A401,0),3)","v":" "},null,null,null,".",{"$f":"INDEX(EntryList,MATCH(K53,'Competitors&Timetable'!A1:A401,0),2)","v":" "},{"$f":"INDEX(EntryList,MATCH(K53,'Competitors&Timetable'!A1:A401,0),3)","v":" "}]
[null,null,null,null,".",{"$f":"INDEX(EntryList,MATCH(E54,'Competitors&Timetable'!A1:A401,0),2)","v":" "},{"$f":"INDEX(EntryList,MATCH(E54,'Competitors&Timetable'!A1:A401,0),3)","v":" "},null,null,null,".",{"$f":"INDEX(EntryList,MATCH(K54,'Competitors&Timetable'!A1:A401,0),2)","v":" "},{"$f":"INDEX(EntryList,MATCH(K54,'Competitors&Timetable'!A1:A401,0),3)","v":" "}]
[null,null,null,null,".",{"$f":"INDEX(EntryList,MATCH(E55,'Competitors&Timetable'!A1:A401,0),2)","v":" "},{"$f":"INDEX(EntryList,MATCH(E55,'Competitors&Timetable'!A1:A401,0),3)","v":" "},null,null,null,".",{"$f":"INDEX(EntryList,MATCH(K55,'Competitors&Timetable'!A1:A401,0),2)","v":" "},{"$f":"INDEX(EntryList,MATCH(K55,'Competitors&Timetable'!A1:A401,0),3)","v":" "}]
[{"$f":"#REF!","v":{"$error":"#REF!"}},{"$f":"#REF!","v":{"$error":"#REF!"}},{"$f":"#REF!","v":{"$error":"#REF!"}},null,".",{"$f":"INDEX(EntryList,MATCH(E56,'Competitors&Timetable'!A1:A401,0),2)","v":" "},{"$f":"INDEX(EntryList,MATCH(E56,'Competitors&Timetable'!A1:A401,0),3)","v":" "},null,null,null,".",{"$f":"INDEX(EntryList,MATCH(K56,'Competitors&Timetable'!A1:A401,0),2)","v":" "},{"$f":"INDEX(EntryList,MATCH(K56,'Competitors&Timetable'!A1:A401,0),3)","v":" "}]
[{"$f":"#REF!","v":{"$error":"#REF!"}},{"$f":"#REF!","v":{"$error":"#REF!"}},{"$f":"#REF!","v":{"$error":"#REF!"}},null,".",{"$f":"INDEX(EntryList,MATCH(E57,'Competitors&Timetable'!A1:A401,0),2)","v":" "},{"$f":"INDEX(EntryList,MATCH(E57,'Competitors&Timetable'!A1:A401,0),3)","v":" "},null,null,null,".",{"$f":"INDEX(EntryList,MATCH(K57,'Competitors&Timetable'!A1:A401,0),2)","v":" "},{"$f":"INDEX(EntryList,MATCH(K57,'Competitors&Timetable'!A1:A401,0),3)","v":" "}]
[]
[{"$f":"#REF!","v":{"$error":"#REF!"}},{"$f":"#REF!","v":{"$error":"#REF!"}},{"$f":"#REF!","v":{"$error":"#REF!"}}]
[{"$f":"#REF!","v":{"$error":"#REF!"}},{"$f":"#REF!","v":{"$error":"#REF!"}},{"$f":"#REF!","v":{"$error":"#REF!"}},null,"F09",{"$f":"INDEX('Competitors&Timetable'!F1:H144,MATCH(E60,'Competitors&Timetable'!F1:F144,0),2)","v":"Shot Putt Under 15 Girls"},{"$f":"INDEX(#REF!,MATCH(E60,#REF!,0),3)","v":{"$error":"#REF!"}},null,null,null,"F10",{"$f":"INDEX('Competitors&Timetable'!F1:H144,MATCH(K60,'Competitors&Timetable'!F1:F144,0),2)","v":"Shot Putt Under 17 Women"},{"$f":"INDEX(#REF!,MATCH(K60,#REF!,0),3)","v":{"$error":"#REF!"}}]
[{"$f":"#REF!","v":{"$error":"#REF!"}},{"$f":"#REF!","v":{"$error":"#REF!"}},{"$f":"#REF!","v":{"$error":"#REF!"}},null,50,{"$f":"INDEX(EntryList,MATCH(E61,'Competitors&Timetable'!A1:A401,0),2)","v":"Imogen Wilson"},{"$f":"INDEX(EntryList,MATCH(E61,'Competitors&Timetable'!A1:A401,0),3)","v":"U15 Girl"},6.76,19,null,68,{"$f":"INDEX(EntryList,MATCH(K61,'Competitors&Timetable'!A1:A401,0),2)","v":"Sophie Miller"},{"$f":"INDEX(EntryList,MATCH(K61,'Competitors&Timetable'!A1:A401,0),3)","v":"U17 Woman"},4.3,7]
[{"$f":"#REF!","v":{"$error":"#REF!"}},{"$f":"#REF!","v":{"$error":"#REF!"}},{"$f":"#REF!","v":{"$error":"#REF!"}},null,48,{"$f":"INDEX(EntryList,MATCH(E62,'Competitors&Timetable'!A1:A401,0),2)","v":"Niamh Fellenger"},{"$f":"INDEX(EntryList,MATCH(E62,'Competitors&Timetable'!A1:A401,0),3)","v":"U15 Girl"},6.02,16,null,".",{"$f":"INDEX(EntryList,MATCH(K62,'Competitors&Timetable'!A1:A401,0),2)","v":" "},{"$f":"INDEX(EntryList,MATCH(K62,'Competitors&Timetable'!A1:A401,0),3)","v":" "}]
[{"$f":"#REF!","v":{"$error":"#REF!"}},{"$f":"#REF!","v":{"$error":"#REF!"}},{"$f":"#REF!","v":{"$error":"#REF!"}},null,55,{"$f":"INDEX(EntryList,MATCH(E63,'Competitors&Timetable'!A1:A401,0),2)","v":"Anita Musenga"},{"$f":"INDEX(EntryList,MATCH(E63,'Competitors&Timetable'!A1:A401,0),3)","v":"U15 Girl"},5.79,14,null,".",{"$f":"INDEX(EntryList,MATCH(K63,'Competitors&Timetable'!A1:A401,0),2)","v":" "},{"$f":"INDEX(EntryList,MATCH(K63,'Competitors&Timetable'!A1:A401,0),3)","v":" "}]
[{"$f":"#REF!","v":{"$error":"#REF!"}},{"$f":"#REF!","v":{"$error":"#REF!"}},{"$f":"#REF!","v":{"$error":"#REF!"}},null,".",{"$f":"INDEX(EntryList,MATCH(E64,'Competitors&Timetable'!A1:A401,0),2)","v":" "},{"$f":"INDEX(EntryList,MATCH(E64,'Competitors&Timetable'!A1:A401,0),3)","v":" "},null,null,null,".",{"$f":"INDEX(EntryList,MATCH(K64,'Competitors&Timetable'!A1:A401,0),2)","v":" "},{"$f":"INDEX(EntryList,MATCH(K64,'Competitors&Timetable'!A1:A401,0),3)","v":" "}]
[{"$f":"#REF!","v":{"$error":"#REF!"}},{"$f":"#REF!","v":{"$error":"#REF!"}},{"$f":"#REF!","v":{"$error":"#REF!"}},null,".",{"$f":"INDEX(EntryList,MATCH(E65,'Competitors&Timetable'!A1:A401,0),2)","v":" "},{"$f":"INDEX(EntryList,MATCH(E65,'Competitors&Timetable'!A1:A401,0),3)","v":" "},null,null,null,".",{"$f":"INDEX(EntryList,MATCH(K65,'Competitors&Timetable'!A1:A401,0),2)","v":" "},{"$f":"INDEX(EntryList,MATCH(K65,'Competitors&Timetable'!A1:A401,0),3)","v":" "}]
[{"$f":"#REF!","v":{"$error":"#REF!"}},{"$f":"#REF!","v":{"$error":"#REF!"}},{"$f":"#REF!","v":{"$error":"#REF!"}},null,".",{"$f":"INDEX(EntryList,MATCH(E66,'Competitors&Timetable'!A1:A401,0),2)","v":" "},{"$f":"INDEX(EntryList,MATCH(E66,'Competitors&Timetable'!A1:A401,0),3)","v":" "},null,null,null,".",{"$f":"INDEX(EntryList,MATCH(K66,'Competitors&Timetable'!A1:A401,0),2)","v":" "},{"$f":"INDEX(EntryList,MATCH(K66,'Competitors&Timetable'!A1:A401,0),3)","v":" "}]
[{"$f":"#REF!","v":{"$error":"#REF!"}},{"$f":"#REF!","v":{"$error":"#REF!"}},{"$f":"#REF!","v":{"$error":"#REF!"}},null,".",{"$f":"INDEX(EntryList,MATCH(E67,'Competitors&Timetable'!A1:A401,0),2)","v":" "},{"$f":"INDEX(EntryList,MATCH(E67,'Competitors&Timetable'!A1:A401,0),3)","v":" "},null,null,null,".",{"$f":"INDEX(EntryList,MATCH(K67,'Competitors&Timetable'!A1:A401,0),2)","v":" "},{"$f":"INDEX(EntryList,MATCH(K67,'Competitors&Timetable'!A1:A401,0),3)","v":" "}]
[null,null,null,null,".",{"$f":"INDEX(EntryList,MATCH(E68,'Competitors&Timetable'!A1:A401,0),2)","v":" "},{"$f":"INDEX(EntryList,MATCH(E68,'Competitors&Timetable'!A1:A401,0),3)","v":" "},null,null,null,".",{"$f":"INDEX(EntryList,MATCH(K68,'Competitors&Timetable'!A1:A401,0),2)","v":" "},{"$f":"INDEX(EntryList,MATCH(K68,'Competitors&Timetable'!A1:A401,0),3)","v":" "}]
[]
[]
[null,null,null,null,"F11",{"$f":"INDEX('Competitors&Timetable'!F1:H144,MATCH(E71,'Competitors&Timetable'!F1:F144,0),2)","v":"Shot Putt Under 20/23 Women"},{"$f":"INDEX(#REF!,MATCH(E71,#REF!,0),3)","v":{"$error":"#REF!"}},null,null,null,"F12",{"$f":"INDEX('Competitors&Timetable'!F1:H144,MATCH(K71,'Competitors&Timetable'!F1:F144,0),2)","v":"Shot Putt Sen/Mast Women"},{"$f":"INDEX(#REF!,MATCH(K71,#REF!,0),3)","v":{"$error":"#REF!"}}]
[null,null,null,null,81,{"$f":"INDEX(EntryList,MATCH(E72,'Competitors&Timetable'!A1:A401,0),2)","v":"Amy Frankland"},{"$f":"INDEX(EntryList,MATCH(E72,'Competitors&Timetable'!A1:A401,0),3)","v":"U20 Women"},5.43,13,null,83,{"$f":"INDEX(EntryList,MATCH(K72,'Competitors&Timetable'!A1:A401,0),2)","v":"Karen McKinlay"},{"$f":"INDEX(EntryList,MATCH(K72,'Competitors&Timetable'!A1:A401,0),3)","v":"Sen Women"},5.27,12]
[null,null,null,null,".",{"$f":"INDEX(EntryList,MATCH(E73,'Competitors&Timetable'!A1:A401,0),2)","v":" "},{"$f":"INDEX(EntryList,MATCH(E73,'Competitors&Timetable'!A1:A401,0),3)","v":" "},null,null,null,".",{"$f":"INDEX(EntryList,MATCH(K73,'Competitors&Timetable'!A1:A401,0),2)","v":" "},{"$f":"INDEX(EntryList,MATCH(K73,'Competitors&Timetable'!A1:A401,0),3)","v":" "}]
[null,null,null,null,".",{"$f":"INDEX(EntryList,MATCH(E74,'Competitors&Timetable'!A1:A401,0),2)","v":" "},{"$f":"INDEX(EntryList,MATCH(E74,'Competitors&Timetable'!A1:A401,0),3)","v":" "},null,null,null,".",{"$f":"INDEX(EntryList,MATCH(K74,'Competitors&Timetable'!A1:A401,0),2)","v":" "},{"$f":"INDEX(EntryList,MATCH(K74,'Competitors&Timetable'!A1:A401,0),3)","v":" "}]
[null,null,null,null,".",{"$f":"INDEX(EntryList,MATCH(E75,'Competitors&Timetable'!A1:A401,0),2)","v":" "},{"$f":"INDEX(EntryList,MATCH(E75,'Competitors&Timetable'!A1:A401,0),3)","v":" "},null,null,null,".",{"$f":"INDEX(EntryList,MATCH(K75,'Competitors&Timetable'!A1:A401,0),2)","v":" "},{"$f":"INDEX(EntryList,MATCH(K75,'Competitors&Timetable'!A1:A401,0),3)","v":" "}]
[null,null,null,null,".",{"$f":"INDEX(EntryList,MATCH(E76,'Competitors&Timetable'!A1:A401,0),2)","v":" "},{"$f":"INDEX(EntryList,MATCH(E76,'Competitors&Timetable'!A1:A401,0),3)","v":" "},null,null,null,".",{"$f":"INDEX(EntryList,MATCH(K76,'Competitors&Timetable'!A1:A401,0),2)","v":" "},{"$f":"INDEX(EntryList,MATCH(K76,'Competitors&Timetable'!A1:A401,0),3)","v":" "}]
[null,null,null,null,".",{"$f":"INDEX(EntryList,MATCH(E77,'Competitors&Timetable'!A1:A401,0),2)","v":" "},{"$f":"INDEX(EntryList,MATCH(E77,'Competitors&Timetable'!A1:A401,0),3)","v":" "},null,null,null,".",{"$f":"INDEX(EntryList,MATCH(K77,'Competitors&Timetable'!A1:A401,0),2)","v":" "},{"$f":"INDEX(EntryList,MATCH(K77,'Competitors&Timetable'!A1:A401,0),3)","v":" "}]
[null,null,null,null,".",{"$f":"INDEX(EntryList,MATCH(E78,'Competitors&Timetable'!A1:A401,0),2)","v":" "},{"$f":"INDEX(EntryList,MATCH(E78,'Competitors&Timetable'!A1:A401,0),3)","v":" "},null,null,null,".",{"$f":"INDEX(EntryList,MATCH(K78,'Competitors&Timetable'!A1:A401,0),2)","v":" "},{"$f":"INDEX(EntryList,MATCH(K78,'Competitors&Timetable'!A1:A401,0),3)","v":" "}]
[null,null,null,null,".",{"$f":"INDEX(EntryList,MATCH(E79,'Competitors&Timetable'!A1:A401,0),2)","v":" "},{"$f":"INDEX(EntryList,MATCH(E79,'Competitors&Timetable'!A1:A401,0),3)","v":" "},null,null,null,".",{"$f":"INDEX(EntryList,MATCH(K79,'Competitors&Timetable'!A1:A401,0),2)","v":" "},{"$f":"INDEX(EntryList,MATCH(K79,'Competitors&Timetable'!A1:A401,0),3)","v":" "}]
[]
[]
[null,null,null,null,"F13",{"$f":"INDEX('Competitors&Timetable'!F1:H144,MATCH(E82,'Competitors&Timetable'!F1:F144,0),2)","v":"High Jump Under 11 Girls"},{"$f":"INDEX(#REF!,MATCH(E82,#REF!,0),3)","v":{"$error":"#REF!"}},null,null,null,"F14",{"$f":"INDEX('Competitors&Timetable'!F1:H144,MATCH(K82,'Competitors&Timetable'!F1:F144,0),2)","v":"High Jump Under 13 Girls"},{"$f":"INDEX(#REF!,MATCH(K82,#REF!,0),3)","v":{"$error":"#REF!"}}]
[null,null,null,null,11,{"$f":"INDEX(EntryList,MATCH(E83,'Competitors&Timetable'!A1:A401,0),2)","v":"Holli Boyd"},{"$f":"INDEX(EntryList,MATCH(E83,'Competitors&Timetable'!A1:A401,0),3)","v":"U11 Girl"},"1,15",15,null,37,{"$f":"INDEX(EntryList,MATCH(K83,'Competitors&Timetable'!A1:A401,0),2)","v":"Sarah Robertson"},{"$f":"INDEX(EntryList,MATCH(K83,'Competitors&Timetable'!A1:A401,0),3)","v":"U13 Girl"},"1,25",20]
[null,null,null,null,".",{"$f":"INDEX(EntryList,MATCH(E84,'Competitors&Timetable'!A1:A401,0),2)","v":" "},{"$f":"INDEX(EntryList,MATCH(E84,'Competitors&Timetable'!A1:A401,0),3)","v":" "},null,null,null,35,{"$f":"INDEX(EntryList,MATCH(K84,'Competitors&Timetable'!A1:A401,0),2)","v":"Shona Gristwood"},{"$f":"INDEX(EntryList,MATCH(K84,'Competitors&Timetable'!A1:A401,0),3)","v":"U13 Girl"},"1,25",20]
[null,null,null,null,".",{"$f":"INDEX(EntryList,MATCH(E85,'Competitors&Timetable'!A1:A401,0),2)","v":" "},{"$f":"INDEX(EntryList,MATCH(E85,'Competitors&Timetable'!A1:A401,0),3)","v":" "},null,null,null,87,{"$f":"INDEX(EntryList,MATCH(K85,'Competitors&Timetable'!A1:A401,0),2)","v":"Olivia Harris"},{"$f":"INDEX(EntryList,MATCH(K85,'Competitors&Timetable'!A1:A401,0),3)","v":"U13 Girl"},"1,25",20]
[null,null,null,null,".",{"$f":"INDEX(EntryList,MATCH(E86,'Competitors&Timetable'!A1:A401,0),2)","v":" "},{"$f":"INDEX(EntryList,MATCH(E86,'Competitors&Timetable'!A1:A401,0),3)","v":" "},null,null,null,24,{"$f":"INDEX(EntryList,MATCH(K86,'Competitors&Timetable'!A1:A401,0),2)","v":"Rachel  Elder"},{"$f":"INDEX(EntryList,MATCH(K86,'Competitors&Timetable'!A1:A401,0),3)","v":"U13 Girl"},"1,10",12]
[null,null,null,null,".",{"$f":"INDEX(EntryList,MATCH(E87,'Competitors&Timetable'!A1:A401,0),2)","v":" "},{"$f":"INDEX(EntryList,MATCH(E87,'Competitors&Timetable'!A1:A401,0),3)","v":" "},null,null,null,".",{"$f":"INDEX(EntryList,MATCH(K87,'Competitors&Timetable'!A1:A401,0),2)","v":" "},{"$f":"INDEX(EntryList,MATCH(K87,'Competitors&Timetable'!A1:A401,0),3)","v":" "}]
[null,null,null,null,".",{"$f":"INDEX(EntryList,MATCH(E88,'Competitors&Timetable'!A1:A401,0),2)","v":" "},{"$f":"INDEX(EntryList,MATCH(E88,'Competitors&Timetable'!A1:A401,0),3)","v":" "},null,null,null,".",{"$f":"INDEX(EntryList,MATCH(K88,'Competitors&Timetable'!A1:A401,0),2)","v":" "},{"$f":"INDEX(EntryList,MATCH(K88,'Competitors&Timetable'!A1:A401,0),3)","v":" "}]
[null,null,null,null,".",{"$f":"INDEX(EntryList,MATCH(E89,'Competitors&Timetable'!A1:A401,0),2)","v":" "},{"$f":"INDEX(EntryList,MATCH(E89,'Competitors&Timetable'!A1:A401,0),3)","v":" "},null,null,null,".",{"$f":"INDEX(EntryList,MATCH(K89,'Competitors&Timetable'!A1:A401,0),2)","v":" "},{"$f":"INDEX(EntryList,MATCH(K89,'Competitors&Timetable'!A1:A401,0),3)","v":" "}]
[null,null,null,null,".",{"$f":"INDEX(EntryList,MATCH(E90,'Competitors&Timetable'!A1:A401,0),2)","v":" "},{"$f":"INDEX(EntryList,MATCH(E90,'Competitors&Timetable'!A1:A401,0),3)","v":" "},null,null,null,".",{"$f":"INDEX(EntryList,MATCH(K90,'Competitors&Timetable'!A1:A401,0),2)","v":" "},{"$f":"INDEX(EntryList,MATCH(K90,'Competitors&Timetable'!A1:A401,0),3)","v":" "}]
[]
[]
[null,null,null,null,"F15",{"$f":"INDEX('Competitors&Timetable'!F1:H144,MATCH(E93,'Competitors&Timetable'!F1:F144,0),2)","v":"High Jump Under 15 Girls"},{"$f":"INDEX(#REF!,MATCH(E93,#REF!,0),3)","v":{"$error":"#REF!"}},null,null,null,"F16",{"$f":"INDEX('Competitors&Timetable'!F1:H144,MATCH(K93,'Competitors&Timetable'!F1:F144,0),2)","v":"High Jump Under 17 Women"},{"$f":"INDEX(#REF!,MATCH(K93,#REF!,0),3)","v":{"$error":"#REF!"}}]
[null,null,null,null,50,{"$f":"INDEX(EntryList,MATCH(E94,'Competitors&Timetable'!A1:A401,0),2)","v":"Imogen Wilson"},{"$f":"INDEX(EntryList,MATCH(E94,'Competitors&Timetable'!A1:A401,0),3)","v":"U15 Girl"},"1,45",30,null,66,{"$f":"INDEX(EntryList,MATCH(K94,'Competitors&Timetable'!A1:A401,0),2)","v":"Jenna Richards"},{"$f":"INDEX(EntryList,MATCH(K94,'Competitors&Timetable'!A1:A401,0),3)","v":"U17 Woman"},"1,45",30]
[null,null,null,null,59,{"$f":"INDEX(EntryList,MATCH(E95,'Competitors&Timetable'!A1:A401,0),2)","v":"Kirsty Robertson"},{"$f":"INDEX(EntryList,MATCH(E95,'Competitors&Timetable'!A1:A401,0),3)","v":"U15 Girl"},"1,25",20,null,".",{"$f":"INDEX(EntryList,MATCH(K95,'Competitors&Timetable'!A1:A401,0),2)","v":" "},{"$f":"INDEX(EntryList,MATCH(K95,'Competitors&Timetable'!A1:A401,0),3)","v":" "}]
[null,null,null,null,".",{"$f":"INDEX(EntryList,MATCH(E96,'Competitors&Timetable'!A1:A401,0),2)","v":" "},{"$f":"INDEX(EntryList,MATCH(E96,'Competitors&Timetable'!A1:A401,0),3)","v":" "},null,null,null,".",{"$f":"INDEX(EntryList,MATCH(K96,'Competitors&Timetable'!A1:A401,0),2)","v":" "},{"$f":"INDEX(EntryList,MATCH(K96,'Competitors&Timetable'!A1:A401,0),3)","v":" "}]
[null,null,null,null,".",{"$f":"INDEX(EntryList,MATCH(E97,'Competitors&Timetable'!A1:A401,0),2)","v":" "},{"$f":"INDEX(EntryList,MATCH(E97,'Competitors&Timetable'!A1:A401,0),3)","v":" "},null,null,null,".",{"$f":"INDEX(EntryList,MATCH(K97,'Competitors&Timetable'!A1:A401,0),2)","v":" "},{"$f":"INDEX(EntryList,MATCH(K97,'Competitors&Timetable'!A1:A401,0),3)","v":" "}]
[null,null,null,null,".",{"$f":"INDEX(EntryList,MATCH(E98,'Competitors&Timetable'!A1:A401,0),2)","v":" "},{"$f":"INDEX(EntryList,MATCH(E98,'Competitors&Timetable'!A1:A401,0),3)","v":" "},null,null,null,".",{"$f":"INDEX(EntryList,MATCH(K98,'Competitors&Timetable'!A1:A401,0),2)","v":" "},{"$f":"INDEX(EntryList,MATCH(K98,'Competitors&Timetable'!A1:A401,0),3)","v":" "}]
[null,null,null,null,".",{"$f":"INDEX(EntryList,MATCH(E99,'Competitors&Timetable'!A1:A401,0),2)","v":" "},{"$f":"INDEX(EntryList,MATCH(E99,'Competitors&Timetable'!A1:A401,0),3)","v":" "},null,null,null,".",{"$f":"INDEX(EntryList,MATCH(K99,'Competitors&Timetable'!A1:A401,0),2)","v":" "},{"$f":"INDEX(EntryList,MATCH(K99,'Competitors&Timetable'!A1:A401,0),3)","v":" "}]
[null,null,null,null,".",{"$f":"INDEX(EntryList,MATCH(E100,'Competitors&Timetable'!A1:A401,0),2)","v":" "},{"$f":"INDEX(EntryList,MATCH(E100,'Competitors&Timetable'!A1:A401,0),3)","v":" "},null,null,null,".",{"$f":"INDEX(EntryList,MATCH(K100,'Competitors&Timetable'!A1:A401,0),2)","v":" "},{"$f":"INDEX(EntryList,MATCH(K100,'Competitors&Timetable'!A1:A401,0),3)","v":" "}]
[null,null,null,null,".",{"$f":"INDEX(EntryList,MATCH(E101,'Competitors&Timetable'!A1:A401,0),2)","v":" "},{"$f":"INDEX(EntryList,MATCH(E101,'Competitors&Timetable'!A1:A401,0),3)","v":" "},null,null,null,".",{"$f":"INDEX(EntryList,MATCH(K101,'Competitors&Timetable'!A1:A401,0),2)","v":" "},{"$f":"INDEX(EntryList,MATCH(K101,'Competitors&Timetable'!A1:A401,0),3)","v":" "}]
[]
[]
[null,null,null,null,"F17",{"$f":"INDEX('Competitors&Timetable'!F1:H144,MATCH(E104,'Competitors&Timetable'!F1:F144,0),2)","v":"High Jump Under 20/23 Women"},{"$f":"INDEX(#REF!,MATCH(E104,#REF!,0),3)","v":{"$error":"#REF!"}},null,null,null,"F18",{"$f":"INDEX('Competitors&Timetable'!F1:H144,MATCH(K104,'Competitors&Timetable'!F1:F144,0),2)","v":"High Jump Sen/Mast Women"},{"$f":"INDEX(#REF!,MATCH(K104,#REF!,0),3)","v":{"$error":"#REF!"}}]
[null,null,null,null,82,{"$f":"INDEX(EntryList,MATCH(E105,'Competitors&Timetable'!A1:A401,0),2)","v":"Ellen Kristoffersen"},{"$f":"INDEX(EntryList,MATCH(E105,'Competitors&Timetable'!A1:A401,0),3)","v":"U20 Women"},"1,65",50,null,".",{"$f":"INDEX(EntryList,MATCH(K105,'Competitors&Timetable'!A1:A401,0),2)","v":" "},{"$f":"INDEX(EntryList,MATCH(K105,'Competitors&Timetable'!A1:A401,0),3)","v":" "}]
[null,null,null,null,".",{"$f":"INDEX(EntryList,MATCH(E106,'Competitors&Timetable'!A1:A401,0),2)","v":" "},{"$f":"INDEX(EntryList,MATCH(E106,'Competitors&Timetable'!A1:A401,0),3)","v":" "},null,null,null,".",{"$f":"INDEX(EntryList,MATCH(K106,'Competitors&Timetable'!A1:A401,0),2)","v":" "},{"$f":"INDEX(EntryList,MATCH(K106,'Competitors&Timetable'!A1:A401,0),3)","v":" "}]
[null,null,null,null,".",{"$f":"INDEX(EntryList,MATCH(E107,'Competitors&Timetable'!A1:A401,0),2)","v":" "},{"$f":"INDEX(EntryList,MATCH(E107,'Competitors&Timetable'!A1:A401,0),3)","v":" "},null,null,null,".",{"$f":"INDEX(EntryList,MATCH(K107,'Competitors&Timetable'!A1:A401,0),2)","v":" "},{"$f":"INDEX(EntryList,MATCH(K107,'Competitors&Timetable'!A1:A401,0),3)","v":" "}]
[null,null,null,null,".",{"$f":"INDEX(EntryList,MATCH(E108,'Competitors&Timetable'!A1:A401,0),2)","v":" "},{"$f":"INDEX(EntryList,MATCH(E108,'Competitors&Timetable'!A1:A401,0),3)","v":" "},null,null,null,".",{"$f":"INDEX(EntryList,MATCH(K108,'Competitors&Timetable'!A1:A401,0),2)","v":" "},{"$f":"INDEX(EntryList,MATCH(K108,'Competitors&Timetable'!A1:A401,0),3)","v":" "}]
[null,null,null,null,".",{"$f":"INDEX(EntryList,MATCH(E109,'Competitors&Timetable'!A1:A401,0),2)","v":" "},{"$f":"INDEX(EntryList,MATCH(E109,'Competitors&Timetable'!A1:A401,0),3)","v":" "},null,null,null,".",{"$f":"INDEX(EntryList,MATCH(K109,'Competitors&Timetable'!A1:A401,0),2)","v":" "},{"$f":"INDEX(EntryList,MATCH(K109,'Competitors&Timetable'!A1:A401,0),3)","v":" "}]
[null,null,null,null,".",{"$f":"INDEX(EntryList,MATCH(E110,'Competitors&Timetable'!A1:A401,0),2)","v":" "},{"$f":"INDEX(EntryList,MATCH(E110,'Competitors&Timetable'!A1:A401,0),3)","v":" "},null,null,null,".",{"$f":"INDEX(EntryList,MATCH(K110,'Competitors&Timetable'!A1:A401,0),2)","v":" "},{"$f":"INDEX(EntryList,MATCH(K110,'Competitors&Timetable'!A1:A401,0),3)","v":" "}]
[null,null,null,null,".",{"$f":"INDEX(EntryList,MATCH(E111,'Competitors&Timetable'!A1:A401,0),2)","v":" "},{"$f":"INDEX(EntryList,MATCH(E111,'Competitors&Timetable'!A1:A401,0),3)","v":" "},null,null,null,".",{"$f":"INDEX(EntryList,MATCH(K111,'Competitors&Timetable'!A1:A401,0),2)","v":" "},{"$f":"INDEX(EntryList,MATCH(K111,'Competitors&Timetable'!A1:A401,0),3)","v":" "}]
[null,null,null,null,".",{"$f":"INDEX(EntryList,MATCH(E112,'Competitors&Timetable'!A1:A401,0),2)","v":" "},{"$f":"INDEX(EntryList,MATCH(E112,'Competitors&Timetable'!A1:A401,0),3)","v":" "},null,null,null,".",{"$f":"INDEX(EntryList,MATCH(K112,'Competitors&Timetable'!A1:A401,0),2)","v":" "},{"$f":"INDEX(EntryList,MATCH(K112,'Competitors&Timetable'!A1:A401,0),3)","v":" "}]
[]
[]
[null,null,null,null,"F19","Triple Jump Under 15 Boys",{"$f":"INDEX(#REF!,MATCH(E115,#REF!,0),3)","v":{"$error":"#REF!"}},null,null,null,"F19",{"$f":"INDEX('Competitors&Timetable'!F1:H144,MATCH(K115,'Competitors&Timetable'!F1:F144,0),2)","v":"Triple Jump Under 15 Girls"},{"$f":"INDEX(#REF!,MATCH(K115,#REF!,0),3)","v":{"$error":"#REF!"}}]
[null,null,null,1,65,{"$f":"INDEX(EntryList,MATCH(E116,'Competitors&Timetable'!A1:A401,0),2)","v":"Cameron Steven"},{"$f":"INDEX(EntryList,MATCH(E116,'Competitors&Timetable'!A1:A401,0),3)","v":"U15 Boy"},"10,11",32,null,".",{"$f":"INDEX(EntryList,MATCH(K116,'Competitors&Timetable'!A1:A401,0),2)","v":" "},{"$f":"INDEX(EntryList,MATCH(K116,'Competitors&Timetable'!A1:A401,0),3)","v":" "}]
[null,null,null,null,".",{"$f":"INDEX(EntryList,MATCH(E117,'Competitors&Timetable'!A1:A401,0),2)","v":" "},{"$f":"INDEX(EntryList,MATCH(E117,'Competitors&Timetable'!A1:A401,0),3)","v":" "},null,null,null,".",{"$f":"INDEX(EntryList,MATCH(K117,'Competitors&Timetable'!A1:A401,0),2)","v":" "},{"$f":"INDEX(EntryList,MATCH(K117,'Competitors&Timetable'!A1:A401,0),3)","v":" "}]
[null,null,null,null,".",{"$f":"INDEX(EntryList,MATCH(E118,'Competitors&Timetable'!A1:A401,0),2)","v":" "},{"$f":"INDEX(EntryList,MATCH(E118,'Competitors&Timetable'!A1:A401,0),3)","v":" "},null,null,null,".",{"$f":"INDEX(EntryList,MATCH(K118,'Competitors&Timetable'!A1:A401,0),2)","v":" "},{"$f":"INDEX(EntryList,MATCH(K118,'Competitors&Timetable'!A1:A401,0),3)","v":" "}]
[null,null,null,null,".",{"$f":"INDEX(EntryList,MATCH(E119,'Competitors&Timetable'!A1:A401,0),2)","v":" "},{"$f":"INDEX(EntryList,MATCH(E119,'Competitors&Timetable'!A1:A401,0),3)","v":" "},null,null,null,".",{"$f":"INDEX(EntryList,MATCH(K119,'Competitors&Timetable'!A1:A401,0),2)","v":" "},{"$f":"INDEX(EntryList,MATCH(K119,'Competitors&Timetable'!A1:A401,0),3)","v":" "}]
[null,null,null,null,".",{"$f":"INDEX(EntryList,MATCH(E120,'Competitors&Timetable'!A1:A401,0),2)","v":" "},{"$f":"INDEX(EntryList,MATCH(E120,'Competitors&Timetable'!A1:A401,0),3)","v":" "},null,null,null,".",{"$f":"INDEX(EntryList,MATCH(K120,'Competitors&Timetable'!A1:A401,0),2)","v":" "},{"$f":"INDEX(EntryList,MATCH(K120,'Competitors&Timetable'!A1:A401,0),3)","v":" "}]
[null,null,null,null,".",{"$f":"INDEX(EntryList,MATCH(E121,'Competitors&Timetable'!A1:A401,0),2)","v":" "},{"$f":"INDEX(EntryList,MATCH(E121,'Competitors&Timetable'!A1:A401,0),3)","v":" "},null,null,null,".",{"$f":"INDEX(EntryList,MATCH(K121,'Competitors&Timetable'!A1:A401,0),2)","v":" "},{"$f":"INDEX(EntryList,MATCH(K121,'Competitors&Timetable'!A1:A401,0),3)","v":" "}]
[null,null,null,null,".",{"$f":"INDEX(EntryList,MATCH(E122,'Competitors&Timetable'!A1:A401,0),2)","v":" "},{"$f":"INDEX(EntryList,MATCH(E122,'Competitors&Timetable'!A1:A401,0),3)","v":" "},null,null,null,".",{"$f":"INDEX(EntryList,MATCH(K122,'Competitors&Timetable'!A1:A401,0),2)","v":" "},{"$f":"INDEX(EntryList,MATCH(K122,'Competitors&Timetable'!A1:A401,0),3)","v":" "}]
[null,null,null,null,".",{"$f":"INDEX(EntryList,MATCH(E123,'Competitors&Timetable'!A1:A401,0),2)","v":" "},{"$f":"INDEX(EntryList,MATCH(E123,'Competitors&Timetable'!A1:A401,0),3)","v":" "},null,null,null,".",{"$f":"INDEX(EntryList,MATCH(K123,'Competitors&Timetable'!A1:A401,0),2)","v":" "},{"$f":"INDEX(EntryList,MATCH(K123,'Competitors&Timetable'!A1:A401,0),3)","v":" "}]
[]
[]
[null,null,null,null,"F19",{"$f":"INDEX('Competitors&Timetable'!$F$1:$H$144,MATCH(E126,'Competitors&Timetable'!$F$1:$F$144,0),2)","v":"Triple Jump Under 15 Girls"},{"$f":"INDEX(#REF!,MATCH(E126,#REF!,0),3)","v":{"$error":"#REF!"}},null,null,null,"F20",{"$f":"INDEX('Competitors&Timetable'!$F$1:$H$144,MATCH(K126,'Competitors&Timetable'!$F$1:$F$144,0),2)","v":"Triple Jump Under 17 Women"},{"$f":"INDEX(#REF!,MATCH(K126,#REF!,0),3)","v":{"$error":"#REF!"}}]
[null,null,null,1,52,{"$f":"INDEX(EntryList,MATCH(E127,'Competitors&Timetable'!A1:A401,0),2)","v":"Rachel Louden"},{"$f":"INDEX(EntryList,MATCH(E127,'Competitors&Timetable'!A1:A401,0),3)","v":"U15 Girl"},8.8000000000000007,25,null,".",{"$f":"INDEX(EntryList,MATCH(K127,'Competitors&Timetable'!A1:A401,0),2)","v":" "},{"$f":"INDEX(EntryList,MATCH(K127,'Competitors&Timetable'!A1:A401,0),3)","v":" "}]
[null,null,null,2,89,{"$f":"INDEX(EntryList,MATCH(E128,'Competitors&Timetable'!A1:A401,0),2)","v":"Lisa Robertson"},{"$f":"INDEX(EntryList,MATCH(E128,'Competitors&Timetable'!A1:A401,0),3)","v":"U15 Girl"},8.6300000000000008,24,null,".",{"$f":"INDEX(EntryList,MATCH(K128,'Competitors&Timetable'!A1:A401,0),2)","v":" "},{"$f":"INDEX(EntryList,MATCH(K128,'Competitors&Timetable'!A1:A401,0),3)","v":" "}]
[null,null,null,null,".",{"$f":"INDEX(EntryList,MATCH(E129,'Competitors&Timetable'!A1:A401,0),2)","v":" "},{"$f":"INDEX(EntryList,MATCH(E129,'Competitors&Timetable'!A1:A401,0),3)","v":" "},null,null,null,".",{"$f":"INDEX(EntryList,MATCH(K129,'Competitors&Timetable'!A1:A401,0),2)","v":" "},{"$f":"INDEX(EntryList,MATCH(K129,'Competitors&Timetable'!A1:A401,0),3)","v":" "}]
[null,null,null,null,".",{"$f":"INDEX(EntryList,MATCH(E130,'Competitors&Timetable'!A1:A401,0),2)","v":" "},{"$f":"INDEX(EntryList,MATCH(E130,'Competitors&Timetable'!A1:A401,0),3)","v":" "},null,null,null,".",{"$f":"INDEX(EntryList,MATCH(K130,'Competitors&Timetable'!A1:A401,0),2)","v":" "},{"$f":"INDEX(EntryList,MATCH(K130,'Competitors&Timetable'!A1:A401,0),3)","v":" "}]
[null,null,null,null,".",{"$f":"INDEX(EntryList,MATCH(E131,'Competitors&Timetable'!A1:A401,0),2)","v":" "},{"$f":"INDEX(EntryList,MATCH(E131,'Competitors&Timetable'!A1:A401,0),3)","v":" "},null,null,null,".",{"$f":"INDEX(EntryList,MATCH(K131,'Competitors&Timetable'!A1:A401,0),2)","v":" "},{"$f":"INDEX(EntryList,MATCH(K131,'Competitors&Timetable'!A1:A401,0),3)","v":" "}]
[null,null,null,null,".",{"$f":"INDEX(EntryList,MATCH(E132,'Competitors&Timetable'!A1:A401,0),2)","v":" "},{"$f":"INDEX(EntryList,MATCH(E132,'Competitors&Timetable'!A1:A401,0),3)","v":" "},null,null,null,".",{"$f":"INDEX(EntryList,MATCH(K132,'Competitors&Timetable'!A1:A401,0),2)","v":" "},{"$f":"INDEX(EntryList,MATCH(K132,'Competitors&Timetable'!A1:A401,0),3)","v":" "}]
[null,null,null,null,".",{"$f":"INDEX(EntryList,MATCH(E133,'Competitors&Timetable'!A1:A401,0),2)","v":" "},{"$f":"INDEX(EntryList,MATCH(E133,'Competitors&Timetable'!A1:A401,0),3)","v":" "},null,null,null,".",{"$f":"INDEX(EntryList,MATCH(K133,'Competitors&Timetable'!A1:A401,0),2)","v":" "},{"$f":"INDEX(EntryList,MATCH(K133,'Competitors&Timetable'!A1:A401,0),3)","v":" "}]
[null,null,null,null,".",{"$f":"INDEX(EntryList,MATCH(E134,'Competitors&Timetable'!A1:A401,0),2)","v":" "},{"$f":"INDEX(EntryList,MATCH(E134,'Competitors&Timetable'!A1:A401,0),3)","v":" "},null,null,null,".",{"$f":"INDEX(EntryList,MATCH(K134,'Competitors&Timetable'!A1:A401,0),2)","v":" "},{"$f":"INDEX(EntryList,MATCH(K134,'Competitors&Timetable'!A1:A401,0),3)","v":" "}]
[]
[]
[null,null,null,null,"F21",{"$f":"INDEX('Competitors&Timetable'!F1:H144,MATCH(E137,'Competitors&Timetable'!F1:F144,0),2)","v":"Triple Jump Under 20/23 Women"},{"$f":"INDEX(#REF!,MATCH(E137,#REF!,0),3)","v":{"$error":"#REF!"}},null,null,null,"F21",{"$f":"INDEX('Competitors&Timetable'!F1:H144,MATCH(K137,'Competitors&Timetable'!F1:F144,0),2)","v":"Triple Jump Under 20/23 Women"},{"$f":"INDEX(#REF!,MATCH(K137,#REF!,0),3)","v":{"$error":"#REF!"}}]
[null,null,null,null,82,{"$f":"INDEX(EntryList,MATCH(E138,'Competitors&Timetable'!A1:A401,0),2)","v":"Ellen Kristoffersen"},{"$f":"INDEX(EntryList,MATCH(E138,'Competitors&Timetable'!A1:A401,0),3)","v":"U20 Women"},10.050000000000001,31,null,".",{"$f":"INDEX(EntryList,MATCH(K138,'Competitors&Timetable'!A1:A401,0),2)","v":" "},{"$f":"INDEX(EntryList,MATCH(K138,'Competitors&Timetable'!A1:A401,0),3)","v":" "}]
[null,null,null,null,".",{"$f":"INDEX(EntryList,MATCH(E139,'Competitors&Timetable'!A1:A401,0),2)","v":" "},{"$f":"INDEX(EntryList,MATCH(E139,'Competitors&Timetable'!A1:A401,0),3)","v":" "},null,null,null,".",{"$f":"INDEX(EntryList,MATCH(K139,'Competitors&Timetable'!A1:A401,0),2)","v":" "},{"$f":"INDEX(EntryList,MATCH(K139,'Competitors&Timetable'!A1:A401,0),3)","v":" "}]
[null,null,null,null,".",{"$f":"INDEX(EntryList,MATCH(E140,'Competitors&Timetable'!A1:A401,0),2)","v":" "},{"$f":"INDEX(EntryList,MATCH(E140,'Competitors&Timetable'!A1:A401,0),3)","v":" "},null,null,null,".",{"$f":"INDEX(EntryList,MATCH(K140,'Competitors&Timetable'!A1:A401,0),2)","v":" "},{"$f":"INDEX(EntryList,MATCH(K140,'Competitors&Timetable'!A1:A401,0),3)","v":" "}]
[null,null,null,null,".",{"$f":"INDEX(EntryList,MATCH(E141,'Competitors&Timetable'!A1:A401,0),2)","v":" "},{"$f":"INDEX(EntryList,MATCH(E141,'Competitors&Timetable'!A1:A401,0),3)","v":" "},null,null,null,".",{"$f":"INDEX(EntryList,MATCH(K141,'Competitors&Timetable'!A1:A401,0),2)","v":" "},{"$f":"INDEX(EntryList,MATCH(K141,'Competitors&Timetable'!A1:A401,0),3)","v":" "}]
[null,null,null,null,".",{"$f":"INDEX(EntryList,MATCH(E142,'Competitors&Timetable'!A1:A401,0),2)","v":" "},{"$f":"INDEX(EntryList,MATCH(E142,'Competitors&Timetable'!A1:A401,0),3)","v":" "},null,null,null,".",{"$f":"INDEX(EntryList,MATCH(K142,'Competitors&Timetable'!A1:A401,0),2)","v":" "},{"$f":"INDEX(EntryList,MATCH(K142,'Competitors&Timetable'!A1:A401,0),3)","v":" "}]
[null,null,null,null,".",{"$f":"INDEX(EntryList,MATCH(E143,'Competitors&Timetable'!A1:A401,0),2)","v":" "},{"$f":"INDEX(EntryList,MATCH(E143,'Competitors&Timetable'!A1:A401,0),3)","v":" "},null,null,null,".",{"$f":"INDEX(EntryList,MATCH(K143,'Competitors&Timetable'!A1:A401,0),2)","v":" "},{"$f":"INDEX(EntryList,MATCH(K143,'Competitors&Timetable'!A1:A401,0),3)","v":" "}]
[null,null,null,null,".",{"$f":"INDEX(EntryList,MATCH(E144,'Competitors&Timetable'!A1:A401,0),2)","v":" "},{"$f":"INDEX(EntryList,MATCH(E144,'Competitors&Timetable'!A1:A401,0),3)","v":" "},null,null,null,".",{"$f":"INDEX(EntryList,MATCH(K144,'Competitors&Timetable'!A1:A401,0),2)","v":" "},{"$f":"INDEX(EntryList,MATCH(K144,'Competitors&Timetable'!A1:A401,0),3)","v":" "}]
[null,null,null,null,".",{"$f":"INDEX(EntryList,MATCH(E145,'Competitors&Timetable'!A1:A401,0),2)","v":" "},{"$f":"INDEX(EntryList,MATCH(E145,'Competitors&Timetable'!A1:A401,0),3)","v":" "},null,null,null,".",{"$f":"INDEX(EntryList,MATCH(K145,'Competitors&Timetable'!A1:A401,0),2)","v":" "},{"$f":"INDEX(EntryList,MATCH(K145,'Competitors&Timetable'!A1:A401,0),3)","v":" "}]
[]
[]
[null,null,null,null,"F22",{"$f":"INDEX('Competitors&Timetable'!F1:H144,MATCH(E148,'Competitors&Timetable'!F1:F144,0),2)","v":"Triple Jump Under 20 Men"},{"$f":"INDEX(#REF!,MATCH(E148,#REF!,0),3)","v":{"$error":"#REF!"}},null,null,null,"F23",{"$f":"INDEX('Competitors&Timetable'!F1:H144,MATCH(K148,'Competitors&Timetable'!F1:F144,0),2)","v":"Javelin Under 13 Girls"},{"$f":"INDEX(#REF!,MATCH(K148,#REF!,0),3)","v":{"$error":"#REF!"}}]
[null,null,null,null,78,{"$f":"INDEX(EntryList,MATCH(E149,'Competitors&Timetable'!A1:A401,0),2)","v":"Elson Musenga"},{"$f":"INDEX(EntryList,MATCH(E149,'Competitors&Timetable'!A1:A401,0),3)","v":"U20 Men"},11.2,43,null,34,{"$f":"INDEX(EntryList,MATCH(K149,'Competitors&Timetable'!A1:A401,0),2)","v":"Courtney Simpson"},{"$f":"INDEX(EntryList,MATCH(K149,'Competitors&Timetable'!A1:A401,0),3)","v":"U13 Girl"},9.01,6]
[null,null,null,null,79,{"$f":"INDEX(EntryList,MATCH(E150,'Competitors&Timetable'!A1:A401,0),2)","v":"Callum Clark"},{"$f":"INDEX(EntryList,MATCH(E150,'Competitors&Timetable'!A1:A401,0),3)","v":"U20 Men"},10.62,37,null,".",{"$f":"INDEX(EntryList,MATCH(K150,'Competitors&Timetable'!A1:A401,0),2)","v":" "},{"$f":"INDEX(EntryList,MATCH(K150,'Competitors&Timetable'!A1:A401,0),3)","v":" "}]
[null,null,null,null,".",{"$f":"INDEX(EntryList,MATCH(E151,'Competitors&Timetable'!A1:A401,0),2)","v":" "},{"$f":"INDEX(EntryList,MATCH(E151,'Competitors&Timetable'!A1:A401,0),3)","v":" "},null,null,null,".",{"$f":"INDEX(EntryList,MATCH(K151,'Competitors&Timetable'!A1:A401,0),2)","v":" "},{"$f":"INDEX(EntryList,MATCH(K151,'Competitors&Timetable'!A1:A401,0),3)","v":" "}]
[null,null,null,null,".",{"$f":"INDEX(EntryList,MATCH(E152,'Competitors&Timetable'!A1:A401,0),2)","v":" "},{"$f":"INDEX(EntryList,MATCH(E152,'Competitors&Timetable'!A1:A401,0),3)","v":" "},null,null,null,".",{"$f":"INDEX(EntryList,MATCH(K152,'Competitors&Timetable'!A1:A401,0),2)","v":" "},{"$f":"INDEX(EntryList,MATCH(K152,'Competitors&Timetable'!A1:A401,0),3)","v":" "}]
[null,null,null,null,".",{"$f":"INDEX(EntryList,MATCH(E153,'Competitors&Timetable'!A1:A401,0),2)","v":" "},{"$f":"INDEX(EntryList,MATCH(E153,'Competitors&Timetable'!A1:A401,0),3)","v":" "},null,null,null,".",{"$f":"INDEX(EntryList,MATCH(K153,'Competitors&Timetable'!A1:A401,0),2)","v":" "},{"$f":"INDEX(EntryList,MATCH(K153,'Competitors&Timetable'!A1:A401,0),3)","v":" "}]
[null,null,null,null,".",{"$f":"INDEX(EntryList,MATCH(E154,'Competitors&Timetable'!A1:A401,0),2)","v":" "},{"$f":"INDEX(EntryList,MATCH(E154,'Competitors&Timetable'!A1:A401,0),3)","v":" "},null,null,null,".",{"$f":"INDEX(EntryList,MATCH(K154,'Competitors&Timetable'!A1:A401,0),2)","v":" "},{"$f":"INDEX(EntryList,MATCH(K154,'Competitors&Timetable'!A1:A401,0),3)","v":" "}]
[null,null,null,null,".",{"$f":"INDEX(EntryList,MATCH(E155,'Competitors&Timetable'!A1:A401,0),2)","v":" "},{"$f":"INDEX(EntryList,MATCH(E155,'Competitors&Timetable'!A1:A401,0),3)","v":" "},null,null,null,".",{"$f":"INDEX(EntryList,MATCH(K155,'Competitors&Timetable'!A1:A401,0),2)","v":" "},{"$f":"INDEX(EntryList,MATCH(K155,'Competitors&Timetable'!A1:A401,0),3)","v":" "}]
[null,null,null,null,".",{"$f":"INDEX(EntryList,MATCH(E156,'Competitors&Timetable'!A1:A401,0),2)","v":" "},{"$f":"INDEX(EntryList,MATCH(E156,'Competitors&Timetable'!A1:A401,0),3)","v":" "},null,null,null,".",{"$f":"INDEX(EntryList,MATCH(K156,'Competitors&Timetable'!A1:A401,0),2)","v":" "},{"$f":"INDEX(EntryList,MATCH(K156,'Competitors&Timetable'!A1:A401,0),3)","v":" "}]
[]
[]
[{"$f":"#REF!","v":{"$error":"#REF!"}},{"$f":"#REF!","v":{"$error":"#REF!"}},{"$f":"#REF!","v":{"$error":"#REF!"}},null,"F24",{"$f":"INDEX('Competitors&Timetable'!F100:H243,MATCH(E159,'Competitors&Timetable'!F100:F243,0),2)","v":"Javelin Under 15 Girls"},{"$f":"INDEX(#REF!,MATCH(E159,#REF!,0),3)","v":{"$error":"#REF!"}},null,null,null,"F25",{"$f":"INDEX('Competitors&Timetable'!F100:H243,MATCH(K159,'Competitors&Timetable'!F100:F243,0),2)","v":"Javelin Under 17 Women"},{"$f":"INDEX(#REF!,MATCH(K159,#REF!,0),3)","v":{"$error":"#REF!"}}]
[{"$f":"#REF!","v":{"$error":"#REF!"}},{"$f":"#REF!","v":{"$error":"#REF!"}},{"$f":"#REF!","v":{"$error":"#REF!"}},null,59,{"$f":"INDEX(EntryList,MATCH(E160,'Competitors&Timetable'!A1:A401,0),2)","v":"Kirsty Robertson"},{"$f":"INDEX(EntryList,MATCH(E160,'Competitors&Timetable'!A1:A401,0),3)","v":"U15 Girl"},17.12,16,null,".",{"$f":"INDEX(EntryList,MATCH(K160,'Competitors&Timetable'!A1:A401,0),2)","v":" "},{"$f":"INDEX(EntryList,MATCH(K160,'Competitors&Timetable'!A1:A401,0),3)","v":" "}]
[{"$f":"#REF!","v":{"$error":"#REF!"}},{"$f":"#REF!","v":{"$error":"#REF!"}},{"$f":"#REF!","v":{"$error":"#REF!"}},null,56,{"$f":"INDEX(EntryList,MATCH(E161,'Competitors&Timetable'!A1:A401,0),2)","v":"Rachel Hutchison"},{"$f":"INDEX(EntryList,MATCH(E161,'Competitors&Timetable'!A1:A401,0),3)","v":"U15 Girl"},16.010000000000002,15,null,".",{"$f":"INDEX(EntryList,MATCH(K161,'Competitors&Timetable'!A1:A401,0),2)","v":" "},{"$f":"INDEX(EntryList,MATCH(K161,'Competitors&Timetable'!A1:A401,0),3)","v":" "}]
[{"$f":"#REF!","v":{"$error":"#REF!"}},{"$f":"#REF!","v":{"$error":"#REF!"}},{"$f":"#REF!","v":{"$error":"#REF!"}},null,48,{"$f":"INDEX(EntryList,MATCH(E162,'Competitors&Timetable'!A1:A401,0),2)","v":"Niamh Fellenger"},{"$f":"INDEX(EntryList,MATCH(E162,'Competitors&Timetable'!A1:A401,0),3)","v":"U15 Girl"},14.31,12,null,".",{"$f":"INDEX(EntryList,MATCH(K162,'Competitors&Timetable'!A1:A401,0),2)","v":" "},{"$f":"INDEX(EntryList,MATCH(K162,'Competitors&Timetable'!A1:A401,0),3)","v":" "}]
[{"$f":"#REF!","v":{"$error":"#REF!"}},{"$f":"#REF!","v":{"$error":"#REF!"}},{"$f":"#REF!","v":{"$error":"#REF!"}},null,54,{"$f":"INDEX(EntryList,MATCH(E163,'Competitors&Timetable'!A1:A401,0),2)","v":"Sabina Jedrzejczyk"},{"$f":"INDEX(EntryList,MATCH(E163,'Competitors&Timetable'!A1:A401,0),3)","v":"U15 Girl"},9.14,6,null,".",{"$f":"INDEX(EntryList,MATCH(K163,'Competitors&Timetable'!A1:A401,0),2)","v":" "},{"$f":"INDEX(EntryList,MATCH(K163,'Competitors&Timetable'!A1:A401,0),3)","v":" "}]
[{"$f":"#REF!","v":{"$error":"#REF!"}},{"$f":"#REF!","v":{"$error":"#REF!"}},{"$f":"#REF!","v":{"$error":"#REF!"}},null,88,{"$f":"INDEX(EntryList,MATCH(E164,'Competitors&Timetable'!A1:A401,0),2)","v":"Hannah McVicar"},{"$f":"INDEX(EntryList,MATCH(E164,'Competitors&Timetable'!A1:A401,0),3)","v":"U15 Girl"},7.97,5,null,".",{"$f":"INDEX(EntryList,MATCH(K164,'Competitors&Timetable'!A1:A401,0),2)","v":" "},{"$f":"INDEX(EntryList,MATCH(K164,'Competitors&Timetable'!A1:A401,0),3)","v":" "}]
[{"$f":"#REF!","v":{"$error":"#REF!"}},{"$f":"#REF!","v":{"$error":"#REF!"}},{"$f":"#REF!","v":{"$error":"#REF!"}},null,58,{"$f":"INDEX(EntryList,MATCH(E165,'Competitors&Timetable'!A1:A401,0),2)","v":"Lauren Wilkie"},{"$f":"INDEX(EntryList,MATCH(E165,'Competitors&Timetable'!A1:A401,0),3)","v":"U15 Girl"},7.38,5,null,".",{"$f":"INDEX(EntryList,MATCH(K165,'Competitors&Timetable'!A1:A401,0),2)","v":" "},{"$f":"INDEX(EntryList,MATCH(K165,'Competitors&Timetable'!A1:A401,0),3)","v":" "}]
[{"$f":"#REF!","v":{"$error":"#REF!"}},{"$f":"#REF!","v":{"$error":"#REF!"}},{"$f":"#REF!","v":{"$error":"#REF!"}},null,".",{"$f":"INDEX(EntryList,MATCH(E166,'Competitors&Timetable'!A1:A401,0),2)","v":" "},{"$f":"INDEX(EntryList,MATCH(E166,'Competitors&Timetable'!A1:A401,0),3)","v":" "},null,null,null,".",{"$f":"INDEX(EntryList,MATCH(K166,'Competitors&Timetable'!A1:A401,0),2)","v":" "},{"$f":"INDEX(EntryList,MATCH(K166,'Competitors&Timetable'!A1:A401,0),3)","v":" "}]
[null,null,null,null,".",{"$f":"INDEX(EntryList,MATCH(E167,'Competitors&Timetable'!A1:A401,0),2)","v":" "},{"$f":"INDEX(EntryList,MATCH(E167,'Competitors&Timetable'!A1:A401,0),3)","v":" "},null,null,null,".",{"$f":"INDEX(EntryList,MATCH(K167,'Competitors&Timetable'!A1:A401,0),2)","v":" "},{"$f":"INDEX(EntryList,MATCH(K167,'Competitors&Timetable'!A1:A401,0),3)","v":" "}]
[]
[]
[null,null,null,null,"F26",{"$f":"INDEX('Competitors&Timetable'!F100:H243,MATCH(E170,'Competitors&Timetable'!F100:F243,0),2)","v":"Javelin Under 20/23 Women"},{"$f":"INDEX(#REF!,MATCH(E170,#REF!,0),3)","v":{"$error":"#REF!"}},null,null,null,"F27",{"$f":"INDEX('Competitors&Timetable'!F100:H243,MATCH(K170,'Competitors&Timetable'!F100:F243,0),2)","v":"Javelin Sen/Mast Women"},{"$f":"INDEX(#REF!,MATCH(K170,#REF!,0),3)","v":{"$error":"#REF!"}}]
[null,null,null,null,".",{"$f":"INDEX(EntryList,MATCH(E171,'Competitors&Timetable'!A1:A401,0),2)","v":" "},{"$f":"INDEX(EntryList,MATCH(E171,'Competitors&Timetable'!A1:A401,0),3)","v":" "},null,null,null,".",{"$f":"INDEX(EntryList,MATCH(K171,'Competitors&Timetable'!A1:A401,0),2)","v":" "},{"$f":"INDEX(EntryList,MATCH(K171,'Competitors&Timetable'!A1:A401,0),3)","v":" "}]
[null,null,null,null,".",{"$f":"INDEX(EntryList,MATCH(E172,'Competitors&Timetable'!A1:A401,0),2)","v":" "},{"$f":"INDEX(EntryList,MATCH(E172,'Competitors&Timetable'!A1:A401,0),3)","v":" "},null,null,null,".",{"$f":"INDEX(EntryList,MATCH(K172,'Competitors&Timetable'!A1:A401,0),2)","v":" "},{"$f":"INDEX(EntryList,MATCH(K172,'Competitors&Timetable'!A1:A401,0),3)","v":" "}]
[null,null,null,null,".",{"$f":"INDEX(EntryList,MATCH(E173,'Competitors&Timetable'!A1:A401,0),2)","v":" "},{"$f":"INDEX(EntryList,MATCH(E173,'Competitors&Timetable'!A1:A401,0),3)","v":" "},null,null,null,".",{"$f":"INDEX(EntryList,MATCH(K173,'Competitors&Timetable'!A1:A401,0),2)","v":" "},{"$f":"INDEX(EntryList,MATCH(K173,'Competitors&Timetable'!A1:A401,0),3)","v":" "}]
[null,null,null,null,".",{"$f":"INDEX(EntryList,MATCH(E174,'Competitors&Timetable'!A1:A401,0),2)","v":" "},{"$f":"INDEX(EntryList,MATCH(E174,'Competitors&Timetable'!A1:A401,0),3)","v":" "},null,null,null,".",{"$f":"INDEX(EntryList,MATCH(K174,'Competitors&Timetable'!A1:A401,0),2)","v":" "},{"$f":"INDEX(EntryList,MATCH(K174,'Competitors&Timetable'!A1:A401,0),3)","v":" "}]
[null,null,null,null,".",{"$f":"INDEX(EntryList,MATCH(E175,'Competitors&Timetable'!A1:A401,0),2)","v":" "},{"$f":"INDEX(EntryList,MATCH(E175,'Competitors&Timetable'!A1:A401,0),3)","v":" "},null,null,null,".",{"$f":"INDEX(EntryList,MATCH(K175,'Competitors&Timetable'!A1:A401,0),2)","v":" "},{"$f":"INDEX(EntryList,MATCH(K175,'Competitors&Timetable'!A1:A401,0),3)","v":" "}]
[null,null,null,null,".",{"$f":"INDEX(EntryList,MATCH(E176,'Competitors&Timetable'!A1:A401,0),2)","v":" "},{"$f":"INDEX(EntryList,MATCH(E176,'Competitors&Timetable'!A1:A401,0),3)","v":" "},null,null,null,".",{"$f":"INDEX(EntryList,MATCH(K176,'Competitors&Timetable'!A1:A401,0),2)","v":" "},{"$f":"INDEX(EntryList,MATCH(K176,'Competitors&Timetable'!A1:A401,0),3)","v":" "}]
[null,null,null,null,".",{"$f":"INDEX(EntryList,MATCH(E177,'Competitors&Timetable'!A1:A401,0),2)","v":" "},{"$f":"INDEX(EntryList,MATCH(E177,'Competitors&Timetable'!A1:A401,0),3)","v":" "},null,null,null,".",{"$f":"INDEX(EntryList,MATCH(K177,'Competitors&Timetable'!A1:A401,0),2)","v":" "},{"$f":"INDEX(EntryList,MATCH(K177,'Competitors&Timetable'!A1:A401,0),3)","v":" "}]
[null,null,null,null,".",{"$f":"INDEX(EntryList,MATCH(E178,'Competitors&Timetable'!A1:A401,0),2)","v":" "},{"$f":"INDEX(EntryList,MATCH(E178,'Competitors&Timetable'!A1:A401,0),3)","v":" "},null,null,null,".",{"$f":"INDEX(EntryList,MATCH(K178,'Competitors&Timetable'!A1:A401,0),2)","v":" "},{"$f":"INDEX(EntryList,MATCH(K178,'Competitors&Timetable'!A1:A401,0),3)","v":" "}]
[]
[]
[null,null,null,null,"F28",{"$f":"INDEX('Competitors&Timetable'!F100:H243,MATCH(E181,'Competitors&Timetable'!F100:F243,0),2)","v":"Discus Under 13 Girls"},{"$f":"INDEX(#REF!,MATCH(E181,#REF!,0),3)","v":{"$error":"#REF!"}},null,null,null,"F29",{"$f":"INDEX('Competitors&Timetable'!F100:H243,MATCH(K181,'Competitors&Timetable'!F100:F243,0),2)","v":"Discus Under 15 Girls"},{"$f":"INDEX(#REF!,MATCH(K181,#REF!,0),3)","v":{"$error":"#REF!"}}]
[null,null,null,null,27,{"$f":"INDEX(EntryList,MATCH(E182,'Competitors&Timetable'!A1:A401,0),2)","v":"Lucy Tod"},{"$f":"INDEX(EntryList,MATCH(E182,'Competitors&Timetable'!A1:A401,0),3)","v":"U13 Girl"},9.0500000000000007,6,null,48,{"$f":"INDEX(EntryList,MATCH(K182,'Competitors&Timetable'!A1:A401,0),2)","v":"Niamh Fellenger"},{"$f":"INDEX(EntryList,MATCH(K182,'Competitors&Timetable'!A1:A401,0),3)","v":"U15 Girl"},"12;82",8]
[null,null,null,null,".",{"$f":"INDEX(EntryList,MATCH(E183,'Competitors&Timetable'!A1:A401,0),2)","v":" "},{"$f":"INDEX(EntryList,MATCH(E183,'Competitors&Timetable'!A1:A401,0),3)","v":" "},null,null,null,".",{"$f":"INDEX(EntryList,MATCH(K183,'Competitors&Timetable'!A1:A401,0),2)","v":" "},{"$f":"INDEX(EntryList,MATCH(K183,'Competitors&Timetable'!A1:A401,0),3)","v":" "}]
[null,null,null,null,".",{"$f":"INDEX(EntryList,MATCH(E184,'Competitors&Timetable'!A1:A401,0),2)","v":" "},{"$f":"INDEX(EntryList,MATCH(E184,'Competitors&Timetable'!A1:A401,0),3)","v":" "},null,null,null,".",{"$f":"INDEX(EntryList,MATCH(K184,'Competitors&Timetable'!A1:A401,0),2)","v":" "},{"$f":"INDEX(EntryList,MATCH(K184,'Competitors&Timetable'!A1:A401,0),3)","v":" "}]
[null,null,null,null,".",{"$f":"INDEX(EntryList,MATCH(E185,'Competitors&Timetable'!A1:A401,0),2)","v":" "},{"$f":"INDEX(EntryList,MATCH(E185,'Competitors&Timetable'!A1:A401,0),3)","v":" "},null,null,null,".",{"$f":"INDEX(EntryList,MATCH(K185,'Competitors&Timetable'!A1:A401,0),2)","v":" "},{"$f":"INDEX(EntryList,MATCH(K185,'Competitors&Timetable'!A1:A401,0),3)","v":" "}]
[null,null,null,null,".",{"$f":"INDEX(EntryList,MATCH(E186,'Competitors&Timetable'!A1:A401,0),2)","v":" "},{"$f":"INDEX(EntryList,MATCH(E186,'Competitors&Timetable'!A1:A401,0),3)","v":" "},null,null,null,".",{"$f":"INDEX(EntryList,MATCH(K186,'Competitors&Timetable'!A1:A401,0),2)","v":" "},{"$f":"INDEX(EntryList,MATCH(K186,'Competitors&Timetable'!A1:A401,0),3)","v":" "}]
[null,null,null,null,".",{"$f":"INDEX(EntryList,MATCH(E187,'Competitors&Timetable'!A1:A401,0),2)","v":" "},{"$f":"INDEX(EntryList,MATCH(E187,'Competitors&Timetable'!A1:A401,0),3)","v":" "},null,null,null,".",{"$f":"INDEX(EntryList,MATCH(K187,'Competitors&Timetable'!A1:A401,0),2)","v":" "},{"$f":"INDEX(EntryList,MATCH(K187,'Competitors&Timetable'!A1:A401,0),3)","v":" "}]
[null,null,null,null,".",{"$f":"INDEX(EntryList,MATCH(E188,'Competitors&Timetable'!A1:A401,0),2)","v":" "},{"$f":"INDEX(EntryList,MATCH(E188,'Competitors&Timetable'!A1:A401,0),3)","v":" "},null,null,null,".",{"$f":"INDEX(EntryList,MATCH(K188,'Competitors&Timetable'!A1:A401,0),2)","v":" "},{"$f":"INDEX(EntryList,MATCH(K188,'Competitors&Timetable'!A1:A401,0),3)","v":" "}]
[null,null,null,null,".",{"$f":"INDEX(EntryList,MATCH(E189,'Competitors&Timetable'!A1:A401,0),2)","v":" "},{"$f":"INDEX(EntryList,MATCH(E189,'Competitors&Timetable'!A1:A401,0),3)","v":" "},null,null,null,".",{"$f":"INDEX(EntryList,MATCH(K189,'Competitors&Timetable'!A1:A401,0),2)","v":" "},{"$f":"INDEX(EntryList,MATCH(K189,'Competitors&Timetable'!A1:A401,0),3)","v":" "}]
[]
[]
[null,null,null,null,"F30",{"$f":"INDEX('Competitors&Timetable'!F100:H243,MATCH(E192,'Competitors&Timetable'!F100:F243,0),2)","v":"Discus Under 13 Boys"},{"$f":"INDEX(#REF!,MATCH(E192,#REF!,0),3)","v":{"$error":"#REF!"}},null,null,null,"F31",{"$f":"INDEX('Competitors&Timetable'!F100:H243,MATCH(K192,'Competitors&Timetable'!F100:F243,0),2)","v":"Discus Under 20/23 Women"},{"$f":"INDEX(#REF!,MATCH(K192,#REF!,0),3)","v":{"$error":"#REF!"}}]
[null,null,null,1,45,{"$f":"INDEX(EntryList,MATCH(E193,'Competitors&Timetable'!A1:A401,0),2)","v":"Angus Cousin"},{"$f":"INDEX(EntryList,MATCH(E193,'Competitors&Timetable'!A1:A401,0),3)","v":"U13 Boy"},16.48,15,null,81,{"$f":"INDEX(EntryList,MATCH(K193,'Competitors&Timetable'!A1:A401,0),2)","v":"Amy Frankland"},{"$f":"INDEX(EntryList,MATCH(K193,'Competitors&Timetable'!A1:A401,0),3)","v":"U20 Women"},"11,28",8]
[null,null,null,2,47,{"$f":"INDEX(EntryList,MATCH(E194,'Competitors&Timetable'!A1:A401,0),2)","v":"Euan Maxwell"},{"$f":"INDEX(EntryList,MATCH(E194,'Competitors&Timetable'!A1:A401,0),3)","v":"U13 Boy"},15.4,14,null,".",{"$f":"INDEX(EntryList,MATCH(K194,'Competitors&Timetable'!A1:A401,0),2)","v":" "},{"$f":"INDEX(EntryList,MATCH(K194,'Competitors&Timetable'!A1:A401,0),3)","v":" "}]
[null,null,null,null,".",{"$f":"INDEX(EntryList,MATCH(E195,'Competitors&Timetable'!A1:A401,0),2)","v":" "},{"$f":"INDEX(EntryList,MATCH(E195,'Competitors&Timetable'!A1:A401,0),3)","v":" "},null,null,null,".",{"$f":"INDEX(EntryList,MATCH(K195,'Competitors&Timetable'!A1:A401,0),2)","v":" "},{"$f":"INDEX(EntryList,MATCH(K195,'Competitors&Timetable'!A1:A401,0),3)","v":" "}]
[null,null,null,null,".",{"$f":"INDEX(EntryList,MATCH(E196,'Competitors&Timetable'!A1:A401,0),2)","v":" "},{"$f":"INDEX(EntryList,MATCH(E196,'Competitors&Timetable'!A1:A401,0),3)","v":" "},null,null,null,".",{"$f":"INDEX(EntryList,MATCH(K196,'Competitors&Timetable'!A1:A401,0),2)","v":" "},{"$f":"INDEX(EntryList,MATCH(K196,'Competitors&Timetable'!A1:A401,0),3)","v":" "}]
[null,null,null,null,".",{"$f":"INDEX(EntryList,MATCH(E197,'Competitors&Timetable'!A1:A401,0),2)","v":" "},{"$f":"INDEX(EntryList,MATCH(E197,'Competitors&Timetable'!A1:A401,0),3)","v":" "},null,null,null,".",{"$f":"INDEX(EntryList,MATCH(K197,'Competitors&Timetable'!A1:A401,0),2)","v":" "},{"$f":"INDEX(EntryList,MATCH(K197,'Competitors&Timetable'!A1:A401,0),3)","v":" "}]
[null,null,null,null,".",{"$f":"INDEX(EntryList,MATCH(E198,'Competitors&Timetable'!A1:A401,0),2)","v":" "},{"$f":"INDEX(EntryList,MATCH(E198,'Competitors&Timetable'!A1:A401,0),3)","v":" "},null,null,null,".",{"$f":"INDEX(EntryList,MATCH(K198,'Competitors&Timetable'!A1:A401,0),2)","v":" "},{"$f":"INDEX(EntryList,MATCH(K198,'Competitors&Timetable'!A1:A401,0),3)","v":" "}]
[null,null,null,null,".",{"$f":"INDEX(EntryList,MATCH(E199,'Competitors&Timetable'!A1:A401,0),2)","v":" "},{"$f":"INDEX(EntryList,MATCH(E199,'Competitors&Timetable'!A1:A401,0),3)","v":" "},null,null,null,".",{"$f":"INDEX(EntryList,MATCH(K199,'Competitors&Timetable'!A1:A401,0),2)","v":" "},{"$f":"INDEX(EntryList,MATCH(K199,'Competitors&Timetable'!A1:A401,0),3)","v":" "}]
[null,null,null,null,".",{"$f":"INDEX(EntryList,MATCH(E200,'Competitors&Timetable'!A1:A401,0),2)","v":" "},{"$f":"INDEX(EntryList,MATCH(E200,'Competitors&Timetable'!A1:A401,0),3)","v":" "},null,null,null,".",{"$f":"INDEX(EntryList,MATCH(K200,'Competitors&Timetable'!A1:A401,0),2)","v":" "},{"$f":"INDEX(EntryList,MATCH(K200,'Competitors&Timetable'!A1:A401,0),3)","v":" "}]
[]
[]
[null,null,null,null,"F32",{"$f":"INDEX('Competitors&Timetable'!F100:H243,MATCH(E203,'Competitors&Timetable'!F100:F243,0),2)","v":"Discus Sen/Mast Women"},{"$f":"INDEX(#REF!,MATCH(E203,#REF!,0),3)","v":{"$error":"#REF!"}},null,null,null,"F33",{"$f":"INDEX('Competitors&Timetable'!F100:H243,MATCH(K203,'Competitors&Timetable'!F100:F243,0),2)","v":"Long Jump Under 11 Boys"},{"$f":"INDEX(#REF!,MATCH(K203,#REF!,0),3)","v":{"$error":"#REF!"}}]
[null,null,null,null,".",{"$f":"INDEX(EntryList,MATCH(E204,'Competitors&Timetable'!A1:A401,0),2)","v":" "},{"$f":"INDEX(EntryList,MATCH(E204,'Competitors&Timetable'!A1:A401,0),3)","v":" "},null,null,null,18,{"$f":"INDEX(EntryList,MATCH(K204,'Competitors&Timetable'!A1:A401,0),2)","v":"Charlie Griffiths"},{"$f":"INDEX(EntryList,MATCH(K204,'Competitors&Timetable'!A1:A401,0),3)","v":"U11 Boy"},3.62,16]
[null,null,null,null,".",{"$f":"INDEX(EntryList,MATCH(E205,'Competitors&Timetable'!A1:A401,0),2)","v":" "},{"$f":"INDEX(EntryList,MATCH(E205,'Competitors&Timetable'!A1:A401,0),3)","v":" "},null,null,null,22,{"$f":"INDEX(EntryList,MATCH(K205,'Competitors&Timetable'!A1:A401,0),2)","v":"Dominic McLagan"},{"$f":"INDEX(EntryList,MATCH(K205,'Competitors&Timetable'!A1:A401,0),3)","v":"U11 Boy"},3.37,13]
[null,null,null,null,".",{"$f":"INDEX(EntryList,MATCH(E206,'Competitors&Timetable'!A1:A401,0),2)","v":" "},{"$f":"INDEX(EntryList,MATCH(E206,'Competitors&Timetable'!A1:A401,0),3)","v":" "},null,null,null,20,{"$f":"INDEX(EntryList,MATCH(K206,'Competitors&Timetable'!A1:A401,0),2)","v":"Jack Armitage"},{"$f":"INDEX(EntryList,MATCH(K206,'Competitors&Timetable'!A1:A401,0),3)","v":"U11 Boy"},2.62,7]
[null,null,null,null,".",{"$f":"INDEX(EntryList,MATCH(E207,'Competitors&Timetable'!A1:A401,0),2)","v":" "},{"$f":"INDEX(EntryList,MATCH(E207,'Competitors&Timetable'!A1:A401,0),3)","v":" "},null,null,null,17,{"$f":"INDEX(EntryList,MATCH(K207,'Competitors&Timetable'!A1:A401,0),2)","v":"Cameron Dickson"},{"$f":"INDEX(EntryList,MATCH(K207,'Competitors&Timetable'!A1:A401,0),3)","v":"U11 Boy"},2.59,7]
[null,null,null,null,".",{"$f":"INDEX(EntryList,MATCH(E208,'Competitors&Timetable'!A1:A401,0),2)","v":" "},{"$f":"INDEX(EntryList,MATCH(E208,'Competitors&Timetable'!A1:A401,0),3)","v":" "},null,null,null,21,{"$f":"INDEX(EntryList,MATCH(K208,'Competitors&Timetable'!A1:A401,0),2)","v":"Alex Biavati-Smith"},{"$f":"INDEX(EntryList,MATCH(K208,'Competitors&Timetable'!A1:A401,0),3)","v":"U11 Boy"},"2,62",7]
[null,null,null,null,".",{"$f":"INDEX(EntryList,MATCH(E209,'Competitors&Timetable'!A1:A401,0),2)","v":" "},{"$f":"INDEX(EntryList,MATCH(E209,'Competitors&Timetable'!A1:A401,0),3)","v":" "},null,null,null,".",{"$f":"INDEX(EntryList,MATCH(K209,'Competitors&Timetable'!A1:A401,0),2)","v":" "},{"$f":"INDEX(EntryList,MATCH(K209,'Competitors&Timetable'!A1:A401,0),3)","v":" "}]
[null,null,null,null,".",{"$f":"INDEX(EntryList,MATCH(E210,'Competitors&Timetable'!A1:A401,0),2)","v":" "},{"$f":"INDEX(EntryList,MATCH(E210,'Competitors&Timetable'!A1:A401,0),3)","v":" "},null,null,null,".",{"$f":"INDEX(EntryList,MATCH(K210,'Competitors&Timetable'!A1:A401,0),2)","v":" "},{"$f":"INDEX(EntryList,MATCH(K210,'Competitors&Timetable'!A1:A401,0),3)","v":" "}]
[null,null,null,null,".",{"$f":"INDEX(EntryList,MATCH(E211,'Competitors&Timetable'!A1:A401,0),2)","v":" "},{"$f":"INDEX(EntryList,MATCH(E211,'Competitors&Timetable'!A1:A401,0),3)","v":" "},null,null,null,".",{"$f":"INDEX(EntryList,MATCH(K211,'Competitors&Timetable'!A1:A401,0),2)","v":" "},{"$f":"INDEX(EntryList,MATCH(K211,'Competitors&Timetable'!A1:A401,0),3)","v":" "}]
[]
[]
[null,null,null,null,"F34",{"$f":"INDEX('Competitors&Timetable'!F100:H243,MATCH(E214,'Competitors&Timetable'!F100:F243,0),2)","v":"Long Jump Under 13 Boys"},{"$f":"INDEX(#REF!,MATCH(E214,#REF!,0),3)","v":{"$error":"#REF!"}},null,null,null,"F35",{"$f":"INDEX('Competitors&Timetable'!F100:H243,MATCH(K214,'Competitors&Timetable'!F100:F243,0),2)","v":"Long Jump Under 15 Boys"},{"$f":"INDEX(#REF!,MATCH(K214,#REF!,0),3)","v":{"$error":"#REF!"}}]
[null,null,null,null,42,{"$f":"INDEX(EntryList,MATCH(E215,'Competitors&Timetable'!A1:A401,0),2)","v":"Lawrie Wilson"},{"$f":"INDEX(EntryList,MATCH(E215,'Competitors&Timetable'!A1:A401,0),3)","v":"U13 Boy"},4.0199999999999996,20,null,".",{"$f":"INDEX(EntryList,MATCH(K215,'Competitors&Timetable'!A1:A401,0),2)","v":" "},{"$f":"INDEX(EntryList,MATCH(K215,'Competitors&Timetable'!A1:A401,0),3)","v":" "}]
[null,null,null,null,40,{"$f":"INDEX(EntryList,MATCH(E216,'Competitors&Timetable'!A1:A401,0),2)","v":"Magnus Tait"},{"$f":"INDEX(EntryList,MATCH(E216,'Competitors&Timetable'!A1:A401,0),3)","v":"U13 Boy"},3.92,19,null,".",{"$f":"INDEX(EntryList,MATCH(K216,'Competitors&Timetable'!A1:A401,0),2)","v":" "},{"$f":"INDEX(EntryList,MATCH(K216,'Competitors&Timetable'!A1:A401,0),3)","v":" "}]
[null,null,null,null,44,{"$f":"INDEX(EntryList,MATCH(E217,'Competitors&Timetable'!A1:A401,0),2)","v":"Gregor Hutchison"},{"$f":"INDEX(EntryList,MATCH(E217,'Competitors&Timetable'!A1:A401,0),3)","v":"U13 Boy"},3.75,17,null,".",{"$f":"INDEX(EntryList,MATCH(K217,'Competitors&Timetable'!A1:A401,0),2)","v":" "},{"$f":"INDEX(EntryList,MATCH(K217,'Competitors&Timetable'!A1:A401,0),3)","v":" "}]
[null,null,null,null,46,{"$f":"INDEX(EntryList,MATCH(E218,'Competitors&Timetable'!A1:A401,0),2)","v":"Euan McAlister"},{"$f":"INDEX(EntryList,MATCH(E218,'Competitors&Timetable'!A1:A401,0),3)","v":"U13 Boy"},3.62,16,null,".",{"$f":"INDEX(EntryList,MATCH(K218,'Competitors&Timetable'!A1:A401,0),2)","v":" "},{"$f":"INDEX(EntryList,MATCH(K218,'Competitors&Timetable'!A1:A401,0),3)","v":" "}]
[null,null,null,null,39,{"$f":"INDEX(EntryList,MATCH(E219,'Competitors&Timetable'!A1:A401,0),2)","v":"Murray Blair"},{"$f":"INDEX(EntryList,MATCH(E219,'Competitors&Timetable'!A1:A401,0),3)","v":"U13 Boy"},3.37,13,null,".",{"$f":"INDEX(EntryList,MATCH(K219,'Competitors&Timetable'!A1:A401,0),2)","v":" "},{"$f":"INDEX(EntryList,MATCH(K219,'Competitors&Timetable'!A1:A401,0),3)","v":" "}]
[null,null,null,null,".",{"$f":"INDEX(EntryList,MATCH(E220,'Competitors&Timetable'!A1:A401,0),2)","v":" "},{"$f":"INDEX(EntryList,MATCH(E220,'Competitors&Timetable'!A1:A401,0),3)","v":" "},null,null,null,".",{"$f":"INDEX(EntryList,MATCH(K220,'Competitors&Timetable'!A1:A401,0),2)","v":" "},{"$f":"INDEX(EntryList,MATCH(K220,'Competitors&Timetable'!A1:A401,0),3)","v":" "}]
[null,null,null,null,".",{"$f":"INDEX(EntryList,MATCH(E221,'Competitors&Timetable'!A1:A401,0),2)","v":" "},{"$f":"INDEX(EntryList,MATCH(E221,'Competitors&Timetable'!A1:A401,0),3)","v":" "},null,null,null,".",{"$f":"INDEX(EntryList,MATCH(K221,'Competitors&Timetable'!A1:A401,0),2)","v":" "},{"$f":"INDEX(EntryList,MATCH(K221,'Competitors&Timetable'!A1:A401,0),3)","v":" "}]
[null,null,null,null,".",{"$f":"INDEX(EntryList,MATCH(E222,'Competitors&Timetable'!A1:A401,0),2)","v":" "},{"$f":"INDEX(EntryList,MATCH(E222,'Competitors&Timetable'!A1:A401,0),3)","v":" "},null,null,null,".",{"$f":"INDEX(EntryList,MATCH(K222,'Competitors&Timetable'!A1:A401,0),2)","v":" "},{"$f":"INDEX(EntryList,MATCH(K222,'Competitors&Timetable'!A1:A401,0),3)","v":" "}]
[]
[]
[null,null,null,null,"F36",{"$f":"INDEX('Competitors&Timetable'!F100:H243,MATCH(E225,'Competitors&Timetable'!F100:F243,0),2)","v":"Long Jump Under 17 Men"},{"$f":"INDEX(#REF!,MATCH(E225,#REF!,0),3)","v":{"$error":"#REF!"}},null,null,null,"F37",{"$f":"INDEX('Competitors&Timetable'!F100:H243,MATCH(K225,'Competitors&Timetable'!F100:F243,0),2)","v":"Long Jump Under 20/23 Men"},{"$f":"INDEX(#REF!,MATCH(K225,#REF!,0),3)","v":{"$error":"#REF!"}}]
[null,null,null,null,74,{"$f":"INDEX(EntryList,MATCH(E226,'Competitors&Timetable'!A1:A401,0),2)","v":"William Hutchison"},{"$f":"INDEX(EntryList,MATCH(E226,'Competitors&Timetable'!A1:A401,0),3)","v":"U17 Men"},"4,99",34,null,77,{"$f":"INDEX(EntryList,MATCH(K226,'Competitors&Timetable'!A1:A401,0),2)","v":"Robert Ferguson"},{"$f":"INDEX(EntryList,MATCH(K226,'Competitors&Timetable'!A1:A401,0),3)","v":"U20 Men"},6.06,56]
[null,null,null,null,72,{"$f":"INDEX(EntryList,MATCH(E227,'Competitors&Timetable'!A1:A401,0),2)","v":"Robert Williams"},{"$f":"INDEX(EntryList,MATCH(E227,'Competitors&Timetable'!A1:A401,0),3)","v":"U17 Men"},"4,36",23,null,".",{"$f":"INDEX(EntryList,MATCH(K227,'Competitors&Timetable'!A1:A401,0),2)","v":" "},{"$f":"INDEX(EntryList,MATCH(K227,'Competitors&Timetable'!A1:A401,0),3)","v":" "}]
[null,null,null,null,73,{"$f":"INDEX(EntryList,MATCH(E228,'Competitors&Timetable'!A1:A401,0),2)","v":"Kyle Mackenzie"},{"$f":"INDEX(EntryList,MATCH(E228,'Competitors&Timetable'!A1:A401,0),3)","v":"U17 Men"},"3,86",18,null,".",{"$f":"INDEX(EntryList,MATCH(K228,'Competitors&Timetable'!A1:A401,0),2)","v":" "},{"$f":"INDEX(EntryList,MATCH(K228,'Competitors&Timetable'!A1:A401,0),3)","v":" "}]
[null,null,null,null,".",{"$f":"INDEX(EntryList,MATCH(E229,'Competitors&Timetable'!A1:A401,0),2)","v":" "},{"$f":"INDEX(EntryList,MATCH(E229,'Competitors&Timetable'!A1:A401,0),3)","v":" "},null,null,null,".",{"$f":"INDEX(EntryList,MATCH(K229,'Competitors&Timetable'!A1:A401,0),2)","v":" "},{"$f":"INDEX(EntryList,MATCH(K229,'Competitors&Timetable'!A1:A401,0),3)","v":" "}]
[null,null,null,null,".",{"$f":"INDEX(EntryList,MATCH(E230,'Competitors&Timetable'!A1:A401,0),2)","v":" "},{"$f":"INDEX(EntryList,MATCH(E230,'Competitors&Timetable'!A1:A401,0),3)","v":" "},null,null,null,".",{"$f":"INDEX(EntryList,MATCH(K230,'Competitors&Timetable'!A1:A401,0),2)","v":" "},{"$f":"INDEX(EntryList,MATCH(K230,'Competitors&Timetable'!A1:A401,0),3)","v":" "}]
[null,null,null,null,".",{"$f":"INDEX(EntryList,MATCH(E231,'Competitors&Timetable'!A1:A401,0),2)","v":" "},{"$f":"INDEX(EntryList,MATCH(E231,'Competitors&Timetable'!A1:A401,0),3)","v":" "},null,null,null,".",{"$f":"INDEX(EntryList,MATCH(K231,'Competitors&Timetable'!A1:A401,0),2)","v":" "},{"$f":"INDEX(EntryList,MATCH(K231,'Competitors&Timetable'!A1:A401,0),3)","v":" "}]
[null,null,null,null,".",{"$f":"INDEX(EntryList,MATCH(E232,'Competitors&Timetable'!A1:A401,0),2)","v":" "},{"$f":"INDEX(EntryList,MATCH(E232,'Competitors&Timetable'!A1:A401,0),3)","v":" "},null,null,null,".",{"$f":"INDEX(EntryList,MATCH(K232,'Competitors&Timetable'!A1:A401,0),2)","v":" "},{"$f":"INDEX(EntryList,MATCH(K232,'Competitors&Timetable'!A1:A401,0),3)","v":" "}]
[null,null,null,null,".",{"$f":"INDEX(EntryList,MATCH(E233,'Competitors&Timetable'!A1:A401,0),2)","v":" "},{"$f":"INDEX(EntryList,MATCH(E233,'Competitors&Timetable'!A1:A401,0),3)","v":" "},null,null,null,".",{"$f":"INDEX(EntryList,MATCH(K233,'Competitors&Timetable'!A1:A401,0),2)","v":" "},{"$f":"INDEX(EntryList,MATCH(K233,'Competitors&Timetable'!A1:A401,0),3)","v":" "}]
[]
[]
[null,null,null,null,"F38",{"$f":"INDEX('Competitors&Timetable'!F100:H243,MATCH(E236,'Competitors&Timetable'!F100:F243,0),2)","v":"Long Jump Sen/Mast Men"},{"$f":"INDEX(#REF!,MATCH(E236,#REF!,0),3)","v":{"$error":"#REF!"}},null,null,null,"F39",{"$f":"INDEX('Competitors&Timetable'!F100:H243,MATCH(K236,'Competitors&Timetable'!F100:F243,0),2)","v":"Shot Putt Under 11 Boys"},{"$f":"INDEX(#REF!,MATCH(K236,#REF!,0),3)","v":{"$error":"#REF!"}}]
[null,null,null,null,".",{"$f":"INDEX(EntryList,MATCH(E237,'Competitors&Timetable'!A1:A401,0),2)","v":" "},{"$f":"INDEX(EntryList,MATCH(E237,'Competitors&Timetable'!A1:A401,0),3)","v":" "},null,null,null,19,{"$f":"INDEX(EntryList,MATCH(K237,'Competitors&Timetable'!A1:A401,0),2)","v":"Euan Donaldson"},{"$f":"INDEX(EntryList,MATCH(K237,'Competitors&Timetable'!A1:A401,0),3)","v":"U11 Boy"},5.93,15]
[null,null,null,null,".",{"$f":"INDEX(EntryList,MATCH(E238,'Competitors&Timetable'!A1:A401,0),2)","v":" "},{"$f":"INDEX(EntryList,MATCH(E238,'Competitors&Timetable'!A1:A401,0),3)","v":" "},null,null,null,20,{"$f":"INDEX(EntryList,MATCH(K238,'Competitors&Timetable'!A1:A401,0),2)","v":"Jack Armitage"},{"$f":"INDEX(EntryList,MATCH(K238,'Competitors&Timetable'!A1:A401,0),3)","v":"U11 Boy"},5.38,12]
[null,null,null,null,".",{"$f":"INDEX(EntryList,MATCH(E239,'Competitors&Timetable'!A1:A401,0),2)","v":" "},{"$f":"INDEX(EntryList,MATCH(E239,'Competitors&Timetable'!A1:A401,0),3)","v":" "},null,null,null,23,{"$f":"INDEX(EntryList,MATCH(K239,'Competitors&Timetable'!A1:A401,0),2)","v":"Ryan Wilson"},{"$f":"INDEX(EntryList,MATCH(K239,'Competitors&Timetable'!A1:A401,0),3)","v":"U11 Boy"},4.99,10]
[null,null,null,null,".",{"$f":"INDEX(EntryList,MATCH(E240,'Competitors&Timetable'!A1:A401,0),2)","v":" "},{"$f":"INDEX(EntryList,MATCH(E240,'Competitors&Timetable'!A1:A401,0),3)","v":" "},null,null,null,17,{"$f":"INDEX(EntryList,MATCH(K240,'Competitors&Timetable'!A1:A401,0),2)","v":"Cameron Dickson"},{"$f":"INDEX(EntryList,MATCH(K240,'Competitors&Timetable'!A1:A401,0),3)","v":"U11 Boy"},4.37,7]
[null,null,null,null,".",{"$f":"INDEX(EntryList,MATCH(E241,'Competitors&Timetable'!A1:A401,0),2)","v":" "},{"$f":"INDEX(EntryList,MATCH(E241,'Competitors&Timetable'!A1:A401,0),3)","v":" "},null,null,null,".",{"$f":"INDEX(EntryList,MATCH(K241,'Competitors&Timetable'!A1:A401,0),2)","v":" "},{"$f":"INDEX(EntryList,MATCH(K241,'Competitors&Timetable'!A1:A401,0),3)","v":" "}]
[null,null,null,null,".",{"$f":"INDEX(EntryList,MATCH(E242,'Competitors&Timetable'!A1:A401,0),2)","v":" "},{"$f":"INDEX(EntryList,MATCH(E242,'Competitors&Timetable'!A1:A401,0),3)","v":" "},null,null,null,".",{"$f":"INDEX(EntryList,MATCH(K242,'Competitors&Timetable'!A1:A401,0),2)","v":" "},{"$f":"INDEX(EntryList,MATCH(K242,'Competitors&Timetable'!A1:A401,0),3)","v":" "}]
[null,null,null,null,".",{"$f":"INDEX(EntryList,MATCH(E243,'Competitors&Timetable'!A1:A401,0),2)","v":" "},{"$f":"INDEX(EntryList,MATCH(E243,'Competitors&Timetable'!A1:A401,0),3)","v":" "},null,null,null,".",{"$f":"INDEX(EntryList,MATCH(K243,'Competitors&Timetable'!A1:A401,0),2)","v":" "},{"$f":"INDEX(EntryList,MATCH(K243,'Competitors&Timetable'!A1:A401,0),3)","v":" "}]
[null,null,null,null,".",{"$f":"INDEX(EntryList,MATCH(E244,'Competitors&Timetable'!A1:A401,0),2)","v":" "},{"$f":"INDEX(EntryList,MATCH(E244,'Competitors&Timetable'!A1:A401,0),3)","v":" "},null,null,null,".",{"$f":"INDEX(EntryList,MATCH(K244,'Competitors&Timetable'!A1:A401,0),2)","v":" "},{"$f":"INDEX(EntryList,MATCH(K244,'Competitors&Timetable'!A1:A401,0),3)","v":" "}]
[]
[]
[null,null,null,null,"F40",{"$f":"INDEX('Competitors&Timetable'!F100:H243,MATCH(E247,'Competitors&Timetable'!F100:F243,0),2)","v":"Shot Putt Under 13 Boys"},{"$f":"INDEX(#REF!,MATCH(E247,#REF!,0),3)","v":{"$error":"#REF!"}},null,null,null,"F41",{"$f":"INDEX('Competitors&Timetable'!F100:H243,MATCH(K247,'Competitors&Timetable'!F100:F243,0),2)","v":"Shot Putt Under 15 Boys"},{"$f":"INDEX(#REF!,MATCH(K247,#REF!,0),3)","v":{"$error":"#REF!"}}]
[null,null,null,null,43,{"$f":"INDEX(EntryList,MATCH(E248,'Competitors&Timetable'!A1:A401,0),2)","v":"Fraser Judge"},{"$f":"INDEX(EntryList,MATCH(E248,'Competitors&Timetable'!A1:A401,0),3)","v":"U13 Boy"},11.44,43,null,64,{"$f":"INDEX(EntryList,MATCH(K248,'Competitors&Timetable'!A1:A401,0),2)","v":"Lewis Donaldson"},{"$f":"INDEX(EntryList,MATCH(K248,'Competitors&Timetable'!A1:A401,0),3)","v":"U15 Boy"},7.94,25]
[null,null,null,null,45,{"$f":"INDEX(EntryList,MATCH(E249,'Competitors&Timetable'!A1:A401,0),2)","v":"Angus Cousin"},{"$f":"INDEX(EntryList,MATCH(E249,'Competitors&Timetable'!A1:A401,0),3)","v":"U13 Boy"},6.15,16,null,62,{"$f":"INDEX(EntryList,MATCH(K249,'Competitors&Timetable'!A1:A401,0),2)","v":"Jamie English"},{"$f":"INDEX(EntryList,MATCH(K249,'Competitors&Timetable'!A1:A401,0),3)","v":"U15 Boy"},7.29,22]
[null,null,null,null,44,{"$f":"INDEX(EntryList,MATCH(E250,'Competitors&Timetable'!A1:A401,0),2)","v":"Gregor Hutchison"},{"$f":"INDEX(EntryList,MATCH(E250,'Competitors&Timetable'!A1:A401,0),3)","v":"U13 Boy"},5.18,11,null,61,{"$f":"INDEX(EntryList,MATCH(K250,'Competitors&Timetable'!A1:A401,0),2)","v":"Matthew Sinclair"},{"$f":"INDEX(EntryList,MATCH(K250,'Competitors&Timetable'!A1:A401,0),3)","v":"U15 Boy"},7.25,22]
[null,null,null,null,47,{"$f":"INDEX(EntryList,MATCH(E251,'Competitors&Timetable'!A1:A401,0),2)","v":"Euan Maxwell"},{"$f":"INDEX(EntryList,MATCH(E251,'Competitors&Timetable'!A1:A401,0),3)","v":"U13 Boy"},4.4400000000000004,7,null,".",{"$f":"INDEX(EntryList,MATCH(K251,'Competitors&Timetable'!A1:A401,0),2)","v":" "},{"$f":"INDEX(EntryList,MATCH(K251,'Competitors&Timetable'!A1:A401,0),3)","v":" "}]
[null,null,null,null,".",{"$f":"INDEX(EntryList,MATCH(E252,'Competitors&Timetable'!A1:A401,0),2)","v":" "},{"$f":"INDEX(EntryList,MATCH(E252,'Competitors&Timetable'!A1:A401,0),3)","v":" "},null,null,null,".",{"$f":"INDEX(EntryList,MATCH(K252,'Competitors&Timetable'!A1:A401,0),2)","v":" "},{"$f":"INDEX(EntryList,MATCH(K252,'Competitors&Timetable'!A1:A401,0),3)","v":" "}]
[null,null,null,null,".",{"$f":"INDEX(EntryList,MATCH(E253,'Competitors&Timetable'!A1:A401,0),2)","v":" "},{"$f":"INDEX(EntryList,MATCH(E253,'Competitors&Timetable'!A1:A401,0),3)","v":" "},null,null,null,".",{"$f":"INDEX(EntryList,MATCH(K253,'Competitors&Timetable'!A1:A401,0),2)","v":" "},{"$f":"INDEX(EntryList,MATCH(K253,'Competitors&Timetable'!A1:A401,0),3)","v":" "}]
[null,null,null,null,".",{"$f":"INDEX(EntryList,MATCH(E254,'Competitors&Timetable'!A1:A401,0),2)","v":" "},{"$f":"INDEX(EntryList,MATCH(E254,'Competitors&Timetable'!A1:A401,0),3)","v":" "},null,null,null,".",{"$f":"INDEX(EntryList,MATCH(K254,'Competitors&Timetable'!A1:A401,0),2)","v":" "},{"$f":"INDEX(EntryList,MATCH(K254,'Competitors&Timetable'!A1:A401,0),3)","v":" "}]
[null,null,null,null,".",{"$f":"INDEX(EntryList,MATCH(E255,'Competitors&Timetable'!A1:A401,0),2)","v":" "},{"$f":"INDEX(EntryList,MATCH(E255,'Competitors&Timetable'!A1:A401,0),3)","v":" "},null,null,null,".",{"$f":"INDEX(EntryList,MATCH(K255,'Competitors&Timetable'!A1:A401,0),2)","v":" "},{"$f":"INDEX(EntryList,MATCH(K255,'Competitors&Timetable'!A1:A401,0),3)","v":" "}]
[]
[]
[null,null,null,null,"F42",{"$f":"INDEX('Competitors&Timetable'!F100:H243,MATCH(E258,'Competitors&Timetable'!F100:F243,0),2)","v":"Shot Putt Under 17 Men"},{"$f":"INDEX(#REF!,MATCH(E258,#REF!,0),3)","v":{"$error":"#REF!"}},null,null,null,"F43",{"$f":"INDEX('Competitors&Timetable'!F100:H243,MATCH(K258,'Competitors&Timetable'!F100:F243,0),2)","v":"Shot Putt Under 20/23 Men"},{"$f":"INDEX(#REF!,MATCH(K258,#REF!,0),3)","v":{"$error":"#REF!"}}]
[null,null,null,null,69,{"$f":"INDEX(EntryList,MATCH(E259,'Competitors&Timetable'!A1:A401,0),2)","v":"Ross O'Brien"},{"$f":"INDEX(EntryList,MATCH(E259,'Competitors&Timetable'!A1:A401,0),3)","v":"U17 Men"},7.71,24,null,".",{"$f":"INDEX(EntryList,MATCH(K259,'Competitors&Timetable'!A1:A401,0),2)","v":" "},{"$f":"INDEX(EntryList,MATCH(K259,'Competitors&Timetable'!A1:A401,0),3)","v":" "}]
[null,null,null,null,".",{"$f":"INDEX(EntryList,MATCH(E260,'Competitors&Timetable'!A1:A401,0),2)","v":" "},{"$f":"INDEX(EntryList,MATCH(E260,'Competitors&Timetable'!A1:A401,0),3)","v":" "},null,null,null,".",{"$f":"INDEX(EntryList,MATCH(K260,'Competitors&Timetable'!A1:A401,0),2)","v":" "},{"$f":"INDEX(EntryList,MATCH(K260,'Competitors&Timetable'!A1:A401,0),3)","v":" "}]
[null,null,null,null,".",{"$f":"INDEX(EntryList,MATCH(E261,'Competitors&Timetable'!A1:A401,0),2)","v":" "},{"$f":"INDEX(EntryList,MATCH(E261,'Competitors&Timetable'!A1:A401,0),3)","v":" "},null,null,null,".",{"$f":"INDEX(EntryList,MATCH(K261,'Competitors&Timetable'!A1:A401,0),2)","v":" "},{"$f":"INDEX(EntryList,MATCH(K261,'Competitors&Timetable'!A1:A401,0),3)","v":" "}]
[null,null,null,null,".",{"$f":"INDEX(EntryList,MATCH(E262,'Competitors&Timetable'!A1:A401,0),2)","v":" "},{"$f":"INDEX(EntryList,MATCH(E262,'Competitors&Timetable'!A1:A401,0),3)","v":" "},null,null,null,".",{"$f":"INDEX(EntryList,MATCH(K262,'Competitors&Timetable'!A1:A401,0),2)","v":" "},{"$f":"INDEX(EntryList,MATCH(K262,'Competitors&Timetable'!A1:A401,0),3)","v":" "}]
[null,null,null,null,".",{"$f":"INDEX(EntryList,MATCH(E263,'Competitors&Timetable'!A1:A401,0),2)","v":" "},{"$f":"INDEX(EntryList,MATCH(E263,'Competitors&Timetable'!A1:A401,0),3)","v":" "},null,null,null,".",{"$f":"INDEX(EntryList,MATCH(K263,'Competitors&Timetable'!A1:A401,0),2)","v":" "},{"$f":"INDEX(EntryList,MATCH(K263,'Competitors&Timetable'!A1:A401,0),3)","v":" "}]
[null,null,null,null,".",{"$f":"INDEX(EntryList,MATCH(E264,'Competitors&Timetable'!A1:A401,0),2)","v":" "},{"$f":"INDEX(EntryList,MATCH(E264,'Competitors&Timetable'!A1:A401,0),3)","v":" "},null,null,null,".",{"$f":"INDEX(EntryList,MATCH(K264,'Competitors&Timetable'!A1:A401,0),2)","v":" "},{"$f":"INDEX(EntryList,MATCH(K264,'Competitors&Timetable'!A1:A401,0),3)","v":" "}]
[null,null,null,null,".",{"$f":"INDEX(EntryList,MATCH(E265,'Competitors&Timetable'!A1:A401,0),2)","v":" "},{"$f":"INDEX(EntryList,MATCH(E265,'Competitors&Timetable'!A1:A401,0),3)","v":" "},null,null,null,".",{"$f":"INDEX(EntryList,MATCH(K265,'Competitors&Timetable'!A1:A401,0),2)","v":" "},{"$f":"INDEX(EntryList,MATCH(K265,'Competitors&Timetable'!A1:A401,0),3)","v":" "}]
[null,null,null,null,".",{"$f":"INDEX(EntryList,MATCH(E266,'Competitors&Timetable'!A1:A401,0),2)","v":" "},{"$f":"INDEX(EntryList,MATCH(E266,'Competitors&Timetable'!A1:A401,0),3)","v":" "},null,null,null,".",{"$f":"INDEX(EntryList,MATCH(K266,'Competitors&Timetable'!A1:A401,0),2)","v":" "},{"$f":"INDEX(EntryList,MATCH(K266,'Competitors&Timetable'!A1:A401,0),3)","v":" "}]
[]
[]
[null,null,null,null,"F44",{"$f":"INDEX('Competitors&Timetable'!F100:H243,MATCH(E269,'Competitors&Timetable'!F100:F243,0),2)","v":"Shot Putt Sen/Mast Men"},{"$f":"INDEX(#REF!,MATCH(E269,#REF!,0),3)","v":{"$error":"#REF!"}},null,null,null,"F44",{"$f":"INDEX('Competitors&Timetable'!F100:H243,MATCH(K269,'Competitors&Timetable'!F100:F243,0),2)","v":"Shot Putt Sen/Mast Men"},{"$f":"INDEX(#REF!,MATCH(K269,#REF!,0),3)","v":{"$error":"#REF!"}}]
[null,null,null,null,92,{"$f":"INDEX(EntryList,MATCH(E270,'Competitors&Timetable'!A1:A401,0),2)","v":"Brian Wilson"},{"$f":"INDEX(EntryList,MATCH(E270,'Competitors&Timetable'!A1:A401,0),3)","v":"Sen Men"},7.74,24,null,".",{"$f":"INDEX(EntryList,MATCH(K270,'Competitors&Timetable'!A1:A401,0),2)","v":" "},{"$f":"INDEX(EntryList,MATCH(K270,'Competitors&Timetable'!A1:A401,0),3)","v":" "}]
[null,null,null,null,".",{"$f":"INDEX(EntryList,MATCH(E271,'Competitors&Timetable'!A1:A401,0),2)","v":" "},{"$f":"INDEX(EntryList,MATCH(E271,'Competitors&Timetable'!A1:A401,0),3)","v":" "},null,null,null,".",{"$f":"INDEX(EntryList,MATCH(K271,'Competitors&Timetable'!A1:A401,0),2)","v":" "},{"$f":"INDEX(EntryList,MATCH(K271,'Competitors&Timetable'!A1:A401,0),3)","v":" "}]
[null,null,null,null,".",{"$f":"INDEX(EntryList,MATCH(E272,'Competitors&Timetable'!A1:A401,0),2)","v":" "},{"$f":"INDEX(EntryList,MATCH(E272,'Competitors&Timetable'!A1:A401,0),3)","v":" "},null,null,null,".",{"$f":"INDEX(EntryList,MATCH(K272,'Competitors&Timetable'!A1:A401,0),2)","v":" "},{"$f":"INDEX(EntryList,MATCH(K272,'Competitors&Timetable'!A1:A401,0),3)","v":" "}]
[null,null,null,null,".",{"$f":"INDEX(EntryList,MATCH(E273,'Competitors&Timetable'!A1:A401,0),2)","v":" "},{"$f":"INDEX(EntryList,MATCH(E273,'Competitors&Timetable'!A1:A401,0),3)","v":" "},null,null,null,".",{"$f":"INDEX(EntryList,MATCH(K273,'Competitors&Timetable'!A1:A401,0),2)","v":" "},{"$f":"INDEX(EntryList,MATCH(K273,'Competitors&Timetable'!A1:A401,0),3)","v":" "}]
[null,null,null,null,".",{"$f":"INDEX(EntryList,MATCH(E274,'Competitors&Timetable'!A1:A401,0),2)","v":" "},{"$f":"INDEX(EntryList,MATCH(E274,'Competitors&Timetable'!A1:A401,0),3)","v":" "},null,null,null,".",{"$f":"INDEX(EntryList,MATCH(K274,'Competitors&Timetable'!A1:A401,0),2)","v":" "},{"$f":"INDEX(EntryList,MATCH(K274,'Competitors&Timetable'!A1:A401,0),3)","v":" "}]
[null,null,null,null,".",{"$f":"INDEX(EntryList,MATCH(E275,'Competitors&Timetable'!A1:A401,0),2)","v":" "},{"$f":"INDEX(EntryList,MATCH(E275,'Competitors&Timetable'!A1:A401,0),3)","v":" "},null,null,null,".",{"$f":"INDEX(EntryList,MATCH(K275,'Competitors&Timetable'!A1:A401,0),2)","v":" "},{"$f":"INDEX(EntryList,MATCH(K275,'Competitors&Timetable'!A1:A401,0),3)","v":" "}]
[null,null,null,null,".",{"$f":"INDEX(EntryList,MATCH(E276,'Competitors&Timetable'!A1:A401,0),2)","v":" "},{"$f":"INDEX(EntryList,MATCH(E276,'Competitors&Timetable'!A1:A401,0),3)","v":" "},null,null,null,".",{"$f":"INDEX(EntryList,MATCH(K276,'Competitors&Timetable'!A1:A401,0),2)","v":" "},{"$f":"INDEX(EntryList,MATCH(K276,'Competitors&Timetable'!A1:A401,0),3)","v":" "}]
[null,null,null,null,".",{"$f":"INDEX(EntryList,MATCH(E277,'Competitors&Timetable'!A1:A401,0),2)","v":" "},{"$f":"INDEX(EntryList,MATCH(E277,'Competitors&Timetable'!A1:A401,0),3)","v":" "},null,null,null,".",{"$f":"INDEX(EntryList,MATCH(K277,'Competitors&Timetable'!A1:A401,0),2)","v":" "},{"$f":"INDEX(EntryList,MATCH(K277,'Competitors&Timetable'!A1:A401,0),3)","v":" "}]
[]
[]
[null,null,null,null,"F44",{"$f":"INDEX('Competitors&Timetable'!F100:H243,MATCH(E280,'Competitors&Timetable'!F100:F243,0),2)","v":"Shot Putt Sen/Mast Men"},{"$f":"INDEX(#REF!,MATCH(E280,#REF!,0),3)","v":{"$error":"#REF!"}},null,null,null,"F45",{"$f":"INDEX('Competitors&Timetable'!F100:H243,MATCH(K280,'Competitors&Timetable'!F100:F243,0),2)","v":"High Jump Under 11 Boys"},{"$f":"INDEX(#REF!,MATCH(K280,#REF!,0),3)","v":{"$error":"#REF!"}}]
[null,null,null,null,".",{"$f":"INDEX(EntryList,MATCH(E281,'Competitors&Timetable'!A1:A401,0),2)","v":" "},{"$f":"INDEX(EntryList,MATCH(E281,'Competitors&Timetable'!A1:A401,0),3)","v":" "},null,null,null,".",{"$f":"INDEX(EntryList,MATCH(K281,'Competitors&Timetable'!A1:A401,0),2)","v":" "},{"$f":"INDEX(EntryList,MATCH(K281,'Competitors&Timetable'!A1:A401,0),3)","v":" "}]
[null,null,null,null,".",{"$f":"INDEX(EntryList,MATCH(E282,'Competitors&Timetable'!A1:A401,0),2)","v":" "},{"$f":"INDEX(EntryList,MATCH(E282,'Competitors&Timetable'!A1:A401,0),3)","v":" "},null,null,null,".",{"$f":"INDEX(EntryList,MATCH(K282,'Competitors&Timetable'!A1:A401,0),2)","v":" "},{"$f":"INDEX(EntryList,MATCH(K282,'Competitors&Timetable'!A1:A401,0),3)","v":" "}]
[null,null,null,null,".",{"$f":"INDEX(EntryList,MATCH(E283,'Competitors&Timetable'!A1:A401,0),2)","v":" "},{"$f":"INDEX(EntryList,MATCH(E283,'Competitors&Timetable'!A1:A401,0),3)","v":" "},null,null,null,".",{"$f":"INDEX(EntryList,MATCH(K283,'Competitors&Timetable'!A1:A401,0),2)","v":" "},{"$f":"INDEX(EntryList,MATCH(K283,'Competitors&Timetable'!A1:A401,0),3)","v":" "}]
[null,null,null,null,".",{"$f":"INDEX(EntryList,MATCH(E284,'Competitors&Timetable'!A1:A401,0),2)","v":" "},{"$f":"INDEX(EntryList,MATCH(E284,'Competitors&Timetable'!A1:A401,0),3)","v":" "},null,null,null,".",{"$f":"INDEX(EntryList,MATCH(K284,'Competitors&Timetable'!A1:A401,0),2)","v":" "},{"$f":"INDEX(EntryList,MATCH(K284,'Competitors&Timetable'!A1:A401,0),3)","v":" "}]
[null,null,null,null,".",{"$f":"INDEX(EntryList,MATCH(E285,'Competitors&Timetable'!A1:A401,0),2)","v":" "},{"$f":"INDEX(EntryList,MATCH(E285,'Competitors&Timetable'!A1:A401,0),3)","v":" "},null,null,null,".",{"$f":"INDEX(EntryList,MATCH(K285,'Competitors&Timetable'!A1:A401,0),2)","v":" "},{"$f":"INDEX(EntryList,MATCH(K285,'Competitors&Timetable'!A1:A401,0),3)","v":" "}]
[null,null,null,null,".",{"$f":"INDEX(EntryList,MATCH(E286,'Competitors&Timetable'!A1:A401,0),2)","v":" "},{"$f":"INDEX(EntryList,MATCH(E286,'Competitors&Timetable'!A1:A401,0),3)","v":" "},null,null,null,".",{"$f":"INDEX(EntryList,MATCH(K286,'Competitors&Timetable'!A1:A401,0),2)","v":" "},{"$f":"INDEX(EntryList,MATCH(K286,'Competitors&Timetable'!A1:A401,0),3)","v":" "}]
[null,null,null,null,".",{"$f":"INDEX(EntryList,MATCH(E287,'Competitors&Timetable'!A1:A401,0),2)","v":" "},{"$f":"INDEX(EntryList,MATCH(E287,'Competitors&Timetable'!A1:A401,0),3)","v":" "},null,null,null,".",{"$f":"INDEX(EntryList,MATCH(K287,'Competitors&Timetable'!A1:A401,0),2)","v":" "},{"$f":"INDEX(EntryList,MATCH(K287,'Competitors&Timetable'!A1:A401,0),3)","v":" "}]
[null,null,null,null,".",{"$f":"INDEX(EntryList,MATCH(E288,'Competitors&Timetable'!A1:A401,0),2)","v":" "},{"$f":"INDEX(EntryList,MATCH(E288,'Competitors&Timetable'!A1:A401,0),3)","v":" "},null,null,null,".",{"$f":"INDEX(EntryList,MATCH(K288,'Competitors&Timetable'!A1:A401,0),2)","v":" "},{"$f":"INDEX(EntryList,MATCH(K288,'Competitors&Timetable'!A1:A401,0),3)","v":" "}]
[]
[]
[null,null,null,null,"F45",{"$f":"INDEX('Competitors&Timetable'!F100:H243,MATCH(E291,'Competitors&Timetable'!F100:F243,0),2)","v":"High Jump Under 11 Boys"},{"$f":"INDEX(#REF!,MATCH(E291,#REF!,0),3)","v":{"$error":"#REF!"}},null,null,null,"F46",{"$f":"INDEX('Competitors&Timetable'!F100:H243,MATCH(K291,'Competitors&Timetable'!F100:F243,0),2)","v":"High Jump Under 13 Boys"},{"$f":"INDEX(#REF!,MATCH(K291,#REF!,0),3)","v":{"$error":"#REF!"}}]
[null,null,null,null,18,{"$f":"INDEX(EntryList,MATCH(E292,'Competitors&Timetable'!A1:A401,0),2)","v":"Charlie Griffiths"},{"$f":"INDEX(EntryList,MATCH(E292,'Competitors&Timetable'!A1:A401,0),3)","v":"U11 Boy"},"1;20",17,null,39,{"$f":"INDEX(EntryList,MATCH(K292,'Competitors&Timetable'!A1:A401,0),2)","v":"Murray Blair"},{"$f":"INDEX(EntryList,MATCH(K292,'Competitors&Timetable'!A1:A401,0),3)","v":"U13 Boy"},"1,25",20]
[null,null,null,null,21,{"$f":"INDEX(EntryList,MATCH(E293,'Competitors&Timetable'!A1:A401,0),2)","v":"Alex Biavati-Smith"},{"$f":"INDEX(EntryList,MATCH(E293,'Competitors&Timetable'!A1:A401,0),3)","v":"U11 Boy"},"0;90",7,null,".",{"$f":"INDEX(EntryList,MATCH(K293,'Competitors&Timetable'!A1:A401,0),2)","v":" "},{"$f":"INDEX(EntryList,MATCH(K293,'Competitors&Timetable'!A1:A401,0),3)","v":" "}]
[null,null,null,null,".",{"$f":"INDEX(EntryList,MATCH(E294,'Competitors&Timetable'!A1:A401,0),2)","v":" "},{"$f":"INDEX(EntryList,MATCH(E294,'Competitors&Timetable'!A1:A401,0),3)","v":" "},null,null,null,".",{"$f":"INDEX(EntryList,MATCH(K294,'Competitors&Timetable'!A1:A401,0),2)","v":" "},{"$f":"INDEX(EntryList,MATCH(K294,'Competitors&Timetable'!A1:A401,0),3)","v":" "}]
[null,null,null,null,".",{"$f":"INDEX(EntryList,MATCH(E295,'Competitors&Timetable'!A1:A401,0),2)","v":" "},{"$f":"INDEX(EntryList,MATCH(E295,'Competitors&Timetable'!A1:A401,0),3)","v":" "},null,null,null,".",{"$f":"INDEX(EntryList,MATCH(K295,'Competitors&Timetable'!A1:A401,0),2)","v":" "},{"$f":"INDEX(EntryList,MATCH(K295,'Competitors&Timetable'!A1:A401,0),3)","v":" "}]
[null,null,null,null,".",{"$f":"INDEX(EntryList,MATCH(E296,'Competitors&Timetable'!A1:A401,0),2)","v":" "},{"$f":"INDEX(EntryList,MATCH(E296,'Competitors&Timetable'!A1:A401,0),3)","v":" "},null,null,null,".",{"$f":"INDEX(EntryList,MATCH(K296,'Competitors&Timetable'!A1:A401,0),2)","v":" "},{"$f":"INDEX(EntryList,MATCH(K296,'Competitors&Timetable'!A1:A401,0),3)","v":" "}]
[null,null,null,null,".",{"$f":"INDEX(EntryList,MATCH(E297,'Competitors&Timetable'!A1:A401,0),2)","v":" "},{"$f":"INDEX(EntryList,MATCH(E297,'Competitors&Timetable'!A1:A401,0),3)","v":" "},null,null,null,".",{"$f":"INDEX(EntryList,MATCH(K297,'Competitors&Timetable'!A1:A401,0),2)","v":" "},{"$f":"INDEX(EntryList,MATCH(K297,'Competitors&Timetable'!A1:A401,0),3)","v":" "}]
[null,null,null,null,".",{"$f":"INDEX(EntryList,MATCH(E298,'Competitors&Timetable'!A1:A401,0),2)","v":" "},{"$f":"INDEX(EntryList,MATCH(E298,'Competitors&Timetable'!A1:A401,0),3)","v":" "},null,null,null,".",{"$f":"INDEX(EntryList,MATCH(K298,'Competitors&Timetable'!A1:A401,0),2)","v":" "},{"$f":"INDEX(EntryList,MATCH(K298,'Competitors&Timetable'!A1:A401,0),3)","v":" "}]
[null,null,null,null,".",{"$f":"INDEX(EntryList,MATCH(E299,'Competitors&Timetable'!A1:A401,0),2)","v":" "},{"$f":"INDEX(EntryList,MATCH(E299,'Competitors&Timetable'!A1:A401,0),3)","v":" "},null,null,null,".",{"$f":"INDEX(EntryList,MATCH(K299,'Competitors&Timetable'!A1:A401,0),2)","v":" "},{"$f":"INDEX(EntryList,MATCH(K299,'Competitors&Timetable'!A1:A401,0),3)","v":" "}]
[]
[]
[null,null,null,null,"F47",{"$f":"INDEX('Competitors&Timetable'!$F$1:$H$144,MATCH(E302,'Competitors&Timetable'!$F$1:$F$144,0),2)","v":"High Jump Under 15 Boys"},null,null,null,null,"F48",{"$f":"INDEX('Competitors&Timetable'!$F$1:$H$144,MATCH(K302,'Competitors&Timetable'!$F$1:$F$144,0),2)","v":"High Jump Under 17 Men"}]
[null,null,null,null,62,{"$f":"INDEX(EntryList,MATCH(E303,'Competitors&Timetable'!$A$1:$A$401,0),2)","v":"Jamie English"},{"$f":"INDEX(EntryList,MATCH(E303,'Competitors&Timetable'!$A$1:$A$401,0),3)","v":"U15 Boy"},"1;50",35,null,".",{"$f":"INDEX(EntryList,MATCH(K303,'Competitors&Timetable'!$A$1:$A$401,0),2)","v":" "},{"$f":"INDEX(EntryList,MATCH(K303,'Competitors&Timetable'!$A$1:$A$401,0),3)","v":" "}]
[null,null,null,null,".",{"$f":"INDEX(EntryList,MATCH(E304,'Competitors&Timetable'!$A$1:$A$401,0),2)","v":" "},{"$f":"INDEX(EntryList,MATCH(E304,'Competitors&Timetable'!$A$1:$A$401,0),3)","v":" "},null,null,null,".",{"$f":"INDEX(EntryList,MATCH(K304,'Competitors&Timetable'!$A$1:$A$401,0),2)","v":" "},{"$f":"INDEX(EntryList,MATCH(K304,'Competitors&Timetable'!$A$1:$A$401,0),3)","v":" "}]
[null,null,null,null,".",{"$f":"INDEX(EntryList,MATCH(E305,'Competitors&Timetable'!$A$1:$A$401,0),2)","v":" "},{"$f":"INDEX(EntryList,MATCH(E305,'Competitors&Timetable'!$A$1:$A$401,0),3)","v":" "},null,null,null,".",{"$f":"INDEX(EntryList,MATCH(K305,'Competitors&Timetable'!$A$1:$A$401,0),2)","v":" "},{"$f":"INDEX(EntryList,MATCH(K305,'Competitors&Timetable'!$A$1:$A$401,0),3)","v":" "}]
[null,null,null,null,".",{"$f":"INDEX(EntryList,MATCH(E306,'Competitors&Timetable'!$A$1:$A$401,0),2)","v":" "},{"$f":"INDEX(EntryList,MATCH(E306,'Competitors&Timetable'!$A$1:$A$401,0),3)","v":" "},null,null,null,".",{"$f":"INDEX(EntryList,MATCH(K306,'Competitors&Timetable'!$A$1:$A$401,0),2)","v":" "},{"$f":"INDEX(EntryList,MATCH(K306,'Competitors&Timetable'!$A$1:$A$401,0),3)","v":" "}]
[null,null,null,null,".",{"$f":"INDEX(EntryList,MATCH(E307,'Competitors&Timetable'!$A$1:$A$401,0),2)","v":" "},{"$f":"INDEX(EntryList,MATCH(E307,'Competitors&Timetable'!$A$1:$A$401,0),3)","v":" "},null,null,null,".",{"$f":"INDEX(EntryList,MATCH(K307,'Competitors&Timetable'!$A$1:$A$401,0),2)","v":" "},{"$f":"INDEX(EntryList,MATCH(K307,'Competitors&Timetable'!$A$1:$A$401,0),3)","v":" "}]
[null,null,null,null,".",{"$f":"INDEX(EntryList,MATCH(E308,'Competitors&Timetable'!$A$1:$A$401,0),2)","v":" "},{"$f":"INDEX(EntryList,MATCH(E308,'Competitors&Timetable'!$A$1:$A$401,0),3)","v":" "},null,null,null,".",{"$f":"INDEX(EntryList,MATCH(K308,'Competitors&Timetable'!$A$1:$A$401,0),2)","v":" "},{"$f":"INDEX(EntryList,MATCH(K308,'Competitors&Timetable'!$A$1:$A$401,0),3)","v":" "}]
[null,null,null,null,".",{"$f":"INDEX(EntryList,MATCH(E309,'Competitors&Timetable'!$A$1:$A$401,0),2)","v":" "},{"$f":"INDEX(EntryList,MATCH(E309,'Competitors&Timetable'!$A$1:$A$401,0),3)","v":" "},null,null,null,".",{"$f":"INDEX(EntryList,MATCH(K309,'Competitors&Timetable'!$A$1:$A$401,0),2)","v":" "},{"$f":"INDEX(EntryList,MATCH(K309,'Competitors&Timetable'!$A$1:$A$401,0),3)","v":" "}]
[null,null,null,null,".",{"$f":"INDEX(EntryList,MATCH(E310,'Competitors&Timetable'!$A$1:$A$401,0),2)","v":" "},{"$f":"INDEX(EntryList,MATCH(E310,'Competitors&Timetable'!$A$1:$A$401,0),3)","v":" "},null,null,null,".",{"$f":"INDEX(EntryList,MATCH(K310,'Competitors&Timetable'!$A$1:$A$401,0),2)","v":" "},{"$f":"INDEX(EntryList,MATCH(K310,'Competitors&Timetable'!$A$1:$A$401,0),3)","v":" "}]
[null,null,null,null,".",{"$f":"INDEX(EntryList,MATCH(E311,'Competitors&Timetable'!$A$1:$A$401,0),2)","v":" "},{"$f":"INDEX(EntryList,MATCH(E311,'Competitors&Timetable'!$A$1:$A$401,0),3)","v":" "},null,null,null,".",{"$f":"INDEX(EntryList,MATCH(K311,'Competitors&Timetable'!$A$1:$A$401,0),2)","v":" "},{"$f":"INDEX(EntryList,MATCH(K311,'Competitors&Timetable'!$A$1:$A$401,0),3)","v":" "}]
[]
[null,null,null,null,"F49",{"$f":"INDEX('Competitors&Timetable'!$F$1:$H$144,MATCH(E313,'Competitors&Timetable'!$F$1:$F$144,0),2)","v":"High Jump Under 20/23 Men"},null,null,null,null,"F50",{"$f":"INDEX('Competitors&Timetable'!$F$1:$H$144,MATCH(K313,'Competitors&Timetable'!$F$1:$F$144,0),2)","v":"High Jump Sen/Mast Men"}]
[null,null,null,null,77,{"$f":"INDEX(EntryList,MATCH(E314,'Competitors&Timetable'!$A$1:$A$401,0),2)","v":"Robert Ferguson"},{"$f":"INDEX(EntryList,MATCH(E314,'Competitors&Timetable'!$A$1:$A$401,0),3)","v":"U20 Men"},"1,96",75,null,".",{"$f":"INDEX(EntryList,MATCH(K314,'Competitors&Timetable'!$A$1:$A$401,0),2)","v":" "},{"$f":"INDEX(EntryList,MATCH(K314,'Competitors&Timetable'!$A$1:$A$401,0),3)","v":" "}]
[null,null,null,null,".",{"$f":"INDEX(EntryList,MATCH(E315,'Competitors&Timetable'!$A$1:$A$401,0),2)","v":" "},{"$f":"INDEX(EntryList,MATCH(E315,'Competitors&Timetable'!$A$1:$A$401,0),3)","v":" "},null,null,null,".",{"$f":"INDEX(EntryList,MATCH(K315,'Competitors&Timetable'!$A$1:$A$401,0),2)","v":" "},{"$f":"INDEX(EntryList,MATCH(K315,'Competitors&Timetable'!$A$1:$A$401,0),3)","v":" "}]
[null,null,null,null,".",{"$f":"INDEX(EntryList,MATCH(E316,'Competitors&Timetable'!$A$1:$A$401,0),2)","v":" "},{"$f":"INDEX(EntryList,MATCH(E316,'Competitors&Timetable'!$A$1:$A$401,0),3)","v":" "},null,null,null,".",{"$f":"INDEX(EntryList,MATCH(K316,'Competitors&Timetable'!$A$1:$A$401,0),2)","v":" "},{"$f":"INDEX(EntryList,MATCH(K316,'Competitors&Timetable'!$A$1:$A$401,0),3)","v":" "}]
[null,null,null,null,".",{"$f":"INDEX(EntryList,MATCH(E317,'Competitors&Timetable'!$A$1:$A$401,0),2)","v":" "},{"$f":"INDEX(EntryList,MATCH(E317,'Competitors&Timetable'!$A$1:$A$401,0),3)","v":" "},null,null,null,".",{"$f":"INDEX(EntryList,MATCH(K317,'Competitors&Timetable'!$A$1:$A$401,0),2)","v":" "},{"$f":"INDEX(EntryList,MATCH(K317,'Competitors&Timetable'!$A$1:$A$401,0),3)","v":" "}]
[null,null,null,null,".",{"$f":"INDEX(EntryList,MATCH(E318,'Competitors&Timetable'!$A$1:$A$401,0),2)","v":" "},{"$f":"INDEX(EntryList,MATCH(E318,'Competitors&Timetable'!$A$1:$A$401,0),3)","v":" "},null,null,null,".",{"$f":"INDEX(EntryList,MATCH(K318,'Competitors&Timetable'!$A$1:$A$401,0),2)","v":" "},{"$f":"INDEX(EntryList,MATCH(K318,'Competitors&Timetable'!$A$1:$A$401,0),3)","v":" "}]
[null,null,null,null,".",{"$f":"INDEX(EntryList,MATCH(E319,'Competitors&Timetable'!$A$1:$A$401,0),2)","v":" "},{"$f":"INDEX(EntryList,MATCH(E319,'Competitors&Timetable'!$A$1:$A$401,0),3)","v":" "},null,null,null,".",{"$f":"INDEX(EntryList,MATCH(K319,'Competitors&Timetable'!$A$1:$A$401,0),2)","v":" "},{"$f":"INDEX(EntryList,MATCH(K319,'Competitors&Timetable'!$A$1:$A$401,0),3)","v":" "}]
[null,null,null,null,".",{"$f":"INDEX(EntryList,MATCH(E320,'Competitors&Timetable'!$A$1:$A$401,0),2)","v":" "},{"$f":"INDEX(EntryList,MATCH(E320,'Competitors&Timetable'!$A$1:$A$401,0),3)","v":" "},null,null,null,".",{"$f":"INDEX(EntryList,MATCH(K320,'Competitors&Timetable'!$A$1:$A$401,0),2)","v":" "},{"$f":"INDEX(EntryList,MATCH(K320,'Competitors&Timetable'!$A$1:$A$401,0),3)","v":" "}]
[null,null,null,null,".",{"$f":"INDEX(EntryList,MATCH(E321,'Competitors&Timetable'!$A$1:$A$401,0),2)","v":" "},{"$f":"INDEX(EntryList,MATCH(E321,'Competitors&Timetable'!$A$1:$A$401,0),3)","v":" "},null,null,null,".",{"$f":"INDEX(EntryList,MATCH(K321,'Competitors&Timetable'!$A$1:$A$401,0),2)","v":" "},{"$f":"INDEX(EntryList,MATCH(K321,'Competitors&Timetable'!$A$1:$A$401,0),3)","v":" "}]
[null,null,null,null,".",{"$f":"INDEX(EntryList,MATCH(E322,'Competitors&Timetable'!$A$1:$A$401,0),2)","v":" "},{"$f":"INDEX(EntryList,MATCH(E322,'Competitors&Timetable'!$A$1:$A$401,0),3)","v":" "},null,null,null,".",{"$f":"INDEX(EntryList,MATCH(K322,'Competitors&Timetable'!$A$1:$A$401,0),2)","v":" "},{"$f":"INDEX(EntryList,MATCH(K322,'Competitors&Timetable'!$A$1:$A$401,0),3)","v":" "}]
[]
[null,null,null,null,"F51",{"$f":"INDEX('Competitors&Timetable'!$F$1:$H$144,MATCH(E324,'Competitors&Timetable'!$F$1:$F$144,0),2)","v":"Triple Jump Under 15 Boys"},null,null,null,null,"F52",{"$f":"INDEX('Competitors&Timetable'!$F$1:$H$144,MATCH(K324,'Competitors&Timetable'!$F$1:$F$144,0),2)","v":"Triple Jump Under 17 Men"}]
[null,null,null,null,".",{"$f":"INDEX(EntryList,MATCH(E325,'Competitors&Timetable'!$A$1:$A$401,0),2)","v":" "},{"$f":"INDEX(EntryList,MATCH(E325,'Competitors&Timetable'!$A$1:$A$401,0),3)","v":" "},null,null,null,".",{"$f":"INDEX(EntryList,MATCH(K325,'Competitors&Timetable'!$A$1:$A$401,0),2)","v":" "},{"$f":"INDEX(EntryList,MATCH(K325,'Competitors&Timetable'!$A$1:$A$401,0),3)","v":" "}]
[null,null,null,null,".",{"$f":"INDEX(EntryList,MATCH(E326,'Competitors&Timetable'!$A$1:$A$401,0),2)","v":" "},{"$f":"INDEX(EntryList,MATCH(E326,'Competitors&Timetable'!$A$1:$A$401,0),3)","v":" "},null,null,null,".",{"$f":"INDEX(EntryList,MATCH(K326,'Competitors&Timetable'!$A$1:$A$401,0),2)","v":" "},{"$f":"INDEX(EntryList,MATCH(K326,'Competitors&Timetable'!$A$1:$A$401,0),3)","v":" "}]
[null,null,null,null,".",{"$f":"INDEX(EntryList,MATCH(E327,'Competitors&Timetable'!$A$1:$A$401,0),2)","v":" "},{"$f":"INDEX(EntryList,MATCH(E327,'Competitors&Timetable'!$A$1:$A$401,0),3)","v":" "},null,null,null,".",{"$f":"INDEX(EntryList,MATCH(K327,'Competitors&Timetable'!$A$1:$A$401,0),2)","v":" "},{"$f":"INDEX(EntryList,MATCH(K327,'Competitors&Timetable'!$A$1:$A$401,0),3)","v":" "}]
[null,null,null,null,".",{"$f":"INDEX(EntryList,MATCH(E328,'Competitors&Timetable'!$A$1:$A$401,0),2)","v":" "},{"$f":"INDEX(EntryList,MATCH(E328,'Competitors&Timetable'!$A$1:$A$401,0),3)","v":" "},null,null,null,".",{"$f":"INDEX(EntryList,MATCH(K328,'Competitors&Timetable'!$A$1:$A$401,0),2)","v":" "},{"$f":"INDEX(EntryList,MATCH(K328,'Competitors&Timetable'!$A$1:$A$401,0),3)","v":" "}]
[null,null,null,null,".",{"$f":"INDEX(EntryList,MATCH(E329,'Competitors&Timetable'!$A$1:$A$401,0),2)","v":" "},{"$f":"INDEX(EntryList,MATCH(E329,'Competitors&Timetable'!$A$1:$A$401,0),3)","v":" "},null,null,null,".",{"$f":"INDEX(EntryList,MATCH(K329,'Competitors&Timetable'!$A$1:$A$401,0),2)","v":" "},{"$f":"INDEX(EntryList,MATCH(K329,'Competitors&Timetable'!$A$1:$A$401,0),3)","v":" "}]
[null,null,null,null,".",{"$f":"INDEX(EntryList,MATCH(E330,'Competitors&Timetable'!$A$1:$A$401,0),2)","v":" "},{"$f":"INDEX(EntryList,MATCH(E330,'Competitors&Timetable'!$A$1:$A$401,0),3)","v":" "},null,null,null,".",{"$f":"INDEX(EntryList,MATCH(K330,'Competitors&Timetable'!$A$1:$A$401,0),2)","v":" "},{"$f":"INDEX(EntryList,MATCH(K330,'Competitors&Timetable'!$A$1:$A$401,0),3)","v":" "}]
[null,null,null,null,".",{"$f":"INDEX(EntryList,MATCH(E331,'Competitors&Timetable'!$A$1:$A$401,0),2)","v":" "},{"$f":"INDEX(EntryList,MATCH(E331,'Competitors&Timetable'!$A$1:$A$401,0),3)","v":" "},null,null,null,".",{"$f":"INDEX(EntryList,MATCH(K331,'Competitors&Timetable'!$A$1:$A$401,0),2)","v":" "},{"$f":"INDEX(EntryList,MATCH(K331,'Competitors&Timetable'!$A$1:$A$401,0),3)","v":" "}]
[null,null,null,null,".",{"$f":"INDEX(EntryList,MATCH(E332,'Competitors&Timetable'!$A$1:$A$401,0),2)","v":" "},{"$f":"INDEX(EntryList,MATCH(E332,'Competitors&Timetable'!$A$1:$A$401,0),3)","v":" "},null,null,null,".",{"$f":"INDEX(EntryList,MATCH(K332,'Competitors&Timetable'!$A$1:$A$401,0),2)","v":" "},{"$f":"INDEX(EntryList,MATCH(K332,'Competitors&Timetable'!$A$1:$A$401,0),3)","v":" "}]
[null,null,null,null,".",{"$f":"INDEX(EntryList,MATCH(E333,'Competitors&Timetable'!$A$1:$A$401,0),2)","v":" "},{"$f":"INDEX(EntryList,MATCH(E333,'Competitors&Timetable'!$A$1:$A$401,0),3)","v":" "},null,null,null,".",{"$f":"INDEX(EntryList,MATCH(K333,'Competitors&Timetable'!$A$1:$A$401,0),2)","v":" "},{"$f":"INDEX(EntryList,MATCH(K333,'Competitors&Timetable'!$A$1:$A$401,0),3)","v":" "}]
[]
[null,null,null,null,"F53",{"$f":"INDEX('Competitors&Timetable'!$F$1:$H$144,MATCH(E335,'Competitors&Timetable'!$F$1:$F$144,0),2)","v":"Triple Jump Under 20/23 Men"},null,null,null,null,"F54",{"$f":"INDEX('Competitors&Timetable'!$F$1:$H$144,MATCH(K335,'Competitors&Timetable'!$F$1:$F$144,0),2)","v":"Triple Jump Sen/Mast Men"}]
[null,null,null,null,".",{"$f":"INDEX(EntryList,MATCH(E336,'Competitors&Timetable'!$A$1:$A$401,0),2)","v":" "},{"$f":"INDEX(EntryList,MATCH(E336,'Competitors&Timetable'!$A$1:$A$401,0),3)","v":" "}]
[null,null,null,null,".",{"$f":"INDEX(EntryList,MATCH(E337,'Competitors&Timetable'!$A$1:$A$401,0),2)","v":" "},{"$f":"INDEX(EntryList,MATCH(E337,'Competitors&Timetable'!$A$1:$A$401,0),3)","v":" "},null,null,null,".",{"$f":"INDEX(EntryList,MATCH(K337,'Competitors&Timetable'!$A$1:$A$401,0),2)","v":" "},{"$f":"INDEX(EntryList,MATCH(K337,'Competitors&Timetable'!$A$1:$A$401,0),3)","v":" "}]
[null,null,null,null,".",{"$f":"INDEX(EntryList,MATCH(E338,'Competitors&Timetable'!$A$1:$A$401,0),2)","v":" "},{"$f":"INDEX(EntryList,MATCH(E338,'Competitors&Timetable'!$A$1:$A$401,0),3)","v":" "},null,null,null,".",{"$f":"INDEX(EntryList,MATCH(K338,'Competitors&Timetable'!$A$1:$A$401,0),2)","v":" "},{"$f":"INDEX(EntryList,MATCH(K338,'Competitors&Timetable'!$A$1:$A$401,0),3)","v":" "}]
[null,null,null,null,".",{"$f":"INDEX(EntryList,MATCH(E339,'Competitors&Timetable'!$A$1:$A$401,0),2)","v":" "},{"$f":"INDEX(EntryList,MATCH(E339,'Competitors&Timetable'!$A$1:$A$401,0),3)","v":" "},null,null,null,".",{"$f":"INDEX(EntryList,MATCH(K339,'Competitors&Timetable'!$A$1:$A$401,0),2)","v":" "},{"$f":"INDEX(EntryList,MATCH(K339,'Competitors&Timetable'!$A$1:$A$401,0),3)","v":" "}]
[null,null,null,null,".",{"$f":"INDEX(EntryList,MATCH(E340,'Competitors&Timetable'!$A$1:$A$401,0),2)","v":" "},{"$f":"INDEX(EntryList,MATCH(E340,'Competitors&Timetable'!$A$1:$A$401,0),3)","v":" "},null,null,null,".",{"$f":"INDEX(EntryList,MATCH(K340,'Competitors&Timetable'!$A$1:$A$401,0),2)","v":" "},{"$f":"INDEX(EntryList,MATCH(K340,'Competitors&Timetable'!$A$1:$A$401,0),3)","v":" "}]
[null,null,null,null,".",{"$f":"INDEX(EntryList,MATCH(E341,'Competitors&Timetable'!$A$1:$A$401,0),2)","v":" "},{"$f":"INDEX(EntryList,MATCH(E341,'Competitors&Timetable'!$A$1:$A$401,0),3)","v":" "},null,null,null,".",{"$f":"INDEX(EntryList,MATCH(K341,'Competitors&Timetable'!$A$1:$A$401,0),2)","v":" "},{"$f":"INDEX(EntryList,MATCH(K341,'Competitors&Timetable'!$A$1:$A$401,0),3)","v":" "}]
[null,null,null,null,".",{"$f":"INDEX(EntryList,MATCH(E342,'Competitors&Timetable'!$A$1:$A$401,0),2)","v":" "},{"$f":"INDEX(EntryList,MATCH(E342,'Competitors&Timetable'!$A$1:$A$401,0),3)","v":" "},null,null,null,".",{"$f":"INDEX(EntryList,MATCH(K342,'Competitors&Timetable'!$A$1:$A$401,0),2)","v":" "},{"$f":"INDEX(EntryList,MATCH(K342,'Competitors&Timetable'!$A$1:$A$401,0),3)","v":" "}]
[null,null,null,null,".",{"$f":"INDEX(EntryList,MATCH(E343,'Competitors&Timetable'!$A$1:$A$401,0),2)","v":" "},{"$f":"INDEX(EntryList,MATCH(E343,'Competitors&Timetable'!$A$1:$A$401,0),3)","v":" "},null,null,null,".",{"$f":"INDEX(EntryList,MATCH(K343,'Competitors&Timetable'!$A$1:$A$401,0),2)","v":" "},{"$f":"INDEX(EntryList,MATCH(K343,'Competitors&Timetable'!$A$1:$A$401,0),3)","v":" "}]
[null,null,null,null,".",{"$f":"INDEX(EntryList,MATCH(E344,'Competitors&Timetable'!$A$1:$A$401,0),2)","v":" "},{"$f":"INDEX(EntryList,MATCH(E344,'Competitors&Timetable'!$A$1:$A$401,0),3)","v":" "},null,null,null,".",{"$f":"INDEX(EntryList,MATCH(K344,'Competitors&Timetable'!$A$1:$A$401,0),2)","v":" "},{"$f":"INDEX(EntryList,MATCH(K344,'Competitors&Timetable'!$A$1:$A$401,0),3)","v":" "}]
[]
[null,null,null,null,"F55",{"$f":"INDEX('Competitors&Timetable'!$F$1:$H$144,MATCH(E346,'Competitors&Timetable'!$F$1:$F$144,0),2)","v":"Javelin Under 13 Boys"},null,null,null,null,"F56",{"$f":"INDEX('Competitors&Timetable'!$F$1:$H$144,MATCH(K346,'Competitors&Timetable'!$F$1:$F$144,0),2)","v":"Javelin Under 15 Boys"}]
[null,null,null,null,43,{"$f":"INDEX(EntryList,MATCH(E347,'Competitors&Timetable'!$A$1:$A$401,0),2)","v":"Fraser Judge"},{"$f":"INDEX(EntryList,MATCH(E347,'Competitors&Timetable'!$A$1:$A$401,0),3)","v":"U13 Boy"},33.549999999999997,36,null,65,{"$f":"INDEX(EntryList,MATCH(K347,'Competitors&Timetable'!$A$1:$A$401,0),2)","v":"Cameron Steven"},{"$f":"INDEX(EntryList,MATCH(K347,'Competitors&Timetable'!$A$1:$A$401,0),3)","v":"U15 Boy"},26.81,28]
[null,null,null,null,47,{"$f":"INDEX(EntryList,MATCH(E348,'Competitors&Timetable'!$A$1:$A$401,0),2)","v":"Euan Maxwell"},{"$f":"INDEX(EntryList,MATCH(E348,'Competitors&Timetable'!$A$1:$A$401,0),3)","v":"U13 Boy"},19.989999999999998,19,null,60,{"$f":"INDEX(EntryList,MATCH(K348,'Competitors&Timetable'!$A$1:$A$401,0),2)","v":"Jamie Darling"},{"$f":"INDEX(EntryList,MATCH(K348,'Competitors&Timetable'!$A$1:$A$401,0),3)","v":"U15 Boy"},25.39,26]
[null,null,null,null,45,{"$f":"INDEX(EntryList,MATCH(E349,'Competitors&Timetable'!$A$1:$A$401,0),2)","v":"Angus Cousin"},{"$f":"INDEX(EntryList,MATCH(E349,'Competitors&Timetable'!$A$1:$A$401,0),3)","v":"U13 Boy"},12.08,10,null,64,{"$f":"INDEX(EntryList,MATCH(K349,'Competitors&Timetable'!$A$1:$A$401,0),2)","v":"Lewis Donaldson"},{"$f":"INDEX(EntryList,MATCH(K349,'Competitors&Timetable'!$A$1:$A$401,0),3)","v":"U15 Boy"},22.32,22]
[null,null,null,null,".",{"$f":"INDEX(EntryList,MATCH(E350,'Competitors&Timetable'!$A$1:$A$401,0),2)","v":" "},{"$f":"INDEX(EntryList,MATCH(E350,'Competitors&Timetable'!$A$1:$A$401,0),3)","v":" "},null,null,null,61,{"$f":"INDEX(EntryList,MATCH(K350,'Competitors&Timetable'!$A$1:$A$401,0),2)","v":"Matthew Sinclair"},{"$f":"INDEX(EntryList,MATCH(K350,'Competitors&Timetable'!$A$1:$A$401,0),3)","v":"U15 Boy"},18.38,17]
[null,null,null,null,".",{"$f":"INDEX(EntryList,MATCH(E351,'Competitors&Timetable'!$A$1:$A$401,0),2)","v":" "},{"$f":"INDEX(EntryList,MATCH(E351,'Competitors&Timetable'!$A$1:$A$401,0),3)","v":" "},null,null,null,".",{"$f":"INDEX(EntryList,MATCH(K351,'Competitors&Timetable'!$A$1:$A$401,0),2)","v":" "},{"$f":"INDEX(EntryList,MATCH(K351,'Competitors&Timetable'!$A$1:$A$401,0),3)","v":" "}]
[null,null,null,null,".",{"$f":"INDEX(EntryList,MATCH(E352,'Competitors&Timetable'!$A$1:$A$401,0),2)","v":" "},{"$f":"INDEX(EntryList,MATCH(E352,'Competitors&Timetable'!$A$1:$A$401,0),3)","v":" "},null,null,null,".",{"$f":"INDEX(EntryList,MATCH(K352,'Competitors&Timetable'!$A$1:$A$401,0),2)","v":" "},{"$f":"INDEX(EntryList,MATCH(K352,'Competitors&Timetable'!$A$1:$A$401,0),3)","v":" "}]
[null,null,null,null,".",{"$f":"INDEX(EntryList,MATCH(E353,'Competitors&Timetable'!$A$1:$A$401,0),2)","v":" "},{"$f":"INDEX(EntryList,MATCH(E353,'Competitors&Timetable'!$A$1:$A$401,0),3)","v":" "},null,null,null,".",{"$f":"INDEX(EntryList,MATCH(K353,'Competitors&Timetable'!$A$1:$A$401,0),2)","v":" "},{"$f":"INDEX(EntryList,MATCH(K353,'Competitors&Timetable'!$A$1:$A$401,0),3)","v":" "}]
[null,null,null,null,".",{"$f":"INDEX(EntryList,MATCH(E354,'Competitors&Timetable'!$A$1:$A$401,0),2)","v":" "},{"$f":"INDEX(EntryList,MATCH(E354,'Competitors&Timetable'!$A$1:$A$401,0),3)","v":" "},null,null,null,".",{"$f":"INDEX(EntryList,MATCH(K354,'Competitors&Timetable'!$A$1:$A$401,0),2)","v":" "},{"$f":"INDEX(EntryList,MATCH(K354,'Competitors&Timetable'!$A$1:$A$401,0),3)","v":" "}]
[null,null,null,null,".",{"$f":"INDEX(EntryList,MATCH(E355,'Competitors&Timetable'!$A$1:$A$401,0),2)","v":" "},{"$f":"INDEX(EntryList,MATCH(E355,'Competitors&Timetable'!$A$1:$A$401,0),3)","v":" "},null,null,null,".",{"$f":"INDEX(EntryList,MATCH(K355,'Competitors&Timetable'!$A$1:$A$401,0),2)","v":" "},{"$f":"INDEX(EntryList,MATCH(K355,'Competitors&Timetable'!$A$1:$A$401,0),3)","v":" "}]
[]
[null,null,null,null,"F57",{"$f":"INDEX('Competitors&Timetable'!$F$1:$H$144,MATCH(E357,'Competitors&Timetable'!$F$1:$F$144,0),2)","v":"Javelin Under 17 Men"},null,null,null,null,"F58",{"$f":"INDEX('Competitors&Timetable'!$F$1:$H$144,MATCH(K357,'Competitors&Timetable'!$F$1:$F$144,0),2)","v":"Javelin Under 20/23 Men"}]
[null,null,null,null,74,{"$f":"INDEX(EntryList,MATCH(E358,'Competitors&Timetable'!$A$1:$A$401,0),2)","v":"William Hutchison"},{"$f":"INDEX(EntryList,MATCH(E358,'Competitors&Timetable'!$A$1:$A$401,0),3)","v":"U17 Men"},34.47,38,null,".",{"$f":"INDEX(EntryList,MATCH(K358,'Competitors&Timetable'!$A$1:$A$401,0),2)","v":" "},{"$f":"INDEX(EntryList,MATCH(K358,'Competitors&Timetable'!$A$1:$A$401,0),3)","v":" "}]
[null,null,null,null,72,{"$f":"INDEX(EntryList,MATCH(E359,'Competitors&Timetable'!$A$1:$A$401,0),2)","v":"Robert Williams"},{"$f":"INDEX(EntryList,MATCH(E359,'Competitors&Timetable'!$A$1:$A$401,0),3)","v":"U17 Men"},25.94,27,null,".",{"$f":"INDEX(EntryList,MATCH(K359,'Competitors&Timetable'!$A$1:$A$401,0),2)","v":" "},{"$f":"INDEX(EntryList,MATCH(K359,'Competitors&Timetable'!$A$1:$A$401,0),3)","v":" "}]
[null,null,null,null,69,{"$f":"INDEX(EntryList,MATCH(E360,'Competitors&Timetable'!$A$1:$A$401,0),2)","v":"Ross O'Brien"},{"$f":"INDEX(EntryList,MATCH(E360,'Competitors&Timetable'!$A$1:$A$401,0),3)","v":"U17 Men"},16.97,16,null,".",{"$f":"INDEX(EntryList,MATCH(K360,'Competitors&Timetable'!$A$1:$A$401,0),2)","v":" "},{"$f":"INDEX(EntryList,MATCH(K360,'Competitors&Timetable'!$A$1:$A$401,0),3)","v":" "}]
[null,null,null,null,".",{"$f":"INDEX(EntryList,MATCH(E361,'Competitors&Timetable'!$A$1:$A$401,0),2)","v":" "},{"$f":"INDEX(EntryList,MATCH(E361,'Competitors&Timetable'!$A$1:$A$401,0),3)","v":" "},null,null,null,".",{"$f":"INDEX(EntryList,MATCH(K361,'Competitors&Timetable'!$A$1:$A$401,0),2)","v":" "},{"$f":"INDEX(EntryList,MATCH(K361,'Competitors&Timetable'!$A$1:$A$401,0),3)","v":" "}]
[null,null,null,null,".",{"$f":"INDEX(EntryList,MATCH(E362,'Competitors&Timetable'!$A$1:$A$401,0),2)","v":" "},{"$f":"INDEX(EntryList,MATCH(E362,'Competitors&Timetable'!$A$1:$A$401,0),3)","v":" "},null,null,null,".",{"$f":"INDEX(EntryList,MATCH(K362,'Competitors&Timetable'!$A$1:$A$401,0),2)","v":" "},{"$f":"INDEX(EntryList,MATCH(K362,'Competitors&Timetable'!$A$1:$A$401,0),3)","v":" "}]
[null,null,null,null,".",{"$f":"INDEX(EntryList,MATCH(E363,'Competitors&Timetable'!$A$1:$A$401,0),2)","v":" "},{"$f":"INDEX(EntryList,MATCH(E363,'Competitors&Timetable'!$A$1:$A$401,0),3)","v":" "},null,null,null,".",{"$f":"INDEX(EntryList,MATCH(K363,'Competitors&Timetable'!$A$1:$A$401,0),2)","v":" "},{"$f":"INDEX(EntryList,MATCH(K363,'Competitors&Timetable'!$A$1:$A$401,0),3)","v":" "}]
[null,null,null,null,".",{"$f":"INDEX(EntryList,MATCH(E364,'Competitors&Timetable'!$A$1:$A$401,0),2)","v":" "},{"$f":"INDEX(EntryList,MATCH(E364,'Competitors&Timetable'!$A$1:$A$401,0),3)","v":" "},null,null,null,".",{"$f":"INDEX(EntryList,MATCH(K364,'Competitors&Timetable'!$A$1:$A$401,0),2)","v":" "},{"$f":"INDEX(EntryList,MATCH(K364,'Competitors&Timetable'!$A$1:$A$401,0),3)","v":" "}]
[null,null,null,null,".",{"$f":"INDEX(EntryList,MATCH(E365,'Competitors&Timetable'!$A$1:$A$401,0),2)","v":" "},{"$f":"INDEX(EntryList,MATCH(E365,'Competitors&Timetable'!$A$1:$A$401,0),3)","v":" "},null,null,null,".",{"$f":"INDEX(EntryList,MATCH(K365,'Competitors&Timetable'!$A$1:$A$401,0),2)","v":" "},{"$f":"INDEX(EntryList,MATCH(K365,'Competitors&Timetable'!$A$1:$A$401,0),3)","v":" "}]
[null,null,null,null,".",{"$f":"INDEX(EntryList,MATCH(E366,'Competitors&Timetable'!$A$1:$A$401,0),2)","v":" "},{"$f":"INDEX(EntryList,MATCH(E366,'Competitors&Timetable'!$A$1:$A$401,0),3)","v":" "},null,null,null,".",{"$f":"INDEX(EntryList,MATCH(K366,'Competitors&Timetable'!$A$1:$A$401,0),2)","v":" "},{"$f":"INDEX(EntryList,MATCH(K366,'Competitors&Timetable'!$A$1:$A$401,0),3)","v":" "}]
[]
[null,null,null,null,"F57",{"$f":"INDEX('Competitors&Timetable'!$F$1:$H$144,MATCH(E368,'Competitors&Timetable'!$F$1:$F$144,0),2)","v":"Javelin Under 17 Men"},null,null,null,null,"F58",{"$f":"INDEX('Competitors&Timetable'!$F$1:$H$144,MATCH(K368,'Competitors&Timetable'!$F$1:$F$144,0),2)","v":"Javelin Under 20/23 Men"}]
[null,null,null,null,".",{"$f":"INDEX(EntryList,MATCH(E369,'Competitors&Timetable'!$A$1:$A$401,0),2)","v":" "},{"$f":"INDEX(EntryList,MATCH(E369,'Competitors&Timetable'!$A$1:$A$401,0),3)","v":" "},null,null,null,".",{"$f":"INDEX(EntryList,MATCH(K369,'Competitors&Timetable'!$A$1:$A$401,0),2)","v":" "},{"$f":"INDEX(EntryList,MATCH(K369,'Competitors&Timetable'!$A$1:$A$401,0),3)","v":" "}]
[null,null,null,null,".",{"$f":"INDEX(EntryList,MATCH(E370,'Competitors&Timetable'!$A$1:$A$401,0),2)","v":" "},{"$f":"INDEX(EntryList,MATCH(E370,'Competitors&Timetable'!$A$1:$A$401,0),3)","v":" "},null,null,null,".",{"$f":"INDEX(EntryList,MATCH(K370,'Competitors&Timetable'!$A$1:$A$401,0),2)","v":" "},{"$f":"INDEX(EntryList,MATCH(K370,'Competitors&Timetable'!$A$1:$A$401,0),3)","v":" "}]
[null,null,null,null,".",{"$f":"INDEX(EntryList,MATCH(E371,'Competitors&Timetable'!$A$1:$A$401,0),2)","v":" "},{"$f":"INDEX(EntryList,MATCH(E371,'Competitors&Timetable'!$A$1:$A$401,0),3)","v":" "},null,null,null,".",{"$f":"INDEX(EntryList,MATCH(K371,'Competitors&Timetable'!$A$1:$A$401,0),2)","v":" "},{"$f":"INDEX(EntryList,MATCH(K371,'Competitors&Timetable'!$A$1:$A$401,0),3)","v":" "}]
[null,null,null,null,".",{"$f":"INDEX(EntryList,MATCH(E372,'Competitors&Timetable'!$A$1:$A$401,0),2)","v":" "},{"$f":"INDEX(EntryList,MATCH(E372,'Competitors&Timetable'!$A$1:$A$401,0),3)","v":" "},null,null,null,".",{"$f":"INDEX(EntryList,MATCH(K372,'Competitors&Timetable'!$A$1:$A$401,0),2)","v":" "},{"$f":"INDEX(EntryList,MATCH(K372,'Competitors&Timetable'!$A$1:$A$401,0),3)","v":" "}]
[null,null,null,null,".",{"$f":"INDEX(EntryList,MATCH(E373,'Competitors&Timetable'!$A$1:$A$401,0),2)","v":" "},{"$f":"INDEX(EntryList,MATCH(E373,'Competitors&Timetable'!$A$1:$A$401,0),3)","v":" "},null,null,null,".",{"$f":"INDEX(EntryList,MATCH(K373,'Competitors&Timetable'!$A$1:$A$401,0),2)","v":" "},{"$f":"INDEX(EntryList,MATCH(K373,'Competitors&Timetable'!$A$1:$A$401,0),3)","v":" "}]
[null,null,null,null,".",{"$f":"INDEX(EntryList,MATCH(E374,'Competitors&Timetable'!$A$1:$A$401,0),2)","v":" "},{"$f":"INDEX(EntryList,MATCH(E374,'Competitors&Timetable'!$A$1:$A$401,0),3)","v":" "},null,null,null,".",{"$f":"INDEX(EntryList,MATCH(K374,'Competitors&Timetable'!$A$1:$A$401,0),2)","v":" "},{"$f":"INDEX(EntryList,MATCH(K374,'Competitors&Timetable'!$A$1:$A$401,0),3)","v":" "}]
[null,null,null,null,".",{"$f":"INDEX(EntryList,MATCH(E375,'Competitors&Timetable'!$A$1:$A$401,0),2)","v":" "},{"$f":"INDEX(EntryList,MATCH(E375,'Competitors&Timetable'!$A$1:$A$401,0),3)","v":" "},null,null,null,".",{"$f":"INDEX(EntryList,MATCH(K375,'Competitors&Timetable'!$A$1:$A$401,0),2)","v":" "},{"$f":"INDEX(EntryList,MATCH(K375,'Competitors&Timetable'!$A$1:$A$401,0),3)","v":" "}]
[null,null,null,null,".",{"$f":"INDEX(EntryList,MATCH(E376,'Competitors&Timetable'!$A$1:$A$401,0),2)","v":" "},{"$f":"INDEX(EntryList,MATCH(E376,'Competitors&Timetable'!$A$1:$A$401,0),3)","v":" "},null,null,null,".",{"$f":"INDEX(EntryList,MATCH(K376,'Competitors&Timetable'!$A$1:$A$401,0),2)","v":" "},{"$f":"INDEX(EntryList,MATCH(K376,'Competitors&Timetable'!$A$1:$A$401,0),3)","v":" "}]
[null,null,null,null,".",{"$f":"INDEX(EntryList,MATCH(E377,'Competitors&Timetable'!$A$1:$A$401,0),2)","v":" "},{"$f":"INDEX(EntryList,MATCH(E377,'Competitors&Timetable'!$A$1:$A$401,0),3)","v":" "},null,null,null,".",{"$f":"INDEX(EntryList,MATCH(K377,'Competitors&Timetable'!$A$1:$A$401,0),2)","v":" "},{"$f":"INDEX(EntryList,MATCH(K377,'Competitors&Timetable'!$A$1:$A$401,0),3)","v":" "}]
[]
[null,null,null,null,"F59",{"$f":"INDEX('Competitors&Timetable'!$F$1:$H$150,MATCH(E379,'Competitors&Timetable'!$F$1:$F$150,0),2)","v":"Javelin Sen/Mast Men"},null,null,null,null,"F60",{"$f":"INDEX('Competitors&Timetable'!$F$1:$H$150,MATCH(K379,'Competitors&Timetable'!$F$1:$F$150,0),2)","v":"Discus Under 13 Boys"}]
[null,null,null,null,92,{"$f":"INDEX(EntryList,MATCH(E380,'Competitors&Timetable'!$A$1:$A$401,0),2)","v":"Brian Wilson"},{"$f":"INDEX(EntryList,MATCH(E380,'Competitors&Timetable'!$A$1:$A$401,0),3)","v":"Sen Men"},23.42,24,null,".",{"$f":"INDEX(EntryList,MATCH(K380,'Competitors&Timetable'!$A$1:$A$401,0),2)","v":" "},{"$f":"INDEX(EntryList,MATCH(K380,'Competitors&Timetable'!$A$1:$A$401,0),3)","v":" "}]
[null,null,null,null,".",{"$f":"INDEX(EntryList,MATCH(E381,'Competitors&Timetable'!$A$1:$A$401,0),2)","v":" "},{"$f":"INDEX(EntryList,MATCH(E381,'Competitors&Timetable'!$A$1:$A$401,0),3)","v":" "},null,null,null,".",{"$f":"INDEX(EntryList,MATCH(K381,'Competitors&Timetable'!$A$1:$A$401,0),2)","v":" "},{"$f":"INDEX(EntryList,MATCH(K381,'Competitors&Timetable'!$A$1:$A$401,0),3)","v":" "}]
[null,null,null,null,".",{"$f":"INDEX(EntryList,MATCH(E382,'Competitors&Timetable'!$A$1:$A$401,0),2)","v":" "},{"$f":"INDEX(EntryList,MATCH(E382,'Competitors&Timetable'!$A$1:$A$401,0),3)","v":" "},null,null,null,".",{"$f":"INDEX(EntryList,MATCH(K382,'Competitors&Timetable'!$A$1:$A$401,0),2)","v":" "},{"$f":"INDEX(EntryList,MATCH(K382,'Competitors&Timetable'!$A$1:$A$401,0),3)","v":" "}]
[null,null,null,null,".",{"$f":"INDEX(EntryList,MATCH(E383,'Competitors&Timetable'!$A$1:$A$401,0),2)","v":" "},{"$f":"INDEX(EntryList,MATCH(E383,'Competitors&Timetable'!$A$1:$A$401,0),3)","v":" "},null,null,null,".",{"$f":"INDEX(EntryList,MATCH(K383,'Competitors&Timetable'!$A$1:$A$401,0),2)","v":" "},{"$f":"INDEX(EntryList,MATCH(K383,'Competitors&Timetable'!$A$1:$A$401,0),3)","v":" "}]
[null,null,null,null,".",{"$f":"INDEX(EntryList,MATCH(E384,'Competitors&Timetable'!$A$1:$A$401,0),2)","v":" "},{"$f":"INDEX(EntryList,MATCH(E384,'Competitors&Timetable'!$A$1:$A$401,0),3)","v":" "},null,null,null,".",{"$f":"INDEX(EntryList,MATCH(K384,'Competitors&Timetable'!$A$1:$A$401,0),2)","v":" "},{"$f":"INDEX(EntryList,MATCH(K384,'Competitors&Timetable'!$A$1:$A$401,0),3)","v":" "}]
[null,null,null,null,".",{"$f":"INDEX(EntryList,MATCH(E385,'Competitors&Timetable'!$A$1:$A$401,0),2)","v":" "},{"$f":"INDEX(EntryList,MATCH(E385,'Competitors&Timetable'!$A$1:$A$401,0),3)","v":" "},null,null,null,".",{"$f":"INDEX(EntryList,MATCH(K385,'Competitors&Timetable'!$A$1:$A$401,0),2)","v":" "},{"$f":"INDEX(EntryList,MATCH(K385,'Competitors&Timetable'!$A$1:$A$401,0),3)","v":" "}]
[null,null,null,null,".",{"$f":"INDEX(EntryList,MATCH(E386,'Competitors&Timetable'!$A$1:$A$401,0),2)","v":" "},{"$f":"INDEX(EntryList,MATCH(E386,'Competitors&Timetable'!$A$1:$A$401,0),3)","v":" "},null,null,null,".",{"$f":"INDEX(EntryList,MATCH(K386,'Competitors&Timetable'!$A$1:$A$401,0),2)","v":" "},{"$f":"INDEX(EntryList,MATCH(K386,'Competitors&Timetable'!$A$1:$A$401,0),3)","v":" "}]
[null,null,null,null,".",{"$f":"INDEX(EntryList,MATCH(E387,'Competitors&Timetable'!$A$1:$A$401,0),2)","v":" "},{"$f":"INDEX(EntryList,MATCH(E387,'Competitors&Timetable'!$A$1:$A$401,0),3)","v":" "},null,null,null,".",{"$f":"INDEX(EntryList,MATCH(K387,'Competitors&Timetable'!$A$1:$A$401,0),2)","v":" "},{"$f":"INDEX(EntryList,MATCH(K387,'Competitors&Timetable'!$A$1:$A$401,0),3)","v":" "}]
[null,null,null,null,".",{"$f":"INDEX(EntryList,MATCH(E388,'Competitors&Timetable'!$A$1:$A$401,0),2)","v":" "},{"$f":"INDEX(EntryList,MATCH(E388,'Competitors&Timetable'!$A$1:$A$401,0),3)","v":" "},null,null,null,".",{"$f":"INDEX(EntryList,MATCH(K388,'Competitors&Timetable'!$A$1:$A$401,0),2)","v":" "},{"$f":"INDEX(EntryList,MATCH(K388,'Competitors&Timetable'!$A$1:$A$401,0),3)","v":" "}]
[]
[null,null,null,null,"F61",{"$f":"INDEX('Competitors&Timetable'!$F$1:$H$150,MATCH(E390,'Competitors&Timetable'!$F$1:$F$150,0),2)","v":"Discus Under 15 Boys"},null,null,null,null,"F62",{"$f":"INDEX('Competitors&Timetable'!$F$1:$H$150,MATCH(K390,'Competitors&Timetable'!$F$1:$F$150,0),2)","v":"Discus Under 17 Men"}]
[null,null,null,null,64,{"$f":"INDEX(EntryList,MATCH(E391,'Competitors&Timetable'!$A$1:$A$401,0),2)","v":"Lewis Donaldson"},{"$f":"INDEX(EntryList,MATCH(E391,'Competitors&Timetable'!$A$1:$A$401,0),3)","v":"U15 Boy"},19.71,20,null,69,{"$f":"INDEX(EntryList,MATCH(K391,'Competitors&Timetable'!$A$1:$A$401,0),2)","v":"Ross O'Brien"},{"$f":"INDEX(EntryList,MATCH(K391,'Competitors&Timetable'!$A$1:$A$401,0),3)","v":"U17 Men"},24.48,28]
[null,null,null,null,61,{"$f":"INDEX(EntryList,MATCH(E392,'Competitors&Timetable'!$A$1:$A$401,0),2)","v":"Matthew Sinclair"},{"$f":"INDEX(EntryList,MATCH(E392,'Competitors&Timetable'!$A$1:$A$401,0),3)","v":"U15 Boy"},18.18,17,null,90,{"$f":"INDEX(EntryList,MATCH(K392,'Competitors&Timetable'!$A$1:$A$401,0),2)","v":"Grant Kirkwood (Guest)"},{"$f":"INDEX(EntryList,MATCH(K392,'Competitors&Timetable'!$A$1:$A$401,0),3)","v":"U17 Men"},23.35,"G"]
[null,null,null,null,63,{"$f":"INDEX(EntryList,MATCH(E393,'Competitors&Timetable'!$A$1:$A$401,0),2)","v":"Ross Mackenzie"},{"$f":"INDEX(EntryList,MATCH(E393,'Competitors&Timetable'!$A$1:$A$401,0),3)","v":"U15 Boy"},12.85,10,null,71,{"$f":"INDEX(EntryList,MATCH(K393,'Competitors&Timetable'!$A$1:$A$401,0),2)","v":"Andrew Mahady"},{"$f":"INDEX(EntryList,MATCH(K393,'Competitors&Timetable'!$A$1:$A$401,0),3)","v":"U17 Men"},20.56,21]
[null,null,null,null,62,{"$f":"INDEX(EntryList,MATCH(E394,'Competitors&Timetable'!$A$1:$A$401,0),2)","v":"Jamie English"},{"$f":"INDEX(EntryList,MATCH(E394,'Competitors&Timetable'!$A$1:$A$401,0),3)","v":"U15 Boy"},12.27,10,null,".",{"$f":"INDEX(EntryList,MATCH(K394,'Competitors&Timetable'!$A$1:$A$401,0),2)","v":" "},{"$f":"INDEX(EntryList,MATCH(K394,'Competitors&Timetable'!$A$1:$A$401,0),3)","v":" "}]
[null,null,null,null,".",{"$f":"INDEX(EntryList,MATCH(E395,'Competitors&Timetable'!$A$1:$A$401,0),2)","v":" "},{"$f":"INDEX(EntryList,MATCH(E395,'Competitors&Timetable'!$A$1:$A$401,0),3)","v":" "},null,null,null,".",{"$f":"INDEX(EntryList,MATCH(K395,'Competitors&Timetable'!$A$1:$A$401,0),2)","v":" "},{"$f":"INDEX(EntryList,MATCH(K395,'Competitors&Timetable'!$A$1:$A$401,0),3)","v":" "}]
[null,null,null,null,".",{"$f":"INDEX(EntryList,MATCH(E396,'Competitors&Timetable'!$A$1:$A$401,0),2)","v":" "},{"$f":"INDEX(EntryList,MATCH(E396,'Competitors&Timetable'!$A$1:$A$401,0),3)","v":" "},null,null,null,".",{"$f":"INDEX(EntryList,MATCH(K396,'Competitors&Timetable'!$A$1:$A$401,0),2)","v":" "},{"$f":"INDEX(EntryList,MATCH(K396,'Competitors&Timetable'!$A$1:$A$401,0),3)","v":" "}]
[null,null,null,null,".",{"$f":"INDEX(EntryList,MATCH(E397,'Competitors&Timetable'!$A$1:$A$401,0),2)","v":" "},{"$f":"INDEX(EntryList,MATCH(E397,'Competitors&Timetable'!$A$1:$A$401,0),3)","v":" "},null,null,null,".",{"$f":"INDEX(EntryList,MATCH(K397,'Competitors&Timetable'!$A$1:$A$401,0),2)","v":" "},{"$f":"INDEX(EntryList,MATCH(K397,'Competitors&Timetable'!$A$1:$A$401,0),3)","v":" "}]
[null,null,null,null,".",{"$f":"INDEX(EntryList,MATCH(E398,'Competitors&Timetable'!$A$1:$A$401,0),2)","v":" "},{"$f":"INDEX(EntryList,MATCH(E398,'Competitors&Timetable'!$A$1:$A$401,0),3)","v":" "},null,null,null,".",{"$f":"INDEX(EntryList,MATCH(K398,'Competitors&Timetable'!$A$1:$A$401,0),2)","v":" "},{"$f":"INDEX(EntryList,MATCH(K398,'Competitors&Timetable'!$A$1:$A$401,0),3)","v":" "}]
[null,null,null,null,".",{"$f":"INDEX(EntryList,MATCH(E399,'Competitors&Timetable'!$A$1:$A$401,0),2)","v":" "},{"$f":"INDEX(EntryList,MATCH(E399,'Competitors&Timetable'!$A$1:$A$401,0),3)","v":" "},null,null,null,".",{"$f":"INDEX(EntryList,MATCH(K399,'Competitors&Timetable'!$A$1:$A$401,0),2)","v":" "},{"$f":"INDEX(EntryList,MATCH(K399,'Competitors&Timetable'!$A$1:$A$401,0),3)","v":" "}]
[]
[null,null,null,null,"F63",{"$f":"INDEX('Competitors&Timetable'!$F$1:$H$150,MATCH(E401,'Competitors&Timetable'!$F$1:$F$150,0),2)","v":"Discus Under 20/23 Men"},null,null,null,null,"F64",{"$f":"INDEX('Competitors&Timetable'!$F$1:$H$150,MATCH(K401,'Competitors&Timetable'!$F$1:$F$150,0),2)","v":"Discus Sen/Mast Men"}]
[null,null,null,null,77,{"$f":"INDEX(EntryList,MATCH(E402,'Competitors&Timetable'!$A$1:$A$401,0),2)","v":"Robert Ferguson"},{"$f":"INDEX(EntryList,MATCH(E402,'Competitors&Timetable'!$A$1:$A$401,0),3)","v":"U20 Men"},"27,81",35,null,92,{"$f":"INDEX(EntryList,MATCH(K402,'Competitors&Timetable'!$A$1:$A$401,0),2)","v":"Brian Wilson"},{"$f":"INDEX(EntryList,MATCH(K402,'Competitors&Timetable'!$A$1:$A$401,0),3)","v":"Sen Men"},17.39,16]
[null,null,null,null,".",{"$f":"INDEX(EntryList,MATCH(E403,'Competitors&Timetable'!$A$1:$A$401,0),2)","v":" "},{"$f":"INDEX(EntryList,MATCH(E403,'Competitors&Timetable'!$A$1:$A$401,0),3)","v":" "},null,null,null,".",{"$f":"INDEX(EntryList,MATCH(K403,'Competitors&Timetable'!$A$1:$A$401,0),2)","v":" "},{"$f":"INDEX(EntryList,MATCH(K403,'Competitors&Timetable'!$A$1:$A$401,0),3)","v":" "}]
[null,null,null,null,".",{"$f":"INDEX(EntryList,MATCH(E404,'Competitors&Timetable'!$A$1:$A$401,0),2)","v":" "},{"$f":"INDEX(EntryList,MATCH(E404,'Competitors&Timetable'!$A$1:$A$401,0),3)","v":" "},null,null,null,".",{"$f":"INDEX(EntryList,MATCH(K404,'Competitors&Timetable'!$A$1:$A$401,0),2)","v":" "},{"$f":"INDEX(EntryList,MATCH(K404,'Competitors&Timetable'!$A$1:$A$401,0),3)","v":" "}]
[null,null,null,null,".",{"$f":"INDEX(EntryList,MATCH(E405,'Competitors&Timetable'!$A$1:$A$401,0),2)","v":" "},{"$f":"INDEX(EntryList,MATCH(E405,'Competitors&Timetable'!$A$1:$A$401,0),3)","v":" "},null,null,null,".",{"$f":"INDEX(EntryList,MATCH(K405,'Competitors&Timetable'!$A$1:$A$401,0),2)","v":" "},{"$f":"INDEX(EntryList,MATCH(K405,'Competitors&Timetable'!$A$1:$A$401,0),3)","v":" "}]
[null,null,null,null,".",{"$f":"INDEX(EntryList,MATCH(E406,'Competitors&Timetable'!$A$1:$A$401,0),2)","v":" "},{"$f":"INDEX(EntryList,MATCH(E406,'Competitors&Timetable'!$A$1:$A$401,0),3)","v":" "},null,null,null,".",{"$f":"INDEX(EntryList,MATCH(K406,'Competitors&Timetable'!$A$1:$A$401,0),2)","v":" "},{"$f":"INDEX(EntryList,MATCH(K406,'Competitors&Timetable'!$A$1:$A$401,0),3)","v":" "}]
[null,null,null,null,".",{"$f":"INDEX(EntryList,MATCH(E407,'Competitors&Timetable'!$A$1:$A$401,0),2)","v":" "},{"$f":"INDEX(EntryList,MATCH(E407,'Competitors&Timetable'!$A$1:$A$401,0),3)","v":" "},null,null,null,".",{"$f":"INDEX(EntryList,MATCH(K407,'Competitors&Timetable'!$A$1:$A$401,0),2)","v":" "},{"$f":"INDEX(EntryList,MATCH(K407,'Competitors&Timetable'!$A$1:$A$401,0),3)","v":" "}]
[null,null,null,null,".",{"$f":"INDEX(EntryList,MATCH(E408,'Competitors&Timetable'!$A$1:$A$401,0),2)","v":" "},{"$f":"INDEX(EntryList,MATCH(E408,'Competitors&Timetable'!$A$1:$A$401,0),3)","v":" "},null,null,null,".",{"$f":"INDEX(EntryList,MATCH(K408,'Competitors&Timetable'!$A$1:$A$401,0),2)","v":" "},{"$f":"INDEX(EntryList,MATCH(K408,'Competitors&Timetable'!$A$1:$A$401,0),3)","v":" "}]
[null,null,null,null,".",{"$f":"INDEX(EntryList,MATCH(E409,'Competitors&Timetable'!$A$1:$A$401,0),2)","v":" "},{"$f":"INDEX(EntryList,MATCH(E409,'Competitors&Timetable'!$A$1:$A$401,0),3)","v":" "},null,null,null,".",{"$f":"INDEX(EntryList,MATCH(K409,'Competitors&Timetable'!$A$1:$A$401,0),2)","v":" "},{"$f":"INDEX(EntryList,MATCH(K409,'Competitors&Timetable'!$A$1:$A$401,0),3)","v":" "}]
[null,null,null,null,".",{"$f":"INDEX(EntryList,MATCH(E410,'Competitors&Timetable'!$A$1:$A$401,0),2)","v":" "},{"$f":"INDEX(EntryList,MATCH(E410,'Competitors&Timetable'!$A$1:$A$401,0),3)","v":" "},null,null,null,".",{"$f":"INDEX(EntryList,MATCH(K410,'Competitors&Timetable'!$A$1:$A$401,0),2)","v":" "},{"$f":"INDEX(EntryList,MATCH(K410,'Competitors&Timetable'!$A$1:$A$401,0),3)","v":" "}]
[]
[null,null,null,null,"F65",{"$f":"INDEX('Competitors&Timetable'!$F$1:$H$151,MATCH(E412,'Competitors&Timetable'!$F$1:$F$151,0),2)","v":"Shot Putt RJT Boys"},null,null,null,null,"F66",{"$f":"INDEX('Competitors&Timetable'!$F$1:$H$152,MATCH(K412,'Competitors&Timetable'!$F$1:$F$152,0),2)","v":"Shot Putt RJT Girls"}]
[null,null,null,null,1,{"$f":"INDEX(EntryList,MATCH(E413,'Competitors&Timetable'!$A$1:$A$401,0),2)","v":"Jeremy Saville"},{"$f":"INDEX(EntryList,MATCH(E413,'Competitors&Timetable'!$A$1:$A$401,0),3)","v":"RJT Group"},7.48,23,null,5,{"$f":"INDEX(EntryList,MATCH(K413,'Competitors&Timetable'!$A$1:$A$401,0),2)","v":"Amy Kristoffersen"},{"$f":"INDEX(EntryList,MATCH(K413,'Competitors&Timetable'!$A$1:$A$401,0),3)","v":"RJT Group"},6.42,18]
[null,null,null,null,9,{"$f":"INDEX(EntryList,MATCH(E414,'Competitors&Timetable'!$A$1:$A$401,0),2)","v":"Jack Martin"},{"$f":"INDEX(EntryList,MATCH(E414,'Competitors&Timetable'!$A$1:$A$401,0),3)","v":"RJT Group"},6.7,19,null,3,{"$f":"INDEX(EntryList,MATCH(K414,'Competitors&Timetable'!$A$1:$A$401,0),2)","v":"Erin Darling"},{"$f":"INDEX(EntryList,MATCH(K414,'Competitors&Timetable'!$A$1:$A$401,0),3)","v":"RJT Group"},6.2,17]
[null,null,null,null,6,{"$f":"INDEX(EntryList,MATCH(E415,'Competitors&Timetable'!$A$1:$A$401,0),2)","v":"Matthew Cartledge"},{"$f":"INDEX(EntryList,MATCH(E415,'Competitors&Timetable'!$A$1:$A$401,0),3)","v":"RJT Group"},4.1399999999999997,6,null,2,{"$f":"INDEX(EntryList,MATCH(K415,'Competitors&Timetable'!$A$1:$A$401,0),2)","v":"Catrine Scothorne"},{"$f":"INDEX(EntryList,MATCH(K415,'Competitors&Timetable'!$A$1:$A$401,0),3)","v":"RJT Group"},5.38,12]
[null,null,null,null,".",{"$f":"INDEX(EntryList,MATCH(E416,'Competitors&Timetable'!$A$1:$A$401,0),2)","v":" "},{"$f":"INDEX(EntryList,MATCH(E416,'Competitors&Timetable'!$A$1:$A$401,0),3)","v":" "},null,null,null,10,{"$f":"INDEX(EntryList,MATCH(K416,'Competitors&Timetable'!$A$1:$A$401,0),2)","v":"Lauren Fallon"},{"$f":"INDEX(EntryList,MATCH(K416,'Competitors&Timetable'!$A$1:$A$401,0),3)","v":"RJT Group"},4.9000000000000004,10]
[null,null,null,null,".",{"$f":"INDEX(EntryList,MATCH(E417,'Competitors&Timetable'!$A$1:$A$401,0),2)","v":" "},{"$f":"INDEX(EntryList,MATCH(E417,'Competitors&Timetable'!$A$1:$A$401,0),3)","v":" "},null,null,null,8,{"$f":"INDEX(EntryList,MATCH(K417,'Competitors&Timetable'!$A$1:$A$401,0),2)","v":"Amy McLaughlin"},{"$f":"INDEX(EntryList,MATCH(K417,'Competitors&Timetable'!$A$1:$A$401,0),3)","v":"RJT Group"},3.55,3]
[null,null,null,null,".",{"$f":"INDEX(EntryList,MATCH(E418,'Competitors&Timetable'!$A$1:$A$401,0),2)","v":" "},{"$f":"INDEX(EntryList,MATCH(E418,'Competitors&Timetable'!$A$1:$A$401,0),3)","v":" "},null,null,null,".",{"$f":"INDEX(EntryList,MATCH(K418,'Competitors&Timetable'!$A$1:$A$401,0),2)","v":" "},{"$f":"INDEX(EntryList,MATCH(K418,'Competitors&Timetable'!$A$1:$A$401,0),3)","v":" "}]
[null,null,null,null,".",{"$f":"INDEX(EntryList,MATCH(E419,'Competitors&Timetable'!$A$1:$A$401,0),2)","v":" "},{"$f":"INDEX(EntryList,MATCH(E419,'Competitors&Timetable'!$A$1:$A$401,0),3)","v":" "},null,null,null,".",{"$f":"INDEX(EntryList,MATCH(K419,'Competitors&Timetable'!$A$1:$A$401,0),2)","v":" "},{"$f":"INDEX(EntryList,MATCH(K419,'Competitors&Timetable'!$A$1:$A$401,0),3)","v":" "}]
[null,null,null,null,".",{"$f":"INDEX(EntryList,MATCH(E420,'Competitors&Timetable'!$A$1:$A$401,0),2)","v":" "},{"$f":"INDEX(EntryList,MATCH(E420,'Competitors&Timetable'!$A$1:$A$401,0),3)","v":" "},null,null,null,".",{"$f":"INDEX(EntryList,MATCH(K420,'Competitors&Timetable'!$A$1:$A$401,0),2)","v":" "},{"$f":"INDEX(EntryList,MATCH(K420,'Competitors&Timetable'!$A$1:$A$401,0),3)","v":" "}]
[null,null,null,null,".",{"$f":"INDEX(EntryList,MATCH(E421,'Competitors&Timetable'!$A$1:$A$401,0),2)","v":" "},{"$f":"INDEX(EntryList,MATCH(E421,'Competitors&Timetable'!$A$1:$A$401,0),3)","v":" "},null,null,null,".",{"$f":"INDEX(EntryList,MATCH(K421,'Competitors&Timetable'!$A$1:$A$401,0),2)","v":" "},{"$f":"INDEX(EntryList,MATCH(K421,'Competitors&Timetable'!$A$1:$A$401,0),3)","v":" "}]
[]
[null,null,null,null,null,"RJT Long Jump Girls",null,null,null,null,null,"RJT Long Jump boys"]
[null,null,null,null,2,{"$f":"INDEX(EntryList,MATCH(E424,'Competitors&Timetable'!$A$1:$A$401,0),2)","v":"Catrine Scothorne"},{"$f":"INDEX(EntryList,MATCH(E424,'Competitors&Timetable'!$A$1:$A$401,0),3)","v":"RJT Group"},3.15,11,null,1,{"$f":"INDEX(EntryList,MATCH(K424,'Competitors&Timetable'!$A$1:$A$401,0),2)","v":"Jeremy Saville"},{"$f":"INDEX(EntryList,MATCH(K424,'Competitors&Timetable'!$A$1:$A$401,0),3)","v":"RJT Group"},3.36,13]
[null,null,null,null,3,{"$f":"INDEX(EntryList,MATCH(E425,'Competitors&Timetable'!$A$1:$A$401,0),2)","v":"Erin Darling"},{"$f":"INDEX(EntryList,MATCH(E425,'Competitors&Timetable'!$A$1:$A$401,0),3)","v":"RJT Group"},2.94,9,null,9,{"$f":"INDEX(EntryList,MATCH(K425,'Competitors&Timetable'!$A$1:$A$401,0),2)","v":"Jack Martin"},{"$f":"INDEX(EntryList,MATCH(K425,'Competitors&Timetable'!$A$1:$A$401,0),3)","v":"RJT Group"},3.05,10]
[null,null,null,null,5,{"$f":"INDEX(EntryList,MATCH(E426,'Competitors&Timetable'!$A$1:$A$401,0),2)","v":"Amy Kristoffersen"},{"$f":"INDEX(EntryList,MATCH(E426,'Competitors&Timetable'!$A$1:$A$401,0),3)","v":"RJT Group"},2.92,9,null,6,{"$f":"INDEX(EntryList,MATCH(K426,'Competitors&Timetable'!$A$1:$A$401,0),2)","v":"Matthew Cartledge"},{"$f":"INDEX(EntryList,MATCH(K426,'Competitors&Timetable'!$A$1:$A$401,0),3)","v":"RJT Group"},2.5499999999999998,7]
[null,null,null,null,10,{"$f":"INDEX(EntryList,MATCH(E427,'Competitors&Timetable'!$A$1:$A$401,0),2)","v":"Lauren Fallon"},{"$f":"INDEX(EntryList,MATCH(E427,'Competitors&Timetable'!$A$1:$A$401,0),3)","v":"RJT Group"},2.41,6]
[null,null,null,null,8,{"$f":"INDEX(EntryList,MATCH(E428,'Competitors&Timetable'!$A$1:$A$401,0),2)","v":"Amy McLaughlin"},{"$f":"INDEX(EntryList,MATCH(E428,'Competitors&Timetable'!$A$1:$A$401,0),3)","v":"RJT Group"},2.16,4]
[null,null,null,null,".",{"$f":"INDEX(EntryList,MATCH(E429,'Competitors&Timetable'!$A$1:$A$401,0),2)","v":" "},{"$f":"INDEX(EntryList,MATCH(E429,'Competitors&Timetable'!$A$1:$A$401,0),3)","v":" "},null,null,null,".",{"$f":"INDEX(EntryList,MATCH(K429,'Competitors&Timetable'!$A$1:$A$401,0),2)","v":" "},{"$f":"INDEX(EntryList,MATCH(K429,'Competitors&Timetable'!$A$1:$A$401,0),3)","v":" "}]
[null,null,null,null,".",{"$f":"INDEX(EntryList,MATCH(E430,'Competitors&Timetable'!$A$1:$A$401,0),2)","v":" "},{"$f":"INDEX(EntryList,MATCH(E430,'Competitors&Timetable'!$A$1:$A$401,0),3)","v":" "},null,null,null,".",{"$f":"INDEX(EntryList,MATCH(K430,'Competitors&Timetable'!$A$1:$A$401,0),2)","v":" "},{"$f":"INDEX(EntryList,MATCH(K430,'Competitors&Timetable'!$A$1:$A$401,0),3)","v":" "}]
[null,null,null,null,".",{"$f":"INDEX(EntryList,MATCH(E431,'Competitors&Timetable'!$A$1:$A$401,0),2)","v":" "},{"$f":"INDEX(EntryList,MATCH(E431,'Competitors&Timetable'!$A$1:$A$401,0),3)","v":" "},null,null,null,".",{"$f":"INDEX(EntryList,MATCH(K431,'Competitors&Timetable'!$A$1:$A$401,0),2)","v":" "},{"$f":"INDEX(EntryList,MATCH(K431,'Competitors&Timetable'!$A$1:$A$401,0),3)","v":" "}]
[null,null,null,null,".",{"$f":"INDEX(EntryList,MATCH(E432,'Competitors&Timetable'!$A$1:$A$401,0),2)","v":" "},{"$f":"INDEX(EntryList,MATCH(E432,'Competitors&Timetable'!$A$1:$A$401,0),3)","v":" "},null,null,null,".",{"$f":"INDEX(EntryList,MATCH(K432,'Competitors&Timetable'!$A$1:$A$401,0),2)","v":" "},{"$f":"INDEX(EntryList,MATCH(K432,'Competitors&Timetable'!$A$1:$A$401,0),3)","v":" "}]

{"sheet":"Instructions","index":5,"n_rows":14,"n_cols":4,"rows_kept":14,"cut":false,"hidden":false,"merged":[[13,0,13,6],[8,0,8,6],[9,0,9,6],[10,0,10,6],[11,0,11,6],[4,0,4,6],[5,0,5,6],[6,0,6,6],[7,0,7,6],[12,0,12,6]]}
["Meadowbank Stadium","LAC T&F Championships","22nd September 2013","Ziska Sports"]
[]
[]
[]
[]
["Instructions"]
["Enter the Competitors Bib Nos. and concantenated names and Clubs in Worksheet 'Competitors&Timetable'."]
["Enter the timetable in Columns F & G in the worksheet 'Competitors&Timetable' using the Format T01 / F01 for 'event number' and the description under 'event' ."]
["Entering Results. For each event, against each position , enter position, bib number, and the performance. If there is a tie with other athletes above, enter an '=' after the place ie 2= . Athletes and Club names will appear automatically. Remember to remove the position ie (7) (8) when an athlete does not start and enter the relevant abbreviations ie (DNS), does not finish (DNF), no heights (NH), or no throws (NT) in the performance cell."]
[]
["The wind speed, if available, should be entered in the box at the bottom right of the result."]
["Warning: Do not change the names of the worksheets. Overwrite the existing information where required or highlight and delete but avoid cutting and pasting as the formulas can be affected in some circumstance."]
["Prior to printing, check and amend the header information. Check Row 1 of this page and amend the information accordingly then press the button \"Update Headers\" ."]
["Very Important! Remember to save the spreadsheet frequently!"]

{"sheet":"Competitors&Timetable","index":6,"n_rows":239,"n_cols":10,"rows_kept":239,"cut":false,"hidden":false,"merged":[]}
["Bib Number","Name","Club",null,null,"Event No.","Event","Age Group"]
[1,"Jeremy Saville","RJT Group",null,null,"."," "," ",null,"Column1"]
[2,"Catrine Scothorne","RJT Group",null,null,"T01","70m Hurdles Under 13 Girls","Heat 1 of 2",null,"Final"]
[3,"Erin Darling","RJT Group",null,null,"T02","75m Hurdles U15 Girls/13 Boys and 80m Hurdles U17 Women","Final",null,"Heat 1"]
[4,"Adam Shepherd","RJT Group",null,null,"T03","100m Under 11 Girls","Final",null,"Heat 2"]
[5,"Amy Kristoffersen","RJT Group",null,null,"T04","100m Under 11 Boys","Final",null,"Heat 3"]
[6,"Matthew Cartledge","RJT Group",null,null,"T05","100m U13 Girls","Heat 1 of 2",null,"Heat 4"]
[7,"Mary Henderson","RJT Group",null,null,null,null,null,null,"Heat 5"]
[8,"Amy McLaughlin","RJT Group",null,null,"T06","100m Under 13 Boys","Final",null,"Heat 6"]
[9,"Jack Martin","RJT Group",null,null,"T07","100m Under 15 Girls","Heat  1 of 2",null,"Heat 7"]
[10,"Lauren Fallon","RJT Group",null,null,null,null,null,null,"Heat 8"]
[11,"Holli Boyd","U11 Girl",null,null,"T08","100m Under 15 Boys","Final",null,"Heat 9"]
[12,"Abbie Malinowski","U11 Girl",null,null,"T09","100m Under 17/20 Women","Final",null,"Heat 10"]
[13,"Rachel Mair","U11 Girl",null,null,"T10","100m Under 17/20/Senior Men","Final"]
[14,"Ellie Baxter","U11 Girl",null,null,"T11","70m Run Jump Throw","Heat  1 of 2"]
[15,"Megan McLaughlin","U11 Girl"]
[16,"Callum Alexander","U11 Boy"]
[17,"Cameron Dickson","U11 Boy",null,null,"T12","1500m Under 13 G/B & Under 15 Girls","Final"]
[18,"Charlie Griffiths","U11 Boy",null,null,"T13","1500m Under 15/17/Sen Men/Women","Final"]
[19,"Euan Donaldson","U11 Boy",null,null,"T14","300m Under 15 Girls/Under 17 Women","Final"]
[20,"Jack Armitage","U11 Boy",null,null,"T15","400m Under 15 Boys & Senior Women","Final"]
[21,"Alex Biavati-Smith","U11 Boy",null,null,"T16","400m Under 17/20/Senior Men","Final"]
[22,"Dominic McLagan","U11 Boy",null,null,"T17","200m Under 11 Girls","Final"]
[23,"Ryan Wilson","U11 Boy",null,null,"T18","200m Under 11 Boys","Final"]
[24,"Rachel  Elder","U13 Girl",null,null,"T19","200m Under 13 Girls","Final"]
[25,"Katy Martin","U13 Girl",null,null,"T20","200m Under 13 Boys","Final"]
[26,"Amy Hewitt","U13 Girl",null,null,"T21","200m Under 15 Girls","Final"]
[27,"Lucy Tod","U13 Girl",null,null,"T22","200m Under 15 Boys & Under 17/20/Sen Women","Final"]
[28,"Samantha Laing","U13 Girl",null,null,"T23","200m Under 17/Sen. Men","Final"]
[29,"Sarah Tait","U13 Girl",null,null,"T24","800m Under 11 Girls/Boys","Final"]
[30,"Rachel  Cartledge","U13 Girl",null,null,"T25","800m Under 13 Girls /Boys","Final"]
[31,"Caroline McKinlay","U13 Girl",null,null,"T26","800m Under 15 Girls","Final"]
[32,"Eilidh Brown","U13 Girl",null,null,"T27","800m Under 15 /17/20 Men/U17/Sen. Women","Final"]
[33,"Laura Yapp","U13 Girl",null,null,"T28","Medley Relay","Final"]
[34,"Courtney Simpson","U13 Girl",null,null,"T29","110m Handicap","Final"]
[35,"Shona Gristwood","U13 Girl",null,null,"T30","200m U17 Men"]
[36,"Abbi Diamond","U13 Girl",null,null,"T31","800m Under 17/20/Sen. Men"]
[37,"Sarah Robertson","U13 Girl"]
[38,"Kate Lawrence","U13 Girl"]
[39,"Murray Blair","U13 Boy"]
[40,"Magnus Tait","U13 Boy"]
[41,"Craig Gallagher","U13 Boy"]
[42,"Lawrie Wilson","U13 Boy"]
[43,"Fraser Judge","U13 Boy"]
[44,"Gregor Hutchison","U13 Boy"]
[45,"Angus Cousin","U13 Boy"]
[46,"Euan McAlister","U13 Boy"]
[47,"Euan Maxwell","U13 Boy"]
[48,"Niamh Fellenger","U15 Girl"]
[49,"Lauren Dickson","U15 Girl"]
[50,"Imogen Wilson","U15 Girl"]
[51,"Bethany Murray","U15 Girl"]
[52,"Rachel Louden","U15 Girl"]
[53,"Megan Wilson","U15 Girl"]
[54,"Sabina Jedrzejczyk","U15 Girl"]
[55,"Anita Musenga","U15 Girl"]
[56,"Rachel Hutchison","U15 Girl"]
[57,"Ruth McAlister","U15 Girl"]
[58,"Lauren Wilkie","U15 Girl"]
[59,"Kirsty Robertson","U15 Girl"]
[60,"Jamie Darling","U15 Boy"]
[61,"Matthew Sinclair","U15 Boy"]
[62,"Jamie English","U15 Boy"]
[63,"Ross Mackenzie","U15 Boy"]
[64,"Lewis Donaldson","U15 Boy"]
[65,"Cameron Steven","U15 Boy"]
[66,"Jenna Richards","U17 Woman"]
[67,"Rachel Stoakes","U17 Woman"]
[68,"Sophie Miller","U17 Woman"]
[69,"Ross O'Brien","U17 Men"]
[70,"Mathew Timms","U17 Men"]
[71,"Andrew Mahady","U17 Men"]
[72,"Robert Williams","U17 Men"]
[73,"Kyle Mackenzie","U17 Men"]
[74,"William Hutchison","U17 Men"]
[75,"Jamie Cousin","U17 Men"]
[76,"Robert Ferguson","U17 Men"]
[77,"Robert Ferguson","U20 Men"]
[78,"Elson Musenga","U20 Men"]
[79,"Callum Clark","U20 Men"]
[80,"Rowan Marr","U20 Men"]
[81,"Amy Frankland","U20 Women"]
[82,"Ellen Kristoffersen","U20 Women"]
[83,"Karen McKinlay","Sen Women"]
[84,"Norrie Kristoffersen","Sen Men"]
[85,"Greg Louden","Sen Men",null,null,"Field No.","Event Title"]
[86,"Andy Cullen","Sen Men",null,null,"F01","Long Jump Under 11 Girls"]
[87,"Olivia Harris","U13 Girl",null,null,"F02","Long Jump Under 13 Girls"]
[88,"Hannah McVicar","U15 Girl",null,null,"F03","Long Jump Under 15 Girls"]
[89,"Lisa Robertson","U15 Girl",null,null,"F04","Long Jump Under 17 Women"]
[90,"Grant Kirkwood (Guest)","U17 Men",null,null,"F05","Long Jump Under 20/23 Women"]
[91,"Jamie Laird","U17 Men",null,null,"F06","Long Jump Sen/Mast Women"]
[92,"Brian Wilson","Sen Men",null,null,"F07","Shot Putt Under 11 Girls"]
[93,"Ashleigh Kennedy (Guest)","Sen Women",null,null,"F08","Shot Putt Under 13 Girls"]
[94,"Andy Stoane (Guest)","Sen Men",null,null,"F09","Shot Putt Under 15 Girls"]
[95,"Andrew Taylor (Guest)","U17 Men",null,null,"F10","Shot Putt Under 17 Women"]
[96,"Patrick Keith (Guest)","U17 Men",null,null,"F11","Shot Putt Under 20/23 Women"]
[97,"Christiano Crolla (Guest)","U17 Men",null,null,"F12","Shot Putt Sen/Mast Women"]
[98,"Toby Oladipo","Sen Men",null,null,"F13","High Jump Under 11 Girls"]
[99,"Kyle Hutton","U17 Men",null,null,"F14","High Jump Under 13 Girls"]
[100,"Georgia Jones","U13 Girl",null,null,"F15","High Jump Under 15 Girls"]
[101,"Charlie Carstairs","U20 Men",null,null,"F16","High Jump Under 17 Women"]
[102,"Morro Bajo","U17 Men",null,null,"F17","High Jump Under 20/23 Women"]
[null,null,null,null,null,"F18","High Jump Sen/Mast Women"]
[null,null,null,null,null,"F19","Triple Jump Under 15 Girls"]
[null,null,null,null,null,"F20","Triple Jump Under 17 Women"]
[null,null,null,null,null,"F21","Triple Jump Under 20/23 Women"]
[null,null,null,null,null,"F22","Triple Jump Under 20 Men"]
[null,null,null,null,null,"F23","Javelin Under 13 Girls"]
[null,null,null,null,null,"F24","Javelin Under 15 Girls"]
[null,null,null,null,null,"F25","Javelin Under 17 Women"]
[null,null,null,null,null,"F26","Javelin Under 20/23 Women"]
[null,null,null,null,null,"F27","Javelin Sen/Mast Women"]
[null,null,null,null,null,"F28","Discus Under 13 Girls"]
[null,null,null,null,null,"F29","Discus Under 15 Girls"]
[null,null,null,null,null,"F30","Discus Under 13 Boys"]
[null,null,null,null,null,"F31","Discus Under 20/23 Women"]
[null,null,null,null,null,"F32","Discus Sen/Mast Women"]
[null,null,null,null,null,"F33","Long Jump Under 11 Boys"]
[null,null,null,null,null,"F34","Long Jump Under 13 Boys"]
[null,null,null,null,null,"F35","Long Jump Under 15 Boys"]
[null,null,null,null,null,"F36","Long Jump Under 17 Men"]
[null,null,null,null,null,"F37","Long Jump Under 20/23 Men"]
[null,null,null,null,null,"F38","Long Jump Sen/Mast Men"]
[null,null,null,null,null,"F39","Shot Putt Under 11 Boys"]
[null,null,null,null,null,"F40","Shot Putt Under 13 Boys"]
[null,null,null,null,null,"F41","Shot Putt Under 15 Boys"]
[null,null,null,null,null,"F42","Shot Putt Under 17 Men"]
[null,null,null,null,null,"F43","Shot Putt Under 20/23 Men"]
[null,null,null,null,null,"F44","Shot Putt Sen/Mast Men"]
[null,null,null,null,null,"F45","High Jump Under 11 Boys"]
[null,null,null,null,null,"F46","High Jump Under 13 Boys"]
[null,null,null,null,null,"F47","High Jump Under 15 Boys"]
[null,null,null,null,null,"F48","High Jump Under 17 Men"]
[null,null,null,null,null,"F49","High Jump Under 20/23 Men"]
[null,null,null,null,null,"F50","High Jump Sen/Mast Men"]
[null,null,null,null,null,"F51","Triple Jump Under 15 Boys"]
[null,null,null,null,null,"F52","Triple Jump Under 17 Men"]
[null,null,null,null,null,"F53","Triple Jump Under 20/23 Men"]
[null,null,null,null,null,"F54","Triple Jump Sen/Mast Men"]
[null,null,null,null,null,"F55","Javelin Under 13 Boys"]
[null,null,null,null,null,"F56","Javelin Under 15 Boys"]
[null,null,null,null,null,"F57","Javelin Under 17 Men"]
[null,null,null,null,null,"F58","Javelin Under 20/23 Men"]
[null,null,null,null,null,"F59","Javelin Sen/Mast Men"]
[null,null,null,null,null,"F60","Discus Under 13 Boys"]
[null,null,null,null,null,"F61","Discus Under 15 Boys"]
[null,null,null,null,null,"F62","Discus Under 17 Men"]
[null,null,null,null,null,"F63","Discus Under 20/23 Men"]
[null,null,null,null,null,"F64","Discus Sen/Mast Men"]
[null,null,null,null,null,"F65","Shot Putt RJT Boys"]
[null,null,null,null,null,"F66","Shot Putt RJT Girls"]
[]
[]
[]
[]
[]
[]
[]
[]
[]
[]
[]
[]
[]
[]
[]
[]
[]
[]
[]
[]
[]
[]
[]
[]
[]
[]
[]
[]
[]
[]
[]
[]
[]
[]
[]
[]
[]
[]
[]
[]
[]
[]
[]
[]
[]
[]
[]
[]
[]
[]
[]
[]
[]
[]
[]
[]
[]
[]
[]
[]
[]
[]
[]
[]
[]
[]
[]
[]
[]
[]
[]
[]
[]
[]
[]
[]
[]
[]
[]
[]
[]
[]
[]
[]
[]
[]
["."," "," "]